Workbook

Sheet Portada

Sheet Notas Precios

Sheet INFORME AUTOMATICO (hidden)
B1: " PEGAR LOS GRUPOS DE LA RECOLECCION "
F2: PROVEEDORES SIN REPETIR | G2: 381
B3: CODIGO GRUPO | C3: GRUPO DE INSUMOS | D3: CANTIDAD DE PROVEEDORES (TOTAL) | F3: PROVEEDORES POR GRUPOS | G3: =SUM(D:D) -> 852
B4: 1114 | C4: ACCESORIOS HD PARA REDES DE ACUEDUCTO | D4: =COUNTIF('LISTA TOTAL PROVEEDORES'!$B$3:$B$9955,'INFORME AUTOMATICO'!B4) -> 19 | F4: REGISTROS PROVEEDORES VIEJOS | G4: =+G3-G6 -> 179
B5: 1161 | C5: ACTIVIDADES A TODO COSTO | D5: =COUNTIF('LISTA TOTAL PROVEEDORES'!$B$3:$B$9955,'INFORME AUTOMATICO'!B5) -> 47
B6: 1102 | C6: AGREGADOS PÉTREOS, BASES Y SUBBASES GRANULARES | D6: =COUNTIF('LISTA TOTAL PROVEEDORES'!$B$3:$B$9955,'INFORME AUTOMATICO'!B6) -> 27 | F6: REGISTROS PROVEEDORES NUEVOS | G6: =SUM('LISTA TOTAL PROVEEDORES'!M:M) -> 673
B7: 1147 | C7: ARBOLES-GRAMAS-VEGETACIÓN Y PLANTACIÓN PAISAJÍSTIC | D7: =COUNTIF('LISTA TOTAL PROVEEDORES'!$B$3:$B$9955,'INFORME AUTOMATICO'!B7) -> 3
B8: 1127 | C8: BORDILLOS Y LOSETAS | D8: =COUNTIF('LISTA TOTAL PROVEEDORES'!$B$3:$B$9955,'INFORME AUTOMATICO'!B8) -> 14
B9: 1121 | C9: CABLES Y ACCESORIOS ELECTRICOS | D9: =COUNTIF('LISTA TOTAL PROVEEDORES'!$B$3:$B$9955,'INFORME AUTOMATICO'!B9) -> 32
B10: 1227 | C10: CANAL DE DRENAJE | D10: =COUNTIF('LISTA TOTAL PROVEEDORES'!$B$3:$B$9955,'INFORME AUTOMATICO'!B10) -> 3
B11: 1195 | C11: CARPINTERÍA METÁLICA | D11: =COUNTIF('LISTA TOTAL PROVEEDORES'!$B$3:$B$9955,'INFORME AUTOMATICO'!B11) -> 2
B12: 1130 | C12: COMBUSTIBLES Y LUBRICANTES | D12: =COUNTIF('LISTA TOTAL PROVEEDORES'!$B$3:$B$9955,'INFORME AUTOMATICO'!B12) -> 1
B13: 1103 | C13: CONCRETOS Y MORTEROS PREMEZCLADOS | D13: =COUNTIF('LISTA TOTAL PROVEEDORES'!$B$3:$B$9955,'INFORME AUTOMATICO'!B13) -> 10
B14: 1168 | C14: CONSULTORIA | D14: =COUNTIF('LISTA TOTAL PROVEEDORES'!$B$3:$B$9955,'INFORME AUTOMATICO'!B14) -> 2
B15: 1200 | C15: CUBIERTA - CIELO RASO - CORTASOL TIPO TRANSMILENIO | D15: =COUNTIF('LISTA TOTAL PROVEEDORES'!$B$3:$B$9955,'INFORME AUTOMATICO'!B15) -> 8
B16: 1194 | C16: DESMONTE Y TRASLADOS DE ELEMENTOS METÁLICOS | D16: =COUNTIF('LISTA TOTAL PROVEEDORES'!$B$3:$B$9955,'INFORME AUTOMATICO'!B16) -> 2
B17: 1148 | C17: DOTACIÓN (EPP) Y EQUIP. Y HERRAM. SEGUR. INDUSTR. | D17: =COUNTIF('LISTA TOTAL PROVEEDORES'!$B$3:$B$9955,'INFORME AUTOMATICO'!B17) -> 19
B18: 1111 | C18: DUCTOS PVC - ELECTRICOS/TELEFONICOS TIPO TDP-DB-EB | D18: =COUNTIF('LISTA TOTAL PROVEEDORES'!$B$3:$B$9955,'INFORME AUTOMATICO'!B18) -> 8
B19: 1104 | C19: EMULSIONES Y MEZCLAS ASFÁLTICAS | D19: =COUNTIF('LISTA TOTAL PROVEEDORES'!$B$3:$B$9955,'INFORME AUTOMATICO'!B19) -> 13
B20: 1210 | C20: ENSAYO CAMPO - SOLDADURAS | D20: =COUNTIF('LISTA TOTAL PROVEEDORES'!$B$3:$B$9955,'INFORME AUTOMATICO'!B20) -> 5
B21: 1223 | C21: ENSAYO CAMPO - DIAGNOSTICO DE PAVIMENTOS | D21: =COUNTIF('LISTA TOTAL PROVEEDORES'!$B$3:$B$9955,'INFORME AUTOMATICO'!B21) -> 13
B22: 1172 | C22: ENSAYO CAMPO - ELEMENTOS ESTRUCTURALES CONCRETO | D22: =COUNTIF('LISTA TOTAL PROVEEDORES'!$B$3:$B$9955,'INFORME AUTOMATICO'!B22) -> 10
B23: 1224 | C23: ENSAYO CAMPO -RECUBRIMIENTO ESTRUCTURA METÁLICA | D23: =COUNTIF('LISTA TOTAL PROVEEDORES'!$B$3:$B$9955,'INFORME AUTOMATICO'!B23) -> 6
B24: 1211 | C24: ENSAYO LABORATORIO - ABRASIVO | D24: =COUNTIF('LISTA TOTAL PROVEEDORES'!$B$3:$B$9955,'INFORME AUTOMATICO'!B24) -> 3
B25: 1213 | C25: ENSAYO LABORATORIO - ACERO ESTRUCTURAL | D25: =COUNTIF('LISTA TOTAL PROVEEDORES'!$B$3:$B$9955,'INFORME AUTOMATICO'!B25) -> 5
B26: 1212 | C26: ENSAYO LABORATORIO - ACERO REFUERZO Y PRETENSADO | D26: =COUNTIF('LISTA TOTAL PROVEEDORES'!$B$3:$B$9955,'INFORME AUTOMATICO'!B26) -> 8
B27: 1171 | C27: ENSAYO LABORATORIO - AGREGADOS PETREOS | D27: =COUNTIF('LISTA TOTAL PROVEEDORES'!$B$3:$B$9955,'INFORME AUTOMATICO'!B27) -> 21
B28: 1228 | C28: ENSAYO LABORATORIO - AGREGADOS PROVENIENTES DE RCD | D28: =COUNTIF('LISTA TOTAL PROVEEDORES'!$B$3:$B$9955,'INFORME AUTOMATICO'!B28) -> 3
B29: 1183 | C29: ENSAYO LABORATORIO - AIRE | D29: =COUNTIF('LISTA TOTAL PROVEEDORES'!$B$3:$B$9955,'INFORME AUTOMATICO'!B29) -> 15
B30: 1214 | C30: ENSAYO LABORATORIO - ALUMINIO | D30: =COUNTIF('LISTA TOTAL PROVEEDORES'!$B$3:$B$9955,'INFORME AUTOMATICO'!B30) -> 3
B31: 1177 | C31: ENSAYO LABORATORIO - ANÁLISIS DE AGUAS | D31: =COUNTIF('LISTA TOTAL PROVEEDORES'!$B$3:$B$9955,'INFORME AUTOMATICO'!B31) -> 14
B32: 1169 | C32: ENSAYO LABORATORIO - CEMENTOS HIDRÁULICOS | D32: =COUNTIF('LISTA TOTAL PROVEEDORES'!$B$3:$B$9955,'INFORME AUTOMATICO'!B32) -> 11
B33: 1181 | C33: ENSAYO LABORATORIO - COMPONENTE DE ESPACIO PÚBLICO | D33: =COUNTIF('LISTA TOTAL PROVEEDORES'!$B$3:$B$9955,'INFORME AUTOMATICO'!B33) -> 15
B34: 1215 | C34: ENSAYO LABORATORIO - CONCRETO PRETENSADO | D34: =COUNTIF('LISTA TOTAL PROVEEDORES'!$B$3:$B$9955,'INFORME AUTOMATICO'!B34) -> 3
B35: 1174 | C35: ENSAYO LABORATORIO - CONCRETOS HIDRÁULICOS | D35: =COUNTIF('LISTA TOTAL PROVEEDORES'!$B$3:$B$9955,'INFORME AUTOMATICO'!B35) -> 10
B36: 1182 | C36: ENSAYO LABORATORIO - GEOTEXTILES | D36: =COUNTIF('LISTA TOTAL PROVEEDORES'!$B$3:$B$9955,'INFORME AUTOMATICO'!B36) -> 6
B37: 1175 | C37: ENSAYO LABORATORIO - MATERIALES BITUMINOSOS | D37: =COUNTIF('LISTA TOTAL PROVEEDORES'!$B$3:$B$9955,'INFORME AUTOMATICO'!B37) -> 13
B38: 1176 | C38: ENSAYO LABORATORIO - MEZCLAS ASFALTICAS | D38: =COUNTIF('LISTA TOTAL PROVEEDORES'!$B$3:$B$9955,'INFORME AUTOMATICO'!B38) -> 18
B39: 1218 | C39: ENSAYO LABORATORIO - NEOPRENO | D39: =COUNTIF('LISTA TOTAL PROVEEDORES'!$B$3:$B$9955,'INFORME AUTOMATICO'!B39) -> 4
B40: 1207 | C40: ENSAYO LABORATORIO - PERFORACIONES | D40: =COUNTIF('LISTA TOTAL PROVEEDORES'!$B$3:$B$9955,'INFORME AUTOMATICO'!B40) -> 5
B41: 1219 | C41: ENSAYO LABORATORIO - PERNOS | D41: =COUNTIF('LISTA TOTAL PROVEEDORES'!$B$3:$B$9955,'INFORME AUTOMATICO'!B41) -> 3
B42: 1220 | C42: ENSAYO LABORATORIO - PINTURA | D42: =COUNTIF('LISTA TOTAL PROVEEDORES'!$B$3:$B$9955,'INFORME AUTOMATICO'!B42) -> 5
B43: 1221 | C43: ENSAYO LABORATORIO - PLÁSTICO RÍGIDO | D43: =COUNTIF('LISTA TOTAL PROVEEDORES'!$B$3:$B$9955,'INFORME AUTOMATICO'!B43) -> 5
B44: 1178 | C44: ENSAYO LABORATORIO - ROCA | D44: =COUNTIF('LISTA TOTAL PROVEEDORES'!$B$3:$B$9955,'INFORME AUTOMATICO'!B44) -> 12
B45: 1203 | C45: ENSAYO LABORATORIO - RUIDO | D45: =COUNTIF('LISTA TOTAL PROVEEDORES'!$B$3:$B$9955,'INFORME AUTOMATICO'!B45) -> 13
B46: 1170 | C46: ENSAYO LABORATORIO - SUELOS | D46: =COUNTIF('LISTA TOTAL PROVEEDORES'!$B$3:$B$9955,'INFORME AUTOMATICO'!B46) -> 27
B47: 1116 | C47: EQUIPO LIVIANO Y HERRAMIENTAS | D47: =COUNTIF('LISTA TOTAL PROVEEDORES'!$B$3:$B$9955,'INFORME AUTOMATICO'!B47) -> 7
B48: 1115 | C48: EQUIPO PESADO | D48: =COUNTIF('LISTA TOTAL PROVEEDORES'!$B$3:$B$9955,'INFORME AUTOMATICO'!B48) -> 20
B49: 1146 | C49: ESTRUCTURAS EN ACERO | D49: =COUNTIF('LISTA TOTAL PROVEEDORES'!$B$3:$B$9955,'INFORME AUTOMATICO'!B49) -> 18
B50: 1158 | C50: EXÁMENES MÉDICOS | D50: =COUNTIF('LISTA TOTAL PROVEEDORES'!$B$3:$B$9955,'INFORME AUTOMATICO'!B50) -> 4
B51: 1134 | C51: FORMALETAS, ANDAMIOS Y ACCESORIOS | D51: =COUNTIF('LISTA TOTAL PROVEEDORES'!$B$3:$B$9955,'INFORME AUTOMATICO'!B51) -> 10
B52: 1123 | C52: GEOSINTETICOS | D52: =COUNTIF('LISTA TOTAL PROVEEDORES'!$B$3:$B$9955,'INFORME AUTOMATICO'!B52) -> 13
B53: 1198 | C53: GESTIÓN SOCIAL ELEMENTOS DE IDENTIFICACIÓN EN OBRA | D53: =COUNTIF('LISTA TOTAL PROVEEDORES'!$B$3:$B$9955,'INFORME AUTOMATICO'!B53) -> 1
B54: 1167 | C54: GESTIÓN SOCIAL ELEMENTOS DE PUBLICIDAD | D54: =COUNTIF('LISTA TOTAL PROVEEDORES'!$B$3:$B$9955,'INFORME AUTOMATICO'!B54) -> 6
B55: 1125 | C55: LADRILLOS, BLOQUES Y ADOQUINES | D55: =COUNTIF('LISTA TOTAL PROVEEDORES'!$B$3:$B$9955,'INFORME AUTOMATICO'!B55) -> 16
B56: 1208 | C56: LEVANTAMIENTO TOPOGRÁFICO | D56: =COUNTIF('LISTA TOTAL PROVEEDORES'!$B$3:$B$9955,'INFORME AUTOMATICO'!B56) -> 1
B57: 1133 | C57: MADERAS | D57: =COUNTIF('LISTA TOTAL PROVEEDORES'!$B$3:$B$9955,'INFORME AUTOMATICO'!B57) -> 5
B58: 1122 | C58: MALLAS Y ACEROS PARA REFUERZO | D58: =COUNTIF('LISTA TOTAL PROVEEDORES'!$B$3:$B$9955,'INFORME AUTOMATICO'!B58) -> 11
B59: 1139 | C59: MARCOS, TAPAS, REJILLAS, HERRAJES Y CAJILLAS | D59: =COUNTIF('LISTA TOTAL PROVEEDORES'!$B$3:$B$9955,'INFORME AUTOMATICO'!B59) -> 9
B60: 1206 | C60: MATERIALES BÁSICOS | D60: =COUNTIF('LISTA TOTAL PROVEEDORES'!$B$3:$B$9955,'INFORME AUTOMATICO'!B60) -> 10
B61: 1137 | C61: MATERIALES DE FERRETERÍA Y OTROS | D61: =COUNTIF('LISTA TOTAL PROVEEDORES'!$B$3:$B$9955,'INFORME AUTOMATICO'!B61) -> 33
B62: 1196 | C62: MOBILIARIO METÁLICO TIPO TRANSMILENIO | D62: =COUNTIF('LISTA TOTAL PROVEEDORES'!$B$3:$B$9955,'INFORME AUTOMATICO'!B62) -> 1
B63: 1126 | C63: MOBILIARIO URBANO Y DE PARQUES | D63: =COUNTIF('LISTA TOTAL PROVEEDORES'!$B$3:$B$9955,'INFORME AUTOMATICO'!B63) -> 10
B64: 1156 | C64: MUEBLES - EQUIPOS Y ELEMENTOS OFICINA | D64: =COUNTIF('LISTA TOTAL PROVEEDORES'!$B$3:$B$9955,'INFORME AUTOMATICO'!B64) -> 15
B65: 1205 | C65: NEOPRENOS | D65: =COUNTIF('LISTA TOTAL PROVEEDORES'!$B$3:$B$9955,'INFORME AUTOMATICO'!B65) -> 5
B66: 1129 | C66: PINTURAS | D66: =COUNTIF('LISTA TOTAL PROVEEDORES'!$B$3:$B$9955,'INFORME AUTOMATICO'!B66) -> 24
B67: 1188 | C67: PISOS (CONVENCIONALES Y TIPO TRANSMILENIO) | D67: =COUNTIF('LISTA TOTAL PROVEEDORES'!$B$3:$B$9955,'INFORME AUTOMATICO'!B67) -> 6
B68: 1120 | C68: POSTES Y ALUMBRADO PUBLICO | D68: =COUNTIF('LISTA TOTAL PROVEEDORES'!$B$3:$B$9955,'INFORME AUTOMATICO'!B68) -> 16
B69: 1117 | C69: POZOS Y COMPONENTES - ALCANTARILLADO | D69: =COUNTIF('LISTA TOTAL PROVEEDORES'!$B$3:$B$9955,'INFORME AUTOMATICO'!B69) -> 7
B70: 1201 | C70: PRODUCTOS QUÍMICOS - PESTICIDAS - FITOSANITARIOS | D70: =COUNTIF('LISTA TOTAL PROVEEDORES'!$B$3:$B$9955,'INFORME AUTOMATICO'!B70) -> 8
B71: 1192 | C71: PROYECTO ESPECÍFICO | D71: =COUNTIF('LISTA TOTAL PROVEEDORES'!$B$3:$B$9955,'INFORME AUTOMATICO'!B71) -> 2
B72: 1124 | C72: SELLANTES-IMPERMEABILIZANTES Y ADITIVOS CONCRETOS | D72: =COUNTIF('LISTA TOTAL PROVEEDORES'!$B$3:$B$9955,'INFORME AUTOMATICO'!B72) -> 16
B73: 1166 | C73: SEMAFORIZACION | D73: =COUNTIF('LISTA TOTAL PROVEEDORES'!$B$3:$B$9955,'INFORME AUTOMATICO'!B73) -> 5
B74: 1128 | C74: SEÑALES, BARRERAS Y DEMARCACIÓN VIAL | D74: =COUNTIF('LISTA TOTAL PROVEEDORES'!$B$3:$B$9955,'INFORME AUTOMATICO'!B74) -> 28
B75: 1197 | C75: SERV. DIAGNÓSTICO-INSPECCIÓN REDES HIDROSANITARIAS | D75: =COUNTIF('LISTA TOTAL PROVEEDORES'!$B$3:$B$9955,'INFORME AUTOMATICO'!B75) -> 1
B76: 1204 | C76: SISTEMAS CONTRA INCENDIO | D76: =COUNTIF('LISTA TOTAL PROVEEDORES'!$B$3:$B$9955,'INFORME AUTOMATICO'!B76) -> 7
B77: 1140 | C77: SOLDADURA Y PEGANTES | D77: =COUNTIF('LISTA TOTAL PROVEEDORES'!$B$3:$B$9955,'INFORME AUTOMATICO'!B77) -> 13
B78: 1118 | C78: SUMIDEROS Y COMPONENTES | D78: =COUNTIF('LISTA TOTAL PROVEEDORES'!$B$3:$B$9955,'INFORME AUTOMATICO'!B78) -> 1
B79: 182 | C79: TRANSPORTES DE MATERIALES Y ACARREOS | D79: =COUNTIF('LISTA TOTAL PROVEEDORES'!$B$3:$B$9955,'INFORME AUTOMATICO'!B79) -> 11
B80: 1154 | C80: TUBERÍA Y ACCESORIOS ACERO AL CARBÓN | D80: =COUNTIF('LISTA TOTAL PROVEEDORES'!$B$3:$B$9955,'INFORME AUTOMATICO'!B80) -> 2
B81: 1113 | C81: TUBERÍA Y ACCESORIOS CONDUIT GALVANIZADAS | D81: =COUNTIF('LISTA TOTAL PROVEEDORES'!$B$3:$B$9955,'INFORME AUTOMATICO'!B81) -> 7
B82: 1105 | C82: TUBERÍA Y ACCESORIOS DE CONCRETO | D82: =COUNTIF('LISTA TOTAL PROVEEDORES'!$B$3:$B$9955,'INFORME AUTOMATICO'!B82) -> 1
B83: 1109 | C83: TUBERÍA Y ACCESORIOS DE PVC PARA ALCANTARILLADO | D83: =COUNTIF('LISTA TOTAL PROVEEDORES'!$B$3:$B$9955,'INFORME AUTOMATICO'!B83) -> 13
B84: 1162 | C84: TUBERÍA Y ACCESORIOS EN ACERO | D84: =COUNTIF('LISTA TOTAL PROVEEDORES'!$B$3:$B$9955,'INFORME AUTOMATICO'!B84) -> 4
B85: 1159 | C85: TUBERIA Y ACCESORIOS EN ACERO GALVANIZADO | D85: =COUNTIF('LISTA TOTAL PROVEEDORES'!$B$3:$B$9955,'INFORME AUTOMATICO'!B85) -> 5
B86: 1153 | C86: TUBERÍA Y ACCESORIOS EN GRP | D86: =COUNTIF('LISTA TOTAL PROVEEDORES'!$B$3:$B$9955,'INFORME AUTOMATICO'!B86) -> 2
B87: 1193 | C87: TUBERÍA Y ACCESORIOS EN POLIETILENO | D87: =COUNTIF('LISTA TOTAL PROVEEDORES'!$B$3:$B$9955,'INFORME AUTOMATICO'!B87) -> 4
B88: 1107 | C88: TUBERIAS DE PVC - ACUEDUCTO | D88: =COUNTIF('LISTA TOTAL PROVEEDORES'!$B$3:$B$9955,'INFORME AUTOMATICO'!B88) -> 8

Sheet PT2 INFORME (hidden)
A1: PROVEEDORES | I1: NUEVOS PROVEEDORES | K1: =SUM(F3:F383) -> 152
A2: 2019-I | C2: 2019-II | I2: PROVEEDORES ANTIGUOS | K2: =+K3-K1 -> 229
A3: 4GA SAS Agregados de calidad | B3: 0 | C3: 4GA SAS Agregados de calidad | D3: =VLOOKUP(C3,$A$3:$B$355,2,FALSE) -> 0 | F3: =IFERROR(D3,1) -> 0 | I3: PROVEEDORES 2019-II | K3: =COUNTA(C3:C383) -> 381
A4: AB SEÑALIZACIÓN | B4: 0 | C4: AB SEÑALIZACIÓN | D4: =VLOOKUP(C4,$A$3:$B$355,2,FALSE) -> 0 | F4: =IFERROR(D4,1) -> 0
A5: ABC TRANSFORMADORES E INGENIERIA ELECTROMECÁNICA | B5: 0 | C5: ABC TRANSFORMADORES E INGENIERIA ELECTROMECÁNICA | D5: 0 | F5: 0
A6: ACCESA | B6: 0 | C6: ACABADOS ARQUITECTONICOS ROWCAST | F6: 1
A7: ACCESORIOS Y ACABADOS SAS | B7: 0 | C7: ACCESORIOS Y ACABADOS SAS | D7: 0 | F7: 0
A8: ACERAS & SARDINELES DE COLOMBIA | B8: 0 | C8: ACERAS & SARDINELES DE COLOMBIA | D8: 0 | F8: 0
A9: ACEROS PENSILVANIA S.A.S. | B9: 0 | C9: ACO SOLUCIONES DE DRENAJE SAS | D9: 0 | F9: 0
A10: ACO SOLUCIONES DE DRENAJE SAS | B10: 0 | C10: ACONSTRUCTORAS.COM | D10: 0 | F10: 0
A11: ACONSTRUCTORAS.COM | B11: 0 | C11: ACUATUBOS | F11: 1
A12: ADL DRYWALL | B12: 0 | C12: AGQ LABS | D12: 0 | F12: 0
A13: ADRENALINA SAFETY VIRTUAL STORE | B13: 0 | C13: AGREGADOS LA ROCA SAS | F13: 1
A14: AFM DOTACIONES | B14: 0 | C14: ALFA CO SAS | F14: 1
A15: AGQ LABS | B15: 0 | C15: ALFAGRES S.A. | D15: 0 | F15: 0
A16: AGREGADOS ARENAS Y GRAVAS SAS | B16: 0 | C16: ALMACÉN CANAIMA | D16: 0 | F16: 0
A17: AGREGADOS EL VINCULO SAS | B17: 0 | C17: ALMACENES ALKOSTO | D17: 0 | F17: 0
A18: AGREGADOS, ARENAS Y GRAVAS SAS | B18: 0 | C18: ALMACENES EXITO | D18: 0 | F18: 0
A19: AGROFÁCIL | B19: 0 | C19: ALMACENES FALABELLA | D19: 0 | F19: 0
A20: ALFAGRES S.A. | B20: 0 | C20: ALMACENES JUMBO | D20: 0 | F20: 0
A21: ALMACÉN CANAIMA | B21: 0 | C21: ALMACENES KTRONIX | D21: 0 | F21: 0
A22: ALMACEN ENTRE MAYORISTAS | B22: 0 | C22: ALMASA S.A. | D22: 0 | F22: 0
A23: ALMACEN INDUSTRIAL DE TORNILLOS LTDA | B23: 0 | C23: ALQUILER DE CARPAS BOGOTA | F23: 1
A24: ALMACEN SIGMONSHOP | B24: 0 | C24: ALQUILER DE COMPUTADORES S.A.S. | D24: 0 | F24: 0
A25: ALMACENES ALKOSTO | B25: 0 | C25: ALUMINIOS, ACEROS Y VIDRIOS S.A.S | F25: 1
A26: ALMACENES EXITO | B26: 0 | C26: AMVAR WORLD SAS | D26: 0 | F26: 0
A27: ALMACENES FALABELLA | B27: 0 | C27: ANALQUIM LTDA | D27: 0 | F27: 0
A28: ALMACENES JUMBO | B28: 0 | C28: ANDAMIOS ANDINO | F28: 1
A29: ALMACENES KTRONIX | B29: 0 | C29: ANDAMIOS R&S LTDA | D29: 0 | F29: 0
A30: ALMASA S.A. | B30: 0 | C30: ANDIMALLAS & ANDIMETALES | F30: 1
A31: ALQUILER DE COMPUTADORES S.A.S. | B31: 0 | C31: ANPATEC | D31: 0 | F31: 0
A32: AMVAR WORLD SAS | B32: 0 | C32: APOLO AVA | D32: 0 | F32: 0
A33: ANALQUIM LTDA | B33: 0 | C33: APSA SAS | D33: 0 | F33: 0
A34: ANDAMIOS R&S LTDA | B34: 0 | C34: ARCILLAS DE COLOMBIA S.A. | D34: 0 | F34: 0
A35: ANDES TV | B35: 0 | C35: ARCILLAS DE LA SABANA | D35: 0 | F35: 0
A36: ANPATEC | B36: 0 | C36: ARENAS Y AGREGADOS IVONE SAS | D36: 0 | F36: 0
A37: APOLO AVA | B37: 0 | C37: ARENAS Y TRITURADOS SANTA FE SAS | F37: 1
A38: APSA SAS | B38: 0 | C38: ARGOS | F38: 1
A39: ARCILLAS DE COLOMBIA S.A. | B39: 0 | C39: ARKA | F39: 1
A40: ARCILLAS DE LA SABANA | B40: 0 | C40: ARTEPIEDRA SAS | F40: 1
A41: ARENAS Y AGREGADOS IVONE SAS | B41: 0 | C41: Ascor | F41: 1
A42: ASOCRETO | B42: 0 | C42: ASMINCOL SAS | F42: 1
A43: ASTROEQUIPOS S.A. | B43: 0 | C43: ASOCRETO | D43: 0 | F43: 0
A44: ATLAS LIMITED SAS | B44: 0 | C44: ASTROEQUIPOS S.A. | D44: 0 | F44: 0
A45: AUROS | B45: 0 | C45: ATLAS LIMITED SAS | D45: 0 | F45: 0
A46: AUTO GRUAS LA SEXTA | B46: 0 | C46: AUROS | D46: 0 | F46: 0
A47: B.M.G | B47: 0 | C47: AUTO GRUAS LA SEXTA | D47: 0 | F47: 0
A48: B.M.G. TRANSPORTE DE AGUA POTABLE E. U. | B48: 0 | C48: AW ELECTRONICA SAS | F48: 1
A49: BAC Engineering Consultancy Group S.A.S. | B49: 0 | C49: B.M.G | D49: 0 | F49: 0
A50: Baños Portatiles SAS | B50: 0 | C50: B.M.G. TRANSPORTE DE AGUA POTABLE E. U. | D50: 0 | F50: 0
A51: BARNES DE COLOMBIA S.A. | B51: 0 | C51: BAC Engineering Consultancy Group S.A.S. | D51: 0 | F51: 0
A52: BCD SAS | B52: 0 | C52: BARNES DE COLOMBIA S.A. | D52: 0 | F52: 0
A53: BELLTEC HERRAMIENTAS Y EQUIPOS | B53: 0 | C53: BCD SAS | D53: 0 | F53: 0
A54: BELPLASTICOS | B54: 0 | C54: BEL PLASTICOS | F54: 1
A55: BIOFRACTAL ARQUITECTURA LIVIANA | B55: 0 | C55: BELTEC | F55: 1
A56: BIOQUILAB | B56: 0 | C56: Bermudez Ingeniería y Geotecnia SAS | F56: 1
A57: BORNA DESDE 1984 | B57: 0 | C57: BIGTRONICA | F57: 1
A58: CABLES Y GUAYAS ALGOFER | B58: 0 | C58: BIOFRACTAL ARQUITECTURA LIVIANA | D58: 0 | F58: 0
A59: CAELCA | B59: 0 | C59: BIOQUILAB | D59: 0 | F59: 0
A60: CANECAS DE RECICLAJE | B60: 0 | C60: BORNA | F60: 1
A61: CANECAS URBANAS | B61: 0 | C61: BORNA DESDE 1984 | D61: 0 | F61: 0
A62: CANECAS.COM | B62: 0 | C62: BRAILLE INTERNATIONAL | F62: 1
A63: CARPAS E INGENIERÍA | B63: 0 | C63: CABLES Y GUAYAS ALGOFER | D63: 0 | F63: 0
A64: CEB IMPORTADORA SAS | B64: 0 | C64: CACHICAMOWEB | F64: 1
A65: CEBA – PRODUCTOS Y SERVICIOS VETERINARIOS | B65: 0 | C65: CAELCA | D65: 0 | F65: 0
A66: CEI ELECTRICA INTERNACIONAL SAS | B66: 0 | C66: CAJAFORZADA.COM | F66: 1
A67: CELTA | B67: 0 | C67: CAMELECO SAS | F67: 1
A68: CEMENTOS ARGOS - AGREGADOS PETREOS | B68: 0 | C68: CARLOS JULIO SAMACÁ GACHARNÁ | D68: =VLOOKUP(C68,$A$3:$B$355,2,FALSE) ->  | F68: =IFERROR(D68,1) -> 1
A69: CEMEX DE COLOMBIA S.A. | B69: 0 | C69: CARPAS E INGENIERÍA | D69: 0 | F69: 0
A70: CENTELSA | B70: 0 | C70: CARPAS Y TARIMAS | F70: 1
A71: CENTRAL DE DOTACIONES LTDA | B71: 0 | C71: CARULLA | F71: 1
A72: CENTRAL DE SUMINISTROS - GSPATH | B72: 0 | C72: CEBA | F72: 1
A73: CENTRO COPIAS FELIPE | B73: 0 | C73: CELTA | D73: 0 | F73: 0
A74: CERAMICA ITALIA | B74: 0 | C74: CEMEX DE COLOMBIA S.A. | D74: 0 | F74: 0
A75: CHEMILAB | B75: 0 | C75: CENDIATRA | F75: 1
A76: CIDEMAT - U. Antioquia | B76: 0 | C76: CENTELSA | D76: 0 | F76: 0
A77: CIELO RASOS & DIVISIONES | B77: 0 | C77: CENTRAL DE DOTACIONES LTDA | D77: 0 | F77: 0
A78: CIELOS RASOS & DIVISIONES | B78: 0 | C78: CENTRIACEROS H A | F78: 1
A79: CIMA | B79: 0 | C79: CEPLASS | F79: 1
A80: COLEMPLAST LTDA | B80: 0 | C80: CHARLIXON ROBLES CRUZ | F80: 1
A81: COLPEATON SAS | B81: 0 | C81: CHEMILAB | D81: 0 | F81: 0
A82: COMERCIAL PAPELERA | B82: 0 | C82: CICLOMAT SAS | F82: 1
A83: COMERCIALIZADORA GOYJUL S.A.S | B83: 0 | C83: CIDEMAT - U. Antioquia | D83: 0 | F83: 0
A84: COMERCIALIZADORA GOYJUL SAS | B84: 0 | C84: CIELO RASOS & DIVISIONES | D84: 0 | F84: 0
A85: COMERCIALIZADORA IMPERIO | B85: 0 | C85: CIELOS RASOS & DIVISIONES | D85: 0 | F85: 0
A86: COMFAMA | B86: 0 | C86: CIELOS RASOS Y DIVISIONES & CIA. LTDA. | F86: 1
A87: COMPAÑÍA DE TRABAJOS URBANOS S.A.S | B87: 0 | C87: CIMA | D87: 0 | F87: 0
A88: COMPAÑÍA ELÉCTRICA LTDA | B88: 0 | C88: CINELECO.COM | F88: 1
A89: COMPAÑÍA MINERA NACIONAL LTDA | B89: 0 | C89: CIVALCO LTDA | F89: 1
A90: COMPAÑÍA PAPELERA NACIONAL ABASTECE.COM.CO | B90: 0 | C90: COLGRASS SAS | F90: 1
A91: CONCRELAB | B91: 0 | C91: COMERCIALIZADORA GOYJUL S.A.S | D91: 0 | F91: 0
A92: CONCRELAB SAS | B92: 0 | C92: COMERCIALIZADORA GOYJUL SAS | D92: 0 | F92: 0
A93: Concreservicios S.A.S. | B93: 0 | C93: COMERCIALIZADORA IMPERIO | D93: 0 | F93: 0
A94: CONCRESERVICIOS SAS | B94: 0 | C94: COMPAÑÍA DE CONSULTORÍA AMBIENTAL | F94: 1
A95: CONCRETCOL CONCRETO ESTAMPADO DE COLOMBIA | B95: 0 | C95: COMPAÑÍA ELÉCTRICA LTDA | D95: 0 | F95: 0
A96: CONCRETERA TREMIX SAS | B96: 0 | C96: COMSECOL SAS | F96: 1
A97: CONCRETOS ARGOS S.A. | B97: 0 | C97: CONCRELAB | D97: 0 | F97: 0
A98: CORONA | B98: 0 | C98: CONCRESCOL LTDA. | F98: 1
A99: CORPACERO | B99: 0 | C99: Concreservicios S.A.S. | D99: 0 | F99: 0
A100: CORPORACIÓN AUTÓNOMA REGIONAL DE CUNDINAMARCA - CAR | B100: 0 | C100: CONCRETERA TREMIX SAS | D100: 0 | F100: 0
A101: CORTEACEROS S.A.S | B101: 0 | C101: CONCRETO ESTAMPADO DE COLOMBIA | F101: 1
A102: COVAL | B102: 0 | C102: CONCRETOS ARGOS S.A. | D102: 0 | F102: 0
A103: COVAL COMERCIAL S. A. | B103: 0 | C103: CONDUSTRIAL | F103: 1
A104: CREAR SEÑALIZACION | B104: 0 | C104: CONSTRITURAR SAS | F104: 1
A105: CRUZ ROJA COLONBIANA | B105: 0 | C105: CONSTRUGROUP VIAL S.A.S | F105: 1
A106: CU CONECTORES | B106: 0 | C106: CONSTRUMATERIALES | F106: 1
A107: DECORCERÁMICA | B107: 0 | C107: COPCO INGENIERIA | F107: 1
A108: DEKO | B108: 0 | C108: CORONA | D108: 0 | F108: 0
A109: DISATEC | B109: 0 | C109: CORPACERO | D109: 0 | F109: 0
A110: DISELEC LTDA | B110: 0 | C110: CORPORACIÓN AUTÓNOMA REGIONAL DE CUNDINAMARCA - CAR | D110: 0 | F110: 0
A111: DISTRIBUCIONES IMAGEN BOGOTÁ | B111: 0 | C111: Corporación para la investigación de la Corrosion | F111: 1
A112: DISTRIBUCIONES Y DOTACIONES R.A.C | B112: 0 | C112: Corporación para la investigación de la Corrosion (Universidad UIS) | F112: 1
A113: DISTRIBUIDORA TODO ASEO | B113: 0 | C113: CORTEACEROS S.A.S | D113: 0 | F113: 0
A114: DOBLE A INGENIERIA S.A. | B114: 0 | C114: COVAL | D114: 0 | F114: 0
A115: DOTA FUERTE | B115: 0 | C115: COVAL COMERCIAL S. A. | D115: 0 | F115: 0
A116: DOTACIONES CALDERON SAS | B116: 0 | C116: CREAR SEÑALIZACION | D116: 0 | F116: 0
A117: DOTACIONES ONLINE | B117: 0 | C117: CRUZ ROJA COLONBIANA | D117: 0 | F117: 0
A118: DROMOS PAVIMENTOS S.A. | B118: 0 | C118: CU CONECTORES | D118: 0 | F118: 0
A119: DURMAN COLOMBIA S.A. | B119: 0 | C119: DECOGOLD ESPACIOS, S.A.S. | F119: 1
A120: DYA INSUMOS FERRETEROS SAS | B120: 0 | C120: DEPOSITO DE MADERAS VILLA BOYACA | F120: 1
A121: DYCON MATERIALES ELÉCTRICOS | B121: 0 | C121: DHEGEL S.A.S. | F121: 1
A122: DYNATEST COLOMBIA S.A.S. | B122: 0 | C122: DIESCON | F122: 1
A123: EASY | B123: 0 | C123: DIMACRO EMC LTDA | F123: 1
A124: ECHEVERRY ENSAYOS SAS | B124: 0 | C124: DIMCO INGENIEROS | F124: 1
A125: ECHEVERRY INGENIERIA Y ENSAYOS SAS | B125: 0 | C125: DIMCO INGENIEROS LTDA | F125: 1
A126: ECONOMIZADORES.NET | B126: 0 | C126: DISEPILMEGAPRESS | F126: 1
A127: ECOPRADOS SOLUCIONES AMBIENTALES | B127: 0 | C127: DISTRIBUCIONES IMAGEN BOGOTÁ | D127: 0 | F127: 0
A128: EDELCO | B128: 0 | C128: DISTRIBUIDORA EYCOS | F128: 1
A129: EIMPSA | B129: 0 | C129: DISTRIBUIDORA HEIMDAL SAS | F129: 1
A130: EL CONDOR PREFABRICADOS | B130: 0 | C130: DISTRIBUIDORA TODO ASEO | D130: 0 | F130: 0
A131: EL CONDOR PREFABRICADOS S.A.S. | B131: 0 | C131: DOBLE A INGENIERIA S.A. | D131: 0 | F131: 0
A132: ELECTRICOS JS | B132: 0 | C132: DOTACIONES CALDERON SAS | D132: =VLOOKUP(C132,$A$3:$B$355,2,FALSE) -> 0 | F132: =IFERROR(D132,1) -> 0
A133: ELECTROMANFER | B133: 0 | C133: DOTACIONES ONLINE | D133: 0 | F133: 0
A134: ELECTROPINTAMOS | B134: 0 | C134: DROMOS PAVIMENTOS S.A. | D134: 0 | F134: 0
A135: ELEMENTOS PREFABRICADOS DE CONCRETO EL PRECON | B135: 0 | C135: DURMAN COLOMBIA S.A. | D135: 0 | F135: 0
A136: EMPRESA DE ACUEDUCTO Y ALCANTARILLADO DE BOGOTÁ | B136: 0 | C136: DYCON MATERIALES ELÉCTRICOS | D136: 0 | F136: 0
A137: ENZIPAN LABORATORIOS S.A. | B137: 0 | C137: DYNATEST COLOMBIA S.A.S. | D137: 0 | F137: 0
A138: EQUINORTE | B138: 0 | C138: EASY | D138: 0 | F138: 0
A139: ESCOBAR Y MARTÍNEZ SAS | B139: 0 | C139: ECHEVERRY ENSAYOS SAS | D139: 0 | F139: 0
A140: ESCUELA COLOMBIANA DE INGENIERIA | B140: 0 | C140: ECHEVERRY INGENIERIA Y ENSAYOS SAS | D140: 0 | F140: 0
A141: ESCUELA COLOMBIANA DE INGENIERIA JULIO GARAVITO | B141: 0 | C141: ECOLSEN | F141: 1
A142: ESTAHL INGENIERÍA SAS | B142: 0 | C142: ECONOMIZADORES.NET | D142: 0 | F142: 0
A143: EZ STREET ASFALTO | B143: 0 | C143: ECOPRADOS SOLUCIONES AMBIENTALES | D143: 0 | F143: 0
A144: FABRIURBANOS | B144: 0 | C144: EDELCO | D144: 0 | F144: 0
A145: FANNY I. TEQUIA Y CIA SAS | B145: 0 | C145: EL CONDOR PREFABRICADOS | D145: 0 | F145: 0
A146: FERCON | B146: 0 | C146: ELECTROHIDRAULICAS S.A. | F146: 1
A147: FERREMETÁLICAS COLOMBIA | B147: 0 | C147: ELECTROPINTAMOS | D147: 0 | F147: 0
A148: FERRETERIA MEGACOL | B148: 0 | C148: EMPRESA DE ACUEDUCTO Y ALCANTARILLADO DE BOGOTÁ | D148: 0 | F148: 0
A149: FERRETERIA RHINO | B149: 0 | C149: ENZIPAN LABORATORIOS S.A. | D149: 0 | F149: 0
A150: FERRETERÍA SAMIR | B150: 0 | C150: EQUIPOS Y CONTROLES INDUSTRIALES SA - ECI | F150: 1
A151: FERRETERIA TÉCNICA | B151: 0 | C151: ESCOBAR Y MARTÍNEZ SAS | D151: 0 | F151: 0
A152: FERRETERIA TÉCNICA | B152: 0 | C152: ESCUELA COLOMBIANA DE INGENIERIA | D152: 0 | F152: 0
A153: FERRICENTRO | B153: 0 | C153: ESCUELA COLOMBIANA DE INGENIERIA JULIO GARAVITO | D153: 0 | F153: 0
A154: FERRICENTROS S.A. | B154: 0 | C154: ESTAHL INGENIERÍA SAS | D154: 0 | F154: 0
A155: FIGMALLAS SAS | B155: 0 | C155: EZ STREET ASFALTO | D155: 0 | F155: 0
A156: FIGURADOS Y MALLAS | B156: 0 | C156: FABRIURBANOS | D156: 0 | F156: 0
A157: FORMAS DE CONCRETO LTDA | B157: 0 | C157: FANNY I. TEQUIA Y CIA SAS | D157: 0 | F157: 0
A158: Gama Dotaciones | B158: 0 | C158: FELIX TORRES Y CIA | F158: 1
A159: GAVAR. Soluciones en recubrimientos | B159: 0 | C159: FELIX TORRES Y CIA | F159: 1
A160: GECAB COLOMBIA | B160: 0 | C160: FENUSA | F160: 1
A161: GECOLSA - CAT RENTAL STORE | B161: 0 | C161: FERCON | D161: 0 | F161: 0
A162: GEOMATRIX Soluciones de Alta Tenacidad | B162: 0 | C162: FERREACUEDUCTOS | F162: 1
A163: GEOSISTEMAS PAVCO | B163: 0 | C163: FERRESTAR DE COLOMBIA | F163: 1
A164: GERFOR | B164: 0 | C164: FERRETERÍA CANAIMA | F164: 1
A165: GIM INGENIERIA ELÉCTRICA LTDA | B165: 0 | C165: FERRETERIA MEGACOL | D165: 0 | F165: 0
A166: GRABADO Y CORTE LASER BOGOTA | B166: 0 | C166: Ferreteria Rincon & Cia. S.A (Ferrinco) | F166: 1
A167: GRAVILLERA ALBANIA S.A. | B167: 0 | C167: FERRETERÍA SAMIR | D167: 0 | F167: 0
A168: GRECO | B168: 0 | C168: FERRICENTRO | D168: 0 | F168: 0
A169: GRIVAL | B169: 0 | C169: FERRISTORE | F169: 1
A170: GRIVAL SA | B170: 0 | C170: FIBRIT S.A. PREFABRICADOS EN CONCRETO Y CEMENTO | F170: 1
A171: GRUAS, EQUIPOS Y TRANSPORTES FENIX SAS | B171: 0 | C171: FIGUCENTRO LTDA | F171: 1
A172: GRUPO MASHALI | B172: 0 | C172: FIGURADOS Y MALLAS | D172: 0 | F172: 0
A173: GRUPO VIKINGO | B173: 0 | C173: FORMAS ELECTRICAS | F173: 1
A174: HACEB | B174: 0 | C174: G&S SOLUCIONES DE INGENIERÍA | F174: 1
A175: HB SADELEC Estructuras Metálicas | B175: 0 | C175: GAMA DOTACIONES | D175: 0 | F175: 0
A176: HELBERT Y CIA | B176: 0 | C176: GECOLSA - CAT RENTAL STORE | D176: 0 | F176: 0
A177: HERLOZ SUMINISTROS | B177: 0 | C177: GEOMATRIX Soluciones de Alta Tenacidad | D177: 0 | F177: 0
A178: HERNANDO OROZCO Y CIA | B178: 0 | C178: GEOSINTÉTICOS SAS | F178: 1
A179: HIDROEQUIPO | B179: 0 | C179: GERFOR | D179: 0 | F179: 0
A180: HIERROS Y CONCRETOS S.A.S. | B180: 0 | C180: GRABADO Y CORTE LASER BOGOTA | D180: 0 | F180: 0
A181: HOME ELEMENTS | B181: 0 | C181: GRAVILLERA ALBANIA S.A. | D181: 0 | F181: 0
A182: HOMECENTER | B182: 0 | C182: GRECO | D182: 0 | F182: 0
A183: HOMESENTRY | B183: 0 | C183: GREENHECK | F183: 1
A184: HORMIGON ANDINO S.A. | B184: 0 | C184: GRICOL | F184: 1
A185: ICIPC | B185: 0 | C185: GRUPO VIKINGO | D185: 0 | F185: 0
A186: IDEAS PIXEL | B186: 0 | C186: G-VIAL - Señalización y Seguridad Vial | F186: 1
A187: IE INTERNACIONAL DE ELÉCTRICOS | B187: 0 | C187: HACEB | D187: 0 | F187: 0
A188: IMPRIMASCOL | B188: 0 | C188: HB SADELEC Estructuras Metálicas | D188: 0 | F188: 0
A189: INCOLMALLAS S.A. | B189: 0 | C189: HELBERT Y CIA | D189: 0 | F189: 0
A190: INCOMINERIA S.A.S. | B190: 0 | C190: HERLOZ SUMINISTROS | D190: 0 | F190: 0
A191: INDUSTRIA MILITAR - INDUMIL | B191: 0 | C191: HERMA SOLUCIONES | F191: 1
A192: INDUSTRIA MILITAR – INDUMIL | B192: 0 | C192: HIDROEQUIPO | D192: 0 | F192: 0
A193: INETEL | B193: 0 | C193: HIDROESFERA SA | F193: 1
A194: INGENIERÍA AMBIENTAL Y SANITARIA DE COLOMBIA - IASCOL S.A.S | B194: 0 | C194: HIDROPROTECCIÓN DE COLOMBIA | F194: 1
A195: INGENIERIA DE ESTRUCTURAS Y MATERIALES LTDA. INGEYMA LTDA | B195: 0 | C195: HIERROS Y CONCRETOS S.A.S. | D195: 0 | F195: 0
A196: INGENIERIA Y SEÑALIZACION SEÑALVIAL SAS | B196: 0 | C196: HOME ELEMENTS | D196: =VLOOKUP(C196,$A$3:$B$355,2,FALSE) -> 0 | F196: =IFERROR(D196,1) -> 0
A197: INGENIEROS GF SAS | B197: 0 | C197: HOMECENTER | D197: 0 | F197: 0
A198: INGEYMA | B198: 0 | C198: HORMIGON ANDINO | F198: 1
A199: INSERCOR SAS | B199: 0 | C199: I+D Gestion | F199: 1
A200: INSPEQ INGENIERIA LTDA | B200: 0 | C200: ICEIN INGENIEROS CONSTRUCTORES SAS | F200: 1
... 183 more rows

Sheet GRUPOS VIGENTES (hidden)
B1: Página No. 1 de 1
B2: 10-Dec-2019
B3: GRUPOS
A8: Código | B8: Nombre | C8: Código | D8: Tipo de Grupo
A9: 177 | B9: SUELDOS Y JORNALES | C9: 177 | D9: Mano de obra
A10: 182 | B10: TRANSPORTES DE MATERIALES Y ACARREOS | C10: 182 | D10: Transporte
A11: 1102 | B11: AGREGADOS PÉTREOS, BASES Y SUBBASES GRANULARES | C11: 1102 | D11: Material
A12: 1103 | B12: CONCRETOS Y MORTEROS PREMEZCLADOS | C12: 1103 | D12: Material
A13: 1104 | B13: EMULSIONES Y MEZCLAS ASFÁLTICAS | C13: 1104 | D13: Material
A14: 1105 | B14: TUBERÍA Y ACCESORIOS DE CONCRETO | C14: 1105 | D14: Material
A15: 1107 | B15: TUBERIAS DE PVC - ACUEDUCTO | C15: 1107 | D15: Material
A16: 1109 | B16: TUBERÍA Y ACCESORIOS DE PVC PARA ALCANTARILLADO | C16: 1109 | D16: Material
A17: 1111 | B17: DUCTOS PVC - ELECTRICOS/TELEFONICOS TIPO TDP-DB-EB | C17: 1111 | D17: Material
A18: 1113 | B18: TUBERÍA Y ACCESORIOS CONDUIT GALVANIZADAS | C18: 1113 | D18: Material
A19: 1114 | B19: ACCESORIOS HD PARA REDES DE ACUEDUCTO | C19: 1114 | D19: Material
A20: 1115 | B20: EQUIPO PESADO | C20: 1115 | D20: Equipo
A21: 1116 | B21: EQUIPO LIVIANO Y HERRAMIENTAS | C21: 1116 | D21: Equipo
A22: 1117 | B22: POZOS Y COMPONENTES - ALCANTARILLADO | C22: 1117 | D22: Material
A23: 1118 | B23: SUMIDEROS Y COMPONENTES | C23: 1118 | D23: Material
A24: 1120 | B24: POSTES Y ALUMBRADO PUBLICO | C24: 1120 | D24: Material
A25: 1121 | B25: CABLES Y ACCESORIOS ELECTRICOS | C25: 1121 | D25: Material
A26: 1122 | B26: MALLAS Y ACEROS PARA REFUERZO | C26: 1122 | D26: Material
A27: 1123 | B27: GEOSINTETICOS | C27: 1123 | D27: Material
A28: 1124 | B28: SELLANTES-IMPERMEABILIZANTES Y ADITIVOS CONCRETOS | C28: 1124 | D28: Material
A29: 1125 | B29: LADRILLOS, BLOQUES Y ADOQUINES | C29: 1125 | D29: Material
A30: 1126 | B30: MOBILIARIO URBANO Y DE PARQUES | C30: 1126 | D30: Material
A31: 1127 | B31: BORDILLOS Y LOSETAS | C31: 1127 | D31: Material
A32: 1128 | B32: SEÑALES, BARRERAS Y DEMARCACIÓN VIAL | C32: 1128 | D32: Material
A33: 1129 | B33: PINTURAS | C33: 1129 | D33: Material
A34: 1130 | B34: COMBUSTIBLES Y LUBRICANTES | C34: 1130 | D34: Material
A35: 1133 | B35: MADERAS | C35: 1133 | D35: Material
A36: 1134 | B36: FORMALETAS, ANDAMIOS Y ACCESORIOS | C36: 1134 | D36: Equipo
A37: 1137 | B37: MATERIALES DE FERRETERÍA Y OTROS | C37: 1137 | D37: Material
A38: 1139 | B38: MARCOS, TAPAS, REJILLAS, HERRAJES Y CAJILLAS | C38: 1139 | D38: Material
A39: 1140 | B39: SOLDADURA Y PEGANTES | C39: 1140 | D39: Material
A40: 1146 | B40: ESTRUCTURAS EN ACERO | C40: 1146 | D40: Material
A41: 1147 | B41: ARBOLES-GRAMAS-VEGETACIÓN Y PLANTACIÓN PAISAJÍSTIC | C41: 1147 | D41: Material
A42: 1148 | B42: DOTACIÓN (EPP) Y EQUIP. Y HERRAM. SEGUR. INDUSTR. | C42: 1148 | D42: Material
A43: 1153 | B43: TUBERÍA Y ACCESORIOS EN GRP | C43: 1153 | D43: Material
A44: 1154 | B44: TUBERÍA Y ACCESORIOS ACERO AL CARBÓN | C44: 1154 | D44: Material
A45: 1156 | B45: MUEBLES - EQUIPOS Y ELEMENTOS OFICINA | C45: 1156 | D45: Material
A46: 1157 | B46: ALQUILER | C46: 1157 | D46: Equipo
A47: 1158 | B47: EXÁMENES MÉDICOS | C47: 1158 | D47: Material
A48: 1159 | B48: TUBERIA Y ACCESORIOS EN ACERO GALVANIZADO | C48: 1159 | D48: Material
A49: 1161 | B49: ACTIVIDADES A TODO COSTO | C49: 1161 | D49: Material
A50: 1162 | B50: TUBERÍA Y ACCESORIOS EN ACERO | C50: 1162 | D50: Material
A51: 1167 | B51: GESTIÓN SOCIAL ELEMENTOS DE PUBLICIDAD | C51: 1167 | D51: Material
A52: 1179 | B52: ENSAYO LABORATORIO - DETERMI PROPIEDADES MECÁNICAS | C52: 1179 | D52: Material
A53: 1188 | B53: PISOS (CONVENCIONALES Y TIPO TRANSMILENIO) | C53: 1188 | D53: Material
A54: 1189 | B54: PRUEBAS DE CARGA PARA PUENTES | C54: 1189 | D54: Material
A55: 1193 | B55: TUBERÍA Y ACCESORIOS EN POLIETILENO | C55: 1193 | D55: Material
A56: 1194 | B56: DESMONTE Y TRASLADOS DE ELEMENTOS METÁLICOS | C56: 1194 | D56: Material
A57: 1196 | B57: MOBILIARIO METÁLICO TIPO TRANSMILENIO | C57: 1196 | D57: Material
A58: 1166 | B58: SEMAFORIZACION | C58: 1166 | D58: Material
A59: 1168 | B59: CONSULTORIA | C59: 1168 | D59: Material
A60: 1169 | B60: ENSAYO LABORATORIO - CEMENTOS HIDRÁULICOS | C60: 1169 | D60: Material
A61: 1170 | B61: ENSAYO LABORATORIO - SUELOS | C61: 1170 | D61: Material
A62: 1171 | B62: ENSAYO LABORATORIO - AGREGADOS PETREOS | C62: 1171 | D62: Material
A63: 1172 | B63: ENSAYO CAMPO - ELEMENTOS ESTRUCTURALES CONCRETO | C63: 1172 | D63: Material
A64: 1173 | B64: ENSAYO LABORATORIO - DIAGNOSTICO DE PAVIMENTOS | C64: 1173 | D64: Material
A65: 1174 | B65: ENSAYO LABORATORIO - CONCRETOS HIDRÁULICOS | C65: 1174 | D65: Material
A66: 1175 | B66: ENSAYO LABORATORIO - MATERIALES BITUMINOSOS | C66: 1175 | D66: Material
A67: 1176 | B67: ENSAYO LABORATORIO - MEZCLAS ASFALTICAS | C67: 1176 | D67: Material
A68: 1177 | B68: ENSAYO LABORATORIO - ANÁLISIS DE AGUAS | C68: 1177 | D68: Material
A69: 1178 | B69: ENSAYO LABORATORIO - ROCA | C69: 1178 | D69: Material
A70: 1180 | B70: ENSAYO LABORATORIO - ESTABILIZACIÓN DE SUELOS | C70: 1180 | D70: Material
A71: 1181 | B71: ENSAYO LABORATORIO - COMPONENTE DE ESPACIO PÚBLICO | C71: 1181 | D71: Material
A72: 1182 | B72: ENSAYO LABORATORIO - GEOTEXTILES | C72: 1182 | D72: Material
A73: 1183 | B73: ENSAYO LABORATORIO - AIRE | C73: 1183 | D73: Material
A74: 1184 | B74: ENSAYO LABORATORIO - ANÁLISIS DE AGUAS SUBTERRÁNEA | C74: 1184 | D74: Material
A75: 1185 | B75: ENSAYO LABORATORIO - ANÁLISIS QUÍMICOS DE SUELOS | C75: 1185 | D75: Material
A76: 1186 | B76: ENSAYO LABORATORIO - ANÁLISIS FÍSICO DE SUELOS | C76: 1186 | D76: Material
A77: 1187 | B77: ENSAYO LABORATORIO - ANÁLISIS BIOLÓGICOS DE SUELOS | C77: 1187 | D77: Material
A78: 1190 | B78: PRUEBAS DE HERMETICIDAD | C78: 1190 | D78: Material
A79: 1191 | B79: INVENTARIO GEORREFERENCIADO | C79: 1191 | D79: Material
A80: 1192 | B80: PROYECTO ESPECÍFICO | C80: 1192 | D80: Material
A81: 1195 | B81: CARPINTERÍA METÁLICA | C81: 1195 | D81: Material
A82: 1197 | B82: SERV. DIAGNÓSTICO-INSPECCIÓN REDES HIDROSANITARIAS | C82: 1197 | D82: Material
A83: 1198 | B83: GESTIÓN SOCIAL ELEMENTOS DE IDENTIFICACIÓN EN OBRA | C83: 1198 | D83: Material
A84: 1199 | B84: REHABILITACIÓN REDES ALCANTARILLADO MÉTODO SIN ZAN | C84: 1199 | D84: Material
A85: 1200 | B85: CUBIERTA - CIELO RASO - CORTASOL TIPO TRANSMILENIO | C85: 1200 | D85: Material
A86: 1201 | B86: PRODUCTOS QUÍMICOS - PESTICIDAS - FITOSANITARIOS | C86: 1201 | D86: Material
A87: 1202 | B87: ENSAYO MEDICIÓN DE CAMPOS | C87: 1202 | D87: Material
A88: 1203 | B88: ENSAYO LABORATORIO - RUIDO | C88: 1203 | D88: Material
A89: 1204 | B89: SISTEMAS CONTRA INCENDIO | C89: 1204 | D89: Material
A90: 1205 | B90: NEOPRENOS | C90: 1205 | D90: Material
A91: 1206 | B91: MATERIALES BÁSICOS | C91: 1206 | D91: Material
A92: 1207 | B92: ENSAYO LABORATORIO - PERFORACIONES | C92: 1207 | D92: Material
A93: 1208 | B93: LEVANTAMIENTO TOPOGRÁFICO | C93: 1208 | D93: Material
A94: 1209 | B94: ENSAYO CAMPO - RECUBRIMIENTO ESTRUCTURA METÁLICA | C94: 1209 | D94: Material
A95: 1210 | B95: ENSAYO CAMPO - SOLDADURAS | C95: 1210 | D95: Material
A96: 1211 | B96: ENSAYO LABORATORIO - ABRASIVO | C96: 1211 | D96: Material
A97: 1212 | B97: ENSAYO LABORATORIO - ACERO REFUERZO Y PRETENSADO | C97: 1212 | D97: Material
A98: 1213 | B98: ENSAYO LABORATORIO - ACERO ESTRUCTURAL | C98: 1213 | D98: Material
A99: 1214 | B99: ENSAYO LABORATORIO - ALUMINIO | C99: 1214 | D99: Material
A100: 1215 | B100: ENSAYO LABORATORIO - CONCRETO PRETENSADO | C100: 1215 | D100: Material
A101: 1216 | B101: ENSAYO LABORATORIO - LUBRICANTE ADHESIVO | C101: 1216 | D101: Material
A102: 1217 | B102: ENSAYO LABORATORIO - MORTERO | C102: 1217 | D102: Material
A103: 1218 | B103: ENSAYO LABORATORIO - NEOPRENO | C103: 1218 | D103: Material
A104: 1219 | B104: ENSAYO LABORATORIO - PERNOS | C104: 1219 | D104: Material
A105: 1220 | B105: ENSAYO LABORATORIO - PINTURA | C105: 1220 | D105: Material
A106: 1221 | B106: ENSAYO LABORATORIO - PLÁSTICO RÍGIDO | C106: 1221 | D106: Material
A107: 1222 | B107: ENSAYO LABORATORIO - RESINA | C107: 1222 | D107: Material
A108: 1223 | B108: ENSAYO CAMPO - DIAGNOSTICO DE PAVIMENTOS | C108: 1223 | D108: Material
A109: 1224 | B109: ENSAYO CAMPO -RECUBRIMIENTO ESTRUCTURA METÁLICA | C109: 1224 | D109: Material
A110: 1225 | B110: ENSAYO DE CAMPO - SOLDADURAS | C110: 1225 | D110: Material
A111: 1226 | B111: AFORO DE TRANSITO | C111: 1226 | D111: Material
A112: 1227 | B112: CANAL DE DRENAJE | C112: 1227 | D112: Material
A113: 1228 | B113: ENSAYO LABORATORIO - AGREGADOS PROVENIENTES DE RCD | C113: 1228 | D113: Material
A114: 1229 | B114: ARQUEOLOGÍA | C114: 1229 | D114: Material
A115: 1230 | B115: AMBIENTAL | C115: 1230 | D115: Material

Sheet BD VIEJA (hidden)
B1: 2018-II DIRECTORIO
B2: CODIGO GRUPO | C2: GRUPO BASE DE DATOS | D2: NOMBRE PROVEEDOR | E2: UBICACIÓN | F2: DIRECCION | G2: TELEFONO | H2: CORREO ELECTRONICO
A3: =+B3&COUNTIF($B$3:B3,B3) -> 11141 | B3: 1114 | C3: ACCESORIOS HD PARA REDES DE ACUEDUCTO | D3: COVAL COMERCIAL S. A. | E3: Bogota | F3: Avda. Ciudad de Cali 5 A 92 Sur | G3: 3152358446 8759100 Ext. 144 - 145 7454671 | H3: info@coval.com.co | I3: 1
A4: =+B4&COUNTIF($B$3:B4,B4) -> 11142 | B4: 1114 | C4: ACCESORIOS HD PARA REDES DE ACUEDUCTO | D4: METACOL Soluciones integrales en ingeniería y fundición | E4: Bogota | F4: Diagonal 34 Bis 17 58 | G4: 5116262 Ext. 211 | H4: mercadeo@metacol.com | I4: 2
A5: =+B5&COUNTIF($B$3:B5,B5) -> 11143 | B5: 1114 | C5: ACCESORIOS HD PARA REDES DE ACUEDUCTO | D5: PAVCO S.A. | E5: Bogota | F5: Autopista Sur 71 75 | G5: 7825000 | H5: servicio@pavco.com.co orlando.polo@pavco.com.co www.pavco.com.co | I5: 3
A6: =+B6&COUNTIF($B$3:B6,B6) -> 11144 | B6: 1114 | C6: ACCESORIOS HD PARA REDES DE ACUEDUCTO | D6: DURMAN COLOMBIA S.A. | E6: Madrid - Cund. | F6: Km 27 Vía Fontibon Facatativa Los Alpes | G6: 8200200 | H6: colombia@durman.com | I6: 4
A7: =+B7&COUNTIF($B$3:B7,B7) -> 11145 | B7: 1114 | C7: ACCESORIOS HD PARA REDES DE ACUEDUCTO | D7: ALIATUBOS S.A.S. | E7: Bogota | F7: Cra. 25 17 67 | G7: 2011960 | H7: secretaria@aliatubos.com www.aliatubos.com | I7: 5
A8: =+B8&COUNTIF($B$3:B8,B8) -> 11146 | B8: 1114 | C8: ACCESORIOS HD PARA REDES DE ACUEDUCTO | D8: GERFOR | E8: Bogota | F8: Autopista Medellin Km 2 - 600 Entrada via Parcelas de Cota | G8: 8776800 | H8: contactenos@gerfor.com www.gerfor.com.co | I8: 6
A9: =+B9&COUNTIF($B$3:B9,B9) -> 11147 | B9: 1114 | C9: ACCESORIOS HD PARA REDES DE ACUEDUCTO | D9: TUBOS Y ACCESORIOS CELTA | E9: Bogota | F9: Cra. 87 1 42 | G9: 7799000 3143302256 3123320171 | H9: rurodrig@celta.com.co katherine.rodriguez@celta.com.co | I9: 7
A10: =+B10&COUNTIF($B$3:B10,B10) -> 11611 | B10: 1161 | C10: ACTIVIDADES A TODO COSTO | D10: ABC TRANSFORMADORES E INGENIERIA ELECTROMECÁNICA | E10: Bogotá | F10: Carrera 27 No. 7 - 42 | G10: 2015059 - 3105612639 - 3105612635 - 2016468 | H10: http://www.transformadoresabc.com | I10: 8
A11: =+B11&COUNTIF($B$3:B11,B11) -> 11612 | B11: 1161 | C11: ACTIVIDADES A TODO COSTO | D11: AMVAR WORLD SAS | E11: Bogotá | F11: Av. 30 - 7 de agosto 68-125 local 35 | G11: 3810603 EXT 101-102 | H11: ventas@anvarworld.com | I11: 9
A12: =+B12&COUNTIF($B$3:B12,B12) -> 11613 | B12: 1161 | C12: ACTIVIDADES A TODO COSTO | D12: CARPAS E INGENIERÍA | E12: Bogota | F12: Calle 9 32 A 41 | G12: 3102360339 5618623 | H12: ventas@carpascolombia.com | I12: 10
A13: =+B13&COUNTIF($B$3:B13,B13) -> 11614 | B13: 1161 | C13: ACTIVIDADES A TODO COSTO | D13: CIVALCO LTDA | E13: Bogota | F13: carrera 17 No. 36 - 38 | G13: 2853857 ext. 113 | H13: ventas@civalco.com | I13: 11
A14: =+B14&COUNTIF($B$3:B14,B14) -> 11615 | B14: 1161 | C14: ACTIVIDADES A TODO COSTO | D14: COMPUTER ONLINE - DIGITAL TECNOLOGY | E14: Bogotá | F14: -- | G14: 5416053 - 5416054 - 5416059 | H14: www.onlinecomputer.com.co | I14: 12
A15: =+B15&COUNTIF($B$3:B15,B15) -> 11616 | B15: 1161 | C15: ACTIVIDADES A TODO COSTO | D15: G&S SOLUCIONES DE INGENIERÍA | E15: Bogotá | F15: Diagonal 16 C No. 97–29 | G15: 2988669 | H15: contacto@gsingenieria.com.co | I15: 13
A16: =+B16&COUNTIF($B$3:B16,B16) -> 11617 | B16: 1161 | C16: ACTIVIDADES A TODO COSTO | D16: ISTC - BELDEN - Sending All The Right Signals | E16: (Europa / Medio Oriente / África) | F16: 8880 NW 18th Terrace, Doral, FL. 33172 | G16: +1 (305) 594 4141 | H16: marketing@istccorp.com | I16: 14
A17: =+B17&COUNTIF($B$3:B17,B17) -> 11618 | B17: 1161 | C17: ACTIVIDADES A TODO COSTO | D17: KTS Soluciones Energéticas-FAGAELEC Ingeniería Eléctrica | E17: Bogotá | F17: Carrera 68 C No. 2 B - 31 | G17: 7742034 | H17: -- | I17: 15
A18: =+B18&COUNTIF($B$3:B18,B18) -> 11619 | B18: 1161 | C18: ACTIVIDADES A TODO COSTO | D18: NACIONAL DE TRANSFORMADORES | E18: Mosquera/Cundinamarca | F18: PARQUE INDUSTRIAL MONTANA - MOSQUERA | G18: 8932308 | H18: -- | I18: 16
A19: =+B19&COUNTIF($B$3:B19,B19) -> 116110 | B19: 1161 | C19: ACTIVIDADES A TODO COSTO | D19: PROELÉCTRICOS | E19: Bogotá | F19: CALLE 12 A No. 21 - 21 | G19: 2471255 EXT. 301 | H19: presupuestos@proelectricos.com | I19: 17
A20: =+B20&COUNTIF($B$3:B20,B20) -> 116111 | B20: 1161 | C20: ACTIVIDADES A TODO COSTO | D20: PROELÉCTRICOS | E20: Bogotá | F20: CALLE 12 A No. 21 - 21 | G20: 2471255 EXT. 301 | H20: presupuestos@proelectricos.com | I20: 18
A21: =+B21&COUNTIF($B$3:B21,B21) -> 116112 | B21: 1161 | C21: ACTIVIDADES A TODO COSTO | D21: SERVIN GELEC S.A.S. | E21: Bogotá | F21: CALLE 65 A nO. 16 - 30 OF. 201 | G21: 7031742 | H21: comercial@servingelec.com | I21: 19
A22: =+B22&COUNTIF($B$3:B22,B22) -> 11021 | B22: 1102 | C22: AGREGADOS PETREOS, BASES Y SUBBASES GRANULARES | D22: 4GA SAS Agregados de calidad | E22: Bogota | F22: Calle 124 10 29 Apto. 201 | G22: 3183821145 | H22: grupo4ga@gmail.com | I22: 20
A23: =+B23&COUNTIF($B$3:B23,B23) -> 11022 | B23: 1102 | C23: AGREGADOS PETREOS, BASES Y SUBBASES GRANULARES | D23: AGREGADOS EL VINCULO LTDA | E23: Soacha - Cund. | F23: Cra. 7 32 35 C.C. Mercurio Of. 308 | G23: 7251891 3212010616 | H23: info@agregadoselvinculo.com | I23: 21
A24: =+B24&COUNTIF($B$3:B24,B24) -> 11023 | B24: 1102 | C24: AGREGADOS PETREOS, BASES Y SUBBASES GRANULARES | D24: BCD SAS | E24: Bogota | F24: Cra. 67 62 B 55 Sur Bl. 14 Apto. 527 | G24: 3008360 | H24: bcd@bcdsas.com | I24: 22
A25: =+B25&COUNTIF($B$3:B25,B25) -> 11024 | B25: 1102 | C25: AGREGADOS PETREOS, BASES Y SUBBASES GRANULARES | D25: CEMENTOS ARGOS - AGREGADOS PETREOS | E25: Bogotá | F25: Carrera 13 con 80 esquina, entre Av. Boyacá y Av. Cali | G25: 3506623165 | H25: http://agregados.argos.co/productos | I25: 23
A26: =+B26&COUNTIF($B$3:B26,B26) -> 11025 | B26: 1102 | C26: AGREGADOS PETREOS, BASES Y SUBBASES GRANULARES | D26: CICLOMAT SAS MINERIA URBANA | E26: Bogota | F26: Cra. 16 134 A 21 | G26: 3162630002 3163881743 | H26: ciclomatcomercial@gmail.com | I26: 24
A27: =+B27&COUNTIF($B$3:B27,B27) -> 11026 | B27: 1102 | C27: AGREGADOS PETREOS, BASES Y SUBBASES GRANULARES | D27: DEPOSITO RONOVA | E27: Bogota | F27: Calle 141 46 87 | G27: 3202739323 5209398 6256570 | H27: depositoronova@gmail.com | I27: 25
A28: =+B28&COUNTIF($B$3:B28,B28) -> 11027 | B28: 1102 | C28: AGREGADOS PETREOS, BASES Y SUBBASES GRANULARES | D28: DOBLE A INGENIERIA S.A. | E28: Bogota | F28: Calle 79 B 8 11 Piso 3 | G28: 2101700 | H28: cpinilla@da-ing.com gerencia@dobleaingenieria.com | I28: 26
A29: =+B29&COUNTIF($B$3:B29,B29) -> 11028 | B29: 1102 | C29: AGREGADOS PETREOS, BASES Y SUBBASES GRANULARES | D29: DROMOS PAVIMENTOS S.A. | E29: Mosquera/Cundinamarca | F29: Km 3.8 Zona Industrial Balsillas | G29: 7425376 | H29: atencion@dromos.co | I29: 27
A30: =+B30&COUNTIF($B$3:B30,B30) -> 11029 | B30: 1102 | C30: AGREGADOS PETREOS, BASES Y SUBBASES GRANULARES | D30: FANNY I. TEQUIA Y CIA SAS | E30: Soacha - Cund. | F30: Cra. 6 15 38 | G30: 7814130 | H30: contacto@tequiaycia.com | I30: 28
A31: =+B31&COUNTIF($B$3:B31,B31) -> 110210 | B31: 1102 | C31: AGREGADOS PETREOS, BASES Y SUBBASES GRANULARES | D31: GRAVILLERA ALBANIA S.A. | E31: Chia - Cund. | F31: Carretera Central Del Norte Km 19 | G31: 6760212 3102849530 | H31: administracion@gravilleraalbania.com | I31: 29
A32: =+B32&COUNTIF($B$3:B32,B32) -> 110211 | B32: 1102 | C32: AGREGADOS PETREOS, BASES Y SUBBASES GRANULARES | D32: INCOMINERIA S.A.S. | E32: Mosquera - Cund. | F32: Km 3.8 Zona Industrial Balsillas | G32: 3187759539 | H32: ventas@incomineria.co wendy.chaves@incomineria.co | I32: 30
A33: =+B33&COUNTIF($B$3:B33,B33) -> 110212 | B33: 1102 | C33: AGREGADOS PETREOS, BASES Y SUBBASES GRANULARES | D33: INGENIEROS GF SAS | E33: Bogota | F33: Calle 119 14 A 26 Of. 101 - 401 | G33: 6295142 6295120 | H33: info@ingenierosgf.com.co pupilojas@hotmail.com | I33: 31
A34: =+B34&COUNTIF($B$3:B34,B34) -> 110213 | B34: 1102 | C34: AGREGADOS PETREOS, BASES Y SUBBASES GRANULARES | D34: INSTITUTO NACIONAL DE VÍAS - INVIAS | E34: Bogotá | F34: Carrera 59 #26-60, Edificio INVIAS | G34: 7056000 - Ext 1158 | H34: comunicaciones @invias.gov.co | I34: 32
A35: =+B35&COUNTIF($B$3:B35,B35) -> 110214 | B35: 1102 | C35: AGREGADOS PETREOS, BASES Y SUBBASES GRANULARES | D35: RECICLADOS INDUSTRIALES DE COLOMBIA | E35: Cota - Cund. | F35: Km 1.5 Costado Sur Vía Bogotá Siberia Cota | G35: 8966879 8759047 3114926299 | H35: info@recicladosindustriales.co | I35: 33
A36: =+B36&COUNTIF($B$3:B36,B36) -> 110215 | B36: 1102 | C36: AGREGADOS PETREOS, BASES Y SUBBASES GRANULARES | D36: REX INGENIERIA S.A. | E36: Bogota | F36: Cra. 6 153 A 60 | G36: 3378726 3378728 3107694302 | H36: atencionalcliente@rexingenieria.com | I36: 34
A37: =+B37&COUNTIF($B$3:B37,B37) -> 110216 | B37: 1102 | C37: AGREGADOS PETREOS, BASES Y SUBBASES GRANULARES | D37: REX INGENIERIA S.A. | E37: Bogota | F37: Cra. 6 153 A 60 | G37: 3378726 3378728 3107694302 | H37: atencionalcliente@rexingenieria.com | I37: 35
A38: =+B38&COUNTIF($B$3:B38,B38) -> 11601 | B38: 1160 | C38: AMBIENTAL | D38: AGROVETERINARIA DEL CENTRO SAS | E38: Bogota | F38: Calle 11 15 19 | G38: 2431110 | H38: agroveterinariadelcentrohv@gmail.com | I38: 36
A39: =+B39&COUNTIF($B$3:B39,B39) -> 11602 | B39: 1160 | C39: AMBIENTAL | D39: ALMACEN AGROPECUARIO DE LA SABANA | E39: Bogota | F39: Calle 70 A 14 31 | G39: 3153921773 5445236 | H39: info@agrolasabana.com | I39: 37
A40: =+B40&COUNTIF($B$3:B40,B40) -> 11603 | B40: 1160 | C40: AMBIENTAL | D40: EASY | E40: Bogota | F40: Avda. Americas 68 94 | G40: 4191400 | H40: www.easy.com.co | I40: 38
A41: =+B41&COUNTIF($B$3:B41,B41) -> 11604 | B41: 1160 | C41: AMBIENTAL | D41: HOMECENTER | E41: Bogota | F41: Avda. 68 37 37 Sur | G41: 3077115 | H41: www.homecenter.com.co | I41: 39
A42: =+B42&COUNTIF($B$3:B42,B42) -> 11605 | B42: 1160 | C42: AMBIENTAL | D42: LA RES S.A.S. | E42: Bogota | F42: Cra. 13 13 91 | G42: 2825353 3362370 | H42: ventas@lares.com.co | I42: 40
A43: =+B43&COUNTIF($B$3:B43,B43) -> 11471 | B43: 1147 | C43: ARBOLES, GRAMAS, VEGETACION Y PLANTACION PAISAJISTICA | D43: AGRO DECORACIÓN | E43: Bogotá | F43: Cra 123 B 128 | G43: 6873661 | H43: agrodecoraciones@yahoo.es | I43: 41
A44: =+B44&COUNTIF($B$3:B44,B44) -> 11472 | B44: 1147 | C44: ARBOLES, GRAMAS, VEGETACION Y PLANTACION PAISAJISTICA | D44: ECOPRADOS SOLUCIONES AMBIENTALES | E44: Bogotá | F44: -- | G44: -- | H44: -- | I44: 42
A45: =+B45&COUNTIF($B$3:B45,B45) -> 11473 | B45: 1147 | C45: ARBOLES, GRAMAS, VEGETACION Y PLANTACION PAISAJISTICA | D45: EL SEMILLERO | E45: Bogotá | F45: Calle 70 A No. 14 A - 45 | G45: 3473760 | H45: elsemillero@elsemillero.net | I45: 43
A46: =+B46&COUNTIF($B$3:B46,B46) -> 11474 | B46: 1147 | C46: ARBOLES, GRAMAS, VEGETACION Y PLANTACION PAISAJISTICA | D46: INFORAGRO SAS | E46: Bogota | F46: Cra. 18 51 81 | G46: 3128474 7003106 | H46: inforagroltda@yahoo.es | I46: 44
A47: =+B47&COUNTIF($B$3:B47,B47) -> 11475 | B47: 1147 | C47: ARBOLES, GRAMAS, VEGETACION Y PLANTACION PAISAJISTICA | D47: INSTITUTO DISTRITAL DE RECREACION Y DEPORTE - IDRD | E47: Bogota | F47: Calle 63 59 A 06 | G47: 6605400 | H47: www.idrd.gov.co | I47: 45
A48: =+B48&COUNTIF($B$3:B48,B48) -> 11476 | B48: 1147 | C48: ARBOLES, GRAMAS, VEGETACION Y PLANTACION PAISAJISTICA | D48: SECRETARIA DISTRITAL DE AMBIENTE SDA | E48: Bogota | F48: Avda. Caracas 54 38 | G48: 3778899 | H48: www.ambientebogota.gov.co | I48: 46
A49: =+B49&COUNTIF($B$3:B49,B49) -> 11271 | B49: 1127 | C49: BORDILLOS Y LOSETAS | D49: ALFAGRES S.A. | E49: Bogota | F49: Avda. Caracas 35 55 | G49: 3311515 | H49: telemercadeo@alfa.com.co servicioalcliente@alfa.com.co | I49: 47
A50: =+B50&COUNTIF($B$3:B50,B50) -> 11272 | B50: 1127 | C50: BORDILLOS Y LOSETAS | D50: CICLOMAT SAS MINERIA URBANA | E50: Bogota | F50: Cra. 16 134 A 21 | G50: 3162630002 3163881743 | H50: ciclomatcomercial@gmail.com | I50: 48
A51: =+B51&COUNTIF($B$3:B51,B51) -> 11273 | B51: 1127 | C51: BORDILLOS Y LOSETAS | D51: CONSTRUDATA | E51: Pagina WEB | F51: N.A. | G51: N.A. | H51: www.construdata.com | I51: 49
A52: =+B52&COUNTIF($B$3:B52,B52) -> 11274 | B52: 1127 | C52: BORDILLOS Y LOSETAS | D52: EL CONDOR PREFABRICADOS SAS | E52: Soacha - Cund. | F52: Km 2 Via Fusunga vereda Panama | G52: 3134230803 7218612 | H52: info@elcondorprefabricados.com | I52: 50
A53: =+B53&COUNTIF($B$3:B53,B53) -> 11275 | B53: 1127 | C53: BORDILLOS Y LOSETAS | D53: INSUMOBRAS LTDA | E53: Bogota | F53: Autopista Medellin Km 14 Puente Piedra | G53: 3108196349 | H53: insumobrasltda@hotmail.com invaye@hotmail.com | I53: 51
A54: =+B54&COUNTIF($B$3:B54,B54) -> 11276 | B54: 1127 | C54: BORDILLOS Y LOSETAS | D54: MANUFACTURAS DE CEMENTO S.A. TITAN | E54: Cota - Cund. | F54: Autopista Medellin, entrada 2,4 Km al occidente del rio Bogotá | G54: 3353550 | H54: malvarez@titancemento.com | I54: 52
A55: =+B55&COUNTIF($B$3:B55,B55) -> 11277 | B55: 1127 | C55: BORDILLOS Y LOSETAS | D55: PLACA LISTA MODULOS PREFABRICADOS LTDA | E55: Bogota | F55: Calle 65 13 50 Of. 503 | G55: 2550490 3476569 3108173990 | H55: placalista01@yahoo.com | I55: 53
A56: =+B56&COUNTIF($B$3:B56,B56) -> 11278 | B56: 1127 | C56: BORDILLOS Y LOSETAS | D56: TUBOX SAS | E56: Bogota | F56: Calle 22 A 129 87 | G56: 3132851605 3143576140 7565545 | H56: comercial@tubox.com.co | I56: 54
A57: =+B57&COUNTIF($B$3:B57,B57) -> 11211 | B57: 1121 | C57: CABLES Y ACCESORIOS ELECTRICOS | D57: 3M | E57: Bogotá | F57: AV EL DORADO 75-93 | G57: 4161666 | H57: dcpieros@mmm.com | I57: 55
A58: =+B58&COUNTIF($B$3:B58,B58) -> 11212 | B58: 1121 | C58: CABLES Y ACCESORIOS ELECTRICOS | D58: ABB LTDA | E58: Bogotá | F58: Cra. 100 25 D 61 | G58: 4178000 01 8000 522 226 378 9349 | H58: contact.center@co.abb.com | I58: 56
A59: =+B59&COUNTIF($B$3:B59,B59) -> 11213 | B59: 1121 | C59: CABLES Y ACCESORIOS ELECTRICOS | D59: ACONSTRUCTORAS.COM | E59: Yopal - Casanare | F59: Calle 25 15 19 | G59: 3005541747 3163971751 | H59: www.aconstructoras.com | I59: 57
A60: =+B60&COUNTIF($B$3:B60,B60) -> 11214 | B60: 1121 | C60: CABLES Y ACCESORIOS ELECTRICOS | D60: ALMACÉN CANAIMA | E60: Armenia - Quindio | F60: Calle 17 20 21 | G60: 3148884477 (6)7447384 | H60: info@almacencanaima.com | I60: 58
A61: =+B61&COUNTIF($B$3:B61,B61) -> 11215 | B61: 1121 | C61: CABLES Y ACCESORIOS ELECTRICOS | D61: BORNA DESDE 1984 | E61: Bogotá | F61: CARRERA 24 8-51 BOGOTA | G61: 383 7610 | H61: www.borna-store.com servicioalcliente@bornas.info | I61: 59
A62: =+B62&COUNTIF($B$3:B62,B62) -> 11216 | B62: 1121 | C62: CABLES Y ACCESORIOS ELECTRICOS | D62: CEB IMPORTADORA SAS | E62: Bogota | F62: Cra. 13 19 29 | G62: 2825100 | H62: administracion@cebbogota.com | I62: 60
A63: =+B63&COUNTIF($B$3:B63,B63) -> 11217 | B63: 1121 | C63: CABLES Y ACCESORIOS ELECTRICOS | D63: CEI ELECTRICA INTERNACIONAL SAS | E63: Bogotá | F63: Cra. 13 No. 13 - 17 Of. 404 | G63: 2435090 | H63: ventas@ceielectricainternacional.com | I63: 61
A64: =+B64&COUNTIF($B$3:B64,B64) -> 11218 | B64: 1121 | C64: CABLES Y ACCESORIOS ELECTRICOS | D64: TUBOS Y ACCESORIOS CELTA | E64: QUINDÍO/ARMENIA | F64: Cra. 87 1 42 | G64: 7799000 | H64: rurodrig@celta.com.co | I64: 62
A65: =+B65&COUNTIF($B$3:B65,B65) -> 11219 | B65: 1121 | C65: CABLES Y ACCESORIOS ELECTRICOS | D65: CENTELSA | E65: Bogota | F65: Avda. Calle 26 68 C 61 Of. 717 | G65: 3166931865 3154334617 3154332661 | H65: armando.penaranda@centelsa.com.co david.uribe@centelsa.com.co luisf.escobar@centelsa.com.co | I65: 63
A66: =+B66&COUNTIF($B$3:B66,B66) -> 112110 | B66: 1121 | C66: CABLES Y ACCESORIOS ELECTRICOS | D66: CONSTRUDATA | E66: Bogotá | F66: Avda. Calle 26 82 70 | G66: 4255200 | H66: construdata@legis.com.co | I66: 64
A67: =+B67&COUNTIF($B$3:B67,B67) -> 112111 | B67: 1121 | C67: CABLES Y ACCESORIOS ELECTRICOS | D67: CU CONECTORES | E67: Funza - Cundinamarca | F67: Km 7 vía Bogotá - Medellín Complejo Industrial Celta Trade Park, Bodega 152-3 | G67: 8966535 Ext. 400 | H67: comercial@cuconectores.com.co | I67: 65
A68: =+B68&COUNTIF($B$3:B68,B68) -> 112112 | B68: 1121 | C68: CABLES Y ACCESORIOS ELECTRICOS | D68: DIELCO LTDA | E68: Bogotá | F68: CALLE 15 No. 12 - 51 | G68: 7439050 | H68: -- | I68: 66
A69: =+B69&COUNTIF($B$3:B69,B69) -> 112113 | B69: 1121 | C69: CABLES Y ACCESORIOS ELECTRICOS | D69: DISELEC LTDA | E69: Bogota | F69: Cra. 12 16 26 | G69: 3107720207 2843500 2832928 | H69: distrielectrica@hotmail.com | I69: 67
A70: =+B70&COUNTIF($B$3:B70,B70) -> 112114 | B70: 1121 | C70: CABLES Y ACCESORIOS ELECTRICOS | D70: DYCON MATERIALES ELÉCTRICOS | E70: Neiva - Huila | F70: Calle 22 #1h-38, Rojas Trujillo | G70: 8750577 | H70: -- | I70: 68
A71: =+B71&COUNTIF($B$3:B71,B71) -> 112115 | B71: 1121 | C71: CABLES Y ACCESORIOS ELECTRICOS | D71: EASY | E71: Bogota | F71: Avda. Americas 68 94 | G71: 4191400 | H71: www.easy.com.co | I71: 69
A72: =+B72&COUNTIF($B$3:B72,B72) -> 112116 | B72: 1121 | C72: CABLES Y ACCESORIOS ELECTRICOS | D72: EIMPSA | E72: Bogotá | F72: Calle 15 No. 13 - 48 (Entrada Principal) Calle 16 N. 13 - 55 (Parqueadero) | G72: 3275222 - 3340686 | H72: E-mail: ventas@eimpsa.com.co | I72: 70
A73: =+B73&COUNTIF($B$3:B73,B73) -> 112117 | B73: 1121 | C73: CABLES Y ACCESORIOS ELECTRICOS | D73: ELÉCTRICOS INDUSTRIALES LTDA | E73: Bogotá | F73: Cl 15 13-58 | G73: 3421788 | H73: http://www.elein.com.co | I73: 71
A74: =+B74&COUNTIF($B$3:B74,B74) -> 112118 | B74: 1121 | C74: CABLES Y ACCESORIOS ELECTRICOS | D74: ELECTRO MARCAS SOLUCIONES CON ENERGIA | E74: Bogota | F74: Cra 12 15 45 | G74: 3102386993 3341892 | H74: wilson.ariza@electromarcas.com | I74: 72
A75: =+B75&COUNTIF($B$3:B75,B75) -> 112119 | B75: 1121 | C75: CABLES Y ACCESORIOS ELECTRICOS | D75: ENERGIZAR | E75: Bogota | F75: Avda. Americas 68 94 | G75: 4191400 | H75: www.easy.com.co | I75: 73
A76: =+B76&COUNTIF($B$3:B76,B76) -> 112120 | B76: 1121 | C76: CABLES Y ACCESORIOS ELECTRICOS | D76: FERROCABLES S.A.S. | E76: Medellín - Antioquia | F76: CARRERA 45 No. 29 - 32 | G76: 4445123 | H76: -- | I76: 74
A77: =+B77&COUNTIF($B$3:B77,B77) -> 112121 | B77: 1121 | C77: CABLES Y ACCESORIOS ELECTRICOS | D77: GERFOR | E77: Cota - Cund. | F77: Autopista Medellin Km 2 - 600 Entrada via Parcelas de Cota | G77: 8776800 | H77: contactenos@gerfor.com www.gerfor.com.co | I77: 75
A78: =+B78&COUNTIF($B$3:B78,B78) -> 112122 | B78: 1121 | C78: CABLES Y ACCESORIOS ELECTRICOS | D78: HOMECENTER | E78: Bogota | F78: Avda. 68 37 37 Sur | G78: 3077115 | H78: www.homecenter.com.co | I78: 76
A79: =+B79&COUNTIF($B$3:B79,B79) -> 112123 | B79: 1121 | C79: CABLES Y ACCESORIOS ELECTRICOS | D79: HOMESENTRY | E79: Bogota | F79: Calle 127C No. 45-81 | G79: 6151515 Extensión 3031 | H79: norte@homesentry.net | I79: 77
A80: =+B80&COUNTIF($B$3:B80,B80) -> 112124 | B80: 1121 | C80: CABLES Y ACCESORIOS ELECTRICOS | D80: I.E. INTER ELECTRICAS | E80: Bogota | F80: Cra. 12 13 46 | G80: 3360755 Ext. 1103 3106983687 | H80: servicioalcliente@ie.com.co | I80: 78
A81: =+B81&COUNTIF($B$3:B81,B81) -> 112125 | B81: 1121 | C81: CABLES Y ACCESORIOS ELECTRICOS | D81: INTERNACIONAL DE ELÉCTRICOS | E81: Bogota | F81: Avda. Caracas 64 23 | G81: 7448130 | H81: amrubio@iegrupo.co lsescorcia@iegrupo.co | I81: 79
A82: =+B82&COUNTIF($B$3:B82,B82) -> 112126 | B82: 1121 | C82: CABLES Y ACCESORIOS ELECTRICOS | D82: IT-RED Infraestructura & redes | E82: Bogota | F82: Av. El Dorado No. 68 C -61 Of. 204 Edificio Torre | G82: 4322981 | H82: informacion@itred.com.co | I82: 80
A83: =+B83&COUNTIF($B$3:B83,B83) -> 112127 | B83: 1121 | C83: CABLES Y ACCESORIOS ELECTRICOS | D83: LA ESQUINA DE LOS ELECTRICOS | E83: Bogota | F83: Calle 18 10 71 | G83: 2845023 | H83: esquinaelectricos@hotmail.com | I83: 81
A84: =+B84&COUNTIF($B$3:B84,B84) -> 112128 | B84: 1121 | C84: CABLES Y ACCESORIOS ELECTRICOS | D84: MAELECTRICOS | E84: Bogota | F84: Calle 17 28 A 74 | G84: 3647373 | H84: julian.c@maelectricos.com julian.alvarado@maelectricos.com | I84: 82
A85: =+B85&COUNTIF($B$3:B85,B85) -> 112129 | B85: 1121 | C85: CABLES Y ACCESORIOS ELECTRICOS | D85: NACIONAL DE ELECTRICOS | E85: Bogota | F85: Calle 15 12 81 | G85: 3114758165 2543720 Ext. 1502 | H85: centro1@nalelectricos.com.co www.nalelectricos.com.co | I85: 83
A86: =+B86&COUNTIF($B$3:B86,B86) -> 112130 | B86: 1121 | C86: CABLES Y ACCESORIOS ELECTRICOS | D86: PAVCO S.A. | E86: Bogota | F86: Autopista Sur 71 75 | G86: 7825000 | H86: servicio@pavco.com.co orlando.polo@pavco.com.co www.pavco.com.co | I86: 84
A87: =+B87&COUNTIF($B$3:B87,B87) -> 112131 | B87: 1121 | C87: CABLES Y ACCESORIOS ELECTRICOS | D87: PLANTAS ELÉCTRICAS LTDA | E87: Bogota | F87: Carrera 26 No 8 – 36 Barrio Ricaurte | G87: 5102198 5102134 4085742 | H87: plantaselectricas-ltda.com ventas2@plantaselectricas-ltda.com ventas@plantaselectricas-ltda.com | I87: 85
A88: =+B88&COUNTIF($B$3:B88,B88) -> 112132 | B88: 1121 | C88: CABLES Y ACCESORIOS ELECTRICOS | D88: PLANTIDIESELES S.A.S. LTDA Soluciones Integrales de Energía | E88: Bogota | F88: Carrera 127 No. 22G - 18 Bodegas 7-8 | G88: 4185960 - 4185961 - 4185990 | H88: info@plantidieseles.com | I88: 86
A89: =+B89&COUNTIF($B$3:B89,B89) -> 112133 | B89: 1121 | C89: CABLES Y ACCESORIOS ELECTRICOS | D89: PRIXMA | E89: Cali - Valle | F89: CRA 4 B No. 36 - 44 | G89: 5242939 | H89: comercial3@prixma.com.co | I89: 87
A90: =+B90&COUNTIF($B$3:B90,B90) -> 112134 | B90: 1121 | C90: CABLES Y ACCESORIOS ELECTRICOS | D90: PROCABLES | E90: Bogota | F90: Calle 20 68 B 71 | G90: 4042666 Ext. 471 | H90: licitaciones@generalcable.com.co | I90: 88
A91: =+B91&COUNTIF($B$3:B91,B91) -> 112135 | B91: 1121 | C91: CABLES Y ACCESORIOS ELECTRICOS | D91: PROELÉCTRICOS | E91: Bogota | F91: CALLE 12 A No. 21 - 21 | G91: 2471255 EXT. 301 | H91: presupuestos@proelectricos.com | I91: 89
A92: =+B92&COUNTIF($B$3:B92,B92) -> 112136 | B92: 1121 | C92: CABLES Y ACCESORIOS ELECTRICOS | D92: REDES ELECTRICAS S.A. | E92: Bogota | F92: Cra. 12 15 97 | G92: 3340511 3647000 | H92: ventas.palo@redeselectricas.com ingenieria@redeselectricas.com oscar.rodriguez@redes electricas.com | I92: 90
A93: =+B93&COUNTIF($B$3:B93,B93) -> 112137 | B93: 1121 | C93: CABLES Y ACCESORIOS ELECTRICOS | D93: RYMEL | E93: Copacabana - Antioquia Antioquia/Medellín | F93: Autopista Norte paraje El Noral | G93: 4440430 | H93: rymel@rymel.com.co | I93: 91
A94: =+B94&COUNTIF($B$3:B94,B94) -> 112138 | B94: 1121 | C94: CABLES Y ACCESORIOS ELECTRICOS | D94: SIEMENS S.A. | E94: Tenjo - Cund. | F94: Autopista Medellin, Km 8.5 Costado Sur Tenjo | G94: 4142400 2942400 | H94: lia.deltoro@siemens.com www.siemens.com.co | I94: 92
A95: =+B95&COUNTIF($B$3:B95,B95) -> 112139 | B95: 1121 | C95: CABLES Y ACCESORIOS ELECTRICOS | D95: STEREN | E95: Bogotá | F95: Calle 140 n. 12B-25, Edificio Castellana Empresarial, oficina 103 | G95: 7443200 | H95: www.steren.com.co | I95: 93
A96: =+B96&COUNTIF($B$3:B96,B96) -> 112140 | B96: 1121 | C96: CABLES Y ACCESORIOS ELECTRICOS | D96: SUNTEC / WEG | E96: Antioquia/Medellín | F96: Carrera 47G # 78 D Sur - 147 | G96: 3187117802 | H96: ycastrillon@suntec.com.co | I96: 94
A97: =+B97&COUNTIF($B$3:B97,B97) -> 112141 | B97: 1121 | C97: CABLES Y ACCESORIOS ELECTRICOS | D97: ALMACÉN SUPERELÉCTRICOS | E97: Bogotá | F97: Cl 14 12-86 | G97: (+57) 1 3424035 (+57) 1 3424019 | H97: -- | I97: 95
A98: =+B98&COUNTIF($B$3:B98,B98) -> 112142 | B98: 1121 | C98: CABLES Y ACCESORIOS ELECTRICOS | D98: TELDOR | E98: Bogotá | F98: Cr8 64-42 Of 318 | G98: -- | H98: ventos.palo@redeselectricas.com ventos.centro@redeselectricas.com | I98: 96
A99: =+B99&COUNTIF($B$3:B99,B99) -> 11951 | B99: 1195 | C99: CARPINTERIA METALICA | D99: HB SADELEC Estructuras Metálicas | E99: Bogota | F99: Avda. Cra. 129 17 F 97 | G99: 4224700 Ext. 121 4155620 | H99: david.castellanos@hbsadelec.com.co | I99: 97
A100: =+B100&COUNTIF($B$3:B100,B100) -> 11952 | B100: 1195 | C100: CARPINTERIA METALICA | D100: NAZCA DISEÑO - IMAGEN SAS | E100: Bogota | F100: Cra. 55 45 A 20 | G100: 3244248 3003228552 | H100: comercial@nazca.com.co | I100: 98
A101: =+B101&COUNTIF($B$3:B101,B101) -> 11301 | B101: 1130 | C101: COMBUSTIBLES Y LUBRICANTES | D101: MINISTERIO DE MINAS Y ENERGIA | E101: Bogota | F101: Calle 43 57 31 | G101: 2200300 2200306 | H101: www.minminas.gov.co | I101: 99
A102: =+B102&COUNTIF($B$3:B102,B102) -> 11031 | B102: 1103 | C102: CONCRETOS Y MORTEROS PREMEZCLADOS | D102: CONCRETOS ARGOS S.A. | E102: Bogotá | F102: Cra. 7 71 21 Torre A Piso 10 | G102: 6767060 | H102: info@argos.com.co | I102: 100
A103: =+B103&COUNTIF($B$3:B103,B103) -> 11032 | B103: 1103 | C103: CONCRETOS Y MORTEROS PREMEZCLADOS | D103: CEMEX DE COLOMBIA S.A. | E103: Bogota | F103: Calle 99 9 A 54 Piso 8 | G103: 6469000 6039100 | H103: ginnamarcela.gomez@cemex.com alvaro.coral@cemex.com adrianamaritza.ramosrt@cemex.com.co yessicadamaris.torresbeltran@ext.cemex.com | I103: 101
A104: =+B104&COUNTIF($B$3:B104,B104) -> 11033 | B104: 1103 | C104: CONCRETOS Y MORTEROS PREMEZCLADOS | D104: ELEMENTOS PREFABRICADOS DE CONCRETO EL PRECON | E104: Madrid - Cund. | F104: Km 13.7 Autopista Medellin 1.2 Km del Round Point de Puente de Piedra hacia Bogota (Costado Sur) | G104: 3125933840 3115149414 | H104: elprecon@hotmail.com | I104: 102
A105: =+B105&COUNTIF($B$3:B105,B105) -> 11034 | B105: 1103 | C105: CONCRETOS Y MORTEROS PREMEZCLADOS | D105: HIDROPROTECCIÓN | E105: Bogotá | F105: Autopista Norte 169 25 | G105: 6784011 | H105: servicioalcliente@hidroproteccion.com | I105: 103
A106: =+B106&COUNTIF($B$3:B106,B106) -> 11035 | B106: 1103 | C106: CONCRETOS Y MORTEROS PREMEZCLADOS | D106: HOMECENTER | E106: Bogota | F106: Avda. 68 37 37 Sur | G106: 3077115 | H106: www.homecenter.com.co | I106: 104
A107: =+B107&COUNTIF($B$3:B107,B107) -> 11036 | B107: 1103 | C107: CONCRETOS Y MORTEROS PREMEZCLADOS | D107: HORMIGON ANDINO S.A. | E107: Bogota | F107: Calle 125 21 A 18 Piso 4 | G107: 3164706585 6371837 | H107: comercial@hormigonandino.com | I107: 105
A108: =+B108&COUNTIF($B$3:B108,B108) -> 11037 | B108: 1103 | C108: CONCRETOS Y MORTEROS PREMEZCLADOS | D108: MUNDO PREFABRICADOS | E108: Bogotá | F108: PLANTA PUENTE PIEDRA km 15 Autopista Medellin | G108: 310-710-9290 | H108: mundo.prefabricados@mundoprefabricados.com www.mundoprefabricados.com | I108: 106
A109: =+B109&COUNTIF($B$3:B109,B109) -> 11038 | B109: 1103 | C109: CONCRETOS Y MORTEROS PREMEZCLADOS | D109: SIKA COLOMBIA SAS | E109: Tocancipa - Cund. | F109: Vereda Canavita, Km 20,5 Autopista Norte | G109: 8786666 8786681 | H109: ortiz.ricardo@co.sika.com chacon.jose@co.sika.com | I109: 107
A110: =+B110&COUNTIF($B$3:B110,B110) -> 11039 | B110: 1103 | C110: CONCRETOS Y MORTEROS PREMEZCLADOS | D110: TOXEMENT | E110: Bogota | F110: Calle 20 53 A 42 | G110: 2088600 | H110: sandrarodriguez@toxement.com.co atencioncliente@toxement.com.co | I110: 108
A111: =+B111&COUNTIF($B$3:B111,B111) -> 11681 | B111: 1168 | C111: CONSULTORIA | D111: SECRETARIA DISTRITAL DE PLANEACION | E111: Bogota | F111: Avda. Cra. 30 25 90 | G111: 3358000 | H111: www.sdp.gov.co | I111: 109
A112: =+B112&COUNTIF($B$3:B112,B112) -> 11682 | B112: 1168 | C112: CONSULTORIA | D112: SUPERINTENDENCIA DE NOTARIADO Y REGISTRO | E112: Bogota | F112: Calle 26 13 49 Int. 201 | G112: 3282121 | H112: correspondencia@supernotariado.gov.co | I112: 110
A113: =+B113&COUNTIF($B$3:B113,B113) -> 12001 | B113: 1200 | C113: CUBIERTA, CIELO RASO, CORTASOL TIPO TRANSMILENIO | D113: HB SADELEC Estructuras Metálicas | E113: Bogotá | F113: Avda. Cra. 129 17 F 97 | G113: 4155620 | H113: david.castellanos@hbsadelec.com.co | I113: 111
A114: =+B114&COUNTIF($B$3:B114,B114) -> 12002 | B114: 1200 | C114: CUBIERTA, CIELO RASO, CORTASOL TIPO TRANSMILENIO | D114: GRONCOL INFRAESTRUCTURA VERDE | E114: Bogotá | F114: Calle 90 13 40 | G114: 7030955 | H114: info@groncol.com | I114: 112
A115: =+B115&COUNTIF($B$3:B115,B115) -> 11941 | B115: 1194 | C115: DESMONTE Y TRASLADO DE ELEMENTOS METALICOS | D115: INDUSTRIAS METÁLICAS GRAG S.A.S. | E115: Bogotá | F115: Cra. 27 No. 10 - 35 | G115: 2778985/2474813 | H115: metalgrag@yahoo.es | I115: 113
A116: =+B116&COUNTIF($B$3:B116,B116) -> 11942 | B116: 1194 | C116: DESMONTE Y TRASLADO DE ELEMENTOS METALICOS | D116: INGEVEC SAS | E116: Bogotá | F116: CALLE 93 A 68 B 30 | G116: 3014432758 | H116: -- | I116: 114
A117: =+B117&COUNTIF($B$3:B117,B117) -> 11943 | B117: 1194 | C117: DESMONTE Y TRASLADO DE ELEMENTOS METALICOS | D117: NAZCA DISEÑO - IMAGEN SAS | E117: Bogota | F117: Cra. 55 45 A 20 | G117: 3244248 3003228552 | H117: comercial@nazca.com.co | I117: 115
A118: =+B118&COUNTIF($B$3:B118,B118) -> 11481 | B118: 1148 | C118: DOTACION (EPP) Y EQUIPO Y HERRAMIENTA SEGURIDAD INDUSTRIAL | D118: CENTRAL DE DOTACIONES LTDA | E118: Bogota | F118: Cra. 69 A 31 62 Sur | G118: 3118109568 7110583 | H118: almacenprincipal@centraldedotaciones.com | I118: 116
A119: =+B119&COUNTIF($B$3:B119,B119) -> 11482 | B119: 1148 | C119: DOTACION (EPP) Y EQUIPO Y HERRAMIENTA SEGURIDAD INDUSTRIAL | D119: CONSTRUDATA | E119: Bogotá | F119: Avda. Calle 26 82 70 | G119: 4255200 | H119: construdata@legis.com.co | I119: 117
A120: =+B120&COUNTIF($B$3:B120,B120) -> 11483 | B120: 1148 | C120: DOTACION (EPP) Y EQUIPO Y HERRAMIENTA SEGURIDAD INDUSTRIAL | D120: DYA INSUMOS FERRETEROS SAS | E120: Bogota | F120: Calle 9 34 86 | G120: 3102144153 7451525 | H120: ventas@dyainsumosferreteros.com | I120: 118
A121: =+B121&COUNTIF($B$3:B121,B121) -> 11484 | B121: 1148 | C121: DOTACION (EPP) Y EQUIPO Y HERRAMIENTA SEGURIDAD INDUSTRIAL | D121: DOTA FUERTE | E121: Bogota | F121: Avda. Cra. 68 14 32 Sur | G121: 3112819386 2628514 | H121: dotafuerte@gmail.com | I121: 119
A122: =+B122&COUNTIF($B$3:B122,B122) -> 11485 | B122: 1148 | C122: DOTACION (EPP) Y EQUIPO Y HERRAMIENTA SEGURIDAD INDUSTRIAL | D122: DOTACIONES CALDERON SAS | E122: Bogota | F122: Avda. Cra. 68 22 64 Sur | G122: 4065664 4069690 | H122: ventas515@hotmail.es | I122: 120
A123: =+B123&COUNTIF($B$3:B123,B123) -> 11486 | B123: 1148 | C123: DOTACION (EPP) Y EQUIPO Y HERRAMIENTA SEGURIDAD INDUSTRIAL | D123: CONFECCIONES EL OVEROL LTDA | E123: Bogotá | F123: Calle 15 22 73 | G123: 2779854 | H123: ventas@confeccioneseloverol.com | I123: 121
A124: =+B124&COUNTIF($B$3:B124,B124) -> 11487 | B124: 1148 | C124: DOTACION (EPP) Y EQUIPO Y HERRAMIENTA SEGURIDAD INDUSTRIAL | D124: VANGUARD SEGURIDAD INDUSTRIAL | E124: Bogota | F124: Cra. 25 13 53 | G124: 7431671 7452796 | H124: info@vanguardseguridadindustrial.com | I124: 122
A125: =+B125&COUNTIF($B$3:B125,B125) -> 11111 | B125: 1111 | C125: DUCTOS PVC - ELECTRICOS/TELEFONICOS TIPO TDP-DB-EB | D125: DURMAN COLOMBIA S.A. | E125: Madrid - Cund. | F125: Km 27 Vía Fontibon Facatativa Los Alpes | G125: 8200200 | H125: colombia@durman.com | I125: 123
A126: =+B126&COUNTIF($B$3:B126,B126) -> 11112 | B126: 1111 | C126: DUCTOS PVC - ELECTRICOS/TELEFONICOS TIPO TDP-DB-EB | D126: ELÉCTRICOS JS & AC SAS | E126: Bogota | F126: Avda. Calle 63 103 A 32 | G126: 4313120 3145387908 3104772097 | H126: info@electricosjs.com | I126: 124
A127: =+B127&COUNTIF($B$3:B127,B127) -> 11113 | B127: 1111 | C127: DUCTOS PVC - ELECTRICOS/TELEFONICOS TIPO TDP-DB-EB | D127: GERFOR | E127: Bogota | F127: Autopista Medellin Km 2 - 600 m Entrada vía parcelas de Cota | G127: 877 6800 | H127: contactenos@gerfor.com | I127: 125
A128: =+B128&COUNTIF($B$3:B128,B128) -> 11114 | B128: 1111 | C128: DUCTOS PVC - ELECTRICOS/TELEFONICOS TIPO TDP-DB-EB | D128: PAVCO S.A. | E128: Bogota | F128: Autopista Sur 71 75 | G128: 7825000 | H128: servicio@pavco.com.co orlando.polo@pavco.com.co www.pavco.com.co | I128: 126
A129: =+B129&COUNTIF($B$3:B129,B129) -> 11115 | B129: 1111 | C129: DUCTOS PVC - ELECTRICOS/TELEFONICOS TIPO TDP-DB-EB | D129: TUBOS Y ACCESORIOS CELTA | E129: Bogota | F129: Cra. 87 1 42 | G129: 7799000 3143302256 3123320171 | H129: rurodrig@celta.com.co katherine.rodriguez@celta.com.co | I129: 127
A130: =+B130&COUNTIF($B$3:B130,B130) -> 11041 | B130: 1104 | C130: EMULSIONES Y MEZCLAS ASFALTICAS | D130: ASFALTOS PANAMA G. R. | E130: Soacha - Cund. | F130: Vereda Panama / Recebera El Tesoro | G130: 2654522 | H130: asfaltospanama@hotmail.com | I130: 128
A131: =+B131&COUNTIF($B$3:B131,B131) -> 11042 | B131: 1104 | C131: EMULSIONES Y MEZCLAS ASFALTICAS | D131: DOBLE A INGENIERIA S.A. | E131: Bogota | F131: Calle 79 B 8 11 Piso 3 | G131: 2101700 | H131: cpinilla@da-ing.com gerencia@dobleaingenieria.com | I131: 129
A132: =+B132&COUNTIF($B$3:B132,B132) -> 11043 | B132: 1104 | C132: EMULSIONES Y MEZCLAS ASFALTICAS | D132: DROMOS PAVIMENTOS S.A. | E132: Mosquera - Cund. | F132: Km 3.8 Zona Industrial Balsillas | G132: 7425376 Ext. 1208 3152199639 | H132: paola.castro@dromos.co atencion@dromos.co | I132: 130
A133: =+B133&COUNTIF($B$3:B133,B133) -> 11044 | B133: 1104 | C133: EMULSIONES Y MEZCLAS ASFALTICAS | D133: EZ STREET ASFALTO | E133: Gachancipa - Cund. | F133: Autopista Norte km 28 | G133: 3173000246 | H133: ventas@itpasfaltos.com | I133: 131
A134: =+B134&COUNTIF($B$3:B134,B134) -> 11045 | B134: 1104 | C134: EMULSIONES Y MEZCLAS ASFALTICAS | D134: HOMECENTER | E134: Bogota | F134: Avda. 68 37 37 Sur | G134: 3077115 | H134: www.homecenter.com.co | I134: 132
A135: =+B135&COUNTIF($B$3:B135,B135) -> 11046 | B135: 1104 | C135: EMULSIONES Y MEZCLAS ASFALTICAS | D135: INCOASFALTOS SAS | E135: Chia - Cund. | F135: Cra. 5 16 70 | G135: 8637888 | H135: cotizacionesolperez@incoasfaltos.com gmolina@incoasfaltos.com | I135: 133
A136: =+B136&COUNTIF($B$3:B136,B136) -> 11047 | B136: 1104 | C136: EMULSIONES Y MEZCLAS ASFALTICAS | D136: INSTITUTO NACIONAL DE VÍAS - INVIAS | E136: Bogotá | F136: Carrera 59 #26-60, Edificio INVIAS | G136: 7056000 - Ext 1158 | H136: comunicaciones @invias.gov.co | I136: 134
A137: =+B137&COUNTIF($B$3:B137,B137) -> 11048 | B137: 1104 | C137: EMULSIONES Y MEZCLAS ASFALTICAS | D137: MPI LTDA | E137: Bogota | F137: Cra. 7 83 92 Of. 404 | G137: 2375626 3102037329 | H137: direccioncomercial@mpi.net.co ricardo.carreno@mpi.net.co | I137: 135
A138: =+B138&COUNTIF($B$3:B138,B138) -> 11049 | B138: 1104 | C138: EMULSIONES Y MEZCLAS ASFALTICAS | D138: PAVIMENTOS COLOMBIA S.A.S. | E138: Bogotá | F138: AVENIDA 82 No. 10 - 50 | G138: 3760030 | H138: calidad@pavcol.com | I138: 136
A139: =+B139&COUNTIF($B$3:B139,B139) -> 11501 | B139: 1150 | C139: ENSAYOS DE LABORATORIO Y DIAGNOSTICOS | D139: ALS EMICAL | E139: Bogotá | F139: Calle 94 B No. 56 - 45 | G139: 3138325344 - +571 7450790/91 | H139: foodpharma.latam@alsglobal.com | I139: 137
A140: =+B140&COUNTIF($B$3:B140,B140) -> 11502 | B140: 1150 | C140: ENSAYOS DE LABORATORIO Y DIAGNOSTICOS | D140: ANALQUIM LTDA | E140: Bogotá | F140: Cr25 73-60 | G140: (+57) 1 2318149 (+57) 1 6309945 | H140: http://www.analquim.com | I140: 138
A141: =+B141&COUNTIF($B$3:B141,B141) -> 11503 | B141: 1150 | C141: ENSAYOS DE LABORATORIO Y DIAGNOSTICOS | D141: BAC Engineering Consultancy Group S.A.S. | E141: Bogotá | F141: Cra. 29 C 78 37 | G141: 8051209 | H141: laboratorio.colombia@bacecg.com | I141: 139
A142: =+B142&COUNTIF($B$3:B142,B142) -> 11504 | B142: 1150 | C142: ENSAYOS DE LABORATORIO Y DIAGNOSTICOS | D142: BIOQUILAB | E142: Bogotá | F142: Carrera 47A No 91 - 85 • Barrio La Castellana. | G142: (+57 1) 257 0722 / (+57 1) 635 3461 / (+57) 310 568 1450 | H142: servicioalcliente@bioquilab.com | I142: 140
A143: =+B143&COUNTIF($B$3:B143,B143) -> 11505 | B143: 1150 | C143: ENSAYOS DE LABORATORIO Y DIAGNOSTICOS | D143: ConCol - GEOCING - Geociencia e Ingeniería | E143: Bogotá | F143: Calle 120 No. 49 - 44 | G143: -- | H143: obecerra@concol.com | I143: 141
A144: =+B144&COUNTIF($B$3:B144,B144) -> 11506 | B144: 1150 | C144: ENSAYOS DE LABORATORIO Y DIAGNOSTICOS | D144: CONCRELAB | E144: Bogotá | F144: CL 63D 71A-52 | G144: 4386195 | H144: concrelab@cable.net.co | I144: 142
A145: =+B145&COUNTIF($B$3:B145,B145) -> 11507 | B145: 1150 | C145: ENSAYOS DE LABORATORIO Y DIAGNOSTICOS | D145: Concreservicios S.A.S. | E145: Bogota | F145: Calle 22 C 130 51 Bodega 6 | G145: 4211444 3103232062 | H145: comercial@concre-servicios.com | I145: 143
A146: =+B146&COUNTIF($B$3:B146,B146) -> 11508 | B146: 1150 | C146: ENSAYOS DE LABORATORIO Y DIAGNOSTICOS | D146: DIMCO INGENIEROS LTDA | E146: Bogotá | F146: CALLE 65 a No. 16 - 58 | G146: 3457940 | H146: dimcoingenieros@gmail.com | I146: 144
A147: =+B147&COUNTIF($B$3:B147,B147) -> 11509 | B147: 1150 | C147: ENSAYOS DE LABORATORIO Y DIAGNOSTICOS | D147: ECHEVERRY INGENIERIA Y ENSAYOS SAS | E147: Bogota | F147: Cra. 29 C 71 A 30 | G147: 3112088197 2255814 6304515 | H147: comercial@echeverryingenieria.com info@echeverryingenieria.com | I147: 145
A148: =+B148&COUNTIF($B$3:B148,B148) -> 115010 | B148: 1150 | C148: ENSAYOS DE LABORATORIO Y DIAGNOSTICOS | D148: EMPRESA DE ACUEDUCTO Y ALCANTARILLADO DE BOGOTÁ | E148: Bogotá | F148: Avenida Calle 24 No. 37 - 15 | G148: Aguas: (571) 344 7972 Suelos y Materiales: (571) 344 7000 Ext. 4148 Medidores: (571) 344 7173 Hidrología : (571) 344 7819 | H148: Aguas: leidy.silva@acueducto.com.co Medidores: acubillos@acueducto.com.co Suelos y materiales: eaperez@acueducto.com.co Hidrologia: jacopete@acueducto.com.co | I148: 146
A149: =+B149&COUNTIF($B$3:B149,B149) -> 115011 | B149: 1150 | C149: ENSAYOS DE LABORATORIO Y DIAGNOSTICOS | D149: ESCUELA COLOMBIANA DE INGENIERIA JULIO GARAVITO | E149: Bogota | F149: Autopista Norte 205 59 | G149: 6683600 Ext. 584 6763888 Ext. 228 - 324 | H149: laura.valderrama@escuelaing.edu.com | I149: 147
A150: =+B150&COUNTIF($B$3:B150,B150) -> 115012 | B150: 1150 | C150: ENSAYOS DE LABORATORIO Y DIAGNOSTICOS | D150: SUELOS Y PAVIMENTOS GREGORIO ROJAS & CIA LTDA | E150: Bogotá | F150: Calle 79 A 62 37 | G150: 2254760 | H150: laboratoriosuelosypavimentos@gmail.com | I150: 148
A151: =+B151&COUNTIF($B$3:B151,B151) -> 115013 | B151: 1150 | C151: ENSAYOS DE LABORATORIO Y DIAGNOSTICOS | D151: INGETEC | E151: Bogota | F151: Cra. 6 30 A 30 | G151: 238050 | H151: info@ingetec.com.co | I151: 149
A152: =+B152&COUNTIF($B$3:B152,B152) -> 115014 | B152: 1150 | C152: ENSAYOS DE LABORATORIO Y DIAGNOSTICOS | D152: INGENIERÍA Y GEORIESGOS IGR SAS | E152: Bogotá | F152: Carrera 19 A No. 84 - 14 Oficina 204 | G152: 6916054 | H152: igr@ingeoriesgos.com | I152: 150
A153: =+B153&COUNTIF($B$3:B153,B153) -> 115015 | B153: 1150 | C153: ENSAYOS DE LABORATORIO Y DIAGNOSTICOS | D153: JDM Ingeniería | E153: Bogotá | F153: Calle 120 50 86 | G153: 7477665 | H153: administrativa@apcsas.com | I153: 151
A154: =+B154&COUNTIF($B$3:B154,B154) -> 115016 | B154: 1150 | C154: ENSAYOS DE LABORATORIO Y DIAGNOSTICOS | D154: LABORATORIO BATEMAN INGENIERIA | E154: Bogota | F154: Cra. 20 39 65 | G154: 3204318 2459654 2325960 | H154: direcciongeneral@laboratoriobilsa.com direcciontecnica@laboratoriobilsa.com | I154: 152
A155: =+B155&COUNTIF($B$3:B155,B155) -> 115017 | B155: 1150 | C155: ENSAYOS DE LABORATORIO Y DIAGNOSTICOS | D155: LABORATORIO CONTECON URBAR | E155: Bogotá | F155: Cra. 69 Q 78 52 | G155: 7562656 | H155: comercial@contecon.com | I155: 153
A156: =+B156&COUNTIF($B$3:B156,B156) -> 115018 | B156: 1150 | C156: ENSAYOS DE LABORATORIO Y DIAGNOSTICOS | D156: LABORATORIO DEL CONCRETO (ASOCRETO) | E156: Bogota | F156: Calle 103 15 80 | G156: 6180018 | H156: asocreto@asocreto.org.co | I156: 154
A157: =+B157&COUNTIF($B$3:B157,B157) -> 115019 | B157: 1150 | C157: ENSAYOS DE LABORATORIO Y DIAGNOSTICOS | D157: MARIO HUERTAS CORTES LABORATORIO | E157: Bogota | F157: Cra. 22 A 85 20 | G157: 8772093 3219459185 6226620 | H157: mhcingenieros@mhc.com.co mhc.laboratorio@gmail.com. | I157: 155
A158: =+B158&COUNTIF($B$3:B158,B158) -> 115020 | B158: 1150 | C158: ENSAYOS DE LABORATORIO Y DIAGNOSTICOS | D158: MICROMATCO S.A.S. | E158: Bogota | F158: Cra. 23 53 D 52 Int. 101 | G158: 3002220125 7026742 | H158: info@nrbmicromatco.com | I158: 156
A159: =+B159&COUNTIF($B$3:B159,B159) -> 115021 | B159: 1150 | C159: ENSAYOS DE LABORATORIO Y DIAGNOSTICOS | D159: PERFORACIONES Y ESTUDIOS | E159: Bogotá | F159: Calle 78 A No. 64 - 40 | G159: 3002054 | H159: perforacionesyestudios@gmail.com | I159: 157
A160: =+B160&COUNTIF($B$3:B160,B160) -> 115022 | B160: 1150 | C160: ENSAYOS DE LABORATORIO Y DIAGNOSTICOS | D160: PONTIFICIA UNIVERSIDAD JAVERIANA | E160: Bogota | F160: Calle 40 5 50 Fac. de Ingenieria Ed. José Gabriel Maldonado S.J. | G160: 3208320 Ext. 5373 | H160: labcivil@javeriana.edu.co daniel.ruiz@javeriana.edu.co | I160: 158
A161: =+B161&COUNTIF($B$3:B161,B161) -> 115023 | B161: 1150 | C161: ENSAYOS DE LABORATORIO Y DIAGNOSTICOS | D161: SERINCO COLOMBIA | E161: Bogotá | F161: CALLE 163 20 17 | G161: 4673487 | H161: -- | I161: 159
A162: =+B162&COUNTIF($B$3:B162,B162) -> 115024 | B162: 1150 | C162: ENSAYOS DE LABORATORIO Y DIAGNOSTICOS | D162: SERVICIOS GEOTÉCNICOS S.A.S. | E162: Bogotá | F162: CALLE 163 7 44 | G162: 8030792 | H162: -- | I162: 160
A163: =+B163&COUNTIF($B$3:B163,B163) -> 115025 | B163: 1150 | C163: ENSAYOS DE LABORATORIO Y DIAGNOSTICOS | D163: Terratest Laboratorio de Suelos Rocas y Materiales S.A.S. | E163: Bogotá | F163: CARRERA 59 C No. 130 - 38 | G163: 8032324 | H163: comercial@terratest.com.co | I163: 161
A164: =+B164&COUNTIF($B$3:B164,B164) -> 115026 | B164: 1150 | C164: ENSAYOS DE LABORATORIO Y DIAGNOSTICOS | D164: UNIVERSIDAD DE LOS ANDES | E164: Bogota | F164: Cra. 1 E 19 A 40 Ed. Mario Laserna | G164: 3394949 Ext. 1719 - 1768 | H164: labcivil@uniandes.edu.co | I164: 162
A165: =+B165&COUNTIF($B$3:B165,B165) -> 115027 | B165: 1150 | C165: ENSAYOS DE LABORATORIO Y DIAGNOSTICOS | D165: UNIVERSIDAD DE LA SALLE | E165: Bogotá | F165: Universidad De La Salle sede chapinero | G165: 3488000 | H165: www.lasalle.edu.co/Inicio | I165: 163
A166: =+B166&COUNTIF($B$3:B166,B166) -> 115028 | B166: 1150 | C166: ENSAYOS DE LABORATORIO Y DIAGNOSTICOS | D166: UNIVERSIDAD NACIONAL DE COLOMBIA | E166: Bogota | F166: Cra. 45 26 85 | G166: 3165000 | H166: mediosdigitales@unal.edu.co | I166: 164
A167: =+B167&COUNTIF($B$3:B167,B167) -> 115029 | B167: 1150 | C167: ENSAYOS DE LABORATORIO Y DIAGNOSTICOS | D167: VARGAS E INGENIERÍA ENSAYOS S.A.S. | E167: Bogotá | F167: Carrera 11 N°48-13 Soacha | G167: 3208447795 | H167: www.vargasingenieriayensayos.com vargasingenieriayensayos@gmail.com | I167: 165
A168: =+B168&COUNTIF($B$3:B168,B168) -> 115030 | B168: 1150 | C168: ENSAYOS DE LABORATORIO Y DIAGNOSTICOS | D168: XAMTEC | E168: Bogotá | F168: Cra. 45 A # 93 - 29 | G168: 746 5384 | H168: xamtec@xamtec.com | I168: 166
A169: =+B169&COUNTIF($B$3:B169,B169) -> 11161 | B169: 1116 | C169: EQUIPO LIVIANO Y HERRAMIENTAS | D169: ACCEQUIP | E169: Bogota | F169: Cra. 28 No. 68-88 | G169: 6065463 | H169: bogota@accequip.com | I169: 167
A170: =+B170&COUNTIF($B$3:B170,B170) -> 11162 | B170: 1116 | C170: EQUIPO LIVIANO Y HERRAMIENTAS | D170: ASTROEQUIPOS S.A. | E170: Bogota | F170: Calle 75 69 K 43 | G170: 3108596 3108169758 3142513243 | H170: astroequipos@astroequipos.com vivianapaez@astroequipos.com guillermoreyes@astroequipos.com | I170: 168
A171: =+B171&COUNTIF($B$3:B171,B171) -> 11163 | B171: 1116 | C171: EQUIPO LIVIANO Y HERRAMIENTAS | D171: ASTRO MAQUINARIA LTDA - Bombeo de Fluidos | E171: Bogota | F171: Calle 140 No. 22 - 06 | G171: 6261300 | H171: info@astromaquinaria.com | I171: 169
A172: =+B172&COUNTIF($B$3:B172,B172) -> 11164 | B172: 1116 | C172: EQUIPO LIVIANO Y HERRAMIENTAS | D172: CIVALCO LTDA | E172: Bogota | F172: carrera 17 No. 36 - 38 | G172: 2853857 ext. 113 | H172: ventas@civalco.com | I172: 170
A173: =+B173&COUNTIF($B$3:B173,B173) -> 11165 | B173: 1116 | C173: EQUIPO LIVIANO Y HERRAMIENTAS | D173: CONSTRUDATA | E173: Pagina WEB | F173: N.A. | G173: N.A. | H173: www.construdata.com | I173: 171
A174: =+B174&COUNTIF($B$3:B174,B174) -> 11166 | B174: 1116 | C174: EQUIPO LIVIANO Y HERRAMIENTAS | D174: DIESCON | E174: Bogota | F174: CALLE 86 A No. 95 - 40 INT. 102 | G174: 4624033 | H174: -- | I174: 172
A175: =+B175&COUNTIF($B$3:B175,B175) -> 11167 | B175: 1116 | C175: EQUIPO LIVIANO Y HERRAMIENTAS | D175: DIMACRO EMC LTDA | E175: Bogota | F175: Cra. 66 107 56 | G175: 2717288 Ext. 1011 3114746837 | H175: ventas@dimacro.com mercadeo@dimacro.com | I175: 173
A176: =+B176&COUNTIF($B$3:B176,B176) -> 11168 | B176: 1116 | C176: EQUIPO LIVIANO Y HERRAMIENTAS | D176: EQUINORTE | E176: Siberia - Cundinamarca | F176: Parque empresarial Celta - Bodega 118 km 7 Medellin, Siberia | G176: 8966261 3215400185 | H176: cgacharna@equinorte.net | I176: 174
A177: =+B177&COUNTIF($B$3:B177,B177) -> 11169 | B177: 1116 | C177: EQUIPO LIVIANO Y HERRAMIENTAS | D177: EQUIPOS Y MOTORES SAS | E177: Bogota | F177: Carrera 120A #17d-23, Fontibon San Pablo | G177: 267 33 20 313 450 74 33 | H177: info@equiposymotoresml.com | I177: 175
A178: =+B178&COUNTIF($B$3:B178,B178) -> 111610 | B178: 1116 | C178: EQUIPO LIVIANO Y HERRAMIENTAS | D178: FERRETERIA RHINO | E178: Bogota | F178: Cra.25 15 58 | G178: 3204950158 4817222 | H178: gadministrativa@rhino.com.co | I178: 176
A179: =+B179&COUNTIF($B$3:B179,B179) -> 111611 | B179: 1116 | C179: EQUIPO LIVIANO Y HERRAMIENTAS | D179: FERRICENTROS S.A. | E179: Bogota | F179: Avda. Caracas 74 25 | G179: 6511212 2862100 | H179: jhon.bermudez@ferricentro.com callcenter02@ferricentro.com callcenter01@ferricentro.com | I179: 177
A180: =+B180&COUNTIF($B$3:B180,B180) -> 111612 | B180: 1116 | C180: EQUIPO LIVIANO Y HERRAMIENTAS | D180: GARCIA VEGA | E180: Bogota | F180: Calle 5 C 53 D-22 | G180: 4205752 Ext. 109 3176685586 | H180: ventas1@garciavegacia.com | I180: 178
A181: =+B181&COUNTIF($B$3:B181,B181) -> 111613 | B181: 1116 | C181: EQUIPO LIVIANO Y HERRAMIENTAS | D181: GECOLSA - CAT RENTAL STORE | E181: Bogota | F181: Avda. Americas 35 A 51 | G181: 4055554 Ext. 1510 3153692061 | H181: martha_rodriguez@gecolsa.com.co www.gecolsa.com.co cesar_torres@gecolsa.com.co | I181: 179
A182: =+B182&COUNTIF($B$3:B182,B182) -> 111614 | B182: 1116 | C182: EQUIPO LIVIANO Y HERRAMIENTAS | D182: HOMECENTER | E182: Bogota | F182: Avda. 68 37 37 Sur | G182: 3077115 | H182: www.homecenter.com.co | I182: 180
A183: =+B183&COUNTIF($B$3:B183,B183) -> 111615 | B183: 1116 | C183: EQUIPO LIVIANO Y HERRAMIENTAS | D183: PRONTO RENTAL | E183: Bogota | F183: Autopista Medellin Km 7 vía Siberia C E Celta B. 18-4 | G183: 8237564 | H183: asesor.renta6@gruasyequipos.com | I183: 181
A184: =+B184&COUNTIF($B$3:B184,B184) -> 111616 | B184: 1116 | C184: EQUIPO LIVIANO Y HERRAMIENTAS | D184: RENTAN SAS | E184: Antioquia/Medellín | F184: Calle 25 A 43 B 69 Piso 2 Antioquia/Medellín | G184: (4) 4449211 | H184: info@rentan.com.co | I184: 182
A185: =+B185&COUNTIF($B$3:B185,B185) -> 111617 | B185: 1116 | C185: EQUIPO LIVIANO Y HERRAMIENTAS | D185: TECNOFUEGO | E185: Bogota | F185: CALLE 104 No. 14 A - 45 OF. 402 | G185: 3158915543 | H185: restupinan@tecno-fuego.com.co | I185: 183
A186: =+B186&COUNTIF($B$3:B186,B186) -> 11151 | B186: 1115 | C186: EQUIPO PESADO | D186: ASTROEQUIPOS S.A. | E186: Bogota | F186: Calle 75 69 K 43 | G186: 3108596 3108169758 3142513243 | H186: astroequipos@astroequipos.com vivianapaez@astroequipos.com guillermoreyes@astroequipos.com | I186: 184
A187: =+B187&COUNTIF($B$3:B187,B187) -> 11152 | B187: 1115 | C187: EQUIPO PESADO | D187: B.M.G. TRANSPORTE DE AGUA POTABLE E. U. | E187: Bogota | F187: Calle 87 Bis 85 30 | G187: 3105724217 2235354 5363723 | H187: bmgaguapotable@hotmail.com | I187: 185
A188: =+B188&COUNTIF($B$3:B188,B188) -> 11153 | B188: 1115 | C188: EQUIPO PESADO | D188: CONSTRUDATA | E188: Pagina WEB | F188: N.A. | G188: N.A. | H188: www.construdata.com | I188: 186
A189: =+B189&COUNTIF($B$3:B189,B189) -> 11154 | B189: 1115 | C189: EQUIPO PESADO | D189: CONSTRUGROUP VIAL S.A.S | E189: Bogota | F189: CALLE 74 #15 80 OF 310 | G189: 321 2822 | H189: -- | I189: 187
A190: =+B190&COUNTIF($B$3:B190,B190) -> 11155 | B190: 1115 | C190: EQUIPO PESADO | D190: DIESCON | E190: Bogota | F190: CALLE 86 A No. 95 - 40 INT. 102 | G190: 4624033 | H190: -- | I190: 188
A191: =+B191&COUNTIF($B$3:B191,B191) -> 11156 | B191: 1115 | C191: EQUIPO PESADO | D191: DISEPILMEGAPRESS | E191: Cota - Cund. | F191: Autopista Medellin Km 3,5 Centro Empresarial Mertropolitano Piso 3 Of. B-21 | G191: 8233996 | H191: administracion@disepilmegapress.com | I191: 189
A192: =+B192&COUNTIF($B$3:B192,B192) -> 11157 | B192: 1115 | C192: EQUIPO PESADO | D192: EQUINORTE | E192: Bogota | F192: Parque empresarial Celta - Bodega 118 km 7 Medellin, Siberia | G192: 8966261 3215400185 | H192: cgacharna@equinorte.net | I192: 190
A193: =+B193&COUNTIF($B$3:B193,B193) -> 11158 | B193: 1115 | C193: EQUIPO PESADO | D193: EQUIPOS Y MOTORES SAS | E193: Bogota | F193: Carrera 120A #17d-23, Fontibon San Pablo | G193: 267 33 20 313 450 74 33 | H193: info@equiposymotoresml.com | I193: 191
A194: =+B194&COUNTIF($B$3:B194,B194) -> 11159 | B194: 1115 | C194: EQUIPO PESADO | D194: FENIX TORRES SAS GRUAS, EQUIPOS Y TRANSPORTES | E194: Bogota | F194: CALLE 80 KM 2 VIA SIBERIA TCB OF C-56 | G194: 8415000 | H194: -- | I194: 192
A195: =+B195&COUNTIF($B$3:B195,B195) -> 111510 | B195: 1115 | C195: EQUIPO PESADO | D195: GARCIA VEGA | E195: Bogota | F195: Calle 5 C 53 D 22 | G195: 4205752 Ext. 110 4205767 2623264 | H195: ventas1@garciavegacia.com | I195: 193
A196: =+B196&COUNTIF($B$3:B196,B196) -> 111511 | B196: 1115 | C196: EQUIPO PESADO | D196: GECOLSA - CAT RENTAL STORE | E196: Bogota | F196: Avda. Americas 35 A 51 | G196: 4055554 Ext. 1510 3153692061 | H196: martha_rodriguez@gecolsa.com.co www.gecolsa.com.co cesar_torres@gecolsa.com.co | I196: 194
A197: =+B197&COUNTIF($B$3:B197,B197) -> 111512 | B197: 1115 | C197: EQUIPO PESADO | D197: IMPRIMASCOL | E197: Bogota | F197: Avda. Ciudad de Cali 163-09 | G197: 5369666 3153309854 | H197: http://imprimascol.amawebs.com/ | I197: 195
A198: =+B198&COUNTIF($B$3:B198,B198) -> 111513 | B198: 1115 | C198: EQUIPO PESADO | D198: IMPRIMACIONES ASFALTICAS SAS - COVISCOL EU | E198: Bogota | F198: Calle 134 A 16 79 | G198: 8033097 | H198: imprimaciones@hotmail.com | I198: 196
A199: =+B199&COUNTIF($B$3:B199,B199) -> 111514 | B199: 1115 | C199: EQUIPO PESADO | D199: PLANTIDIESELES S.A.S. LTDA Soluciones Integrales de Energía | E199: Bogota | F199: Carrera 127 No. 22G - 18 Bodegas 7-8 | G199: 4185960 - 4185961 - 4185990 | H199: info@plantidieseles.com | I199: 197
A200: =+B200&COUNTIF($B$3:B200,B200) -> 111515 | B200: 1115 | C200: EQUIPO PESADO | D200: PRONTO RENTAL | E200: Bogota | F200: Autopista Medellin Km 7 vía Siberia C E Celta B. 18-4 | G200: 8237564 | H200: asesor.renta6@gruasyequipos.com | I200: 198
... 485 more rows

Sheet LISTA TOTAL PROVEEDORES (hidden)
B1: 2020-I DIRECTORIO
B2: CODIGO GRUPO | C2: GRUPO | D2: DIRECTORIO PROVEEDORES | E2: CIUDAD | F2: DIRECCIÓN | G2: TELEFONO | H2: EMAIL
A3: =+B3&COUNTIF($B$3:B3,B3) -> 11141 | B3: =VLOOKUP(C3,'[1]GRUPOS VIGENTES'!$B$9:$C$115,2,FALSE) -> 1114 | C3: ACCESORIOS HD PARA REDES DE ACUEDUCTO | D3: ACUATUBOS | E3: Medellin - Antioquia | F3: Cr 49 a 48 Sur 100 Bodega 102 UNIVEGAS | G3: (4) 6043838 (1)3904005 Ext. 132 310 462 4960 310 459 6721 310 459 6723 314 888 0244 | H3: atc.vip@acuatubos.com.co auxiliar.comercial2@acuatubos.com.co | I3: 1 | K3: =VLOOKUP(D3,#REF!,2,FALSE) ->  | M3: =IFERROR(K3,1) -> 1
A4: =+B4&COUNTIF($B$3:B4,B4) -> 11142 | B4: =VLOOKUP(C4,'[1]GRUPOS VIGENTES'!$B$9:$C$115,2,FALSE) -> 1114 | C4: ACCESORIOS HD PARA REDES DE ACUEDUCTO | D4: APOLO AVA | E4: Bogotá | F4: Cr 27 No. 17 -74 | G4: 360 70 53 360 70 23 | H4: apolo.bogota@apolo.net.co | I4: 2 | K4: =VLOOKUP(D4,#REF!,2,FALSE) ->  | M4: =IFERROR(K4,1) -> 1
A5: =+B5&COUNTIF($B$3:B5,B5) -> 11143 | B5: =VLOOKUP(C5,'[1]GRUPOS VIGENTES'!$B$9:$C$115,2,FALSE) -> 1114 | C5: ACCESORIOS HD PARA REDES DE ACUEDUCTO | D5: AQUA & GAS COLOMBIA SAS | E5: Medellin - Antioquia | F5: Cra 50C No 10sur - 120 Bodega 105 | G5: 312 728 4320 | H5: aquaygas@gmail.com | I5: 3 | K5: =VLOOKUP(D5,#REF!,2,FALSE) ->  | M5: 1
A6: =+B6&COUNTIF($B$3:B6,B6) -> 11144 | B6: =VLOOKUP(C6,'[1]GRUPOS VIGENTES'!$B$9:$C$115,2,FALSE) -> 1114 | C6: ACCESORIOS HD PARA REDES DE ACUEDUCTO | D6: BARNES DE COLOMBIA S.A. | E6: Funza -Cund. | F6: Autopista Bogota Medellin Km 7 Costado Occidental Antes de Peaje de Siberia. Celta Trade Park - Bodegas 86 y 93 | G6: 743 9090 ext 8311-8312-8403-8402-8502 | H6: distribucion@barnes.com.co industria@barnes.com.co construccion@barnes.com.co exportaciones@barnes.com.co | I6: 4 | K6: =VLOOKUP(D6,#REF!,2,FALSE) ->  | M6: 1
A7: =+B7&COUNTIF($B$3:B7,B7) -> 11145 | B7: =VLOOKUP(C7,'[1]GRUPOS VIGENTES'!$B$9:$C$115,2,FALSE) -> 1114 | C7: ACCESORIOS HD PARA REDES DE ACUEDUCTO | D7: COVAL | E7: Cota - Cund. | F7: Autopista Medellín Km 2.5 Parque Industrial Guadalajara, Bodega 3 | G7: 8759100 Ext 141 3133858402 | H7: patricia.santafe@coval.com info@coval.com.co norte@coval.com.co | I7: 5 | K7: =VLOOKUP(D7,#REF!,2,FALSE) ->  | M7: 1
A8: =+B8&COUNTIF($B$3:B8,B8) -> 11146 | B8: =VLOOKUP(C8,'[1]GRUPOS VIGENTES'!$B$9:$C$115,2,FALSE) -> 1114 | C8: ACCESORIOS HD PARA REDES DE ACUEDUCTO | D8: DURMAN COLOMBIA S.A. | E8: Madrid - Cund | F8: Km 27 Via fontibon Facatativa Los Alpes | G8: 8200200 | H8: colombia@durmam.com | I8: 6 | K8: =VLOOKUP(D8,#REF!,2,FALSE) ->  | M8: 1
A9: =+B9&COUNTIF($B$3:B9,B9) -> 11147 | B9: =VLOOKUP(C9,'[1]GRUPOS VIGENTES'!$B$9:$C$115,2,FALSE) -> 1114 | C9: ACCESORIOS HD PARA REDES DE ACUEDUCTO | D9: EASY | E9: Bogotá | F9: Av Americas No. 68 94 | G9: 4191400 | H9: www. Easy.com.co | I9: 7 | K9: =VLOOKUP(D9,#REF!,2,FALSE) ->  | M9: 1
A10: =+B10&COUNTIF($B$3:B10,B10) -> 11148 | B10: =VLOOKUP(C10,'[1]GRUPOS VIGENTES'!$B$9:$C$115,2,FALSE) -> 1114 | C10: ACCESORIOS HD PARA REDES DE ACUEDUCTO | D10: FERREACUEDUCTOS | E10: Bogotá | F10: Cll 26 # 69- 75 Torre 3 Ofc 1501 | G10: 3103337311 3185662120 | H10: servicioalcliente@ferreacueductos.com www.hidroconsulting.com.co | I10: 8 | K10: =VLOOKUP(D10,#REF!,2,FALSE) ->  | M10: 1
A11: =+B11&COUNTIF($B$3:B11,B11) -> 11149 | B11: =VLOOKUP(C11,'[1]GRUPOS VIGENTES'!$B$9:$C$115,2,FALSE) -> 1114 | C11: ACCESORIOS HD PARA REDES DE ACUEDUCTO | D11: FERRINCO - Ferreteria Rincon & Cia. S.A | E11: Bogotá | F11: Cl 15 No. 22 - 34 PALOQUEMAO | G11: 3162272614 2084884 3706981 | H11: ferrinco@ferrinco.com ventas@ferrinco.com | I11: 9 | K11: =VLOOKUP(D11,#REF!,2,FALSE) ->  | M11: 1
A12: =+B12&COUNTIF($B$3:B12,B12) -> 111410 | B12: =VLOOKUP(C12,'[1]GRUPOS VIGENTES'!$B$9:$C$115,2,FALSE) -> 1114 | C12: ACCESORIOS HD PARA REDES DE ACUEDUCTO | D12: FIMACA | E12: Bogotá | F12: Cr 22 Nº 86A-41 | G12: 3185358895 | H12: info@fimaca.com.co | I12: 10 | K12: =VLOOKUP(D12,#REF!,2,FALSE) ->  | M12: 1
A13: =+B13&COUNTIF($B$3:B13,B13) -> 111411 | B13: =VLOOKUP(C13,'[1]GRUPOS VIGENTES'!$B$9:$C$115,2,FALSE) -> 1114 | C13: ACCESORIOS HD PARA REDES DE ACUEDUCTO | D13: FUNDICIONES DE LIMA S.A. | E13: Bogotá | F13: Cl 85 A No. 20 - 48 Oficina 1 Polo Club | G13: 7868211 3135741376 | H13: karen.urquijo@fundelima.com | I13: 11 | K13: =VLOOKUP(D13,#REF!,2,FALSE) ->  | M13: 1
A14: =+B14&COUNTIF($B$3:B14,B14) -> 111412 | B14: =VLOOKUP(C14,'[1]GRUPOS VIGENTES'!$B$9:$C$115,2,FALSE) -> 1114 | C14: ACCESORIOS HD PARA REDES DE ACUEDUCTO | D14: HELBERT Y CIA | E14: Bogotá | F14: Av.Cra 40 No. 20-73 | G14: 3681077 | H14: ventas@helbertycia.com | I14: 12 | J14: BUSCAR | K14: =VLOOKUP(D14,#REF!,2,FALSE) ->  | M14: 1
A15: =+B15&COUNTIF($B$3:B15,B15) -> 111413 | B15: =VLOOKUP(C15,'[1]GRUPOS VIGENTES'!$B$9:$C$115,2,FALSE) -> 1114 | C15: ACCESORIOS HD PARA REDES DE ACUEDUCTO | D15: HIDROEQUIPO | E15: Cali - Valle del Cauca | F15: Av. 3 Bis Norte No. 23 CN-35 | G15: 653 0033 315 471 8248 | H15: info@hidroequipos.com.co | I15: 13 | J15: BUSCAR | K15: =VLOOKUP(D15,#REF!,2,FALSE) ->  | M15: 1
A16: =+B16&COUNTIF($B$3:B16,B16) -> 111414 | B16: =VLOOKUP(C16,'[1]GRUPOS VIGENTES'!$B$9:$C$115,2,FALSE) -> 1114 | C16: ACCESORIOS HD PARA REDES DE ACUEDUCTO | D16: HOMECENTER | E16: Bogotá | F16: Av Cra 68 No. 37 - 37 sur | G16: 3077115 | H16: www.homecenter.com | I16: 14 | K16: =VLOOKUP(D16,#REF!,2,FALSE) ->  | M16: 1
A17: =+B17&COUNTIF($B$3:B17,B17) -> 111415 | B17: =VLOOKUP(C17,'[1]GRUPOS VIGENTES'!$B$9:$C$115,2,FALSE) -> 1114 | C17: ACCESORIOS HD PARA REDES DE ACUEDUCTO | D17: KAIZEN GROUP INGENIERÍA | E17: Bogotá | F17: Cr 7D No 183 -34, Bogotá D.C - Colombia | G17: 6724658 / 3212456420 | H17: comercial@kaizengroup.com.co | I17: 15 | K17: =VLOOKUP(D17,#REF!,2,FALSE) ->  | M17: 1
A18: =+B18&COUNTIF($B$3:B18,B18) -> 111416 | B18: =VLOOKUP(C18,'[1]GRUPOS VIGENTES'!$B$9:$C$115,2,FALSE) -> 1114 | C18: ACCESORIOS HD PARA REDES DE ACUEDUCTO | D18: METACOL S.A | E18: Bogotá | F18: Dg 34 Bis 17 - 58 | G18: 5116262 Ext 211 | H18: mercadeo@metacol.com | I18: 16 | J18: BUSCAR | K18: =VLOOKUP(D18,#REF!,2,FALSE) ->  | M18: 1
A19: =+B19&COUNTIF($B$3:B19,B19) -> 111417 | B19: =VLOOKUP(C19,'[1]GRUPOS VIGENTES'!$B$9:$C$115,2,FALSE) -> 1114 | C19: ACCESORIOS HD PARA REDES DE ACUEDUCTO | D19: TECHNOLOGIES TRADE | E19: Bogotá | F19: Cr 38 No. 10 - 90 Local 1071 | G19: 313 2221067 3164969160 | H19: ventas@tdt.com.co | I19: 17 | J19: BUSCAR | K19: =VLOOKUP(D19,#REF!,2,FALSE) ->  | M19: 1
A20: =+B20&COUNTIF($B$3:B20,B20) -> 111418 | B20: =VLOOKUP(C20,'[1]GRUPOS VIGENTES'!$B$9:$C$115,2,FALSE) -> 1114 | C20: ACCESORIOS HD PARA REDES DE ACUEDUCTO | D20: TUFERRETERIA.COM | E20: Bogotá | F20: www.tuferreteria.com.co | G20: 3144440415 | H20: Comercial@tuferreteria.com.co | I20: 18 | K20: =VLOOKUP(D20,#REF!,2,FALSE) ->  | M20: 1
A21: =+B21&COUNTIF($B$3:B21,B21) -> 111419 | B21: =VLOOKUP(C21,'[1]GRUPOS VIGENTES'!$B$9:$C$115,2,FALSE) -> 1114 | C21: ACCESORIOS HD PARA REDES DE ACUEDUCTO | D21: TUVALREP SAS | E21: Bogotá | F21: Av Cl 13 No. 22- 72 | G21: 2015415 3713386 | H21: tuvalrep@tuvalrep.com.co | I21: 19 | J21: BUSCAR | K21: =VLOOKUP(D21,#REF!,2,FALSE) ->  | M21: 1
A22: =+B22&COUNTIF($B$3:B22,B22) -> 11611 | B22: =VLOOKUP(C22,'[1]GRUPOS VIGENTES'!$B$9:$C$115,2,FALSE) -> 1161 | C22: ACTIVIDADES A TODO COSTO | D22: ABC TRANSFORMADORES E INGENIERIA ELECTROMECÁNICA | E22: Bogotá | F22: Cr 27 No. 7 - 42 | G22: 5213180 2015059 3105612639 3105612635 2016468 | H22: mercadeo@transformadoresabc.com comercialbogota@transformadoresabc.com | I22: 20 | K22: =VLOOKUP(D22,#REF!,2,FALSE) ->  | M22: 1
A23: =+B23&COUNTIF($B$3:B23,B23) -> 11612 | B23: =VLOOKUP(C23,'[1]GRUPOS VIGENTES'!$B$9:$C$115,2,FALSE) -> 1161 | C23: ACTIVIDADES A TODO COSTO | D23: ACABADOS ARQUITECTONICOS ROWCAST | E23: Bogotá | F23: Cra 53 D No 128A - 74 | G23: 7320310 315 700 6533 | H23: obrasbogota@rowcast.com | I23: 21 | J23: BUSCAR | K23: =VLOOKUP(D23,#REF!,2,FALSE) ->  | M23: 1
A24: =+B24&COUNTIF($B$3:B24,B24) -> 11613 | B24: =VLOOKUP(C24,'[1]GRUPOS VIGENTES'!$B$9:$C$115,2,FALSE) -> 1161 | C24: ACTIVIDADES A TODO COSTO | D24: ACEROS Y ALUMINIOS S&P SAS | E24: Bogotá | F24: Cr 80 P # 85 31 SUR B | G24: 3146037363 | H24: admonacerosyaluminios@gmail.com | I24: 22 | K24: =VLOOKUP(D24,#REF!,2,FALSE) ->  | M24: 1
A25: =+B25&COUNTIF($B$3:B25,B25) -> 11614 | B25: =VLOOKUP(C25,'[1]GRUPOS VIGENTES'!$B$9:$C$115,2,FALSE) -> 1161 | C25: ACTIVIDADES A TODO COSTO | D25: ALUMINIOS, ACEROS Y VIDRIOS S.A.S | E25: Bogotá | F25: CALLE 73D SUR No. 82G-18 | G25: 6810603 3116075731 | H25: mtaluminios@gmail.com | I25: 23 | J25: BUSCAR | K25: =VLOOKUP(D25,#REF!,2,FALSE) ->  | M25: 1
A26: =+B26&COUNTIF($B$3:B26,B26) -> 11615 | B26: =VLOOKUP(C26,'[1]GRUPOS VIGENTES'!$B$9:$C$115,2,FALSE) -> 1161 | C26: ACTIVIDADES A TODO COSTO | D26: AMVAR WORLD SAS | E26: Pereira | F26: Cl 20 No. 6-30 | G26: 6810603 3116075731 | H26: servicioalcliente@amvarworld.com ventas@amvarworld.com | I26: 24 | J26: BUSCAR | K26: =VLOOKUP(D26,#REF!,2,FALSE) ->  | M26: 1
A27: =+B27&COUNTIF($B$3:B27,B27) -> 11616 | B27: =VLOOKUP(C27,'[1]GRUPOS VIGENTES'!$B$9:$C$115,2,FALSE) -> 1161 | C27: ACTIVIDADES A TODO COSTO | D27: ANDIMALLAS & ANDIMETALES | E27: Cajicá - Cund. | F27: Calle 4S # 3-83/89 | G27: 8661961 3176571211 | H27: info@andimallas.com | I27: 25 | K27: =VLOOKUP(D27,#REF!,2,FALSE) ->  | M27: 1
A28: =+B28&COUNTIF($B$3:B28,B28) -> 11617 | B28: =VLOOKUP(C28,'[1]GRUPOS VIGENTES'!$B$9:$C$115,2,FALSE) -> 1161 | C28: ACTIVIDADES A TODO COSTO | D28: APICOM | E28: Bogotá | F28: Cl 98 No. 70 – 91 Of. 417, | G28: 744 1550 | H28: erika.calvo@apicom.com.co | I28: 26 | K28: =VLOOKUP(D28,#REF!,2,FALSE) ->  | M28: 1
A29: =+B29&COUNTIF($B$3:B29,B29) -> 11618 | B29: =VLOOKUP(C29,'[1]GRUPOS VIGENTES'!$B$9:$C$115,2,FALSE) -> 1161 | C29: ACTIVIDADES A TODO COSTO | D29: AW ELECTRONICA SAS | E29: Bogotá | F29: Carrera 13 No.38-29 Piso 2 | G29: 340 2856 / 57 340 2854 | H29: awelectronica@awelectronica.com | I29: 27 | J29: BUSCAR | K29: =VLOOKUP(D29,#REF!,2,FALSE) ->  | M29: 1
A30: =+B30&COUNTIF($B$3:B30,B30) -> 11619 | B30: =VLOOKUP(C30,'[1]GRUPOS VIGENTES'!$B$9:$C$115,2,FALSE) -> 1161 | C30: ACTIVIDADES A TODO COSTO | D30: BIOFRACTAL ARQUITECTURA LIVIANA | E30: Bogotá | F30: Cra. 62 #98-16 | G30: 2210831 318 222 1076 | H30: biofractal.as@gmail.com | I30: 28 | K30: =VLOOKUP(D30,#REF!,2,FALSE) ->  | M30: 1
A31: =+B31&COUNTIF($B$3:B31,B31) -> 116110 | B31: =VLOOKUP(C31,'[1]GRUPOS VIGENTES'!$B$9:$C$115,2,FALSE) -> 1161 | C31: ACTIVIDADES A TODO COSTO | D31: CABLES Y GUAYAS ALGOFER | E31: Bogotá | F31: Cra. 109A No. 66 - 33 | G31: (57) (1) 434 5598 3133184817 3214983819 | H31: servicioalcliente@cablesyguayasalgofer.com | I31: 29 | K31: =VLOOKUP(D31,#REF!,2,FALSE) ->  | M31: 1
A32: =+B32&COUNTIF($B$3:B32,B32) -> 116111 | B32: =VLOOKUP(C32,'[1]GRUPOS VIGENTES'!$B$9:$C$115,2,FALSE) -> 1161 | C32: ACTIVIDADES A TODO COSTO | D32: CARPAS E INGENIERÍA | E32: Bogotá | F32: Cl 9 32 A 41 | G32: 3102360339 5618623 | H32: ventas@carpascolombia.com | I32: 30 | J32: BUSCAR | K32: =VLOOKUP(D32,#REF!,2,FALSE) ->  | M32: 1
A33: =+B33&COUNTIF($B$3:B33,B33) -> 116112 | B33: =VLOOKUP(C33,'[1]GRUPOS VIGENTES'!$B$9:$C$115,2,FALSE) -> 1161 | C33: ACTIVIDADES A TODO COSTO | D33: CARPAS Y PARASOLES LEON SAS | E33: Bogotá | F33: Cr 77I No. 65B - 37 sur | G33: (57) (1) 7801565 310 865 9014 316 578 6753 310 865 9019 | H33: ventas@carpasleon.com alquileresyventas@carpasleon.com alquileres@carpasleon.com comercial2@carpasleon.com | I33: 31 | K33: =VLOOKUP(D33,#REF!,2,FALSE) ->  | M33: 1
A34: =+B34&COUNTIF($B$3:B34,B34) -> 116113 | B34: =VLOOKUP(C34,'[1]GRUPOS VIGENTES'!$B$9:$C$115,2,FALSE) -> 1161 | C34: ACTIVIDADES A TODO COSTO | D34: CENTRIACEROS H A | E34: Bogotá | F34: Cra 42 No. 22A - 23 | G34: 269 1944 738 8385 | H34: administrativo@centriaceros.com | I34: 32 | K34: =VLOOKUP(D34,#REF!,2,FALSE) ->  | M34: 1
A35: =+B35&COUNTIF($B$3:B35,B35) -> 116114 | B35: =VLOOKUP(C35,'[1]GRUPOS VIGENTES'!$B$9:$C$115,2,FALSE) -> 1161 | C35: ACTIVIDADES A TODO COSTO | D35: CEPLASS | E35: Bogotá | F35: Cr 25BIS No. 3-18 sur | G35: 4673073 3134237817 | H35: Admin@ceplass.com | I35: 33 | K35: =VLOOKUP(D35,#REF!,2,FALSE) ->  | M35: 1
A36: =+B36&COUNTIF($B$3:B36,B36) -> 116115 | B36: =VLOOKUP(C36,'[1]GRUPOS VIGENTES'!$B$9:$C$115,2,FALSE) -> 1161 | C36: ACTIVIDADES A TODO COSTO | D36: CIELOS RASOS & DIVISIONES | E36: Bogotá | F36: Cr 14 75.58 | G36: 2481860 310 5774471 | H36: ventas@cielosrasos.com | I36: 34 | K36: =VLOOKUP(D36,#REF!,2,FALSE) ->  | M36: 1
A37: =+B37&COUNTIF($B$3:B37,B37) -> 116116 | B37: =VLOOKUP(C37,'[1]GRUPOS VIGENTES'!$B$9:$C$115,2,FALSE) -> 1161 | C37: ACTIVIDADES A TODO COSTO | D37: CIVALCO LTDA | E37: Bogotá | F37: Carrera 17 # 36-38 | G37: 285 38 57 | H37: civalco@civalco.com | I37: 35 | K37: =VLOOKUP(D37,#REF!,2,FALSE) ->  | M37: 1
A38: =+B38&COUNTIF($B$3:B38,B38) -> 116117 | B38: =VLOOKUP(C38,'[1]GRUPOS VIGENTES'!$B$9:$C$115,2,FALSE) -> 1161 | C38: ACTIVIDADES A TODO COSTO | D38: COLGRASS SAS | E38: Medellin - Antioquia | F38: Carrera 25 1a° sur 155 Edificio Platinum Superior Of 341 | G38: 353 70 32 3182860092 | H38: colgrass@une.net.co | I38: 36 | K38: =VLOOKUP(D38,#REF!,2,FALSE) ->  | M38: 1
A39: =+B39&COUNTIF($B$3:B39,B39) -> 116118 | B39: =VLOOKUP(C39,'[1]GRUPOS VIGENTES'!$B$9:$C$115,2,FALSE) -> 1161 | C39: ACTIVIDADES A TODO COSTO | D39: COMPAÑÍA DE RECUBRIMIENTOS Y ADHESIVOS LTDA (CREA) | E39: Bogotá | F39: Cl 75 No.69 K- 54 | G39: 7452545 | H39: crealtda@hotmail.com pinturaslaser@gmail.com | I39: 37 | K39: =VLOOKUP(D39,#REF!,2,FALSE) ->  | M39: 1
A40: =+B40&COUNTIF($B$3:B40,B40) -> 116119 | B40: =VLOOKUP(C40,'[1]GRUPOS VIGENTES'!$B$9:$C$115,2,FALSE) -> 1161 | C40: ACTIVIDADES A TODO COSTO | D40: COVAL | E40: Cota - Cund. | F40: Autopista Medellín Km 2.5 Parque Industrial Guadalajara, Bodega 3 | G40: 8759100 Ext 141 3133858402 | H40: patricia.santafe@coval.com info@coval.com.co norte@coval.com.co | I40: 38 | K40: =VLOOKUP(D40,#REF!,2,FALSE) ->  | M40: 1
A41: =+B41&COUNTIF($B$3:B41,B41) -> 116120 | B41: =VLOOKUP(C41,'[1]GRUPOS VIGENTES'!$B$9:$C$115,2,FALSE) -> 1161 | C41: ACTIVIDADES A TODO COSTO | D41: CURPEZ SAS | E41: Bogotá | G41: 3132525674 | H41: margarita.currea@curpez.com | I41: 39 | K41: =VLOOKUP(D41,#REF!,2,FALSE) ->  | M41: 1
A42: =+B42&COUNTIF($B$3:B42,B42) -> 116121 | B42: =VLOOKUP(C42,'[1]GRUPOS VIGENTES'!$B$9:$C$115,2,FALSE) -> 1161 | C42: ACTIVIDADES A TODO COSTO | D42: EQUIPOS Y CONTROLES INDUSTRIALES SA - ECI | E42: Bogotá | F42: Calle 23 # 116-31 Piso 4 | G42: 3275151 7457474 | H42: ecisales@eci.com.co | I42: 40 | K42: =VLOOKUP(D42,#REF!,2,FALSE) ->  | M42: 1
A43: =+B43&COUNTIF($B$3:B43,B43) -> 116122 | B43: =VLOOKUP(C43,'[1]GRUPOS VIGENTES'!$B$9:$C$115,2,FALSE) -> 1161 | C43: ACTIVIDADES A TODO COSTO | D43: FIBRIT S.A. PREFABRICADOS EN CONCRETO Y CEMENTO | E43: Bogotá | F43: Calle 90 #14-26 Of. 218 | G43: 7457443 | H43: info@fibrit.com | I43: 41 | K43: =VLOOKUP(D43,#REF!,2,FALSE) ->  | M43: 1
A44: =+B44&COUNTIF($B$3:B44,B44) -> 116123 | B44: =VLOOKUP(C44,'[1]GRUPOS VIGENTES'!$B$9:$C$115,2,FALSE) -> 1161 | C44: ACTIVIDADES A TODO COSTO | D44: G&S SOLUCIONES DE INGENIERÍA | E44: Bogotá | F44: Diagonal 16 C No. 97–29 | G44: 3125103779 | H44: contacto@gsingenieria.com.co | I44: 42 | K44: =VLOOKUP(D44,#REF!,2,FALSE) ->  | M44: 1
A45: =+B45&COUNTIF($B$3:B45,B45) -> 116124 | B45: =VLOOKUP(C45,'[1]GRUPOS VIGENTES'!$B$9:$C$115,2,FALSE) -> 1161 | C45: ACTIVIDADES A TODO COSTO | D45: GRABADO Y CORTE LASER BOGOTA | E45: Bogotá | F45: Cr 27B No. 24B - 23 | G45: 368 8622 5602421 310 7603311 | H45: comercial@grabadoycortelaser.com ventas@grabadoycortelaser.com contactenos@grabadoycortelaser.com | I45: 43 | K45: =VLOOKUP(D45,#REF!,2,FALSE) ->  | M45: 1
A46: =+B46&COUNTIF($B$3:B46,B46) -> 116125 | B46: =VLOOKUP(C46,'[1]GRUPOS VIGENTES'!$B$9:$C$115,2,FALSE) -> 1161 | C46: ACTIVIDADES A TODO COSTO | D46: HB SADELEC Estructuras Metálicas | E46: Bogotá | F46: Avda. Cra. 129 17 F 97 | G46: 4224700 Ext. 121 4155620 | H46: david.castellanos@hbsadelec.com.co | I46: 44 | K46: =VLOOKUP(D46,#REF!,2,FALSE) ->  | M46: 1
A47: =+B47&COUNTIF($B$3:B47,B47) -> 116126 | B47: =VLOOKUP(C47,'[1]GRUPOS VIGENTES'!$B$9:$C$115,2,FALSE) -> 1161 | C47: ACTIVIDADES A TODO COSTO | D47: INDUSTRIAS METALICAS GRAG S.A.S. | E47: Bogotá | F47: Carrera 27 # 10 - 35 | G47: 805 9374 805 9374 277 3540 | H47: metalicasgrag@yahoo.es | I47: 45 | K47: =VLOOKUP(D47,#REF!,2,FALSE) ->  | M47: 1
A48: =+B48&COUNTIF($B$3:B48,B48) -> 116127 | B48: =VLOOKUP(C48,'[1]GRUPOS VIGENTES'!$B$9:$C$115,2,FALSE) -> 1161 | C48: ACTIVIDADES A TODO COSTO | D48: INTEGRACIONVIAL - Industria de señalización y segu | E48: Cali - Valle del Cauca | F48: CALLE 25 N 5 N 47 OFICINA 323 | G48: 4854822 | I48: 46 | K48: =VLOOKUP(D48,#REF!,2,FALSE) ->  | M48: 1
A49: =+B49&COUNTIF($B$3:B49,B49) -> 116128 | B49: =VLOOKUP(C49,'[1]GRUPOS VIGENTES'!$B$9:$C$115,2,FALSE) -> 1161 | C49: ACTIVIDADES A TODO COSTO | D49: K-TECNOL SAING SAS | E49: Bogotá | F49: Cl 98 No. 22 – 64 of. 1014 | G49: 7451447 310 300 1836 | H49: info@ktecnol.com | I49: 47 | K49: =VLOOKUP(D49,#REF!,2,FALSE) ->  | M49: 1
A50: =+B50&COUNTIF($B$3:B50,B50) -> 116129 | B50: =VLOOKUP(C50,'[1]GRUPOS VIGENTES'!$B$9:$C$115,2,FALSE) -> 1161 | C50: ACTIVIDADES A TODO COSTO | D50: LA CASA DE LA UPS | E50: Bogotá | F50: Cra 24 # 76-24 Juan 23 | G50: 345 33 95 314 260 65 92 | H50: ventasnacionales@casaups.com | I50: 48 | K50: =VLOOKUP(D50,#REF!,2,FALSE) ->  | M50: 1
A51: =+B51&COUNTIF($B$3:B51,B51) -> 116130 | B51: =VLOOKUP(C51,'[1]GRUPOS VIGENTES'!$B$9:$C$115,2,FALSE) -> 1161 | C51: ACTIVIDADES A TODO COSTO | D51: LOZANO BRANDO INGENIERIA HORIZONTAL SAS | E51: Bogotá | F51: Cr 13 No.32 93 TO 1 OF 1007 | G51: 3154115410 | I51: 49 | K51: =VLOOKUP(D51,#REF!,2,FALSE) ->  | M51: 1
A52: =+B52&COUNTIF($B$3:B52,B52) -> 116131 | B52: =VLOOKUP(C52,'[1]GRUPOS VIGENTES'!$B$9:$C$115,2,FALSE) -> 1161 | C52: ACTIVIDADES A TODO COSTO | D52: MAJOMAR INGENIERIA SAS | E52: Bogotá | F52: Cr 51B No. 18-21 | G52: 316 8042687 | H52: ingerma2010@htmail.com | I52: 50 | K52: =VLOOKUP(D52,#REF!,2,FALSE) ->  | M52: 1
A53: =+B53&COUNTIF($B$3:B53,B53) -> 116132 | B53: =VLOOKUP(C53,'[1]GRUPOS VIGENTES'!$B$9:$C$115,2,FALSE) -> 1161 | C53: ACTIVIDADES A TODO COSTO | D53: MUNDIAL DE CARPAS | E53: Bogotá | F53: Cr 71D No.72-40 | G53: 468 71 76 311 201 3867 313 878 7447 | H53: info@mundialdecarpas.com | I53: 51 | K53: =VLOOKUP(D53,#REF!,2,FALSE) ->  | M53: 1
A54: =+B54&COUNTIF($B$3:B54,B54) -> 116133 | B54: =VLOOKUP(C54,'[1]GRUPOS VIGENTES'!$B$9:$C$115,2,FALSE) -> 1161 | C54: ACTIVIDADES A TODO COSTO | D54: NACIONAL DE ELECTRICOS | E54: Bogotá | F54: Calle 15 12 81 | G54: 3114758165 2543720 Ext. 1502 | H54: centro1@nalelectricos.com.co www.nalelectricos.com.co | I54: 52 | K54: =VLOOKUP(D54,#REF!,2,FALSE) ->  | M54: 1
A55: =+B55&COUNTIF($B$3:B55,B55) -> 116134 | B55: =VLOOKUP(C55,'[1]GRUPOS VIGENTES'!$B$9:$C$115,2,FALSE) -> 1161 | C55: ACTIVIDADES A TODO COSTO | D55: PLASTEMPACK DE COLOMBIA SAS | E55: Mosquera | F55: Parque Industrial San Jorge Mz. P5 Bodega # 52 Troncal de Occidente Km 19 Vía Bogotá - Mosquera - Madrid. | G55: 8295743 8295798 3202149004 3219834472 | H55: contacto@plastempack.com | I55: 53 | K55: =VLOOKUP(D55,#REF!,2,FALSE) ->  | M55: 1
A56: =+B56&COUNTIF($B$3:B56,B56) -> 116135 | B56: =VLOOKUP(C56,'[1]GRUPOS VIGENTES'!$B$9:$C$115,2,FALSE) -> 1161 | C56: ACTIVIDADES A TODO COSTO | D56: PROELÉCTRICOS | E56: Bogotá | F56: CALLE 12 A No. 21 - 21 | G56: 2471255 EXT. 301 | H56: presupuestos@proelectricos.com | I56: 54 | K56: =VLOOKUP(D56,#REF!,2,FALSE) ->  | M56: 1
A57: =+B57&COUNTIF($B$3:B57,B57) -> 116136 | B57: =VLOOKUP(C57,'[1]GRUPOS VIGENTES'!$B$9:$C$115,2,FALSE) -> 1161 | C57: ACTIVIDADES A TODO COSTO | D57: RENOVACION SIN ZANJA | E57: Bogotá | F57: Autopista sur No. 71 - 75 | G57: 7825000 ext 1105 | H57: servicio@pavco.com.co | I57: 55 | K57: =VLOOKUP(D57,#REF!,2,FALSE) ->  | M57: 1
A58: =+B58&COUNTIF($B$3:B58,B58) -> 116137 | B58: =VLOOKUP(C58,'[1]GRUPOS VIGENTES'!$B$9:$C$115,2,FALSE) -> 1161 | C58: ACTIVIDADES A TODO COSTO | D58: SEÑAL VIAS SAS | E58: Bogotá | F58: Cra 27c No 71-43 | G58: (1) 225 2182 313 817 6159 | H58: info@senalvialsas.com | I58: 56 | K58: =VLOOKUP(D58,#REF!,2,FALSE) ->  | M58: 1
A59: =+B59&COUNTIF($B$3:B59,B59) -> 116138 | B59: =VLOOKUP(C59,'[1]GRUPOS VIGENTES'!$B$9:$C$115,2,FALSE) -> 1161 | C59: ACTIVIDADES A TODO COSTO | D59: SERVI INTEGRALES ELECTRICOS SAS | E59: Bogotá | F59: Cr 53 No.76 – 82 | G59: 3123792586 | H59: info@sieingenieria.co | I59: 57 | K59: =VLOOKUP(D59,#REF!,2,FALSE) ->  | M59: 1
A60: =+B60&COUNTIF($B$3:B60,B60) -> 116139 | B60: =VLOOKUP(C60,'[1]GRUPOS VIGENTES'!$B$9:$C$115,2,FALSE) -> 1161 | C60: ACTIVIDADES A TODO COSTO | D60: SISELCOM (Sitemas Eléctricos y de Comunicaciones SAS) | E60: Bogotá | F60: Cr 73 A No. 10 A-37 | G60: 3868071 3174153803 | H60: servicio@siselcom.co | I60: 58 | K60: =VLOOKUP(D60,#REF!,2,FALSE) ->  | M60: 1
A61: =+B61&COUNTIF($B$3:B61,B61) -> 116140 | B61: =VLOOKUP(C61,'[1]GRUPOS VIGENTES'!$B$9:$C$115,2,FALSE) -> 1161 | C61: ACTIVIDADES A TODO COSTO | D61: SOCODA | E61: Bogotá | F61: Av. Carrera 45 # 136 - 51 | G61: 766 62 40 01 8000 41 06 00 | H61: info@socoda.com.co | I61: 59 | K61: =VLOOKUP(D61,#REF!,2,FALSE) ->  | M61: 1
A62: =+B62&COUNTIF($B$3:B62,B62) -> 116141 | B62: =VLOOKUP(C62,'[1]GRUPOS VIGENTES'!$B$9:$C$115,2,FALSE) -> 1161 | C62: ACTIVIDADES A TODO COSTO | D62: SOLUCIONES EN DISEÑO E INGENIERÍA SAS | E62: El Rosal - Cund. | F62: Autopista Medellín, Km 0 Vía El Rosal – La Vega Lote San Javier 2, Vereda Tierra Grata | G62: 3164442174 3164741188 317380 9658 | H62: Wilson.Vergara@sdi.com.co Fernando.Pascagaza@sdi.com.co Hipolito.Suarez@sdi.com.co emilio.ruiz@sdi.com.co | I62: 60 | K62: =VLOOKUP(D62,#REF!,2,FALSE) ->  | M62: 1
A63: =+B63&COUNTIF($B$3:B63,B63) -> 116142 | B63: =VLOOKUP(C63,'[1]GRUPOS VIGENTES'!$B$9:$C$115,2,FALSE) -> 1161 | C63: ACTIVIDADES A TODO COSTO | D63: SOY RED | E63: Bogotá | F63: Carrera 14 #75-77 | G63: 477 8701 | H63: comercial@soyred.net | I63: 61 | K63: =VLOOKUP(D63,#REF!,2,FALSE) ->  | M63: 1
A64: =+B64&COUNTIF($B$3:B64,B64) -> 116143 | B64: =VLOOKUP(C64,'[1]GRUPOS VIGENTES'!$B$9:$C$115,2,FALSE) -> 1161 | C64: ACTIVIDADES A TODO COSTO | D64: STUP DE COLOMBIA | E64: Bogotá | F64: Cra. 50 126 19 | G64: 2131601 | H64: carlos.salgado@stup.co | I64: 62 | K64: =VLOOKUP(D64,#REF!,2,FALSE) ->  | M64: 1
A65: =+B65&COUNTIF($B$3:B65,B65) -> 116144 | B65: =VLOOKUP(C65,'[1]GRUPOS VIGENTES'!$B$9:$C$115,2,FALSE) -> 1161 | C65: ACTIVIDADES A TODO COSTO | D65: SUPERTEC S.A.S. | E65: Bogotá | F65: Calle 114 A # 45-32 Of. 241 | G65: 215 0500 | H65: camiladetoro@supertecsas.com | I65: 63 | K65: =VLOOKUP(D65,#REF!,2,FALSE) ->  | M65: 1
A66: =+B66&COUNTIF($B$3:B66,B66) -> 116145 | B66: =VLOOKUP(C66,'[1]GRUPOS VIGENTES'!$B$9:$C$115,2,FALSE) -> 1161 | C66: ACTIVIDADES A TODO COSTO | D66: TECNOCOMPRAS | E66: Bogotá | F66: www.tecnocompras.com.co | G66: 316 8701076 3013782 | H66: gerencia@tecnocompras.com.co | I66: 64 | K66: =VLOOKUP(D66,#REF!,2,FALSE) ->  | M66: 1
A67: =+B67&COUNTIF($B$3:B67,B67) -> 116146 | B67: =VLOOKUP(C67,'[1]GRUPOS VIGENTES'!$B$9:$C$115,2,FALSE) -> 1161 | C67: ACTIVIDADES A TODO COSTO | D67: TRANSFORMADORES INDUELECTRO | E67: Bogotá | F67: Cll 24 Sur No 18 C-51 | G67: 3669171 2729590 | H67: transformadoresinduelectro@hotmail.com | I67: 65 | K67: =VLOOKUP(D67,#REF!,2,FALSE) ->  | M67: 1
A68: =+B68&COUNTIF($B$3:B68,B68) -> 116147 | B68: =VLOOKUP(C68,'[1]GRUPOS VIGENTES'!$B$9:$C$115,2,FALSE) -> 1161 | C68: ACTIVIDADES A TODO COSTO | D68: TRELTECK INGENIERIA LTDA | E68: Bogotá | F68: Cl 136 No. 59A-44 T2-402 | G68: 2556232 3144734470 | H68: comercial@treltec.com | I68: 66 | K68: =VLOOKUP(D68,#REF!,2,FALSE) ->  | M68: =IFERROR(K68,1) -> 1
A69: =+B69&COUNTIF($B$3:B69,B69) -> 11021 | B69: =VLOOKUP(C69,'[1]GRUPOS VIGENTES'!$B$9:$C$115,2,FALSE) -> 1102 | C69: AGREGADOS PÉTREOS, BASES Y SUBBASES GRANULARES | D69: 4GA SAS Agregados de calidad | E69: Bogotá | F69: Cl 124 10 29 Apto. 201 | G69: 3183821145 | H69: grupo4ga@gmail.com | I69: 67 | K69: =VLOOKUP(D69,#REF!,2,FALSE) ->  | M69: 1
A70: =+B70&COUNTIF($B$3:B70,B70) -> 11022 | B70: =VLOOKUP(C70,'[1]GRUPOS VIGENTES'!$B$9:$C$115,2,FALSE) -> 1102 | C70: AGREGADOS PÉTREOS, BASES Y SUBBASES GRANULARES | D70: AGREGADOS LA ROCA SAS | E70: Mosquera - Cund. | F70: Calle 1 # 5-03 barrio Las Villas | G70: 315 392 8159 | H70: servicioalcliente@agregadoslaroca.com | I70: 68 | K70: =VLOOKUP(D70,#REF!,2,FALSE) ->  | M70: =IFERROR(K70,1) -> 1
A71: =+B71&COUNTIF($B$3:B71,B71) -> 11023 | B71: =VLOOKUP(C71,'[1]GRUPOS VIGENTES'!$B$9:$C$115,2,FALSE) -> 1102 | C71: AGREGADOS PÉTREOS, BASES Y SUBBASES GRANULARES | D71: ARENAS Y AGREGADOS IVONE SAS | E71: Bogotá | F71: Oficina: Cl 95 No. 11A 37 Of 401 Planta: Vereda Fusungá, Km 20 Soacha | G71: 622 2592 622 6133 622 5508 318 5896381 315 601 9414 | H71: gerencia@arenasyagregados.com www.arenasyagreagados.com | I71: 69 | K71: =VLOOKUP(D71,#REF!,2,FALSE) ->  | M71: 1
A72: =+B72&COUNTIF($B$3:B72,B72) -> 11024 | B72: =VLOOKUP(C72,'[1]GRUPOS VIGENTES'!$B$9:$C$115,2,FALSE) -> 1102 | C72: AGREGADOS PÉTREOS, BASES Y SUBBASES GRANULARES | D72: ARENAS Y TRITURADOS SANTA FE SAS | E72: Medellin - Antioquia | F72: Cra 66 # 49B - 20 Bloque A-Centro Comercial Los sauces | G72: 2302064 | H72: arenasytrituradossantafe@hotmail.com | I72: 70 | K72: =VLOOKUP(D72,#REF!,2,FALSE) ->  | M72: 1
A73: =+B73&COUNTIF($B$3:B73,B73) -> 11025 | B73: =VLOOKUP(C73,'[1]GRUPOS VIGENTES'!$B$9:$C$115,2,FALSE) -> 1102 | C73: AGREGADOS PÉTREOS, BASES Y SUBBASES GRANULARES | D73: ASMINCOL SAS | E73: Bogotá | F73: Cl 3 No 31 - 04 | G73: 323 278 6324 3118533661 3102886432 | H73: asmincol@gmail.com juancamilo.ospina@asmincol.com | I73: 71 | K73: =VLOOKUP(D73,#REF!,2,FALSE) ->  | M73: 1
A74: =+B74&COUNTIF($B$3:B74,B74) -> 11026 | B74: =VLOOKUP(C74,'[1]GRUPOS VIGENTES'!$B$9:$C$115,2,FALSE) -> 1102 | C74: AGREGADOS PÉTREOS, BASES Y SUBBASES GRANULARES | D74: BCD SAS | E74: Bogotá | F74: Cr 67 No. 62B 55 sur Bl 14 Apto 527 | G74: 3008360 | H74: bcd@bcdsas.com | I74: 72 | K74: =VLOOKUP(D74,#REF!,2,FALSE) ->  | M74: 1
A75: =+B75&COUNTIF($B$3:B75,B75) -> 11027 | B75: =VLOOKUP(C75,'[1]GRUPOS VIGENTES'!$B$9:$C$115,2,FALSE) -> 1102 | C75: AGREGADOS PÉTREOS, BASES Y SUBBASES GRANULARES | D75: CANTERA AGREGADOS EL VINCULO | E75: Soacha - Cund. | F75: Cra 7 No. 32-35 C.C Mercurio Oficina 308 | G75: 7251891 Ext 102 321 2010616 | H75: comercial@agregadoselvinculo.com | I75: 73 | K75: =VLOOKUP(D75,#REF!,2,FALSE) ->  | M75: 1
A76: =+B76&COUNTIF($B$3:B76,B76) -> 11028 | B76: =VLOOKUP(C76,'[1]GRUPOS VIGENTES'!$B$9:$C$115,2,FALSE) -> 1102 | C76: AGREGADOS PÉTREOS, BASES Y SUBBASES GRANULARES | D76: CICLOMAT SAS | E76: Bogotá | F76: Autopista Medellín km 1.5 vía Siberia- Bogotá D.C Entrada Parque Industrial la Florida 600 mt al sur de la calle 80 | G76: 3162630001 | H76: comercial@ciclomat.com | I76: 74 | K76: =VLOOKUP(D76,#REF!,2,FALSE) ->  | M76: 1
A77: =+B77&COUNTIF($B$3:B77,B77) -> 11029 | B77: =VLOOKUP(C77,'[1]GRUPOS VIGENTES'!$B$9:$C$115,2,FALSE) -> 1102 | C77: AGREGADOS PÉTREOS, BASES Y SUBBASES GRANULARES | D77: CONCRETOS ARGOS S.A. | E77: Bogotá | F77: Av. Cl 24 A No. 59-42 Torre 3 Piso 9 | G77: (57) (1) 6069400 | H77: serviciocliente@argos.com.co ana.escalante@argos.com.co | I77: 75 | K77: =VLOOKUP(D77,#REF!,2,FALSE) ->  | M77: 1
A78: =+B78&COUNTIF($B$3:B78,B78) -> 110210 | B78: =VLOOKUP(C78,'[1]GRUPOS VIGENTES'!$B$9:$C$115,2,FALSE) -> 1102 | C78: AGREGADOS PÉTREOS, BASES Y SUBBASES GRANULARES | D78: CONSTRITURAR SAS | E78: Bogotá | F78: Calle 72 # 10 - 70 Torre A oficina 704 | G78: 3475257 3220462 3186129043 | H78: constriturar@constriturar.com | I78: 76 | K78: =VLOOKUP(D78,#REF!,2,FALSE) ->  | M78: 1
A79: =+B79&COUNTIF($B$3:B79,B79) -> 110211 | B79: =VLOOKUP(C79,'[1]GRUPOS VIGENTES'!$B$9:$C$115,2,FALSE) -> 1102 | C79: AGREGADOS PÉTREOS, BASES Y SUBBASES GRANULARES | D79: DOBLE A INGENIERIA S.A. | E79: Bogotá | F79: Cl 79B No.8-11 Piso 3 | G79: 2101700 3208996486 | H79: cpinilla@da-ing.com gerenciadobleaingenieria.com | I79: 77 | K79: =VLOOKUP(D79,#REF!,2,FALSE) ->  | M79: 1
A80: =+B80&COUNTIF($B$3:B80,B80) -> 110212 | B80: =VLOOKUP(C80,'[1]GRUPOS VIGENTES'!$B$9:$C$115,2,FALSE) -> 1102 | C80: AGREGADOS PÉTREOS, BASES Y SUBBASES GRANULARES | D80: DROMOS PAVIMENTOS S.A. | E80: Bogotá | F80: Oficina :Cl 83 No. 16A-44 of 603 Planta: Kilometro 3.8 Zona Industrial Balsillas, Mosquera | G80: 7425376 315 2199639 | H80: juan.hernandez@dromos.co atencion@dromos.co | I80: 78 | K80: =VLOOKUP(D80,#REF!,2,FALSE) ->  | M80: 1
A81: =+B81&COUNTIF($B$3:B81,B81) -> 110213 | B81: =VLOOKUP(C81,'[1]GRUPOS VIGENTES'!$B$9:$C$115,2,FALSE) -> 1102 | C81: AGREGADOS PÉTREOS, BASES Y SUBBASES GRANULARES | D81: FANNY I. TEQUIA Y CIA SAS | E81: Soacha - Cund. | F81: Cr 6 15 38 | G81: 7814130 3167431729 | H81: contacto@tequiaycia.com | I81: 79 | K81: =VLOOKUP(D81,#REF!,2,FALSE) ->  | M81: 1
A82: =+B82&COUNTIF($B$3:B82,B82) -> 110214 | B82: =VLOOKUP(C82,'[1]GRUPOS VIGENTES'!$B$9:$C$115,2,FALSE) -> 1102 | C82: AGREGADOS PÉTREOS, BASES Y SUBBASES GRANULARES | D82: GRANULADOS RECICLADOS DE COLOMBIA - GRECO | E82: Cota - Cund. | F82: Km 15 Puente de Madera Autopista Medellism, Municipio de Cota- Vereda Siberia | G82: 304 6383774 3013363867 | H82: dircomercial@recicladosgreco.com | I82: 80 | K82: =VLOOKUP(D82,#REF!,2,FALSE) ->  | M82: 1
A83: =+B83&COUNTIF($B$3:B83,B83) -> 110215 | B83: =VLOOKUP(C83,'[1]GRUPOS VIGENTES'!$B$9:$C$115,2,FALSE) -> 1102 | C83: AGREGADOS PÉTREOS, BASES Y SUBBASES GRANULARES | D83: GRAVICON | E83: Villavicencio | F83: Oficina: Cr 32 No. 38- 70 Edif. Romarco Of.1202 Planta Kilometro 12 Via Villavicencio Acacias | G83: Oficina: (578) 6722309 - 6627177 Planta: (578) 6659737/38/41 | H83: calidad@gravicon.com.co | I83: 81 | K83: =VLOOKUP(D83,#REF!,2,FALSE) ->  | M83: 1
A84: =+B84&COUNTIF($B$3:B84,B84) -> 110216 | B84: =VLOOKUP(C84,'[1]GRUPOS VIGENTES'!$B$9:$C$115,2,FALSE) -> 1102 | C84: AGREGADOS PÉTREOS, BASES Y SUBBASES GRANULARES | D84: GRAVILLERA ALBANIA S.A. | E84: Chia - Cund. | F84: Carretera Central Del Norte Km 19 | G84: 6760212 3102849530 | H84: administracion@gravilleraalbania.com | I84: 82 | K84: =VLOOKUP(D84,#REF!,2,FALSE) ->  | M84: 1
A85: =+B85&COUNTIF($B$3:B85,B85) -> 110217 | B85: =VLOOKUP(C85,'[1]GRUPOS VIGENTES'!$B$9:$C$115,2,FALSE) -> 1102 | C85: AGREGADOS PÉTREOS, BASES Y SUBBASES GRANULARES | D85: INCOMINERIA S.A.S. | E85: Mosquera | F85: KM 3.8 Zona Industrial Balsillas, Mosquera- | G85: 7425644 3187759539 | H85: alvaro.gallo@incomineria.co | I85: 83 | K85: =VLOOKUP(D85,#REF!,2,FALSE) ->  | M85: 1
A86: =+B86&COUNTIF($B$3:B86,B86) -> 110218 | B86: =VLOOKUP(C86,'[1]GRUPOS VIGENTES'!$B$9:$C$115,2,FALSE) -> 1102 | C86: AGREGADOS PÉTREOS, BASES Y SUBBASES GRANULARES | D86: INGENIEROS GF SAS | E86: Bogotá | F86: Cl 119 No. 14A-26 Of 101/404 | G86: 6295142 6295120 | H86: galvisfracasis@hotmail.com | I86: 84 | K86: =VLOOKUP(D86,#REF!,2,FALSE) ->  | M86: 1
A87: =+B87&COUNTIF($B$3:B87,B87) -> 110219 | B87: =VLOOKUP(C87,'[1]GRUPOS VIGENTES'!$B$9:$C$115,2,FALSE) -> 1102 | C87: AGREGADOS PÉTREOS, BASES Y SUBBASES GRANULARES | D87: INVERSIONES MONDOÑEDO SAS | E87: Bogotá | F87: TRANSVERSAL 3 51 A 09 | G87: 3403187 | H87: invmondonedo@outlook.com | I87: 85 | K87: =VLOOKUP(D87,#REF!,2,FALSE) ->  | M87: 1
A88: =+B88&COUNTIF($B$3:B88,B88) -> 110220 | B88: =VLOOKUP(C88,'[1]GRUPOS VIGENTES'!$B$9:$C$115,2,FALSE) -> 1102 | C88: AGREGADOS PÉTREOS, BASES Y SUBBASES GRANULARES | D88: J.J RECEBERA | E88: Bogotá | F88: Cra 10 No. 24 - 57 Sur | G88: 3143780511 | H88: maribel_61@hotmail.com | I88: 86 | K88: =VLOOKUP(D88,#REF!,2,FALSE) ->  | M88: 1
A89: =+B89&COUNTIF($B$3:B89,B89) -> 110221 | B89: =VLOOKUP(C89,'[1]GRUPOS VIGENTES'!$B$9:$C$115,2,FALSE) -> 1102 | C89: AGREGADOS PÉTREOS, BASES Y SUBBASES GRANULARES | D89: MARIO HUERTAS COTES INGENIERIA Y CONSTRUCCIÓN | E89: Bogotá | F89: Cr 22 A No 85-20 | G89: 6226620 ext 118 | H89: mhcarchivo@gmail.com | I89: 87 | K89: =VLOOKUP(D89,#REF!,2,FALSE) ->  | M89: 1
A90: =+B90&COUNTIF($B$3:B90,B90) -> 110222 | B90: =VLOOKUP(C90,'[1]GRUPOS VIGENTES'!$B$9:$C$115,2,FALSE) -> 1102 | C90: AGREGADOS PÉTREOS, BASES Y SUBBASES GRANULARES | D90: MINERALES & TRITURADOS NACIONALES S.A.S | E90: Mosquera - Cund. | F90: Parque Industrial San Jorge - Of 235 | G90: 304 379 0037 8933740 | H90: mintrinal@gmail.com | I90: 88 | K90: =VLOOKUP(D90,#REF!,2,FALSE) ->  | M90: 1
A91: =+B91&COUNTIF($B$3:B91,B91) -> 110223 | B91: =VLOOKUP(C91,'[1]GRUPOS VIGENTES'!$B$9:$C$115,2,FALSE) -> 1102 | C91: AGREGADOS PÉTREOS, BASES Y SUBBASES GRANULARES | D91: PAVIOBRAS SAS | E91: Bogotá | F91: Av Cr 15 No. 119A 03 Of 325 | G91: 7900785 7900980 | H91: ltdapaviobras@gmail.com | I91: 89 | K91: =VLOOKUP(D91,#REF!,2,FALSE) ->  | M91: 1
A92: =+B92&COUNTIF($B$3:B92,B92) -> 110224 | B92: =VLOOKUP(C92,'[1]GRUPOS VIGENTES'!$B$9:$C$115,2,FALSE) -> 1102 | C92: AGREGADOS PÉTREOS, BASES Y SUBBASES GRANULARES | D92: RCD TRANSFORMACIÓN NATURAL SAS | E92: Mosquera | F92: Predio "Vista Hermosa" en la Vereda Balsillas | G92: 3187509487 | H92: rcd@tierracomercial.com ing.cesargaviria@tierracomercial.com | I92: 90 | K92: =VLOOKUP(D92,#REF!,2,FALSE) ->  | M92: 1
A93: =+B93&COUNTIF($B$3:B93,B93) -> 110225 | B93: =VLOOKUP(C93,'[1]GRUPOS VIGENTES'!$B$9:$C$115,2,FALSE) -> 1102 | C93: AGREGADOS PÉTREOS, BASES Y SUBBASES GRANULARES | D93: RECICLADOS INDUSTRIALES DE COLOMBIA | E93: Cota - Cund. | F93: Km. 1.5 Costado Sur Vía Bogotá Siberia. | G93: 875 9047 896 6879 3182153129 3102633808 | H93: info@recicladosindustriales.co | I93: 91 | K93: =VLOOKUP(D93,#REF!,2,FALSE) ->  | M93: 1
A94: =+B94&COUNTIF($B$3:B94,B94) -> 110226 | B94: =VLOOKUP(C94,'[1]GRUPOS VIGENTES'!$B$9:$C$115,2,FALSE) -> 1102 | C94: AGREGADOS PÉTREOS, BASES Y SUBBASES GRANULARES | D94: REX INGENIERIA S.A. | E94: Bogotá | F94: Cra 27 No. 47A - 35 | G94: 337 8726/28/56 335 65 30 | H94: info@rexingenieria.com administracion@rexingenieria.com www.rexingenieria.com | I94: 92 | K94: =VLOOKUP(D94,#REF!,2,FALSE) ->  | M94: 1
A95: =+B95&COUNTIF($B$3:B95,B95) -> 110227 | B95: =VLOOKUP(C95,'[1]GRUPOS VIGENTES'!$B$9:$C$115,2,FALSE) -> 1102 | C95: AGREGADOS PÉTREOS, BASES Y SUBBASES GRANULARES | D95: TS INGENIERIA Y CIA | E95: Girardot - Cund. | F95: Km 14 Via los cabos sector pacoli/ Via girardot | G95: 320 304 3382 313 20272773 | H95: gerencia@tsingenieria.com.co | I95: 93 | K95: =VLOOKUP(D95,#REF!,2,FALSE) ->  | M95: 1
A96: =+B96&COUNTIF($B$3:B96,B96) -> 12301 | B96: =VLOOKUP(C96,'[1]GRUPOS VIGENTES'!$B$9:$C$115,2,FALSE) -> 1230 | C96: AMBIENTAL | D96: AMBITEX | E96: Bogotá | F96: Cr 57 No. 45A - 52 sur | G96: 2543190/91/92/93/94/95/96/97/98/99 ext 2106 | H96: bogota@ambitex.com.co | I96: 94 | K96: =VLOOKUP(D96,#REF!,2,FALSE) ->  | M96: 1
A97: =+B97&COUNTIF($B$3:B97,B97) -> 12302 | B97: =VLOOKUP(C97,'[1]GRUPOS VIGENTES'!$B$9:$C$115,2,FALSE) -> 1230 | C97: AMBIENTAL | D97: EASY | E97: Bogotá | F97: Av Americas No. 68 94 | G97: 4191400 | H97: www. Easy.com.co | I97: 95 | K97: =VLOOKUP(D97,#REF!,2,FALSE) ->  | M97: 1
A98: =+B98&COUNTIF($B$3:B98,B98) -> 12303 | B98: =VLOOKUP(C98,'[1]GRUPOS VIGENTES'!$B$9:$C$115,2,FALSE) -> 1230 | C98: AMBIENTAL | D98: HOMECENTER | E98: Bogotá | F98: Av Cra 68 No. 37 - 37 sur | G98: 3077115 | H98: www.homecenter.com | I98: 96 | K98: =VLOOKUP(D98,#REF!,2,FALSE) ->  | M98: 1
A99: =+B99&COUNTIF($B$3:B99,B99) -> 11471 | B99: =VLOOKUP(C99,'[1]GRUPOS VIGENTES'!$B$9:$C$115,2,FALSE) -> 1147 | C99: ARBOLES-GRAMAS-VEGETACIÓN Y PLANTACIÓN PAISAJÍSTIC | D99: ACONSTRUCTORAS.COM | E99: Yopal - Casanare | F99: Cl 25 15 19 | G99: 3005541747 3163971751 | H99: www.aconstructoras.com | I99: 97 | K99: =VLOOKUP(D99,#REF!,2,FALSE) ->  | M99: 1
A100: =+B100&COUNTIF($B$3:B100,B100) -> 11472 | B100: =VLOOKUP(C100,'[1]GRUPOS VIGENTES'!$B$9:$C$115,2,FALSE) -> 1147 | C100: ARBOLES-GRAMAS-VEGETACIÓN Y PLANTACIÓN PAISAJÍSTIC | D100: ECOPRADOS SOLUCIONES AMBIENTALES | E100: Bogotá | F100: Cl 146F Bis No 76 - 08 | G100: 3118137222 | H100: ecopradosambientales@gmail.com | I100: 98 | K100: =VLOOKUP(D100,#REF!,2,FALSE) ->  | M100: 1
A101: =+B101&COUNTIF($B$3:B101,B101) -> 11473 | B101: =VLOOKUP(C101,'[1]GRUPOS VIGENTES'!$B$9:$C$115,2,FALSE) -> 1147 | C101: ARBOLES-GRAMAS-VEGETACIÓN Y PLANTACIÓN PAISAJÍSTIC | D101: PLANTICENTER | E101: Bogotá | F101: Calle 127 N. 46 - 11 | G101: 4676054 | H101: planticenter@hotmail.con | I101: 99 | K101: =VLOOKUP(D101,#REF!,2,FALSE) ->  | M101: 1
A102: =+B102&COUNTIF($B$3:B102,B102) -> 11271 | B102: =VLOOKUP(C102,'[1]GRUPOS VIGENTES'!$B$9:$C$115,2,FALSE) -> 1127 | C102: BORDILLOS Y LOSETAS | D102: ALFAGRES S.A. | E102: Bogotá | F102: Av. Caracas 35 55 | G102: 3311515 | H102: telemercadeo@alfa.com.co servicioalcliente@alfa.com.co | I102: 100 | K102: =VLOOKUP(D102,#REF!,2,FALSE) ->  | M102: 1
A103: =+B103&COUNTIF($B$3:B103,B103) -> 11272 | B103: =VLOOKUP(C103,'[1]GRUPOS VIGENTES'!$B$9:$C$115,2,FALSE) -> 1127 | C103: BORDILLOS Y LOSETAS | D103: ARKA | E103: Bogotá | F103: Calle 65 sur No. 77M - 04 Torre 2 Of 202 | G103: 4768677 3188798278 | H103: arkaprefabricados@outlook.com | I103: 101 | K103: =VLOOKUP(D103,#REF!,2,FALSE) ->  | M103: 1
A104: =+B104&COUNTIF($B$3:B104,B104) -> 11273 | B104: =VLOOKUP(C104,'[1]GRUPOS VIGENTES'!$B$9:$C$115,2,FALSE) -> 1127 | C104: BORDILLOS Y LOSETAS | D104: CONCRETOS PREFABRICADOS S.A.S "CONPRE" | E104: La Estrella - Antioquia | F104: Cr 50 No. 79sur - 03 Ed. Promisión of. 403 | G104: 4 8475166 4 8475171 302 04 59 3153940860 | H104: auxcomercial@conpre.com | I104: 102 | K104: =VLOOKUP(D104,#REF!,2,FALSE) ->  | M104: 1
A105: =+B105&COUNTIF($B$3:B105,B105) -> 11274 | B105: =VLOOKUP(C105,'[1]GRUPOS VIGENTES'!$B$9:$C$115,2,FALSE) -> 1127 | C105: BORDILLOS Y LOSETAS | D105: EL CONDOR PREFABRICADOS | E105: Soacha - Cund. | F105: Kilómetro 2 vía Fusunga Vereda Panamá, Soacha | G105: 7218612 313 423 0803 321 486 9434 321 200 7397 313 460 7805 | H105: ventas@elcondorprefabricados.com | I105: 103 | K105: =VLOOKUP(D105,#REF!,2,FALSE) ->  | M105: 1
A106: =+B106&COUNTIF($B$3:B106,B106) -> 11275 | B106: =VLOOKUP(C106,'[1]GRUPOS VIGENTES'!$B$9:$C$115,2,FALSE) -> 1127 | C106: BORDILLOS Y LOSETAS | D106: HOMECENTER | E106: Bogotá | F106: Av Cra 68 No. 37 - 37 sur | G106: 3077115 | H106: www.homecenter.com | I106: 104 | K106: =VLOOKUP(D106,#REF!,2,FALSE) ->  | M106: 1
A107: =+B107&COUNTIF($B$3:B107,B107) -> 11276 | B107: =VLOOKUP(C107,'[1]GRUPOS VIGENTES'!$B$9:$C$115,2,FALSE) -> 1127 | C107: BORDILLOS Y LOSETAS | D107: INSUMOBRAS LTDA | E107: Bogotá | F107: Autopista Medellin Km 14 Puente Piedra | G107: 310 8196349 | H107: insumobrasltda@homail.com | I107: 105 | K107: =VLOOKUP(D107,#REF!,2,FALSE) ->  | M107: 1
A108: =+B108&COUNTIF($B$3:B108,B108) -> 11277 | B108: =VLOOKUP(C108,'[1]GRUPOS VIGENTES'!$B$9:$C$115,2,FALSE) -> 1127 | C108: BORDILLOS Y LOSETAS | D108: KREATO SOLUCIONES CREATIVAS EN CONCRETO S.A. KREAT | E108: Bogotá | F108: Cl 85A No. 21 56 | G108: 6109114 | H108: acastellanos@kreato.com.co agranados@kreato.com.co fsolano@kreatos.com.co | I108: 106 | K108: =VLOOKUP(D108,#REF!,2,FALSE) ->  | M108: 1
A109: =+B109&COUNTIF($B$3:B109,B109) -> 11278 | B109: =VLOOKUP(C109,'[1]GRUPOS VIGENTES'!$B$9:$C$115,2,FALSE) -> 1127 | C109: BORDILLOS Y LOSETAS | D109: MANUFACTURAS DE CEMENTO S.A. TITAN | E109: Cota - Cund. | F109: Autopista Medellin , entrada 2,4 km al occidente del Rio Bogota | G109: 3353550 | H109: www.titancemento.com lforero@titancemento.com | I109: 107 | K109: =VLOOKUP(D109,#REF!,2,FALSE) ->  | M109: 1
A110: =+B110&COUNTIF($B$3:B110,B110) -> 11279 | B110: =VLOOKUP(C110,'[1]GRUPOS VIGENTES'!$B$9:$C$115,2,FALSE) -> 1127 | C110: BORDILLOS Y LOSETAS | D110: NOVARCILLAS | E110: Cajicá - Cund. | F110: Carrera 5 No. 11D 2-21 Sur Of 227 KM 7 Vía Cajicá - Chía | G110: 3208035528 3152211427 (57) (1) 8662139 | H110: ventas@novarcillas.com | I110: 108 | K110: =VLOOKUP(D110,#REF!,2,FALSE) ->  | M110: 1
A111: =+B111&COUNTIF($B$3:B111,B111) -> 112710 | B111: =VLOOKUP(C111,'[1]GRUPOS VIGENTES'!$B$9:$C$115,2,FALSE) -> 1127 | C111: BORDILLOS Y LOSETAS | D111: PLACA LISTA MODULOS PREFABRICADOS LTDA | E111: Bogotá | F111: Cl 65 No. 13-50 Of 503 | G111: 2550490 3476569 310 8173990 | H111: placalista01@yahoo.com | I111: 109 | K111: =VLOOKUP(D111,#REF!,2,FALSE) ->  | M111: 1
A112: =+B112&COUNTIF($B$3:B112,B112) -> 112711 | B112: =VLOOKUP(C112,'[1]GRUPOS VIGENTES'!$B$9:$C$115,2,FALSE) -> 1127 | C112: BORDILLOS Y LOSETAS | D112: POSTES MEDINA COLOMBIA | E112: Bogotá | F112: Av Cra 7 No. 156-78 Of 706 | G112: 216 3030 | H112: comercial1@postesmedina.com colpostesmedina@yahoo.com postesmedinacolombia@hotmail.com | I112: 110 | K112: =VLOOKUP(D112,#REF!,2,FALSE) ->  | M112: 1
A113: =+B113&COUNTIF($B$3:B113,B113) -> 112712 | B113: =VLOOKUP(C113,'[1]GRUPOS VIGENTES'!$B$9:$C$115,2,FALSE) -> 1127 | C113: BORDILLOS Y LOSETAS | D113: PREALCA SAS | E113: Soacha - Cund. | F113: Autopista sur Cra. 4 #21a-26 | G113: 320 3470096 310 3167820 | H113: https://prealcasas.negocio.site/ | I113: 111 | K113: =VLOOKUP(D113,#REF!,2,FALSE) ->  | M113: 1
A114: =+B114&COUNTIF($B$3:B114,B114) -> 112713 | B114: =VLOOKUP(C114,'[1]GRUPOS VIGENTES'!$B$9:$C$115,2,FALSE) -> 1127 | C114: BORDILLOS Y LOSETAS | D114: PREFABRICADOS JOVITA CASTRO Y CIA LTDA | E114: Bogotá | F114: Cl 57 sur No. 19B 73 | G114: 714 2887 311 5947000 | H114: jovitacastrovega@hotmail.com www.prefabricadosjovitacastro.com | I114: 112 | K114: =VLOOKUP(D114,#REF!,2,FALSE) ->  | M114: 1
A115: =+B115&COUNTIF($B$3:B115,B115) -> 112714 | B115: =VLOOKUP(C115,'[1]GRUPOS VIGENTES'!$B$9:$C$115,2,FALSE) -> 1127 | C115: BORDILLOS Y LOSETAS | D115: PREFABRICADOS Y CONSTRUCCIONES PREFACON SAS (CONCRETARTE) | E115: Bogotá | F115: Cra 69Q #78-62 | G115: 323 03 53 318 576 43 39 | H115: prefabricados@concretarte.com.co www.concretarte.com.co | I115: 113 | K115: =VLOOKUP(D115,#REF!,2,FALSE) ->  | M115: 1
A116: =+B116&COUNTIF($B$3:B116,B116) -> 11211 | B116: =VLOOKUP(C116,'[1]GRUPOS VIGENTES'!$B$9:$C$115,2,FALSE) -> 1121 | C116: CABLES Y ACCESORIOS ELECTRICOS | D116: ACONSTRUCTORAS.COM | E116: Yopal - Casanare | F116: Cl 25 15 19 | G116: 3005541747 3163971751 | H116: www.aconstructoras.com | I116: 114 | K116: =VLOOKUP(D116,#REF!,2,FALSE) ->  | M116: 1
A117: =+B117&COUNTIF($B$3:B117,B117) -> 11212 | B117: =VLOOKUP(C117,'[1]GRUPOS VIGENTES'!$B$9:$C$115,2,FALSE) -> 1121 | C117: CABLES Y ACCESORIOS ELECTRICOS | D117: BIGTRONICA | E117: Medellin - Antioquia | F117: Cra. 53 # 50 - 51 Local 212H C.C. La Cascada | G117: 5113403 3156435352 | H117: ventas@bigtronica.com | I117: 115 | K117: =VLOOKUP(D117,#REF!,2,FALSE) ->  | M117: 1
A118: =+B118&COUNTIF($B$3:B118,B118) -> 11213 | B118: =VLOOKUP(C118,'[1]GRUPOS VIGENTES'!$B$9:$C$115,2,FALSE) -> 1121 | C118: CABLES Y ACCESORIOS ELECTRICOS | D118: BORNA | E118: Bogotá | F118: Cra. 24 8-51 | G118: 383 7610 | H118: www.borna-store.com servicioalcliente@bornas.info | I118: 116 | K118: =VLOOKUP(D118,#REF!,2,FALSE) ->  | M118: 1
A119: =+B119&COUNTIF($B$3:B119,B119) -> 11214 | B119: =VLOOKUP(C119,'[1]GRUPOS VIGENTES'!$B$9:$C$115,2,FALSE) -> 1121 | C119: CABLES Y ACCESORIOS ELECTRICOS | D119: CARULLA | E119: Bogotá | F119: Cl. 85 #No. 15 -29 | G119: 7455777 | H119: servicio-al-cliente-carulla@clientesexito.com | I119: 117 | K119: =VLOOKUP(D119,#REF!,2,FALSE) ->  | M119: 1
A120: =+B120&COUNTIF($B$3:B120,B120) -> 11215 | B120: =VLOOKUP(C120,'[1]GRUPOS VIGENTES'!$B$9:$C$115,2,FALSE) -> 1121 | C120: CABLES Y ACCESORIOS ELECTRICOS | D120: CENTELSA | E120: Bogotá | F120: Av Cl 26 No.68C-61 Edif. Torre Central Ofic. 310 | G120: 427 2800 3166931865 3154334617 3154332361 | H120: armando.penaranda@centelsa.com.co david.uribe@centelsa.com.co cristina.bustamante@centelsa.com.co | I120: 118 | K120: =VLOOKUP(D120,#REF!,2,FALSE) ->  | M120: 1
A121: =+B121&COUNTIF($B$3:B121,B121) -> 11216 | B121: =VLOOKUP(C121,'[1]GRUPOS VIGENTES'!$B$9:$C$115,2,FALSE) -> 1121 | C121: CABLES Y ACCESORIOS ELECTRICOS | D121: CINELECO.COM | E121: Bogotá | F121: Calle 14 No 12 - 65 Local 129 | G121: 5082212 313 853 8792 | H121: servicioalcliente@cineleco.com | I121: 119 | K121: =VLOOKUP(D121,#REF!,2,FALSE) ->  | M121: 1
A122: =+B122&COUNTIF($B$3:B122,B122) -> 11217 | B122: =VLOOKUP(C122,'[1]GRUPOS VIGENTES'!$B$9:$C$115,2,FALSE) -> 1121 | C122: CABLES Y ACCESORIOS ELECTRICOS | D122: COPCO INGENIERIA | E122: Bucaramanga | F122: Calle 21 # 21-20 - San Francisco | G122: 6343555 3163803545 | H122: contacto@copcoingenieria.com | I122: 120 | K122: =VLOOKUP(D122,#REF!,2,FALSE) ->  | M122: 1
A123: =+B123&COUNTIF($B$3:B123,B123) -> 11218 | B123: =VLOOKUP(C123,'[1]GRUPOS VIGENTES'!$B$9:$C$115,2,FALSE) -> 1121 | C123: CABLES Y ACCESORIOS ELECTRICOS | D123: CU CONECTORES | E123: Funza -Cund. | F123: Km 7 vía Bogotá - Medellín Complejo Industrial Celta Trade Park, Bodega 152-3 | G123: 8966535 Ext. 400 | H123: comercial@cuconectores.com.co | I123: 121 | K123: =VLOOKUP(D123,#REF!,2,FALSE) ->  | M123: 1
A124: =+B124&COUNTIF($B$3:B124,B124) -> 11219 | B124: =VLOOKUP(C124,'[1]GRUPOS VIGENTES'!$B$9:$C$115,2,FALSE) -> 1121 | C124: CABLES Y ACCESORIOS ELECTRICOS | D124: DISTRIBUIDORA EYCOS | E124: Bogotá | F124: Cra 12 No. 16-82 | G124: 2 86 66 00 | H124: ventas@eycos.com.co servicioalcliente@eycos.com.co | I124: 122 | K124: =VLOOKUP(D124,#REF!,2,FALSE) ->  | M124: 1
A125: =+B125&COUNTIF($B$3:B125,B125) -> 112110 | B125: =VLOOKUP(C125,'[1]GRUPOS VIGENTES'!$B$9:$C$115,2,FALSE) -> 1121 | C125: CABLES Y ACCESORIOS ELECTRICOS | D125: DYCON MATERIALES ELÉCTRICOS | E125: Neiva - Huila | F125: Calle 22 #1h-38, Rojas Trujillo | G125: 8750577 | H125: www.dycon.co | I125: 123 | K125: =VLOOKUP(D125,#REF!,2,FALSE) ->  | M125: 1
A126: =+B126&COUNTIF($B$3:B126,B126) -> 112111 | B126: =VLOOKUP(C126,'[1]GRUPOS VIGENTES'!$B$9:$C$115,2,FALSE) -> 1121 | C126: CABLES Y ACCESORIOS ELECTRICOS | D126: EASY | E126: Bogotá | F126: Av Americas No. 68 94 | G126: 4191400 | H126: www. Easy.com.co | I126: 124 | K126: =VLOOKUP(D126,#REF!,2,FALSE) ->  | M126: 1
A127: =+B127&COUNTIF($B$3:B127,B127) -> 112112 | B127: =VLOOKUP(C127,'[1]GRUPOS VIGENTES'!$B$9:$C$115,2,FALSE) -> 1121 | C127: CABLES Y ACCESORIOS ELECTRICOS | D127: EDELCO | E127: Bogotá | F127: Calle 68 # 14A 64 Chapinero | G127: 606 77 77 Ext 18 318 383 51 33 316 390 95 01 | H127: asistentecomercialbogota@edelco.co ccomercialbogota@edelco.co servicioalcliente@edelco.co | I127: 125 | K127: =VLOOKUP(D127,#REF!,2,FALSE) ->  | M127: 1
A128: =+B128&COUNTIF($B$3:B128,B128) -> 112113 | B128: =VLOOKUP(C128,'[1]GRUPOS VIGENTES'!$B$9:$C$115,2,FALSE) -> 1121 | C128: CABLES Y ACCESORIOS ELECTRICOS | D128: FERRETERÍA SAMIR | E128: Barranquilla - Atlantico | F128: Cl 35 No. 38 43 | G128: 318 3364259 318 7758062 316 3413547 | H128: cotizaciones@ferreteriasamir.com | I128: 126 | K128: =VLOOKUP(D128,#REF!,2,FALSE) ->  | M128: 1
A129: =+B129&COUNTIF($B$3:B129,B129) -> 112114 | B129: =VLOOKUP(C129,'[1]GRUPOS VIGENTES'!$B$9:$C$115,2,FALSE) -> 1121 | C129: CABLES Y ACCESORIOS ELECTRICOS | D129: FORMAS ELECTRICAS | E129: Bogotá | F129: Calle 16 Nro 12-42 | G129: 342 9114 | H129: www.formaselectricas.com almacen@formaselectricas.com | I129: 127 | K129: =VLOOKUP(D129,#REF!,2,FALSE) ->  | M129: 1
A130: =+B130&COUNTIF($B$3:B130,B130) -> 112115 | B130: =VLOOKUP(C130,'[1]GRUPOS VIGENTES'!$B$9:$C$115,2,FALSE) -> 1121 | C130: CABLES Y ACCESORIOS ELECTRICOS | D130: HOMECENTER | E130: Bogotá | F130: Av Cra 68 No. 37 - 37 sur | G130: 3077115 | H130: www.homecenter.com | I130: 128 | K130: =VLOOKUP(D130,#REF!,2,FALSE) ->  | M130: 1
A131: =+B131&COUNTIF($B$3:B131,B131) -> 112116 | B131: =VLOOKUP(C131,'[1]GRUPOS VIGENTES'!$B$9:$C$115,2,FALSE) -> 1121 | C131: CABLES Y ACCESORIOS ELECTRICOS | D131: IE INTERNACIONAL DE ELÉCTRICOS | E131: Bogotá | F131: Cll 24 #4a-26 | G131: 7448130 | H131: ieportalweb@iegrupo.co | I131: 129 | K131: =VLOOKUP(D131,#REF!,2,FALSE) ->  | M131: 1
A132: =+B132&COUNTIF($B$3:B132,B132) -> 112117 | B132: =VLOOKUP(C132,'[1]GRUPOS VIGENTES'!$B$9:$C$115,2,FALSE) -> 1121 | C132: CABLES Y ACCESORIOS ELECTRICOS | D132: ILUMINACIONES ELECTRICAS ILUX SAS | E132: Bogotá | F132: Calle 18 # 12-68, Centro | G132: 3214769560 2432433 2865770 | H132: ventas@iluminacioneselectricasilux.com | I132: 130 | K132: =VLOOKUP(D132,#REF!,2,FALSE) ->  | M132: =IFERROR(K132,1) -> 1
A133: =+B133&COUNTIF($B$3:B133,B133) -> 112118 | B133: =VLOOKUP(C133,'[1]GRUPOS VIGENTES'!$B$9:$C$115,2,FALSE) -> 1121 | C133: CABLES Y ACCESORIOS ELECTRICOS | D133: INTERELECTRICAS | E133: Bogotá | F133: Cra. 12 13 46 | G133: 3360755 Ext. 1103 3106983687 | H133: servicioalcliente@ie.com.co | I133: 131 | K133: =VLOOKUP(D133,#REF!,2,FALSE) ->  | M133: 1
A134: =+B134&COUNTIF($B$3:B134,B134) -> 112119 | B134: =VLOOKUP(C134,'[1]GRUPOS VIGENTES'!$B$9:$C$115,2,FALSE) -> 1121 | C134: CABLES Y ACCESORIOS ELECTRICOS | D134: JD ELECTRICOS E INDUSTRIA LTDA | E134: Bogotá | F134: Cra. 12 15 95 | G134: 3411060 | H134: elianasalazar@jdelectricos.com.co | I134: 132 | K134: =VLOOKUP(D134,#REF!,2,FALSE) ->  | M134: 1
A135: =+B135&COUNTIF($B$3:B135,B135) -> 112120 | B135: =VLOOKUP(C135,'[1]GRUPOS VIGENTES'!$B$9:$C$115,2,FALSE) -> 1121 | C135: CABLES Y ACCESORIOS ELECTRICOS | D135: LA TIENDA DEL ELECTRICO | E135: Itagüí - Antioquia | F135: Calle 46 N 50-33 | G135: 317 4272570 578 65 34 | H135: servicioalcliente@latiendadelelectrico.com | I135: 133 | K135: =VLOOKUP(D135,#REF!,2,FALSE) ->  | M135: 1
A136: =+B136&COUNTIF($B$3:B136,B136) -> 112121 | B136: =VLOOKUP(C136,'[1]GRUPOS VIGENTES'!$B$9:$C$115,2,FALSE) -> 1121 | C136: CABLES Y ACCESORIOS ELECTRICOS | D136: LINIO | E136: Bogotá | F136: Cl 99 No. 14 49 Piso 9 | G136: 7457888 | H136: www.linio.com.co | I136: 134 | K136: =VLOOKUP(D136,#REF!,2,FALSE) ->  | M136: 1
A137: =+B137&COUNTIF($B$3:B137,B137) -> 112122 | B137: =VLOOKUP(C137,'[1]GRUPOS VIGENTES'!$B$9:$C$115,2,FALSE) -> 1121 | C137: CABLES Y ACCESORIOS ELECTRICOS | D137: MAELECTRICOS | E137: Bogotá | F137: Calle 17 28 A 74 | G137: 3647373 | H137: julian.c@maelectricos.com julian.alvarado@maelectricos.com | I137: 135 | K137: =VLOOKUP(D137,#REF!,2,FALSE) ->  | M137: 1
A138: =+B138&COUNTIF($B$3:B138,B138) -> 112123 | B138: =VLOOKUP(C138,'[1]GRUPOS VIGENTES'!$B$9:$C$115,2,FALSE) -> 1121 | C138: CABLES Y ACCESORIOS ELECTRICOS | D138: MAGNETRON | E138: Bogotá | F138: Cra 7A # 123-24 Centro Empresarial Santa Barbara Oficina 301 | G138: 629 7247 317 4773345 | H138: falvarez@magnetron.com.co | I138: 136 | K138: =VLOOKUP(D138,#REF!,2,FALSE) ->  | M138: 1
A139: =+B139&COUNTIF($B$3:B139,B139) -> 112124 | B139: =VLOOKUP(C139,'[1]GRUPOS VIGENTES'!$B$9:$C$115,2,FALSE) -> 1121 | C139: CABLES Y ACCESORIOS ELECTRICOS | D139: MATERIALES DE OCCIDENTE SAS | E139: Armenia - Quindio | F139: Calle 18 No 20 - 31 | G139: 311 358 1082 741 2226 744 3737 | H139: info@materialesdeoccidente.com | I139: 137 | K139: =VLOOKUP(D139,#REF!,2,FALSE) ->  | M139: 1
A140: =+B140&COUNTIF($B$3:B140,B140) -> 112125 | B140: =VLOOKUP(C140,'[1]GRUPOS VIGENTES'!$B$9:$C$115,2,FALSE) -> 1121 | C140: CABLES Y ACCESORIOS ELECTRICOS | D140: MYM TRANFORMADORES | E140: Bogotá | F140: Cll 22 18a 76 | G140: 3102281619 3132503176 | H140: ventastransformadoresmym@hotmail.com | I140: 138 | K140: =VLOOKUP(D140,#REF!,2,FALSE) ->  | M140: 1
A141: =+B141&COUNTIF($B$3:B141,B141) -> 112126 | B141: =VLOOKUP(C141,'[1]GRUPOS VIGENTES'!$B$9:$C$115,2,FALSE) -> 1121 | C141: CABLES Y ACCESORIOS ELECTRICOS | D141: NACIONAL DE ELECTRICOS | E141: Bogotá | F141: Calle 15 12 81 | G141: 3114758165 2543720 Ext. 1502 | H141: centro1@nalelectricos.com.co www.nalelectricos.com.co | I141: 139 | K141: =VLOOKUP(D141,#REF!,2,FALSE) ->  | M141: 1
A142: =+B142&COUNTIF($B$3:B142,B142) -> 112127 | B142: =VLOOKUP(C142,'[1]GRUPOS VIGENTES'!$B$9:$C$115,2,FALSE) -> 1121 | C142: CABLES Y ACCESORIOS ELECTRICOS | D142: NEXANS | E142: Bucaramanga | F142: Parque Industrial de Bucaramanga Manzana B Km 3 Vía Café Madrid | G142: 6762929 | H142: ventas.colombia@nexans.com | I142: 140 | K142: =VLOOKUP(D142,#REF!,2,FALSE) ->  | M142: 1
A143: =+B143&COUNTIF($B$3:B143,B143) -> 112128 | B143: =VLOOKUP(C143,'[1]GRUPOS VIGENTES'!$B$9:$C$115,2,FALSE) -> 1121 | C143: CABLES Y ACCESORIOS ELECTRICOS | D143: PUNTO ELECTRICO SAS | E143: Manizales - Caldas | F143: Cra 22 # 15-09 | G143: 311 312 2156 | H143: logistica@puntoelectrico.com.co | I143: 141 | K143: =VLOOKUP(D143,#REF!,2,FALSE) ->  | M143: 1
A144: =+B144&COUNTIF($B$3:B144,B144) -> 112129 | B144: =VLOOKUP(C144,'[1]GRUPOS VIGENTES'!$B$9:$C$115,2,FALSE) -> 1121 | C144: CABLES Y ACCESORIOS ELECTRICOS | D144: REDES ELECTRICAS S.A. | E144: Bogotá | F144: Cra. 12 15 97 | G144: 3340511 3647000 | H144: ventas.palo@redeselectricas.com ingenieria@redeselectricas.com oscar.rodriguez@redes electricas.com | I144: 142 | K144: =VLOOKUP(D144,#REF!,2,FALSE) ->  | M144: 1
A145: =+B145&COUNTIF($B$3:B145,B145) -> 112130 | B145: =VLOOKUP(C145,'[1]GRUPOS VIGENTES'!$B$9:$C$115,2,FALSE) -> 1121 | C145: CABLES Y ACCESORIOS ELECTRICOS | D145: RENTAL STORE.CO (SERVICIO DE LAQUILER DE EQUIPO) | E145: Bogotá | F145: Cra 50 #134 - 66 | G145: 3176432973 | H145: sales.col@rentalstore.co | I145: 143 | K145: =VLOOKUP(D145,#REF!,2,FALSE) ->  | M145: 1
A146: =+B146&COUNTIF($B$3:B146,B146) -> 112131 | B146: =VLOOKUP(C146,'[1]GRUPOS VIGENTES'!$B$9:$C$115,2,FALSE) -> 1121 | C146: CABLES Y ACCESORIOS ELECTRICOS | D146: STEREN | E146: Bogotá | F146: Calle 140 n. 12B-25, Edificio Castellana Empresarial, oficina 103 | G146: 7443200 | H146: www.steren.com.co | I146: 144 | K146: =VLOOKUP(D146,#REF!,2,FALSE) ->  | M146: 1
A147: =+B147&COUNTIF($B$3:B147,B147) -> 112132 | B147: =VLOOKUP(C147,'[1]GRUPOS VIGENTES'!$B$9:$C$115,2,FALSE) -> 1121 | C147: CABLES Y ACCESORIOS ELECTRICOS | D147: VISTRONICA | E147: Fusagasugá - Cundinamarca | F147: Calle 17B #14-42 (Nueva Dirección) Barrio Piedra Grande | G147: 3118679028 | H147: ventas@vistronica.com | I147: 145 | K147: =VLOOKUP(D147,#REF!,2,FALSE) ->  | M147: 1
A148: =+B148&COUNTIF($B$3:B148,B148) -> 12271 | B148: =VLOOKUP(C148,'[1]GRUPOS VIGENTES'!$B$9:$C$115,2,FALSE) -> 1227 | C148: CANAL DE DRENAJE | D148: ACO SOLUCIONES DE DRENAJE SAS | E148: Bogotá | F148: Cl 98 No. 22 64. Oficina 607 | G148: 7427783 | H148: info@acodrenaje.com | I148: 146 | K148: =VLOOKUP(D148,#REF!,2,FALSE) ->  | M148: 1
A149: =+B149&COUNTIF($B$3:B149,B149) -> 12272 | B149: =VLOOKUP(C149,'[1]GRUPOS VIGENTES'!$B$9:$C$115,2,FALSE) -> 1227 | C149: CANAL DE DRENAJE | D149: MADERPLAST | E149: Bogotá | F149: Carrera 56 No. 9 - 36 | G149: (57) (1) 4855555 Ext. 210 3112734269 | H149: ventas10@maderplast.com www.maderplast.com | I149: 147 | K149: =VLOOKUP(D149,#REF!,2,FALSE) ->  | M149: 1
A150: =+B150&COUNTIF($B$3:B150,B150) -> 12273 | B150: =VLOOKUP(C150,'[1]GRUPOS VIGENTES'!$B$9:$C$115,2,FALSE) -> 1227 | C150: CANAL DE DRENAJE | D150: REFORPLAS | E150: Bogotá | F150: Cl 128 No. 15 A 73 | G150: 300 4004013 | H150: juan.preciado@reforplas.com | I150: 148 | K150: =VLOOKUP(D150,#REF!,2,FALSE) ->  | M150: 1
A151: =+B151&COUNTIF($B$3:B151,B151) -> 11951 | B151: =VLOOKUP(C151,'[1]GRUPOS VIGENTES'!$B$9:$C$115,2,FALSE) -> 1195 | C151: CARPINTERÍA METÁLICA | D151: CIELOS RASOS & DIVISIONES | E151: Bogotá | F151: Cr 14 75.58 | G151: 2481860 310 5774471 | H151: ventas@cielosrasos.com | I151: 149 | K151: =VLOOKUP(D151,#REF!,2,FALSE) ->  | M151: 1
A152: =+B152&COUNTIF($B$3:B152,B152) -> 11952 | B152: =VLOOKUP(C152,'[1]GRUPOS VIGENTES'!$B$9:$C$115,2,FALSE) -> 1195 | C152: CARPINTERÍA METÁLICA | D152: HB SADELEC Estructuras Metálicas | E152: Bogotá | F152: Avda. Cra. 129 17 F 97 | G152: 4224700 Ext. 121 4155620 | H152: david.castellanos@hbsadelec.com.co | I152: 150 | K152: =VLOOKUP(D152,#REF!,2,FALSE) ->  | M152: 1
A153: =+B153&COUNTIF($B$3:B153,B153) -> 11301 | B153: =VLOOKUP(C153,'[1]GRUPOS VIGENTES'!$B$9:$C$115,2,FALSE) -> 1130 | C153: COMBUSTIBLES Y LUBRICANTES | D153: MINISTERIO DE MINAS Y ENERGIA | E153: Bogotá | F153: Cl 43 No. 57-31 | G153: 2200300 22200306 | H153: www.minminas.gov.co | I153: 151 | K153: =VLOOKUP(D153,#REF!,2,FALSE) ->  | M153: 1
A154: =+B154&COUNTIF($B$3:B154,B154) -> 11031 | B154: =VLOOKUP(C154,'[1]GRUPOS VIGENTES'!$B$9:$C$115,2,FALSE) -> 1103 | C154: CONCRETOS Y MORTEROS PREMEZCLADOS | D154: CEMEX DE COLOMBIA S.A. | E154: Bogotá | F154: Cl 99 9A 54 Piso 8 | G154: 6469000 603 9100 | H154: ginnamarcela.gomez@cemex.com alvaro.coral@cemex.com adrianamaritza.ramosrt@cemex.com | I154: 152 | K154: =VLOOKUP(D154,#REF!,2,FALSE) ->  | M154: 1
A155: =+B155&COUNTIF($B$3:B155,B155) -> 11032 | B155: =VLOOKUP(C155,'[1]GRUPOS VIGENTES'!$B$9:$C$115,2,FALSE) -> 1103 | C155: CONCRETOS Y MORTEROS PREMEZCLADOS | D155: CONCRETERA TREMIX SAS | E155: Bogotá | F155: Cl 147 No.17-78 Ed. Soko 147 Piso 5 | G155: (57) (1) 6260860 / 61 | H155: gestion.ambiental@tremix.com.co | I155: 153 | K155: =VLOOKUP(D155,#REF!,2,FALSE) ->  | M155: 1
A156: =+B156&COUNTIF($B$3:B156,B156) -> 11033 | B156: =VLOOKUP(C156,'[1]GRUPOS VIGENTES'!$B$9:$C$115,2,FALSE) -> 1103 | C156: CONCRETOS Y MORTEROS PREMEZCLADOS | D156: CONCRETOS ARGOS S.A. | E156: Bogotá | F156: Av. Cl 24 A No. 59-42 Torre 3 Piso 9 | G156: (57) (1) 6069400 | H156: serviciocliente@argos.com.co ana.escalante@argos.com.co | I156: 154 | K156: =VLOOKUP(D156,#REF!,2,FALSE) ->  | M156: 1
A157: =+B157&COUNTIF($B$3:B157,B157) -> 11034 | B157: =VLOOKUP(C157,'[1]GRUPOS VIGENTES'!$B$9:$C$115,2,FALSE) -> 1103 | C157: CONCRETOS Y MORTEROS PREMEZCLADOS | D157: HIDROPROTECCIÓN DE COLOMBIA | E157: Bogotá | F157: Cl 74 No. 20 A 14 | G157: 7020385 3173315950 | H157: www.hidroproteccion.com | I157: 155 | K157: =VLOOKUP(D157,#REF!,2,FALSE) ->  | M157: 1
A158: =+B158&COUNTIF($B$3:B158,B158) -> 11035 | B158: =VLOOKUP(C158,'[1]GRUPOS VIGENTES'!$B$9:$C$115,2,FALSE) -> 1103 | C158: CONCRETOS Y MORTEROS PREMEZCLADOS | D158: HORMIGON ANDINO SA | E158: Bogotá | F158: Calle 125 # 21 A - 18 Piso 4 | G158: 6371837 6371748 | H158: g.comercial@hormigonandino.com | I158: 156 | K158: =VLOOKUP(D158,#REF!,2,FALSE) ->  | M158: 1
A159: =+B159&COUNTIF($B$3:B159,B159) -> 11036 | B159: =VLOOKUP(C159,'[1]GRUPOS VIGENTES'!$B$9:$C$115,2,FALSE) -> 1103 | C159: CONCRETOS Y MORTEROS PREMEZCLADOS | D159: MEGA CONCRETOS | E159: Bogotá | F159: Cra. 80A No. 17 - 21 | G159: 390 6012 310 349 4946 | H159: gerencia@megaconcretos.com.co | I159: 157 | K159: =VLOOKUP(D159,#REF!,2,FALSE) ->  | M159: 1
A160: =+B160&COUNTIF($B$3:B160,B160) -> 11037 | B160: =VLOOKUP(C160,'[1]GRUPOS VIGENTES'!$B$9:$C$115,2,FALSE) -> 1103 | C160: CONCRETOS Y MORTEROS PREMEZCLADOS | D160: POLIMIX COLOMBIA | E160: Bogotá | F160: Calle 147 # 17 - 78 Edificio Soko 147 Of 504 | G160: 6260860 / 61 / 62 / 63 | H160: comercial1@polimix.com.co | I160: 158 | K160: =VLOOKUP(D160,#REF!,2,FALSE) ->  | M160: 1
A161: =+B161&COUNTIF($B$3:B161,B161) -> 11038 | B161: =VLOOKUP(C161,'[1]GRUPOS VIGENTES'!$B$9:$C$115,2,FALSE) -> 1103 | C161: CONCRETOS Y MORTEROS PREMEZCLADOS | D161: SIKA COLOMBIA SAS | E161: Tocancipá - Cund. | F161: Vereda Canavita, Km 20.5 Autopista Norte | G161: 8786666 8786681 | H161: chacon.jose@co.sika.com ortiz.ricardo@co.sika.com | I161: 159 | K161: =VLOOKUP(D161,#REF!,2,FALSE) ->  | M161: 1
A162: =+B162&COUNTIF($B$3:B162,B162) -> 11039 | B162: =VLOOKUP(C162,'[1]GRUPOS VIGENTES'!$B$9:$C$115,2,FALSE) -> 1103 | C162: CONCRETOS Y MORTEROS PREMEZCLADOS | D162: SOELCO | E162: Tunja - Boyaca | F162: Av. Norte No. 37 - 45 | G162: (57) (8) 7458687 | H162: www.soelco.com.co | I162: 160 | K162: =VLOOKUP(D162,#REF!,2,FALSE) ->  | M162: 1
A163: =+B163&COUNTIF($B$3:B163,B163) -> 110310 | B163: =VLOOKUP(C163,'[1]GRUPOS VIGENTES'!$B$9:$C$115,2,FALSE) -> 1103 | C163: CONCRETOS Y MORTEROS PREMEZCLADOS | D163: TOXEMENT | E163: Tocancipá - Cund. | F163: Parque Industrial Gran Sabana | G163: 869 87 87 | H163: atencioncliente@euclidchemical.com.co | I163: 161 | K163: =VLOOKUP(D163,#REF!,2,FALSE) ->  | M163: 1
A164: =+B164&COUNTIF($B$3:B164,B164) -> 11681 | B164: =VLOOKUP(C164,'[1]GRUPOS VIGENTES'!$B$9:$C$115,2,FALSE) -> 1168 | C164: CONSULTORIA | D164: SECRETARIA DISTRITAL DE PLANEACIÓN | E164: Bogotá | F164: Kra 30 # 25 - 90 Pisos 5 - 8 -13 | G164: 3358000 ext 9013 | H164: servicioalciudadanoGEL@sdp.gov.co | I164: 162 | K164: =VLOOKUP(D164,#REF!,2,FALSE) ->  | M164: 1
A165: =+B165&COUNTIF($B$3:B165,B165) -> 11682 | B165: =VLOOKUP(C165,'[1]GRUPOS VIGENTES'!$B$9:$C$115,2,FALSE) -> 1168 | C165: CONSULTORIA | D165: SUPERINTENDENCIA DE NOTARIADO Y REGISTRO | E165: Bogotá | F165: Calle 26 No. 13-49 Interior 201 | G165: 328 2121 | H165: notificaciones.juridica@supernotariado.gov.co | I165: 163 | K165: =VLOOKUP(D165,#REF!,2,FALSE) ->  | M165: 1
A166: =+B166&COUNTIF($B$3:B166,B166) -> 12001 | B166: =VLOOKUP(C166,'[1]GRUPOS VIGENTES'!$B$9:$C$115,2,FALSE) -> 1200 | C166: CUBIERTA - CIELO RASO - CORTASOL TIPO TRANSMILENIO | D166: CIELOS RASOS & DIVISIONES | E166: Bogotá | F166: Cr 14 75.58 | G166: 2481860 310 5774471 | H166: ventas@cielosrasos.com | I166: 164 | K166: =VLOOKUP(D166,#REF!,2,FALSE) ->  | M166: 1
A167: =+B167&COUNTIF($B$3:B167,B167) -> 12002 | B167: =VLOOKUP(C167,'[1]GRUPOS VIGENTES'!$B$9:$C$115,2,FALSE) -> 1200 | C167: CUBIERTA - CIELO RASO - CORTASOL TIPO TRANSMILENIO | D167: DECOGOLD ESPACIOS, S.A.S. | E167: Bogotá | F167: Cra 46 #152-46 Local 266 Cra 55 152 B 68 OF 705 | G167: 2166263 3108768739 | H167: decogoldespacios@gmail.com | I167: 165 | K167: =VLOOKUP(D167,#REF!,2,FALSE) ->  | M167: 1
A168: =+B168&COUNTIF($B$3:B168,B168) -> 12003 | B168: =VLOOKUP(C168,'[1]GRUPOS VIGENTES'!$B$9:$C$115,2,FALSE) -> 1200 | C168: CUBIERTA - CIELO RASO - CORTASOL TIPO TRANSMILENIO | D168: DEPOSITO DE MADERAS VILLA BOYACA | E168: Bogotá | F168: Calle 71A # 74 A - 43 | G168: 2763975 | H168: maderasvillaboyaca@gmail.com | I168: 166 | K168: =VLOOKUP(D168,#REF!,2,FALSE) ->  | M168: 1
A169: =+B169&COUNTIF($B$3:B169,B169) -> 12004 | B169: =VLOOKUP(C169,'[1]GRUPOS VIGENTES'!$B$9:$C$115,2,FALSE) -> 1200 | C169: CUBIERTA - CIELO RASO - CORTASOL TIPO TRANSMILENIO | D169: EASY | E169: Bogotá | F169: Av Americas No. 68 94 | G169: 4191400 | H169: www. Easy.com.co | I169: 167 | K169: =VLOOKUP(D169,#REF!,2,FALSE) ->  | M169: 1
A170: =+B170&COUNTIF($B$3:B170,B170) -> 12005 | B170: =VLOOKUP(C170,'[1]GRUPOS VIGENTES'!$B$9:$C$115,2,FALSE) -> 1200 | C170: CUBIERTA - CIELO RASO - CORTASOL TIPO TRANSMILENIO | D170: HB SADELEC Estructuras Metálicas | E170: Bogotá | F170: Avda. Cra. 129 17 F 97 | G170: 4224700 Ext. 121 4155620 | H170: david.castellanos@hbsadelec.com.co | I170: 168 | K170: =VLOOKUP(D170,#REF!,2,FALSE) ->  | M170: 1
A171: =+B171&COUNTIF($B$3:B171,B171) -> 12006 | B171: =VLOOKUP(C171,'[1]GRUPOS VIGENTES'!$B$9:$C$115,2,FALSE) -> 1200 | C171: CUBIERTA - CIELO RASO - CORTASOL TIPO TRANSMILENIO | D171: HOMECENTER | E171: Bogotá | F171: Av Cra 68 No. 37 - 37 sur | G171: 3077115 | H171: www.homecenter.com | I171: 169 | K171: =VLOOKUP(D171,#REF!,2,FALSE) ->  | M171: 1
A172: =+B172&COUNTIF($B$3:B172,B172) -> 12007 | B172: =VLOOKUP(C172,'[1]GRUPOS VIGENTES'!$B$9:$C$115,2,FALSE) -> 1200 | C172: CUBIERTA - CIELO RASO - CORTASOL TIPO TRANSMILENIO | D172: MADERAS PUERTO COLOMBIA LTDA | E172: Bogotá | F172: Av. Cr 70 No. 70 45 | G172: 2243982 2761648 | H172: maderaspuertoco@hotmail.com | I172: 170 | K172: =VLOOKUP(D172,#REF!,2,FALSE) ->  | M172: 1
A173: =+B173&COUNTIF($B$3:B173,B173) -> 12008 | B173: =VLOOKUP(C173,'[1]GRUPOS VIGENTES'!$B$9:$C$115,2,FALSE) -> 1200 | C173: CUBIERTA - CIELO RASO - CORTASOL TIPO TRANSMILENIO | D173: MADERAS SAJO | E173: Bogotá | F173: CALLE 68 # 87 - 40 | G173: 310 8811268 | H173: maderassajo@gmail.com | I173: 171 | K173: =VLOOKUP(D173,#REF!,2,FALSE) ->  | M173: 1
A174: =+B174&COUNTIF($B$3:B174,B174) -> 11941 | B174: =VLOOKUP(C174,'[1]GRUPOS VIGENTES'!$B$9:$C$115,2,FALSE) -> 1194 | C174: DESMONTE Y TRASLADOS DE ELEMENTOS METÁLICOS | D174: INDUSTRIAS METALICAS GRAG S.A.S. | E174: Bogotá | F174: Carrera 27 # 10 - 35 | G174: 805 9374 805 9374 277 3540 | H174: metalicasgrag@yahoo.es | I174: 172 | K174: =VLOOKUP(D174,#REF!,2,FALSE) ->  | M174: 1
A175: =+B175&COUNTIF($B$3:B175,B175) -> 11942 | B175: =VLOOKUP(C175,'[1]GRUPOS VIGENTES'!$B$9:$C$115,2,FALSE) -> 1194 | C175: DESMONTE Y TRASLADOS DE ELEMENTOS METÁLICOS | D175: NAZCA DISEÑO - IMAGEN SAS | E175: Bogotá | F175: Cr 53 No. 44 A 18 | G175: 6407351 3003228552 3003228286 | H175: comercial@nazca.com.co | I175: 173 | K175: =VLOOKUP(D175,#REF!,2,FALSE) ->  | M175: 1
A176: =+B176&COUNTIF($B$3:B176,B176) -> 11481 | B176: =VLOOKUP(C176,'[1]GRUPOS VIGENTES'!$B$9:$C$115,2,FALSE) -> 1148 | C176: DOTACIÓN (EPP) Y EQUIP. Y HERRAM. SEGUR. INDUSTR. | D176: BELTEC | E176: Bogotá | F176: Cr 27 No. 17 10 | G176: 3600950 | H176: contacto@beltec.com.co | I176: 174 | K176: =VLOOKUP(D176,#REF!,2,FALSE) ->  | M176: 1
A177: =+B177&COUNTIF($B$3:B177,B177) -> 11482 | B177: =VLOOKUP(C177,'[1]GRUPOS VIGENTES'!$B$9:$C$115,2,FALSE) -> 1148 | C177: DOTACIÓN (EPP) Y EQUIP. Y HERRAM. SEGUR. INDUSTR. | D177: COMSECOL SAS | E177: Bogotá | F177: Cra. 28 No. 11 - 67, Of. 321 | G177: 351 3819 3162664928 | H177: comsecolsas@hotmail.com | I177: 175 | K177: =VLOOKUP(D177,#REF!,2,FALSE) ->  | M177: 1
A178: =+B178&COUNTIF($B$3:B178,B178) -> 11483 | B178: =VLOOKUP(C178,'[1]GRUPOS VIGENTES'!$B$9:$C$115,2,FALSE) -> 1148 | C178: DOTACIÓN (EPP) Y EQUIP. Y HERRAM. SEGUR. INDUSTR. | D178: DOTACIONES CALDERON SAS | E178: Bogotá | F178: Avda. Cra. 68 22 64 Sur | G178: 4065664 4069690 3108886247 | H178: comercial@dotacionesyseguguridadindustrial.com | I178: 176 | K178: =VLOOKUP(D178,#REF!,2,FALSE) ->  | M178: 1
A179: =+B179&COUNTIF($B$3:B179,B179) -> 11484 | B179: =VLOOKUP(C179,'[1]GRUPOS VIGENTES'!$B$9:$C$115,2,FALSE) -> 1148 | C179: DOTACIÓN (EPP) Y EQUIP. Y HERRAM. SEGUR. INDUSTR. | D179: DOTACIONES ONLINE | E179: Bogotá | F179: Calle 75 A No. 61-44 | G179: 7921705 318 320 5423 350 349 6922. | H179: servicioalcliente@dotacionesonline.com | I179: 177 | K179: =VLOOKUP(D179,#REF!,2,FALSE) ->  | M179: 1
A180: =+B180&COUNTIF($B$3:B180,B180) -> 11485 | B180: =VLOOKUP(C180,'[1]GRUPOS VIGENTES'!$B$9:$C$115,2,FALSE) -> 1148 | C180: DOTACIÓN (EPP) Y EQUIP. Y HERRAM. SEGUR. INDUSTR. | D180: EASY | E180: Bogotá | F180: Av Americas No. 68 94 | G180: 4191400 | H180: www. Easy.com.co | I180: 178 | K180: =VLOOKUP(D180,#REF!,2,FALSE) ->  | M180: 1
A181: =+B181&COUNTIF($B$3:B181,B181) -> 11486 | B181: =VLOOKUP(C181,'[1]GRUPOS VIGENTES'!$B$9:$C$115,2,FALSE) -> 1148 | C181: DOTACIÓN (EPP) Y EQUIP. Y HERRAM. SEGUR. INDUSTR. | D181: ECOLSEN | E181: Bogotá | F181: DIAG 77B # 116B - 42 | G181: 3123226014 8063016 | H181: info@ecolsen.com.co | I181: 179 | K181: =VLOOKUP(D181,#REF!,2,FALSE) ->  | M181: 1
A182: =+B182&COUNTIF($B$3:B182,B182) -> 11487 | B182: =VLOOKUP(C182,'[1]GRUPOS VIGENTES'!$B$9:$C$115,2,FALSE) -> 1148 | C182: DOTACIÓN (EPP) Y EQUIP. Y HERRAM. SEGUR. INDUSTR. | D182: FERRESTAR DE COLOMBIA | E182: Bogotá | F182: Cra 27B # 5-88 Santa Isabel | G182: 313 4392699 321 4573931 | H182: comercial1@ferrestardecolombia.co ventasferrestar1@gmail.com | I182: 180 | K182: =VLOOKUP(D182,#REF!,2,FALSE) ->  | M182: 1
A183: =+B183&COUNTIF($B$3:B183,B183) -> 11488 | B183: =VLOOKUP(C183,'[1]GRUPOS VIGENTES'!$B$9:$C$115,2,FALSE) -> 1148 | C183: DOTACIÓN (EPP) Y EQUIP. Y HERRAM. SEGUR. INDUSTR. | D183: FERRETERÍA SAMIR | E183: Barranquilla - Atlantico | F183: Cl 35 No. 38 43 | G183: 318 3364259 318 7758062 316 3413547 | H183: cotizaciones@ferreteriasamir.com | I183: 181 | K183: =VLOOKUP(D183,#REF!,2,FALSE) ->  | M183: 1
A184: =+B184&COUNTIF($B$3:B184,B184) -> 11489 | B184: =VLOOKUP(C184,'[1]GRUPOS VIGENTES'!$B$9:$C$115,2,FALSE) -> 1148 | C184: DOTACIÓN (EPP) Y EQUIP. Y HERRAM. SEGUR. INDUSTR. | D184: FERRICENTRO | E184: Bogotá | F184: Avda. Caracas 74 25 | G184: 6511212 2862100 | H184: jhon.bermudez@ferricentro.com callcenter02@ferricentro.com callcenter01@ferricentro.com | I184: 182 | K184: =VLOOKUP(D184,#REF!,2,FALSE) ->  | M184: 1
A185: =+B185&COUNTIF($B$3:B185,B185) -> 114810 | B185: =VLOOKUP(C185,'[1]GRUPOS VIGENTES'!$B$9:$C$115,2,FALSE) -> 1148 | C185: DOTACIÓN (EPP) Y EQUIP. Y HERRAM. SEGUR. INDUSTR. | D185: GAMA DOTACIONES | E185: Bogotá | F185: Carrera 5 No 49ª sur-93, barrio marruecos | G185: 3503829335 | H185: gamadotaciones@gmail.com | I185: 183 | K185: =VLOOKUP(D185,#REF!,2,FALSE) ->  | M185: 1
A186: =+B186&COUNTIF($B$3:B186,B186) -> 114811 | B186: =VLOOKUP(C186,'[1]GRUPOS VIGENTES'!$B$9:$C$115,2,FALSE) -> 1148 | C186: DOTACIÓN (EPP) Y EQUIP. Y HERRAM. SEGUR. INDUSTR. | D186: HERLOZ SUMINISTROS | E186: Bogotá | F186: www.herloz.com | G186: 247 8827 315 305 1224 | H186: ventasweb@herloz.com | I186: 184 | K186: =VLOOKUP(D186,#REF!,2,FALSE) ->  | M186: 1
A187: =+B187&COUNTIF($B$3:B187,B187) -> 114812 | B187: =VLOOKUP(C187,'[1]GRUPOS VIGENTES'!$B$9:$C$115,2,FALSE) -> 1148 | C187: DOTACIÓN (EPP) Y EQUIP. Y HERRAM. SEGUR. INDUSTR. | D187: HOMECENTER | E187: Bogotá | F187: Av Cra 68 No. 37 - 37 sur | G187: 3077115 | H187: www.homecenter.com | I187: 185 | K187: =VLOOKUP(D187,#REF!,2,FALSE) ->  | M187: 1
A188: =+B188&COUNTIF($B$3:B188,B188) -> 114813 | B188: =VLOOKUP(C188,'[1]GRUPOS VIGENTES'!$B$9:$C$115,2,FALSE) -> 1148 | C188: DOTACIÓN (EPP) Y EQUIP. Y HERRAM. SEGUR. INDUSTR. | D188: LASUS | E188: Bogotá | F188: Cr 16 No. 97 46 | G188: 5086170 | H188: info@lasus.com.co | I188: 186 | K188: =VLOOKUP(D188,#REF!,2,FALSE) ->  | M188: 1
A189: =+B189&COUNTIF($B$3:B189,B189) -> 114814 | B189: =VLOOKUP(C189,'[1]GRUPOS VIGENTES'!$B$9:$C$115,2,FALSE) -> 1148 | C189: DOTACIÓN (EPP) Y EQUIP. Y HERRAM. SEGUR. INDUSTR. | D189: LINIO | E189: Bogotá | F189: Cl 99 No. 14 49 Piso 9 | G189: 7457888 | H189: www.linio.com.co | I189: 187 | K189: =VLOOKUP(D189,#REF!,2,FALSE) ->  | M189: 1
A190: =+B190&COUNTIF($B$3:B190,B190) -> 114815 | B190: =VLOOKUP(C190,'[1]GRUPOS VIGENTES'!$B$9:$C$115,2,FALSE) -> 1148 | C190: DOTACIÓN (EPP) Y EQUIP. Y HERRAM. SEGUR. INDUSTR. | D190: MULTINACIONAL DE DOTACIONES | E190: Bogotá | F190: Av Cr 68 No. 10 12 sur | G190: 4946229 314 3817430 315 3267865 | H190: www.ventas@mukltinacionaldedotaciones.com | I190: 188 | K190: =VLOOKUP(D190,#REF!,2,FALSE) ->  | M190: 1
A191: =+B191&COUNTIF($B$3:B191,B191) -> 114816 | B191: =VLOOKUP(C191,'[1]GRUPOS VIGENTES'!$B$9:$C$115,2,FALSE) -> 1148 | C191: DOTACIÓN (EPP) Y EQUIP. Y HERRAM. SEGUR. INDUSTR. | D191: MUNDO NATURAL SAS | E191: Bogotá | F191: Cl. 163 #18 A - 93 | G191: 350 539 6869 | H191: ventasonline@mundonatural.com.co | I191: 189 | K191: =VLOOKUP(D191,#REF!,2,FALSE) ->  | M191: 1
A192: =+B192&COUNTIF($B$3:B192,B192) -> 114817 | B192: =VLOOKUP(C192,'[1]GRUPOS VIGENTES'!$B$9:$C$115,2,FALSE) -> 1148 | C192: DOTACIÓN (EPP) Y EQUIP. Y HERRAM. SEGUR. INDUSTR. | D192: SEGURIDAD Y DOTACIÓN.COM | E192: Bogotá | F192: Calle 97 # 64 – 39 | G192: 3157515302 | H192: comercial@siyvial.com | I192: 190 | K192: =VLOOKUP(D192,#REF!,2,FALSE) ->  | M192: 1
A193: =+B193&COUNTIF($B$3:B193,B193) -> 114818 | B193: =VLOOKUP(C193,'[1]GRUPOS VIGENTES'!$B$9:$C$115,2,FALSE) -> 1148 | C193: DOTACIÓN (EPP) Y EQUIP. Y HERRAM. SEGUR. INDUSTR. | D193: SIGMONSHOP | E193: El Caney - Valle del Cauca | F193: Cra 83A No. 45 - 59 Piso 2 | G193: 2- 4015063 3212151598 | H193: ventas@sigmonshop.com | I193: 191 | K193: =VLOOKUP(D193,#REF!,2,FALSE) ->  | M193: 1
A194: =+B194&COUNTIF($B$3:B194,B194) -> 114819 | B194: =VLOOKUP(C194,'[1]GRUPOS VIGENTES'!$B$9:$C$115,2,FALSE) -> 1148 | C194: DOTACIÓN (EPP) Y EQUIP. Y HERRAM. SEGUR. INDUSTR. | D194: TIENDAS EPP | E194: Bogotá | F194: Autopista Norte No.178 83 | G194: 6732200 311 2321328 | H194: comercial@tiendasepp.com | I194: 192 | K194: =VLOOKUP(D194,#REF!,2,FALSE) ->  | M194: 1
A195: =+B195&COUNTIF($B$3:B195,B195) -> 11111 | B195: =VLOOKUP(C195,'[1]GRUPOS VIGENTES'!$B$9:$C$115,2,FALSE) -> 1111 | C195: DUCTOS PVC - ELECTRICOS/TELEFONICOS TIPO TDP-DB-EB | D195: BIMBAU | E195: Bogotá | F195: Cra. 7 No. 83-29 | G195: 316 570 14 78 | H195: servicioalcliente@bimbau.co | I195: 193 | K195: =VLOOKUP(D195,#REF!,2,FALSE) ->  | M195: 1
A196: =+B196&COUNTIF($B$3:B196,B196) -> 11112 | B196: =VLOOKUP(C196,'[1]GRUPOS VIGENTES'!$B$9:$C$115,2,FALSE) -> 1111 | C196: DUCTOS PVC - ELECTRICOS/TELEFONICOS TIPO TDP-DB-EB | D196: DURMAN COLOMBIA S.A. | E196: Madrid - Cund | F196: Km 27 Via fontibon Facatativa Los Alpes | G196: 8200200 | H196: colombia@durmam.com | I196: 194 | K196: =VLOOKUP(D196,#REF!,2,FALSE) ->  | M196: =IFERROR(K196,1) -> 1
A197: =+B197&COUNTIF($B$3:B197,B197) -> 11113 | B197: =VLOOKUP(C197,'[1]GRUPOS VIGENTES'!$B$9:$C$115,2,FALSE) -> 1111 | C197: DUCTOS PVC - ELECTRICOS/TELEFONICOS TIPO TDP-DB-EB | D197: EASY | E197: Bogotá | F197: Av Americas No. 68 94 | G197: 4191400 | H197: www. Easy.com.co | I197: 195 | K197: =VLOOKUP(D197,#REF!,2,FALSE) ->  | M197: 1
A198: =+B198&COUNTIF($B$3:B198,B198) -> 11114 | B198: =VLOOKUP(C198,'[1]GRUPOS VIGENTES'!$B$9:$C$115,2,FALSE) -> 1111 | C198: DUCTOS PVC - ELECTRICOS/TELEFONICOS TIPO TDP-DB-EB | D198: GERFOR | E198: Bogotá | F198: Autopista Medellin Km 2.6 Entrda via Parcelas de Cota | G198: 2776800 | H198: contactenos@gerfor.com www.gerfor.com.co | I198: 196 | K198: =VLOOKUP(D198,#REF!,2,FALSE) ->  | M198: 1
A199: =+B199&COUNTIF($B$3:B199,B199) -> 11115 | B199: =VLOOKUP(C199,'[1]GRUPOS VIGENTES'!$B$9:$C$115,2,FALSE) -> 1111 | C199: DUCTOS PVC - ELECTRICOS/TELEFONICOS TIPO TDP-DB-EB | D199: HOMECENTER | E199: Bogotá | F199: Av Cra 68 No. 37 - 37 sur | G199: 3077115 | H199: www.homecenter.com | I199: 197 | K199: =VLOOKUP(D199,#REF!,2,FALSE) ->  | M199: 1
A200: =+B200&COUNTIF($B$3:B200,B200) -> 11116 | B200: =VLOOKUP(C200,'[1]GRUPOS VIGENTES'!$B$9:$C$115,2,FALSE) -> 1111 | C200: DUCTOS PVC - ELECTRICOS/TELEFONICOS TIPO TDP-DB-EB | D200: INETEL | E200: Bogotá | F200: Calle 37b Sur N°.68i-80 | G200: 741 5856 741 5865 | H200: comercial@inetelltda.com | I200: 198 | K200: =VLOOKUP(D200,#REF!,2,FALSE) ->  | M200: 1
... 659 more rows

Sheet Directorio Completo
B4: No. | C4: GRUPO BASE DE DATOS | D4: NOMBRE COMPLETO | E4: UBICACIÓN | F4: DIRECCION | G4: TELEFONO | H4: CORREO ELECTRONICO
B5: =+'LISTA TOTAL PROVEEDORES'!I3 -> 1 | C5: ='LISTA TOTAL PROVEEDORES'!C3 -> ACCESORIOS HD PARA REDES DE ACUEDUCTO | D5: =+'LISTA TOTAL PROVEEDORES'!D3 -> ACUATUBOS | E5: =+'LISTA TOTAL PROVEEDORES'!E3 -> Medellin - Antioquia | F5: =+'LISTA TOTAL PROVEEDORES'!F3 -> Cr 49 a 48 Sur 100 Bodega 102 UNIVEGAS | G5: =+'LISTA TOTAL PROVEEDORES'!G3 -> (4) 6043838 (1)3904005 Ext. 132 310 462 4960 310 459 6721 310 459 6723 314 888 0244 | H5: =+'LISTA TOTAL PROVEEDORES'!H3 -> atc.vip@acuatubos.com.co auxiliar.comercial2@acuatubos.com.co
B6: =+'LISTA TOTAL PROVEEDORES'!I4 -> 2 | C6: ='LISTA TOTAL PROVEEDORES'!C4 -> ACCESORIOS HD PARA REDES DE ACUEDUCTO | D6: =+'LISTA TOTAL PROVEEDORES'!D4 -> APOLO AVA | E6: =+'LISTA TOTAL PROVEEDORES'!E4 -> Bogotá | F6: =+'LISTA TOTAL PROVEEDORES'!F4 -> Cr 27 No. 17 -74 | G6: =+'LISTA TOTAL PROVEEDORES'!G4 -> 360 70 53 360 70 23 | H6: =+'LISTA TOTAL PROVEEDORES'!H4 -> apolo.bogota@apolo.net.co
B7: =+'LISTA TOTAL PROVEEDORES'!I5 -> 3 | C7: ='LISTA TOTAL PROVEEDORES'!C5 -> ACCESORIOS HD PARA REDES DE ACUEDUCTO | D7: =+'LISTA TOTAL PROVEEDORES'!D5 -> AQUA & GAS COLOMBIA SAS | E7: =+'LISTA TOTAL PROVEEDORES'!E5 -> Medellin - Antioquia | F7: =+'LISTA TOTAL PROVEEDORES'!F5 -> Cra 50C No 10sur - 120 Bodega 105 | G7: =+'LISTA TOTAL PROVEEDORES'!G5 -> 312 728 4320 | H7: =+'LISTA TOTAL PROVEEDORES'!H5 -> aquaygas@gmail.com
B8: =+'LISTA TOTAL PROVEEDORES'!I6 -> 4 | C8: ='LISTA TOTAL PROVEEDORES'!C6 -> ACCESORIOS HD PARA REDES DE ACUEDUCTO | D8: =+'LISTA TOTAL PROVEEDORES'!D6 -> BARNES DE COLOMBIA S.A. | E8: =+'LISTA TOTAL PROVEEDORES'!E6 -> Funza -Cund. | F8: =+'LISTA TOTAL PROVEEDORES'!F6 -> Autopista Bogota Medellin Km 7 Costado Occidental Antes de Peaje de Siberia. Celta Trade Park - Bodegas 86 y 93 | G8: =+'LISTA TOTAL PROVEEDORES'!G6 -> 743 9090 ext 8311-8312-8403-8402-8502 | H8: =+'LISTA TOTAL PROVEEDORES'!H6 -> distribucion@barnes.com.co industria@barnes.com.co construccion@barnes.com.co exportaciones@barnes.com.co
B9: =+'LISTA TOTAL PROVEEDORES'!I7 -> 5 | C9: ='LISTA TOTAL PROVEEDORES'!C7 -> ACCESORIOS HD PARA REDES DE ACUEDUCTO | D9: =+'LISTA TOTAL PROVEEDORES'!D7 -> COVAL | E9: =+'LISTA TOTAL PROVEEDORES'!E7 -> Cota - Cund. | F9: =+'LISTA TOTAL PROVEEDORES'!F7 -> Autopista Medellín Km 2.5 Parque Industrial Guadalajara, Bodega 3 | G9: =+'LISTA TOTAL PROVEEDORES'!G7 -> 8759100 Ext 141 3133858402 | H9: =+'LISTA TOTAL PROVEEDORES'!H7 -> patricia.santafe@coval.com info@coval.com.co norte@coval.com.co
B10: =+'LISTA TOTAL PROVEEDORES'!I8 -> 6 | C10: ='LISTA TOTAL PROVEEDORES'!C8 -> ACCESORIOS HD PARA REDES DE ACUEDUCTO | D10: =+'LISTA TOTAL PROVEEDORES'!D8 -> DURMAN COLOMBIA S.A. | E10: =+'LISTA TOTAL PROVEEDORES'!E8 -> Madrid - Cund | F10: =+'LISTA TOTAL PROVEEDORES'!F8 -> Km 27 Via fontibon Facatativa Los Alpes | G10: =+'LISTA TOTAL PROVEEDORES'!G8 -> 8200200 | H10: =+'LISTA TOTAL PROVEEDORES'!H8 -> colombia@durmam.com
B11: =+'LISTA TOTAL PROVEEDORES'!I9 -> 7 | C11: ='LISTA TOTAL PROVEEDORES'!C9 -> ACCESORIOS HD PARA REDES DE ACUEDUCTO | D11: =+'LISTA TOTAL PROVEEDORES'!D9 -> EASY | E11: =+'LISTA TOTAL PROVEEDORES'!E9 -> Bogotá | F11: =+'LISTA TOTAL PROVEEDORES'!F9 -> Av Americas No. 68 94 | G11: =+'LISTA TOTAL PROVEEDORES'!G9 -> 4191400 | H11: =+'LISTA TOTAL PROVEEDORES'!H9 -> www. Easy.com.co
B12: =+'LISTA TOTAL PROVEEDORES'!I10 -> 8 | C12: ='LISTA TOTAL PROVEEDORES'!C10 -> ACCESORIOS HD PARA REDES DE ACUEDUCTO | D12: =+'LISTA TOTAL PROVEEDORES'!D10 -> FERREACUEDUCTOS | E12: =+'LISTA TOTAL PROVEEDORES'!E10 -> Bogotá | F12: =+'LISTA TOTAL PROVEEDORES'!F10 -> Cll 26 # 69- 75 Torre 3 Ofc 1501 | G12: =+'LISTA TOTAL PROVEEDORES'!G10 -> 3103337311 3185662120 | H12: =+'LISTA TOTAL PROVEEDORES'!H10 -> servicioalcliente@ferreacueductos.com www.hidroconsulting.com.co
B13: =+'LISTA TOTAL PROVEEDORES'!I11 -> 9 | C13: ='LISTA TOTAL PROVEEDORES'!C11 -> ACCESORIOS HD PARA REDES DE ACUEDUCTO | D13: =+'LISTA TOTAL PROVEEDORES'!D11 -> FERRINCO - Ferreteria Rincon & Cia. S.A | E13: =+'LISTA TOTAL PROVEEDORES'!E11 -> Bogotá | F13: =+'LISTA TOTAL PROVEEDORES'!F11 -> Cl 15 No. 22 - 34 PALOQUEMAO | G13: =+'LISTA TOTAL PROVEEDORES'!G11 -> 3162272614 2084884 3706981 | H13: =+'LISTA TOTAL PROVEEDORES'!H11 -> ferrinco@ferrinco.com ventas@ferrinco.com
B14: =+'LISTA TOTAL PROVEEDORES'!I12 -> 10 | C14: ='LISTA TOTAL PROVEEDORES'!C12 -> ACCESORIOS HD PARA REDES DE ACUEDUCTO | D14: =+'LISTA TOTAL PROVEEDORES'!D12 -> FIMACA | E14: =+'LISTA TOTAL PROVEEDORES'!E12 -> Bogotá | F14: =+'LISTA TOTAL PROVEEDORES'!F12 -> Cr 22 Nº 86A-41 | G14: =+'LISTA TOTAL PROVEEDORES'!G12 -> 3185358895 | H14: =+'LISTA TOTAL PROVEEDORES'!H12 -> info@fimaca.com.co
B15: =+'LISTA TOTAL PROVEEDORES'!I13 -> 11 | C15: ='LISTA TOTAL PROVEEDORES'!C13 -> ACCESORIOS HD PARA REDES DE ACUEDUCTO | D15: =+'LISTA TOTAL PROVEEDORES'!D13 -> FUNDICIONES DE LIMA S.A. | E15: =+'LISTA TOTAL PROVEEDORES'!E13 -> Bogotá | F15: =+'LISTA TOTAL PROVEEDORES'!F13 -> Cl 85 A No. 20 - 48 Oficina 1 Polo Club | G15: =+'LISTA TOTAL PROVEEDORES'!G13 -> 7868211 3135741376 | H15: =+'LISTA TOTAL PROVEEDORES'!H13 -> karen.urquijo@fundelima.com
B16: =+'LISTA TOTAL PROVEEDORES'!I14 -> 12 | C16: ='LISTA TOTAL PROVEEDORES'!C14 -> ACCESORIOS HD PARA REDES DE ACUEDUCTO | D16: =+'LISTA TOTAL PROVEEDORES'!D14 -> HELBERT Y CIA | E16: =+'LISTA TOTAL PROVEEDORES'!E14 -> Bogotá | F16: =+'LISTA TOTAL PROVEEDORES'!F14 -> Av.Cra 40 No. 20-73 | G16: =+'LISTA TOTAL PROVEEDORES'!G14 -> 3681077 | H16: =+'LISTA TOTAL PROVEEDORES'!H14 -> ventas@helbertycia.com
B17: =+'LISTA TOTAL PROVEEDORES'!I15 -> 13 | C17: ='LISTA TOTAL PROVEEDORES'!C15 -> ACCESORIOS HD PARA REDES DE ACUEDUCTO | D17: =+'LISTA TOTAL PROVEEDORES'!D15 -> HIDROEQUIPO | E17: =+'LISTA TOTAL PROVEEDORES'!E15 -> Cali - Valle del Cauca | F17: =+'LISTA TOTAL PROVEEDORES'!F15 -> Av. 3 Bis Norte No. 23 CN-35 | G17: =+'LISTA TOTAL PROVEEDORES'!G15 -> 653 0033 315 471 8248 | H17: =+'LISTA TOTAL PROVEEDORES'!H15 -> info@hidroequipos.com.co
B18: =+'LISTA TOTAL PROVEEDORES'!I16 -> 14 | C18: ='LISTA TOTAL PROVEEDORES'!C16 -> ACCESORIOS HD PARA REDES DE ACUEDUCTO | D18: =+'LISTA TOTAL PROVEEDORES'!D16 -> HOMECENTER | E18: =+'LISTA TOTAL PROVEEDORES'!E16 -> Bogotá | F18: =+'LISTA TOTAL PROVEEDORES'!F16 -> Av Cra 68 No. 37 - 37 sur | G18: =+'LISTA TOTAL PROVEEDORES'!G16 -> 3077115 | H18: =+'LISTA TOTAL PROVEEDORES'!H16 -> www.homecenter.com
B19: =+'LISTA TOTAL PROVEEDORES'!I17 -> 15 | C19: ='LISTA TOTAL PROVEEDORES'!C17 -> ACCESORIOS HD PARA REDES DE ACUEDUCTO | D19: =+'LISTA TOTAL PROVEEDORES'!D17 -> KAIZEN GROUP INGENIERÍA | E19: =+'LISTA TOTAL PROVEEDORES'!E17 -> Bogotá | F19: =+'LISTA TOTAL PROVEEDORES'!F17 -> Cr 7D No 183 -34, Bogotá D.C - Colombia | G19: =+'LISTA TOTAL PROVEEDORES'!G17 -> 6724658 / 3212456420 | H19: =+'LISTA TOTAL PROVEEDORES'!H17 -> comercial@kaizengroup.com.co
B20: =+'LISTA TOTAL PROVEEDORES'!I18 -> 16 | C20: ='LISTA TOTAL PROVEEDORES'!C18 -> ACCESORIOS HD PARA REDES DE ACUEDUCTO | D20: =+'LISTA TOTAL PROVEEDORES'!D18 -> METACOL S.A | E20: =+'LISTA TOTAL PROVEEDORES'!E18 -> Bogotá | F20: =+'LISTA TOTAL PROVEEDORES'!F18 -> Dg 34 Bis 17 - 58 | G20: =+'LISTA TOTAL PROVEEDORES'!G18 -> 5116262 Ext 211 | H20: =+'LISTA TOTAL PROVEEDORES'!H18 -> mercadeo@metacol.com
B21: =+'LISTA TOTAL PROVEEDORES'!I19 -> 17 | C21: ='LISTA TOTAL PROVEEDORES'!C19 -> ACCESORIOS HD PARA REDES DE ACUEDUCTO | D21: =+'LISTA TOTAL PROVEEDORES'!D19 -> TECHNOLOGIES TRADE | E21: =+'LISTA TOTAL PROVEEDORES'!E19 -> Bogotá | F21: =+'LISTA TOTAL PROVEEDORES'!F19 -> Cr 38 No. 10 - 90 Local 1071 | G21: =+'LISTA TOTAL PROVEEDORES'!G19 -> 313 2221067 3164969160 | H21: =+'LISTA TOTAL PROVEEDORES'!H19 -> ventas@tdt.com.co
B22: =+'LISTA TOTAL PROVEEDORES'!I20 -> 18 | C22: ='LISTA TOTAL PROVEEDORES'!C20 -> ACCESORIOS HD PARA REDES DE ACUEDUCTO | D22: =+'LISTA TOTAL PROVEEDORES'!D20 -> TUFERRETERIA.COM | E22: =+'LISTA TOTAL PROVEEDORES'!E20 -> Bogotá | F22: =+'LISTA TOTAL PROVEEDORES'!F20 -> www.tuferreteria.com.co | G22: =+'LISTA TOTAL PROVEEDORES'!G20 -> 3144440415 | H22: =+'LISTA TOTAL PROVEEDORES'!H20 -> Comercial@tuferreteria.com.co
B23: =+'LISTA TOTAL PROVEEDORES'!I21 -> 19 | C23: ='LISTA TOTAL PROVEEDORES'!C21 -> ACCESORIOS HD PARA REDES DE ACUEDUCTO | D23: =+'LISTA TOTAL PROVEEDORES'!D21 -> TUVALREP SAS | E23: =+'LISTA TOTAL PROVEEDORES'!E21 -> Bogotá | F23: =+'LISTA TOTAL PROVEEDORES'!F21 -> Av Cl 13 No. 22- 72 | G23: =+'LISTA TOTAL PROVEEDORES'!G21 -> 2015415 3713386 | H23: =+'LISTA TOTAL PROVEEDORES'!H21 -> tuvalrep@tuvalrep.com.co
B24: =+'LISTA TOTAL PROVEEDORES'!I22 -> 20 | C24: ='LISTA TOTAL PROVEEDORES'!C22 -> ACTIVIDADES A TODO COSTO | D24: =+'LISTA TOTAL PROVEEDORES'!D22 -> ABC TRANSFORMADORES E INGENIERIA ELECTROMECÁNICA | E24: =+'LISTA TOTAL PROVEEDORES'!E22 -> Bogotá | F24: =+'LISTA TOTAL PROVEEDORES'!F22 -> Cr 27 No. 7 - 42 | G24: =+'LISTA TOTAL PROVEEDORES'!G22 -> 5213180 2015059 3105612639 3105612635 2016468 | H24: =+'LISTA TOTAL PROVEEDORES'!H22 -> mercadeo@transformadoresabc.com comercialbogota@transformadoresabc.com
B25: =+'LISTA TOTAL PROVEEDORES'!I23 -> 21 | C25: ='LISTA TOTAL PROVEEDORES'!C23 -> ACTIVIDADES A TODO COSTO | D25: =+'LISTA TOTAL PROVEEDORES'!D23 -> ACABADOS ARQUITECTONICOS ROWCAST | E25: =+'LISTA TOTAL PROVEEDORES'!E23 -> Bogotá | F25: =+'LISTA TOTAL PROVEEDORES'!F23 -> Cra 53 D No 128A - 74 | G25: =+'LISTA TOTAL PROVEEDORES'!G23 -> 7320310 315 700 6533 | H25: =+'LISTA TOTAL PROVEEDORES'!H23 -> obrasbogota@rowcast.com
B26: =+'LISTA TOTAL PROVEEDORES'!I24 -> 22 | C26: ='LISTA TOTAL PROVEEDORES'!C24 -> ACTIVIDADES A TODO COSTO | D26: =+'LISTA TOTAL PROVEEDORES'!D24 -> ACEROS Y ALUMINIOS S&P SAS | E26: =+'LISTA TOTAL PROVEEDORES'!E24 -> Bogotá | F26: =+'LISTA TOTAL PROVEEDORES'!F24 -> Cr 80 P # 85 31 SUR B | G26: =+'LISTA TOTAL PROVEEDORES'!G24 -> 3146037363 | H26: =+'LISTA TOTAL PROVEEDORES'!H24 -> admonacerosyaluminios@gmail.com
B27: =+'LISTA TOTAL PROVEEDORES'!I25 -> 23 | C27: ='LISTA TOTAL PROVEEDORES'!C25 -> ACTIVIDADES A TODO COSTO | D27: =+'LISTA TOTAL PROVEEDORES'!D25 -> ALUMINIOS, ACEROS Y VIDRIOS S.A.S | E27: =+'LISTA TOTAL PROVEEDORES'!E25 -> Bogotá | F27: =+'LISTA TOTAL PROVEEDORES'!F25 -> CALLE 73D SUR No. 82G-18 | G27: =+'LISTA TOTAL PROVEEDORES'!G25 -> 6810603 3116075731 | H27: =+'LISTA TOTAL PROVEEDORES'!H25 -> mtaluminios@gmail.com
B28: =+'LISTA TOTAL PROVEEDORES'!I26 -> 24 | C28: ='LISTA TOTAL PROVEEDORES'!C26 -> ACTIVIDADES A TODO COSTO | D28: =+'LISTA TOTAL PROVEEDORES'!D26 -> AMVAR WORLD SAS | E28: =+'LISTA TOTAL PROVEEDORES'!E26 -> Pereira | F28: =+'LISTA TOTAL PROVEEDORES'!F26 -> Cl 20 No. 6-30 | G28: =+'LISTA TOTAL PROVEEDORES'!G26 -> 6810603 3116075731 | H28: =+'LISTA TOTAL PROVEEDORES'!H26 -> servicioalcliente@amvarworld.com ventas@amvarworld.com
B29: =+'LISTA TOTAL PROVEEDORES'!I27 -> 25 | C29: ='LISTA TOTAL PROVEEDORES'!C27 -> ACTIVIDADES A TODO COSTO | D29: =+'LISTA TOTAL PROVEEDORES'!D27 -> ANDIMALLAS & ANDIMETALES | E29: =+'LISTA TOTAL PROVEEDORES'!E27 -> Cajicá - Cund. | F29: =+'LISTA TOTAL PROVEEDORES'!F27 -> Calle 4S # 3-83/89 | G29: =+'LISTA TOTAL PROVEEDORES'!G27 -> 8661961 3176571211 | H29: =+'LISTA TOTAL PROVEEDORES'!H27 -> info@andimallas.com
B30: =+'LISTA TOTAL PROVEEDORES'!I28 -> 26 | C30: ='LISTA TOTAL PROVEEDORES'!C28 -> ACTIVIDADES A TODO COSTO | D30: =+'LISTA TOTAL PROVEEDORES'!D28 -> APICOM | E30: =+'LISTA TOTAL PROVEEDORES'!E28 -> Bogotá | F30: =+'LISTA TOTAL PROVEEDORES'!F28 -> Cl 98 No. 70 – 91 Of. 417, | G30: =+'LISTA TOTAL PROVEEDORES'!G28 -> 744 1550 | H30: =+'LISTA TOTAL PROVEEDORES'!H28 -> erika.calvo@apicom.com.co
B31: =+'LISTA TOTAL PROVEEDORES'!I29 -> 27 | C31: ='LISTA TOTAL PROVEEDORES'!C29 -> ACTIVIDADES A TODO COSTO | D31: =+'LISTA TOTAL PROVEEDORES'!D29 -> AW ELECTRONICA SAS | E31: =+'LISTA TOTAL PROVEEDORES'!E29 -> Bogotá | F31: =+'LISTA TOTAL PROVEEDORES'!F29 -> Carrera 13 No.38-29 Piso 2 | G31: =+'LISTA TOTAL PROVEEDORES'!G29 -> 340 2856 / 57 340 2854 | H31: =+'LISTA TOTAL PROVEEDORES'!H29 -> awelectronica@awelectronica.com
B32: =+'LISTA TOTAL PROVEEDORES'!I30 -> 28 | C32: ='LISTA TOTAL PROVEEDORES'!C30 -> ACTIVIDADES A TODO COSTO | D32: =+'LISTA TOTAL PROVEEDORES'!D30 -> BIOFRACTAL ARQUITECTURA LIVIANA | E32: =+'LISTA TOTAL PROVEEDORES'!E30 -> Bogotá | F32: =+'LISTA TOTAL PROVEEDORES'!F30 -> Cra. 62 #98-16 | G32: =+'LISTA TOTAL PROVEEDORES'!G30 -> 2210831 318 222 1076 | H32: =+'LISTA TOTAL PROVEEDORES'!H30 -> biofractal.as@gmail.com
B33: =+'LISTA TOTAL PROVEEDORES'!I31 -> 29 | C33: ='LISTA TOTAL PROVEEDORES'!C31 -> ACTIVIDADES A TODO COSTO | D33: =+'LISTA TOTAL PROVEEDORES'!D31 -> CABLES Y GUAYAS ALGOFER | E33: =+'LISTA TOTAL PROVEEDORES'!E31 -> Bogotá | F33: =+'LISTA TOTAL PROVEEDORES'!F31 -> Cra. 109A No. 66 - 33 | G33: =+'LISTA TOTAL PROVEEDORES'!G31 -> (57) (1) 434 5598 3133184817 3214983819 | H33: =+'LISTA TOTAL PROVEEDORES'!H31 -> servicioalcliente@cablesyguayasalgofer.com
B34: =+'LISTA TOTAL PROVEEDORES'!I32 -> 30 | C34: ='LISTA TOTAL PROVEEDORES'!C32 -> ACTIVIDADES A TODO COSTO | D34: =+'LISTA TOTAL PROVEEDORES'!D32 -> CARPAS E INGENIERÍA | E34: =+'LISTA TOTAL PROVEEDORES'!E32 -> Bogotá | F34: =+'LISTA TOTAL PROVEEDORES'!F32 -> Cl 9 32 A 41 | G34: =+'LISTA TOTAL PROVEEDORES'!G32 -> 3102360339 5618623 | H34: =+'LISTA TOTAL PROVEEDORES'!H32 -> ventas@carpascolombia.com
B35: =+'LISTA TOTAL PROVEEDORES'!I33 -> 31 | C35: ='LISTA TOTAL PROVEEDORES'!C33 -> ACTIVIDADES A TODO COSTO | D35: =+'LISTA TOTAL PROVEEDORES'!D33 -> CARPAS Y PARASOLES LEON SAS | E35: =+'LISTA TOTAL PROVEEDORES'!E33 -> Bogotá | F35: =+'LISTA TOTAL PROVEEDORES'!F33 -> Cr 77I No. 65B - 37 sur | G35: =+'LISTA TOTAL PROVEEDORES'!G33 -> (57) (1) 7801565 310 865 9014 316 578 6753 310 865 9019 | H35: =+'LISTA TOTAL PROVEEDORES'!H33 -> ventas@carpasleon.com alquileresyventas@carpasleon.com alquileres@carpasleon.com comercial2@carpasleon.com
B36: =+'LISTA TOTAL PROVEEDORES'!I34 -> 32 | C36: ='LISTA TOTAL PROVEEDORES'!C34 -> ACTIVIDADES A TODO COSTO | D36: =+'LISTA TOTAL PROVEEDORES'!D34 -> CENTRIACEROS H A | E36: =+'LISTA TOTAL PROVEEDORES'!E34 -> Bogotá | F36: =+'LISTA TOTAL PROVEEDORES'!F34 -> Cra 42 No. 22A - 23 | G36: =+'LISTA TOTAL PROVEEDORES'!G34 -> 269 1944 738 8385 | H36: =+'LISTA TOTAL PROVEEDORES'!H34 -> administrativo@centriaceros.com
B37: =+'LISTA TOTAL PROVEEDORES'!I35 -> 33 | C37: ='LISTA TOTAL PROVEEDORES'!C35 -> ACTIVIDADES A TODO COSTO | D37: =+'LISTA TOTAL PROVEEDORES'!D35 -> CEPLASS | E37: =+'LISTA TOTAL PROVEEDORES'!E35 -> Bogotá | F37: =+'LISTA TOTAL PROVEEDORES'!F35 -> Cr 25BIS No. 3-18 sur | G37: =+'LISTA TOTAL PROVEEDORES'!G35 -> 4673073 3134237817 | H37: =+'LISTA TOTAL PROVEEDORES'!H35 -> Admin@ceplass.com
B38: =+'LISTA TOTAL PROVEEDORES'!I36 -> 34 | C38: ='LISTA TOTAL PROVEEDORES'!C36 -> ACTIVIDADES A TODO COSTO | D38: =+'LISTA TOTAL PROVEEDORES'!D36 -> CIELOS RASOS & DIVISIONES | E38: =+'LISTA TOTAL PROVEEDORES'!E36 -> Bogotá | F38: =+'LISTA TOTAL PROVEEDORES'!F36 -> Cr 14 75.58 | G38: =+'LISTA TOTAL PROVEEDORES'!G36 -> 2481860 310 5774471 | H38: =+'LISTA TOTAL PROVEEDORES'!H36 -> ventas@cielosrasos.com
B39: =+'LISTA TOTAL PROVEEDORES'!I37 -> 35 | C39: ='LISTA TOTAL PROVEEDORES'!C37 -> ACTIVIDADES A TODO COSTO | D39: =+'LISTA TOTAL PROVEEDORES'!D37 -> CIVALCO LTDA | E39: =+'LISTA TOTAL PROVEEDORES'!E37 -> Bogotá | F39: =+'LISTA TOTAL PROVEEDORES'!F37 -> Carrera 17 # 36-38 | G39: =+'LISTA TOTAL PROVEEDORES'!G37 -> 285 38 57 | H39: =+'LISTA TOTAL PROVEEDORES'!H37 -> civalco@civalco.com
B40: =+'LISTA TOTAL PROVEEDORES'!I38 -> 36 | C40: ='LISTA TOTAL PROVEEDORES'!C38 -> ACTIVIDADES A TODO COSTO | D40: =+'LISTA TOTAL PROVEEDORES'!D38 -> COLGRASS SAS | E40: =+'LISTA TOTAL PROVEEDORES'!E38 -> Medellin - Antioquia | F40: =+'LISTA TOTAL PROVEEDORES'!F38 -> Carrera 25 1a° sur 155 Edificio Platinum Superior Of 341 | G40: =+'LISTA TOTAL PROVEEDORES'!G38 -> 353 70 32 3182860092 | H40: =+'LISTA TOTAL PROVEEDORES'!H38 -> colgrass@une.net.co
B41: =+'LISTA TOTAL PROVEEDORES'!I39 -> 37 | C41: ='LISTA TOTAL PROVEEDORES'!C39 -> ACTIVIDADES A TODO COSTO | D41: =+'LISTA TOTAL PROVEEDORES'!D39 -> COMPAÑÍA DE RECUBRIMIENTOS Y ADHESIVOS LTDA (CREA) | E41: =+'LISTA TOTAL PROVEEDORES'!E39 -> Bogotá | F41: =+'LISTA TOTAL PROVEEDORES'!F39 -> Cl 75 No.69 K- 54 | G41: =+'LISTA TOTAL PROVEEDORES'!G39 -> 7452545 | H41: =+'LISTA TOTAL PROVEEDORES'!H39 -> crealtda@hotmail.com pinturaslaser@gmail.com
B42: =+'LISTA TOTAL PROVEEDORES'!I40 -> 38 | C42: ='LISTA TOTAL PROVEEDORES'!C40 -> ACTIVIDADES A TODO COSTO | D42: =+'LISTA TOTAL PROVEEDORES'!D40 -> COVAL | E42: =+'LISTA TOTAL PROVEEDORES'!E40 -> Cota - Cund. | F42: =+'LISTA TOTAL PROVEEDORES'!F40 -> Autopista Medellín Km 2.5 Parque Industrial Guadalajara, Bodega 3 | G42: =+'LISTA TOTAL PROVEEDORES'!G40 -> 8759100 Ext 141 3133858402 | H42: =+'LISTA TOTAL PROVEEDORES'!H40 -> patricia.santafe@coval.com info@coval.com.co norte@coval.com.co
B43: =+'LISTA TOTAL PROVEEDORES'!I41 -> 39 | C43: ='LISTA TOTAL PROVEEDORES'!C41 -> ACTIVIDADES A TODO COSTO | D43: =+'LISTA TOTAL PROVEEDORES'!D41 -> CURPEZ SAS | E43: =+'LISTA TOTAL PROVEEDORES'!E41 -> Bogotá | F43: =+'LISTA TOTAL PROVEEDORES'!F41 -> 0 | G43: =+'LISTA TOTAL PROVEEDORES'!G41 -> 3132525674 | H43: =+'LISTA TOTAL PROVEEDORES'!H41 -> margarita.currea@curpez.com
B44: =+'LISTA TOTAL PROVEEDORES'!I42 -> 40 | C44: ='LISTA TOTAL PROVEEDORES'!C42 -> ACTIVIDADES A TODO COSTO | D44: =+'LISTA TOTAL PROVEEDORES'!D42 -> EQUIPOS Y CONTROLES INDUSTRIALES SA - ECI | E44: =+'LISTA TOTAL PROVEEDORES'!E42 -> Bogotá | F44: =+'LISTA TOTAL PROVEEDORES'!F42 -> Calle 23 # 116-31 Piso 4 | G44: =+'LISTA TOTAL PROVEEDORES'!G42 -> 3275151 7457474 | H44: =+'LISTA TOTAL PROVEEDORES'!H42 -> ecisales@eci.com.co
B45: =+'LISTA TOTAL PROVEEDORES'!I43 -> 41 | C45: ='LISTA TOTAL PROVEEDORES'!C43 -> ACTIVIDADES A TODO COSTO | D45: =+'LISTA TOTAL PROVEEDORES'!D43 -> FIBRIT S.A. PREFABRICADOS EN CONCRETO Y CEMENTO | E45: =+'LISTA TOTAL PROVEEDORES'!E43 -> Bogotá | F45: =+'LISTA TOTAL PROVEEDORES'!F43 -> Calle 90 #14-26 Of. 218 | G45: =+'LISTA TOTAL PROVEEDORES'!G43 -> 7457443 | H45: =+'LISTA TOTAL PROVEEDORES'!H43 -> info@fibrit.com
B46: =+'LISTA TOTAL PROVEEDORES'!I44 -> 42 | C46: ='LISTA TOTAL PROVEEDORES'!C44 -> ACTIVIDADES A TODO COSTO | D46: =+'LISTA TOTAL PROVEEDORES'!D44 -> G&S SOLUCIONES DE INGENIERÍA | E46: =+'LISTA TOTAL PROVEEDORES'!E44 -> Bogotá | F46: =+'LISTA TOTAL PROVEEDORES'!F44 -> Diagonal 16 C No. 97–29 | G46: =+'LISTA TOTAL PROVEEDORES'!G44 -> 3125103779 | H46: =+'LISTA TOTAL PROVEEDORES'!H44 -> contacto@gsingenieria.com.co
B47: =+'LISTA TOTAL PROVEEDORES'!I45 -> 43 | C47: ='LISTA TOTAL PROVEEDORES'!C45 -> ACTIVIDADES A TODO COSTO | D47: =+'LISTA TOTAL PROVEEDORES'!D45 -> GRABADO Y CORTE LASER BOGOTA | E47: =+'LISTA TOTAL PROVEEDORES'!E45 -> Bogotá | F47: =+'LISTA TOTAL PROVEEDORES'!F45 -> Cr 27B No. 24B - 23 | G47: =+'LISTA TOTAL PROVEEDORES'!G45 -> 368 8622 5602421 310 7603311 | H47: =+'LISTA TOTAL PROVEEDORES'!H45 -> comercial@grabadoycortelaser.com ventas@grabadoycortelaser.com contactenos@grabadoycortelaser.com
B48: =+'LISTA TOTAL PROVEEDORES'!I46 -> 44 | C48: ='LISTA TOTAL PROVEEDORES'!C46 -> ACTIVIDADES A TODO COSTO | D48: =+'LISTA TOTAL PROVEEDORES'!D46 -> HB SADELEC Estructuras Metálicas | E48: =+'LISTA TOTAL PROVEEDORES'!E46 -> Bogotá | F48: =+'LISTA TOTAL PROVEEDORES'!F46 -> Avda. Cra. 129 17 F 97 | G48: =+'LISTA TOTAL PROVEEDORES'!G46 -> 4224700 Ext. 121 4155620 | H48: =+'LISTA TOTAL PROVEEDORES'!H46 -> david.castellanos@hbsadelec.com.co
B49: =+'LISTA TOTAL PROVEEDORES'!I47 -> 45 | C49: ='LISTA TOTAL PROVEEDORES'!C47 -> ACTIVIDADES A TODO COSTO | D49: =+'LISTA TOTAL PROVEEDORES'!D47 -> INDUSTRIAS METALICAS GRAG S.A.S. | E49: =+'LISTA TOTAL PROVEEDORES'!E47 -> Bogotá | F49: =+'LISTA TOTAL PROVEEDORES'!F47 -> Carrera 27 # 10 - 35 | G49: =+'LISTA TOTAL PROVEEDORES'!G47 -> 805 9374 805 9374 277 3540 | H49: =+'LISTA TOTAL PROVEEDORES'!H47 -> metalicasgrag@yahoo.es
B50: =+'LISTA TOTAL PROVEEDORES'!I48 -> 46 | C50: ='LISTA TOTAL PROVEEDORES'!C48 -> ACTIVIDADES A TODO COSTO | D50: =+'LISTA TOTAL PROVEEDORES'!D48 -> INTEGRACIONVIAL - Industria de señalización y segu | E50: =+'LISTA TOTAL PROVEEDORES'!E48 -> Cali - Valle del Cauca | F50: =+'LISTA TOTAL PROVEEDORES'!F48 -> CALLE 25 N 5 N 47 OFICINA 323 | G50: =+'LISTA TOTAL PROVEEDORES'!G48 -> 4854822 | H50: =+'LISTA TOTAL PROVEEDORES'!H48 -> 0
B51: =+'LISTA TOTAL PROVEEDORES'!I49 -> 47 | C51: ='LISTA TOTAL PROVEEDORES'!C49 -> ACTIVIDADES A TODO COSTO | D51: =+'LISTA TOTAL PROVEEDORES'!D49 -> K-TECNOL SAING SAS | E51: =+'LISTA TOTAL PROVEEDORES'!E49 -> Bogotá | F51: =+'LISTA TOTAL PROVEEDORES'!F49 -> Cl 98 No. 22 – 64 of. 1014 | G51: =+'LISTA TOTAL PROVEEDORES'!G49 -> 7451447 310 300 1836 | H51: =+'LISTA TOTAL PROVEEDORES'!H49 -> info@ktecnol.com
B52: =+'LISTA TOTAL PROVEEDORES'!I50 -> 48 | C52: ='LISTA TOTAL PROVEEDORES'!C50 -> ACTIVIDADES A TODO COSTO | D52: =+'LISTA TOTAL PROVEEDORES'!D50 -> LA CASA DE LA UPS | E52: =+'LISTA TOTAL PROVEEDORES'!E50 -> Bogotá | F52: =+'LISTA TOTAL PROVEEDORES'!F50 -> Cra 24 # 76-24 Juan 23 | G52: =+'LISTA TOTAL PROVEEDORES'!G50 -> 345 33 95 314 260 65 92 | H52: =+'LISTA TOTAL PROVEEDORES'!H50 -> ventasnacionales@casaups.com
B53: =+'LISTA TOTAL PROVEEDORES'!I51 -> 49 | C53: ='LISTA TOTAL PROVEEDORES'!C51 -> ACTIVIDADES A TODO COSTO | D53: =+'LISTA TOTAL PROVEEDORES'!D51 -> LOZANO BRANDO INGENIERIA HORIZONTAL SAS | E53: =+'LISTA TOTAL PROVEEDORES'!E51 -> Bogotá | F53: =+'LISTA TOTAL PROVEEDORES'!F51 -> Cr 13 No.32 93 TO 1 OF 1007 | G53: =+'LISTA TOTAL PROVEEDORES'!G51 -> 3154115410 | H53: =+'LISTA TOTAL PROVEEDORES'!H51 -> 0
B54: =+'LISTA TOTAL PROVEEDORES'!I52 -> 50 | C54: ='LISTA TOTAL PROVEEDORES'!C52 -> ACTIVIDADES A TODO COSTO | D54: =+'LISTA TOTAL PROVEEDORES'!D52 -> MAJOMAR INGENIERIA SAS | E54: =+'LISTA TOTAL PROVEEDORES'!E52 -> Bogotá | F54: =+'LISTA TOTAL PROVEEDORES'!F52 -> Cr 51B No. 18-21 | G54: =+'LISTA TOTAL PROVEEDORES'!G52 -> 316 8042687 | H54: =+'LISTA TOTAL PROVEEDORES'!H52 -> ingerma2010@htmail.com
B55: =+'LISTA TOTAL PROVEEDORES'!I53 -> 51 | C55: ='LISTA TOTAL PROVEEDORES'!C53 -> ACTIVIDADES A TODO COSTO | D55: =+'LISTA TOTAL PROVEEDORES'!D53 -> MUNDIAL DE CARPAS | E55: =+'LISTA TOTAL PROVEEDORES'!E53 -> Bogotá | F55: =+'LISTA TOTAL PROVEEDORES'!F53 -> Cr 71D No.72-40 | G55: =+'LISTA TOTAL PROVEEDORES'!G53 -> 468 71 76 311 201 3867 313 878 7447 | H55: =+'LISTA TOTAL PROVEEDORES'!H53 -> info@mundialdecarpas.com
B56: =+'LISTA TOTAL PROVEEDORES'!I54 -> 52 | C56: ='LISTA TOTAL PROVEEDORES'!C54 -> ACTIVIDADES A TODO COSTO | D56: =+'LISTA TOTAL PROVEEDORES'!D54 -> NACIONAL DE ELECTRICOS | E56: =+'LISTA TOTAL PROVEEDORES'!E54 -> Bogotá | F56: =+'LISTA TOTAL PROVEEDORES'!F54 -> Calle 15 12 81 | G56: =+'LISTA TOTAL PROVEEDORES'!G54 -> 3114758165 2543720 Ext. 1502 | H56: =+'LISTA TOTAL PROVEEDORES'!H54 -> centro1@nalelectricos.com.co www.nalelectricos.com.co
B57: =+'LISTA TOTAL PROVEEDORES'!I55 -> 53 | C57: ='LISTA TOTAL PROVEEDORES'!C55 -> ACTIVIDADES A TODO COSTO | D57: =+'LISTA TOTAL PROVEEDORES'!D55 -> PLASTEMPACK DE COLOMBIA SAS | E57: =+'LISTA TOTAL PROVEEDORES'!E55 -> Mosquera | F57: =+'LISTA TOTAL PROVEEDORES'!F55 -> Parque Industrial San Jorge Mz. P5 Bodega # 52 Troncal de Occidente Km 19 Vía Bogotá - Mosquera - Madrid. | G57: =+'LISTA TOTAL PROVEEDORES'!G55 -> 8295743 8295798 3202149004 3219834472 | H57: =+'LISTA TOTAL PROVEEDORES'!H55 -> contacto@plastempack.com
B58: =+'LISTA TOTAL PROVEEDORES'!I56 -> 54 | C58: ='LISTA TOTAL PROVEEDORES'!C56 -> ACTIVIDADES A TODO COSTO | D58: =+'LISTA TOTAL PROVEEDORES'!D56 -> PROELÉCTRICOS | E58: =+'LISTA TOTAL PROVEEDORES'!E56 -> Bogotá | F58: =+'LISTA TOTAL PROVEEDORES'!F56 -> CALLE 12 A No. 21 - 21 | G58: =+'LISTA TOTAL PROVEEDORES'!G56 -> 2471255 EXT. 301 | H58: =+'LISTA TOTAL PROVEEDORES'!H56 -> presupuestos@proelectricos.com
B59: =+'LISTA TOTAL PROVEEDORES'!I57 -> 55 | C59: ='LISTA TOTAL PROVEEDORES'!C57 -> ACTIVIDADES A TODO COSTO | D59: =+'LISTA TOTAL PROVEEDORES'!D57 -> RENOVACION SIN ZANJA | E59: =+'LISTA TOTAL PROVEEDORES'!E57 -> Bogotá | F59: =+'LISTA TOTAL PROVEEDORES'!F57 -> Autopista sur No. 71 - 75 | G59: =+'LISTA TOTAL PROVEEDORES'!G57 -> 7825000 ext 1105 | H59: =+'LISTA TOTAL PROVEEDORES'!H57 -> servicio@pavco.com.co
B60: =+'LISTA TOTAL PROVEEDORES'!I58 -> 56 | C60: ='LISTA TOTAL PROVEEDORES'!C58 -> ACTIVIDADES A TODO COSTO | D60: =+'LISTA TOTAL PROVEEDORES'!D58 -> SEÑAL VIAS SAS | E60: =+'LISTA TOTAL PROVEEDORES'!E58 -> Bogotá | F60: =+'LISTA TOTAL PROVEEDORES'!F58 -> Cra 27c No 71-43 | G60: =+'LISTA TOTAL PROVEEDORES'!G58 -> (1) 225 2182 313 817 6159 | H60: =+'LISTA TOTAL PROVEEDORES'!H58 -> info@senalvialsas.com
B61: =+'LISTA TOTAL PROVEEDORES'!I59 -> 57 | C61: ='LISTA TOTAL PROVEEDORES'!C59 -> ACTIVIDADES A TODO COSTO | D61: =+'LISTA TOTAL PROVEEDORES'!D59 -> SERVI INTEGRALES ELECTRICOS SAS | E61: =+'LISTA TOTAL PROVEEDORES'!E59 -> Bogotá | F61: =+'LISTA TOTAL PROVEEDORES'!F59 -> Cr 53 No.76 – 82 | G61: =+'LISTA TOTAL PROVEEDORES'!G59 -> 3123792586 | H61: =+'LISTA TOTAL PROVEEDORES'!H59 -> info@sieingenieria.co
B62: =+'LISTA TOTAL PROVEEDORES'!I60 -> 58 | C62: ='LISTA TOTAL PROVEEDORES'!C60 -> ACTIVIDADES A TODO COSTO | D62: =+'LISTA TOTAL PROVEEDORES'!D60 -> SISELCOM (Sitemas Eléctricos y de Comunicaciones SAS) | E62: =+'LISTA TOTAL PROVEEDORES'!E60 -> Bogotá | F62: =+'LISTA TOTAL PROVEEDORES'!F60 -> Cr 73 A No. 10 A-37 | G62: =+'LISTA TOTAL PROVEEDORES'!G60 -> 3868071 3174153803 | H62: =+'LISTA TOTAL PROVEEDORES'!H60 -> servicio@siselcom.co
B63: =+'LISTA TOTAL PROVEEDORES'!I61 -> 59 | C63: ='LISTA TOTAL PROVEEDORES'!C61 -> ACTIVIDADES A TODO COSTO | D63: =+'LISTA TOTAL PROVEEDORES'!D61 -> SOCODA | E63: =+'LISTA TOTAL PROVEEDORES'!E61 -> Bogotá | F63: =+'LISTA TOTAL PROVEEDORES'!F61 -> Av. Carrera 45 # 136 - 51 | G63: =+'LISTA TOTAL PROVEEDORES'!G61 -> 766 62 40 01 8000 41 06 00 | H63: =+'LISTA TOTAL PROVEEDORES'!H61 -> info@socoda.com.co
B64: =+'LISTA TOTAL PROVEEDORES'!I62 -> 60 | C64: ='LISTA TOTAL PROVEEDORES'!C62 -> ACTIVIDADES A TODO COSTO | D64: =+'LISTA TOTAL PROVEEDORES'!D62 -> SOLUCIONES EN DISEÑO E INGENIERÍA SAS | E64: =+'LISTA TOTAL PROVEEDORES'!E62 -> El Rosal - Cund. | F64: =+'LISTA TOTAL PROVEEDORES'!F62 -> Autopista Medellín, Km 0 Vía El Rosal – La Vega Lote San Javier 2, Vereda Tierra Grata | G64: =+'LISTA TOTAL PROVEEDORES'!G62 -> 3164442174 3164741188 317380 9658 | H64: =+'LISTA TOTAL PROVEEDORES'!H62 -> Wilson.Vergara@sdi.com.co Fernando.Pascagaza@sdi.com.co Hipolito.Suarez@sdi.com.co emilio.ruiz@sdi.com.co
B65: =+'LISTA TOTAL PROVEEDORES'!I63 -> 61 | C65: ='LISTA TOTAL PROVEEDORES'!C63 -> ACTIVIDADES A TODO COSTO | D65: =+'LISTA TOTAL PROVEEDORES'!D63 -> SOY RED | E65: =+'LISTA TOTAL PROVEEDORES'!E63 -> Bogotá | F65: =+'LISTA TOTAL PROVEEDORES'!F63 -> Carrera 14 #75-77 | G65: =+'LISTA TOTAL PROVEEDORES'!G63 -> 477 8701 | H65: =+'LISTA TOTAL PROVEEDORES'!H63 -> comercial@soyred.net
B66: =+'LISTA TOTAL PROVEEDORES'!I64 -> 62 | C66: ='LISTA TOTAL PROVEEDORES'!C64 -> ACTIVIDADES A TODO COSTO | D66: =+'LISTA TOTAL PROVEEDORES'!D64 -> STUP DE COLOMBIA | E66: =+'LISTA TOTAL PROVEEDORES'!E64 -> Bogotá | F66: =+'LISTA TOTAL PROVEEDORES'!F64 -> Cra. 50 126 19 | G66: =+'LISTA TOTAL PROVEEDORES'!G64 -> 2131601 | H66: =+'LISTA TOTAL PROVEEDORES'!H64 -> carlos.salgado@stup.co
B67: =+'LISTA TOTAL PROVEEDORES'!I65 -> 63 | C67: ='LISTA TOTAL PROVEEDORES'!C65 -> ACTIVIDADES A TODO COSTO | D67: =+'LISTA TOTAL PROVEEDORES'!D65 -> SUPERTEC S.A.S. | E67: =+'LISTA TOTAL PROVEEDORES'!E65 -> Bogotá | F67: =+'LISTA TOTAL PROVEEDORES'!F65 -> Calle 114 A # 45-32 Of. 241 | G67: =+'LISTA TOTAL PROVEEDORES'!G65 -> 215 0500 | H67: =+'LISTA TOTAL PROVEEDORES'!H65 -> camiladetoro@supertecsas.com
B68: =+'LISTA TOTAL PROVEEDORES'!I66 -> 64 | C68: ='LISTA TOTAL PROVEEDORES'!C66 -> ACTIVIDADES A TODO COSTO | D68: =+'LISTA TOTAL PROVEEDORES'!D66 -> TECNOCOMPRAS | E68: =+'LISTA TOTAL PROVEEDORES'!E66 -> Bogotá | F68: =+'LISTA TOTAL PROVEEDORES'!F66 -> www.tecnocompras.com.co | G68: =+'LISTA TOTAL PROVEEDORES'!G66 -> 316 8701076 3013782 | H68: =+'LISTA TOTAL PROVEEDORES'!H66 -> gerencia@tecnocompras.com.co
B69: =+'LISTA TOTAL PROVEEDORES'!I67 -> 65 | C69: ='LISTA TOTAL PROVEEDORES'!C67 -> ACTIVIDADES A TODO COSTO | D69: =+'LISTA TOTAL PROVEEDORES'!D67 -> TRANSFORMADORES INDUELECTRO | E69: =+'LISTA TOTAL PROVEEDORES'!E67 -> Bogotá | F69: =+'LISTA TOTAL PROVEEDORES'!F67 -> Cll 24 Sur No 18 C-51 | G69: =+'LISTA TOTAL PROVEEDORES'!G67 -> 3669171 2729590 | H69: =+'LISTA TOTAL PROVEEDORES'!H67 -> transformadoresinduelectro@hotmail.com
B70: =+'LISTA TOTAL PROVEEDORES'!I68 -> 66 | C70: ='LISTA TOTAL PROVEEDORES'!C68 -> ACTIVIDADES A TODO COSTO | D70: =+'LISTA TOTAL PROVEEDORES'!D68 -> TRELTECK INGENIERIA LTDA | E70: =+'LISTA TOTAL PROVEEDORES'!E68 -> Bogotá | F70: =+'LISTA TOTAL PROVEEDORES'!F68 -> Cl 136 No. 59A-44 T2-402 | G70: =+'LISTA TOTAL PROVEEDORES'!G68 -> 2556232 3144734470 | H70: =+'LISTA TOTAL PROVEEDORES'!H68 -> comercial@treltec.com
B71: =+'LISTA TOTAL PROVEEDORES'!I69 -> 67 | C71: ='LISTA TOTAL PROVEEDORES'!C69 -> AGREGADOS PÉTREOS, BASES Y SUBBASES GRANULARES | D71: =+'LISTA TOTAL PROVEEDORES'!D69 -> 4GA SAS Agregados de calidad | E71: =+'LISTA TOTAL PROVEEDORES'!E69 -> Bogotá | F71: =+'LISTA TOTAL PROVEEDORES'!F69 -> Cl 124 10 29 Apto. 201 | G71: =+'LISTA TOTAL PROVEEDORES'!G69 -> 3183821145 | H71: =+'LISTA TOTAL PROVEEDORES'!H69 -> grupo4ga@gmail.com
B72: =+'LISTA TOTAL PROVEEDORES'!I70 -> 68 | C72: ='LISTA TOTAL PROVEEDORES'!C70 -> AGREGADOS PÉTREOS, BASES Y SUBBASES GRANULARES | D72: =+'LISTA TOTAL PROVEEDORES'!D70 -> AGREGADOS LA ROCA SAS | E72: =+'LISTA TOTAL PROVEEDORES'!E70 -> Mosquera - Cund. | F72: =+'LISTA TOTAL PROVEEDORES'!F70 -> Calle 1 # 5-03 barrio Las Villas | G72: =+'LISTA TOTAL PROVEEDORES'!G70 -> 315 392 8159 | H72: =+'LISTA TOTAL PROVEEDORES'!H70 -> servicioalcliente@agregadoslaroca.com
B73: =+'LISTA TOTAL PROVEEDORES'!I71 -> 69 | C73: ='LISTA TOTAL PROVEEDORES'!C71 -> AGREGADOS PÉTREOS, BASES Y SUBBASES GRANULARES | D73: =+'LISTA TOTAL PROVEEDORES'!D71 -> ARENAS Y AGREGADOS IVONE SAS | E73: =+'LISTA TOTAL PROVEEDORES'!E71 -> Bogotá | F73: =+'LISTA TOTAL PROVEEDORES'!F71 -> Oficina: Cl 95 No. 11A 37 Of 401 Planta: Vereda Fusungá, Km 20 Soacha | G73: =+'LISTA TOTAL PROVEEDORES'!G71 -> 622 2592 622 6133 622 5508 318 5896381 315 601 9414 | H73: =+'LISTA TOTAL PROVEEDORES'!H71 -> gerencia@arenasyagregados.com www.arenasyagreagados.com
B74: =+'LISTA TOTAL PROVEEDORES'!I72 -> 70 | C74: ='LISTA TOTAL PROVEEDORES'!C72 -> AGREGADOS PÉTREOS, BASES Y SUBBASES GRANULARES | D74: =+'LISTA TOTAL PROVEEDORES'!D72 -> ARENAS Y TRITURADOS SANTA FE SAS | E74: =+'LISTA TOTAL PROVEEDORES'!E72 -> Medellin - Antioquia | F74: =+'LISTA TOTAL PROVEEDORES'!F72 -> Cra 66 # 49B - 20 Bloque A-Centro Comercial Los sauces | G74: =+'LISTA TOTAL PROVEEDORES'!G72 -> 2302064 | H74: =+'LISTA TOTAL PROVEEDORES'!H72 -> arenasytrituradossantafe@hotmail.com
B75: =+'LISTA TOTAL PROVEEDORES'!I73 -> 71 | C75: ='LISTA TOTAL PROVEEDORES'!C73 -> AGREGADOS PÉTREOS, BASES Y SUBBASES GRANULARES | D75: =+'LISTA TOTAL PROVEEDORES'!D73 -> ASMINCOL SAS | E75: =+'LISTA TOTAL PROVEEDORES'!E73 -> Bogotá | F75: =+'LISTA TOTAL PROVEEDORES'!F73 -> Cl 3 No 31 - 04 | G75: =+'LISTA TOTAL PROVEEDORES'!G73 -> 323 278 6324 3118533661 3102886432 | H75: =+'LISTA TOTAL PROVEEDORES'!H73 -> asmincol@gmail.com juancamilo.ospina@asmincol.com
B76: =+'LISTA TOTAL PROVEEDORES'!I74 -> 72 | C76: ='LISTA TOTAL PROVEEDORES'!C74 -> AGREGADOS PÉTREOS, BASES Y SUBBASES GRANULARES | D76: =+'LISTA TOTAL PROVEEDORES'!D74 -> BCD SAS | E76: =+'LISTA TOTAL PROVEEDORES'!E74 -> Bogotá | F76: =+'LISTA TOTAL PROVEEDORES'!F74 -> Cr 67 No. 62B 55 sur Bl 14 Apto 527 | G76: =+'LISTA TOTAL PROVEEDORES'!G74 -> 3008360 | H76: =+'LISTA TOTAL PROVEEDORES'!H74 -> bcd@bcdsas.com
B77: =+'LISTA TOTAL PROVEEDORES'!I75 -> 73 | C77: ='LISTA TOTAL PROVEEDORES'!C75 -> AGREGADOS PÉTREOS, BASES Y SUBBASES GRANULARES | D77: =+'LISTA TOTAL PROVEEDORES'!D75 -> CANTERA AGREGADOS EL VINCULO | E77: =+'LISTA TOTAL PROVEEDORES'!E75 -> Soacha - Cund. | F77: =+'LISTA TOTAL PROVEEDORES'!F75 -> Cra 7 No. 32-35 C.C Mercurio Oficina 308 | G77: =+'LISTA TOTAL PROVEEDORES'!G75 -> 7251891 Ext 102 321 2010616 | H77: =+'LISTA TOTAL PROVEEDORES'!H75 -> comercial@agregadoselvinculo.com
B78: =+'LISTA TOTAL PROVEEDORES'!I76 -> 74 | C78: ='LISTA TOTAL PROVEEDORES'!C76 -> AGREGADOS PÉTREOS, BASES Y SUBBASES GRANULARES | D78: =+'LISTA TOTAL PROVEEDORES'!D76 -> CICLOMAT SAS | E78: =+'LISTA TOTAL PROVEEDORES'!E76 -> Bogotá | F78: =+'LISTA TOTAL PROVEEDORES'!F76 -> Autopista Medellín km 1.5 vía Siberia- Bogotá D.C Entrada Parque Industrial la Florida 600 mt al sur de la calle 80 | G78: =+'LISTA TOTAL PROVEEDORES'!G76 -> 3162630001 | H78: =+'LISTA TOTAL PROVEEDORES'!H76 -> comercial@ciclomat.com
B79: =+'LISTA TOTAL PROVEEDORES'!I77 -> 75 | C79: ='LISTA TOTAL PROVEEDORES'!C77 -> AGREGADOS PÉTREOS, BASES Y SUBBASES GRANULARES | D79: =+'LISTA TOTAL PROVEEDORES'!D77 -> CONCRETOS ARGOS S.A. | E79: =+'LISTA TOTAL PROVEEDORES'!E77 -> Bogotá | F79: =+'LISTA TOTAL PROVEEDORES'!F77 -> Av. Cl 24 A No. 59-42 Torre 3 Piso 9 | G79: =+'LISTA TOTAL PROVEEDORES'!G77 -> (57) (1) 6069400 | H79: =+'LISTA TOTAL PROVEEDORES'!H77 -> serviciocliente@argos.com.co ana.escalante@argos.com.co
B80: =+'LISTA TOTAL PROVEEDORES'!I78 -> 76 | C80: ='LISTA TOTAL PROVEEDORES'!C78 -> AGREGADOS PÉTREOS, BASES Y SUBBASES GRANULARES | D80: =+'LISTA TOTAL PROVEEDORES'!D78 -> CONSTRITURAR SAS | E80: =+'LISTA TOTAL PROVEEDORES'!E78 -> Bogotá | F80: =+'LISTA TOTAL PROVEEDORES'!F78 -> Calle 72 # 10 - 70 Torre A oficina 704 | G80: =+'LISTA TOTAL PROVEEDORES'!G78 -> 3475257 3220462 3186129043 | H80: =+'LISTA TOTAL PROVEEDORES'!H78 -> constriturar@constriturar.com
B81: =+'LISTA TOTAL PROVEEDORES'!I79 -> 77 | C81: ='LISTA TOTAL PROVEEDORES'!C79 -> AGREGADOS PÉTREOS, BASES Y SUBBASES GRANULARES | D81: =+'LISTA TOTAL PROVEEDORES'!D79 -> DOBLE A INGENIERIA S.A. | E81: =+'LISTA TOTAL PROVEEDORES'!E79 -> Bogotá | F81: =+'LISTA TOTAL PROVEEDORES'!F79 -> Cl 79B No.8-11 Piso 3 | G81: =+'LISTA TOTAL PROVEEDORES'!G79 -> 2101700 3208996486 | H81: =+'LISTA TOTAL PROVEEDORES'!H79 -> cpinilla@da-ing.com gerenciadobleaingenieria.com
B82: =+'LISTA TOTAL PROVEEDORES'!I80 -> 78 | C82: ='LISTA TOTAL PROVEEDORES'!C80 -> AGREGADOS PÉTREOS, BASES Y SUBBASES GRANULARES | D82: =+'LISTA TOTAL PROVEEDORES'!D80 -> DROMOS PAVIMENTOS S.A. | E82: =+'LISTA TOTAL PROVEEDORES'!E80 -> Bogotá | F82: =+'LISTA TOTAL PROVEEDORES'!F80 -> Oficina :Cl 83 No. 16A-44 of 603 Planta: Kilometro 3.8 Zona Industrial Balsillas, Mosquera | G82: =+'LISTA TOTAL PROVEEDORES'!G80 -> 7425376 315 2199639 | H82: =+'LISTA TOTAL PROVEEDORES'!H80 -> juan.hernandez@dromos.co atencion@dromos.co
B83: =+'LISTA TOTAL PROVEEDORES'!I81 -> 79 | C83: ='LISTA TOTAL PROVEEDORES'!C81 -> AGREGADOS PÉTREOS, BASES Y SUBBASES GRANULARES | D83: =+'LISTA TOTAL PROVEEDORES'!D81 -> FANNY I. TEQUIA Y CIA SAS | E83: =+'LISTA TOTAL PROVEEDORES'!E81 -> Soacha - Cund. | F83: =+'LISTA TOTAL PROVEEDORES'!F81 -> Cr 6 15 38 | G83: =+'LISTA TOTAL PROVEEDORES'!G81 -> 7814130 3167431729 | H83: =+'LISTA TOTAL PROVEEDORES'!H81 -> contacto@tequiaycia.com
B84: =+'LISTA TOTAL PROVEEDORES'!I82 -> 80 | C84: ='LISTA TOTAL PROVEEDORES'!C82 -> AGREGADOS PÉTREOS, BASES Y SUBBASES GRANULARES | D84: =+'LISTA TOTAL PROVEEDORES'!D82 -> GRANULADOS RECICLADOS DE COLOMBIA - GRECO | E84: =+'LISTA TOTAL PROVEEDORES'!E82 -> Cota - Cund. | F84: =+'LISTA TOTAL PROVEEDORES'!F82 -> Km 15 Puente de Madera Autopista Medellism, Municipio de Cota- Vereda Siberia | G84: =+'LISTA TOTAL PROVEEDORES'!G82 -> 304 6383774 3013363867 | H84: =+'LISTA TOTAL PROVEEDORES'!H82 -> dircomercial@recicladosgreco.com
B85: =+'LISTA TOTAL PROVEEDORES'!I83 -> 81 | C85: ='LISTA TOTAL PROVEEDORES'!C83 -> AGREGADOS PÉTREOS, BASES Y SUBBASES GRANULARES | D85: =+'LISTA TOTAL PROVEEDORES'!D83 -> GRAVICON | E85: =+'LISTA TOTAL PROVEEDORES'!E83 -> Villavicencio | F85: =+'LISTA TOTAL PROVEEDORES'!F83 -> Oficina: Cr 32 No. 38- 70 Edif. Romarco Of.1202 Planta Kilometro 12 Via Villavicencio Acacias | G85: =+'LISTA TOTAL PROVEEDORES'!G83 -> Oficina: (578) 6722309 - 6627177 Planta: (578) 6659737/38/41 | H85: =+'LISTA TOTAL PROVEEDORES'!H83 -> calidad@gravicon.com.co
B86: =+'LISTA TOTAL PROVEEDORES'!I84 -> 82 | C86: ='LISTA TOTAL PROVEEDORES'!C84 -> AGREGADOS PÉTREOS, BASES Y SUBBASES GRANULARES | D86: =+'LISTA TOTAL PROVEEDORES'!D84 -> GRAVILLERA ALBANIA S.A. | E86: =+'LISTA TOTAL PROVEEDORES'!E84 -> Chia - Cund. | F86: =+'LISTA TOTAL PROVEEDORES'!F84 -> Carretera Central Del Norte Km 19 | G86: =+'LISTA TOTAL PROVEEDORES'!G84 -> 6760212 3102849530 | H86: =+'LISTA TOTAL PROVEEDORES'!H84 -> administracion@gravilleraalbania.com
B87: =+'LISTA TOTAL PROVEEDORES'!I85 -> 83 | C87: ='LISTA TOTAL PROVEEDORES'!C85 -> AGREGADOS PÉTREOS, BASES Y SUBBASES GRANULARES | D87: =+'LISTA TOTAL PROVEEDORES'!D85 -> INCOMINERIA S.A.S. | E87: =+'LISTA TOTAL PROVEEDORES'!E85 -> Mosquera | F87: =+'LISTA TOTAL PROVEEDORES'!F85 -> KM 3.8 Zona Industrial Balsillas, Mosquera- | G87: =+'LISTA TOTAL PROVEEDORES'!G85 -> 7425644 3187759539 | H87: =+'LISTA TOTAL PROVEEDORES'!H85 -> alvaro.gallo@incomineria.co
B88: =+'LISTA TOTAL PROVEEDORES'!I86 -> 84 | C88: ='LISTA TOTAL PROVEEDORES'!C86 -> AGREGADOS PÉTREOS, BASES Y SUBBASES GRANULARES | D88: =+'LISTA TOTAL PROVEEDORES'!D86 -> INGENIEROS GF SAS | E88: =+'LISTA TOTAL PROVEEDORES'!E86 -> Bogotá | F88: =+'LISTA TOTAL PROVEEDORES'!F86 -> Cl 119 No. 14A-26 Of 101/404 | G88: =+'LISTA TOTAL PROVEEDORES'!G86 -> 6295142 6295120 | H88: =+'LISTA TOTAL PROVEEDORES'!H86 -> galvisfracasis@hotmail.com
B89: =+'LISTA TOTAL PROVEEDORES'!I87 -> 85 | C89: ='LISTA TOTAL PROVEEDORES'!C87 -> AGREGADOS PÉTREOS, BASES Y SUBBASES GRANULARES | D89: =+'LISTA TOTAL PROVEEDORES'!D87 -> INVERSIONES MONDOÑEDO SAS | E89: =+'LISTA TOTAL PROVEEDORES'!E87 -> Bogotá | F89: =+'LISTA TOTAL PROVEEDORES'!F87 -> TRANSVERSAL 3 51 A 09 | G89: =+'LISTA TOTAL PROVEEDORES'!G87 -> 3403187 | H89: =+'LISTA TOTAL PROVEEDORES'!H87 -> invmondonedo@outlook.com
B90: =+'LISTA TOTAL PROVEEDORES'!I88 -> 86 | C90: ='LISTA TOTAL PROVEEDORES'!C88 -> AGREGADOS PÉTREOS, BASES Y SUBBASES GRANULARES | D90: =+'LISTA TOTAL PROVEEDORES'!D88 -> J.J RECEBERA | E90: =+'LISTA TOTAL PROVEEDORES'!E88 -> Bogotá | F90: =+'LISTA TOTAL PROVEEDORES'!F88 -> Cra 10 No. 24 - 57 Sur | G90: =+'LISTA TOTAL PROVEEDORES'!G88 -> 3143780511 | H90: =+'LISTA TOTAL PROVEEDORES'!H88 -> maribel_61@hotmail.com
B91: =+'LISTA TOTAL PROVEEDORES'!I89 -> 87 | C91: ='LISTA TOTAL PROVEEDORES'!C89 -> AGREGADOS PÉTREOS, BASES Y SUBBASES GRANULARES | D91: =+'LISTA TOTAL PROVEEDORES'!D89 -> MARIO HUERTAS COTES INGENIERIA Y CONSTRUCCIÓN | E91: =+'LISTA TOTAL PROVEEDORES'!E89 -> Bogotá | F91: =+'LISTA TOTAL PROVEEDORES'!F89 -> Cr 22 A No 85-20 | G91: =+'LISTA TOTAL PROVEEDORES'!G89 -> 6226620 ext 118 | H91: =+'LISTA TOTAL PROVEEDORES'!H89 -> mhcarchivo@gmail.com
B92: =+'LISTA TOTAL PROVEEDORES'!I90 -> 88 | C92: ='LISTA TOTAL PROVEEDORES'!C90 -> AGREGADOS PÉTREOS, BASES Y SUBBASES GRANULARES | D92: =+'LISTA TOTAL PROVEEDORES'!D90 -> MINERALES & TRITURADOS NACIONALES S.A.S | E92: =+'LISTA TOTAL PROVEEDORES'!E90 -> Mosquera - Cund. | F92: =+'LISTA TOTAL PROVEEDORES'!F90 -> Parque Industrial San Jorge - Of 235 | G92: =+'LISTA TOTAL PROVEEDORES'!G90 -> 304 379 0037 8933740 | H92: =+'LISTA TOTAL PROVEEDORES'!H90 -> mintrinal@gmail.com
B93: =+'LISTA TOTAL PROVEEDORES'!I91 -> 89 | C93: ='LISTA TOTAL PROVEEDORES'!C91 -> AGREGADOS PÉTREOS, BASES Y SUBBASES GRANULARES | D93: =+'LISTA TOTAL PROVEEDORES'!D91 -> PAVIOBRAS SAS | E93: =+'LISTA TOTAL PROVEEDORES'!E91 -> Bogotá | F93: =+'LISTA TOTAL PROVEEDORES'!F91 -> Av Cr 15 No. 119A 03 Of 325 | G93: =+'LISTA TOTAL PROVEEDORES'!G91 -> 7900785 7900980 | H93: =+'LISTA TOTAL PROVEEDORES'!H91 -> ltdapaviobras@gmail.com
B94: =+'LISTA TOTAL PROVEEDORES'!I92 -> 90 | C94: ='LISTA TOTAL PROVEEDORES'!C92 -> AGREGADOS PÉTREOS, BASES Y SUBBASES GRANULARES | D94: =+'LISTA TOTAL PROVEEDORES'!D92 -> RCD TRANSFORMACIÓN NATURAL SAS | E94: =+'LISTA TOTAL PROVEEDORES'!E92 -> Mosquera | F94: =+'LISTA TOTAL PROVEEDORES'!F92 -> Predio "Vista Hermosa" en la Vereda Balsillas | G94: =+'LISTA TOTAL PROVEEDORES'!G92 -> 3187509487 | H94: =+'LISTA TOTAL PROVEEDORES'!H92 -> rcd@tierracomercial.com ing.cesargaviria@tierracomercial.com
B95: =+'LISTA TOTAL PROVEEDORES'!I93 -> 91 | C95: ='LISTA TOTAL PROVEEDORES'!C93 -> AGREGADOS PÉTREOS, BASES Y SUBBASES GRANULARES | D95: =+'LISTA TOTAL PROVEEDORES'!D93 -> RECICLADOS INDUSTRIALES DE COLOMBIA | E95: =+'LISTA TOTAL PROVEEDORES'!E93 -> Cota - Cund. | F95: =+'LISTA TOTAL PROVEEDORES'!F93 -> Km. 1.5 Costado Sur Vía Bogotá Siberia. | G95: =+'LISTA TOTAL PROVEEDORES'!G93 -> 875 9047 896 6879 3182153129 3102633808 | H95: =+'LISTA TOTAL PROVEEDORES'!H93 -> info@recicladosindustriales.co
B96: =+'LISTA TOTAL PROVEEDORES'!I94 -> 92 | C96: ='LISTA TOTAL PROVEEDORES'!C94 -> AGREGADOS PÉTREOS, BASES Y SUBBASES GRANULARES | D96: =+'LISTA TOTAL PROVEEDORES'!D94 -> REX INGENIERIA S.A. | E96: =+'LISTA TOTAL PROVEEDORES'!E94 -> Bogotá | F96: =+'LISTA TOTAL PROVEEDORES'!F94 -> Cra 27 No. 47A - 35 | G96: =+'LISTA TOTAL PROVEEDORES'!G94 -> 337 8726/28/56 335 65 30 | H96: =+'LISTA TOTAL PROVEEDORES'!H94 -> info@rexingenieria.com administracion@rexingenieria.com www.rexingenieria.com
B97: =+'LISTA TOTAL PROVEEDORES'!I95 -> 93 | C97: ='LISTA TOTAL PROVEEDORES'!C95 -> AGREGADOS PÉTREOS, BASES Y SUBBASES GRANULARES | D97: =+'LISTA TOTAL PROVEEDORES'!D95 -> TS INGENIERIA Y CIA | E97: =+'LISTA TOTAL PROVEEDORES'!E95 -> Girardot - Cund. | F97: =+'LISTA TOTAL PROVEEDORES'!F95 -> Km 14 Via los cabos sector pacoli/ Via girardot | G97: =+'LISTA TOTAL PROVEEDORES'!G95 -> 320 304 3382 313 20272773 | H97: =+'LISTA TOTAL PROVEEDORES'!H95 -> gerencia@tsingenieria.com.co
B98: =+'LISTA TOTAL PROVEEDORES'!I96 -> 94 | C98: ='LISTA TOTAL PROVEEDORES'!C96 -> AMBIENTAL | D98: =+'LISTA TOTAL PROVEEDORES'!D96 -> AMBITEX | E98: =+'LISTA TOTAL PROVEEDORES'!E96 -> Bogotá | F98: =+'LISTA TOTAL PROVEEDORES'!F96 -> Cr 57 No. 45A - 52 sur | G98: =+'LISTA TOTAL PROVEEDORES'!G96 -> 2543190/91/92/93/94/95/96/97/98/99 ext 2106 | H98: =+'LISTA TOTAL PROVEEDORES'!H96 -> bogota@ambitex.com.co
B99: =+'LISTA TOTAL PROVEEDORES'!I97 -> 95 | C99: ='LISTA TOTAL PROVEEDORES'!C97 -> AMBIENTAL | D99: =+'LISTA TOTAL PROVEEDORES'!D97 -> EASY | E99: =+'LISTA TOTAL PROVEEDORES'!E97 -> Bogotá | F99: =+'LISTA TOTAL PROVEEDORES'!F97 -> Av Americas No. 68 94 | G99: =+'LISTA TOTAL PROVEEDORES'!G97 -> 4191400 | H99: =+'LISTA TOTAL PROVEEDORES'!H97 -> www. Easy.com.co
B100: =+'LISTA TOTAL PROVEEDORES'!I98 -> 96 | C100: ='LISTA TOTAL PROVEEDORES'!C98 -> AMBIENTAL | D100: =+'LISTA TOTAL PROVEEDORES'!D98 -> HOMECENTER | E100: =+'LISTA TOTAL PROVEEDORES'!E98 -> Bogotá | F100: =+'LISTA TOTAL PROVEEDORES'!F98 -> Av Cra 68 No. 37 - 37 sur | G100: =+'LISTA TOTAL PROVEEDORES'!G98 -> 3077115 | H100: =+'LISTA TOTAL PROVEEDORES'!H98 -> www.homecenter.com
B101: =+'LISTA TOTAL PROVEEDORES'!I99 -> 97 | C101: ='LISTA TOTAL PROVEEDORES'!C99 -> ARBOLES-GRAMAS-VEGETACIÓN Y PLANTACIÓN PAISAJÍSTIC | D101: =+'LISTA TOTAL PROVEEDORES'!D99 -> ACONSTRUCTORAS.COM | E101: =+'LISTA TOTAL PROVEEDORES'!E99 -> Yopal - Casanare | F101: =+'LISTA TOTAL PROVEEDORES'!F99 -> Cl 25 15 19 | G101: =+'LISTA TOTAL PROVEEDORES'!G99 -> 3005541747 3163971751 | H101: =+'LISTA TOTAL PROVEEDORES'!H99 -> www.aconstructoras.com
B102: =+'LISTA TOTAL PROVEEDORES'!I100 -> 98 | C102: ='LISTA TOTAL PROVEEDORES'!C100 -> ARBOLES-GRAMAS-VEGETACIÓN Y PLANTACIÓN PAISAJÍSTIC | D102: =+'LISTA TOTAL PROVEEDORES'!D100 -> ECOPRADOS SOLUCIONES AMBIENTALES | E102: =+'LISTA TOTAL PROVEEDORES'!E100 -> Bogotá | F102: =+'LISTA TOTAL PROVEEDORES'!F100 -> Cl 146F Bis No 76 - 08 | G102: =+'LISTA TOTAL PROVEEDORES'!G100 -> 3118137222 | H102: =+'LISTA TOTAL PROVEEDORES'!H100 -> ecopradosambientales@gmail.com
B103: =+'LISTA TOTAL PROVEEDORES'!I101 -> 99 | C103: ='LISTA TOTAL PROVEEDORES'!C101 -> ARBOLES-GRAMAS-VEGETACIÓN Y PLANTACIÓN PAISAJÍSTIC | D103: =+'LISTA TOTAL PROVEEDORES'!D101 -> PLANTICENTER | E103: =+'LISTA TOTAL PROVEEDORES'!E101 -> Bogotá | F103: =+'LISTA TOTAL PROVEEDORES'!F101 -> Calle 127 N. 46 - 11 | G103: =+'LISTA TOTAL PROVEEDORES'!G101 -> 4676054 | H103: =+'LISTA TOTAL PROVEEDORES'!H101 -> planticenter@hotmail.con
B104: =+'LISTA TOTAL PROVEEDORES'!I102 -> 100 | C104: ='LISTA TOTAL PROVEEDORES'!C102 -> BORDILLOS Y LOSETAS | D104: =+'LISTA TOTAL PROVEEDORES'!D102 -> ALFAGRES S.A. | E104: =+'LISTA TOTAL PROVEEDORES'!E102 -> Bogotá | F104: =+'LISTA TOTAL PROVEEDORES'!F102 -> Av. Caracas 35 55 | G104: =+'LISTA TOTAL PROVEEDORES'!G102 -> 3311515 | H104: =+'LISTA TOTAL PROVEEDORES'!H102 -> telemercadeo@alfa.com.co servicioalcliente@alfa.com.co
B105: =+'LISTA TOTAL PROVEEDORES'!I103 -> 101 | C105: ='LISTA TOTAL PROVEEDORES'!C103 -> BORDILLOS Y LOSETAS | D105: =+'LISTA TOTAL PROVEEDORES'!D103 -> ARKA | E105: =+'LISTA TOTAL PROVEEDORES'!E103 -> Bogotá | F105: =+'LISTA TOTAL PROVEEDORES'!F103 -> Calle 65 sur No. 77M - 04 Torre 2 Of 202 | G105: =+'LISTA TOTAL PROVEEDORES'!G103 -> 4768677 3188798278 | H105: =+'LISTA TOTAL PROVEEDORES'!H103 -> arkaprefabricados@outlook.com
B106: =+'LISTA TOTAL PROVEEDORES'!I104 -> 102 | C106: ='LISTA TOTAL PROVEEDORES'!C104 -> BORDILLOS Y LOSETAS | D106: =+'LISTA TOTAL PROVEEDORES'!D104 -> CONCRETOS PREFABRICADOS S.A.S "CONPRE" | E106: =+'LISTA TOTAL PROVEEDORES'!E104 -> La Estrella - Antioquia | F106: =+'LISTA TOTAL PROVEEDORES'!F104 -> Cr 50 No. 79sur - 03 Ed. Promisión of. 403 | G106: =+'LISTA TOTAL PROVEEDORES'!G104 -> 4 8475166 4 8475171 302 04 59 3153940860 | H106: =+'LISTA TOTAL PROVEEDORES'!H104 -> auxcomercial@conpre.com
B107: =+'LISTA TOTAL PROVEEDORES'!I105 -> 103 | C107: ='LISTA TOTAL PROVEEDORES'!C105 -> BORDILLOS Y LOSETAS | D107: =+'LISTA TOTAL PROVEEDORES'!D105 -> EL CONDOR PREFABRICADOS | E107: =+'LISTA TOTAL PROVEEDORES'!E105 -> Soacha - Cund. | F107: =+'LISTA TOTAL PROVEEDORES'!F105 -> Kilómetro 2 vía Fusunga Vereda Panamá, Soacha | G107: =+'LISTA TOTAL PROVEEDORES'!G105 -> 7218612 313 423 0803 321 486 9434 321 200 7397 313 460 7805 | H107: =+'LISTA TOTAL PROVEEDORES'!H105 -> ventas@elcondorprefabricados.com
B108: =+'LISTA TOTAL PROVEEDORES'!I106 -> 104 | C108: ='LISTA TOTAL PROVEEDORES'!C106 -> BORDILLOS Y LOSETAS | D108: =+'LISTA TOTAL PROVEEDORES'!D106 -> HOMECENTER | E108: =+'LISTA TOTAL PROVEEDORES'!E106 -> Bogotá | F108: =+'LISTA TOTAL PROVEEDORES'!F106 -> Av Cra 68 No. 37 - 37 sur | G108: =+'LISTA TOTAL PROVEEDORES'!G106 -> 3077115 | H108: =+'LISTA TOTAL PROVEEDORES'!H106 -> www.homecenter.com
B109: =+'LISTA TOTAL PROVEEDORES'!I107 -> 105 | C109: ='LISTA TOTAL PROVEEDORES'!C107 -> BORDILLOS Y LOSETAS | D109: =+'LISTA TOTAL PROVEEDORES'!D107 -> INSUMOBRAS LTDA | E109: =+'LISTA TOTAL PROVEEDORES'!E107 -> Bogotá | F109: =+'LISTA TOTAL PROVEEDORES'!F107 -> Autopista Medellin Km 14 Puente Piedra | G109: =+'LISTA TOTAL PROVEEDORES'!G107 -> 310 8196349 | H109: =+'LISTA TOTAL PROVEEDORES'!H107 -> insumobrasltda@homail.com
B110: =+'LISTA TOTAL PROVEEDORES'!I108 -> 106 | C110: ='LISTA TOTAL PROVEEDORES'!C108 -> BORDILLOS Y LOSETAS | D110: =+'LISTA TOTAL PROVEEDORES'!D108 -> KREATO SOLUCIONES CREATIVAS EN CONCRETO S.A. KREAT | E110: =+'LISTA TOTAL PROVEEDORES'!E108 -> Bogotá | F110: =+'LISTA TOTAL PROVEEDORES'!F108 -> Cl 85A No. 21 56 | G110: =+'LISTA TOTAL PROVEEDORES'!G108 -> 6109114 | H110: =+'LISTA TOTAL PROVEEDORES'!H108 -> acastellanos@kreato.com.co agranados@kreato.com.co fsolano@kreatos.com.co
B111: =+'LISTA TOTAL PROVEEDORES'!I109 -> 107 | C111: ='LISTA TOTAL PROVEEDORES'!C109 -> BORDILLOS Y LOSETAS | D111: =+'LISTA TOTAL PROVEEDORES'!D109 -> MANUFACTURAS DE CEMENTO S.A. TITAN | E111: =+'LISTA TOTAL PROVEEDORES'!E109 -> Cota - Cund. | F111: =+'LISTA TOTAL PROVEEDORES'!F109 -> Autopista Medellin , entrada 2,4 km al occidente del Rio Bogota | G111: =+'LISTA TOTAL PROVEEDORES'!G109 -> 3353550 | H111: =+'LISTA TOTAL PROVEEDORES'!H109 -> www.titancemento.com lforero@titancemento.com
B112: =+'LISTA TOTAL PROVEEDORES'!I110 -> 108 | C112: ='LISTA TOTAL PROVEEDORES'!C110 -> BORDILLOS Y LOSETAS | D112: =+'LISTA TOTAL PROVEEDORES'!D110 -> NOVARCILLAS | E112: =+'LISTA TOTAL PROVEEDORES'!E110 -> Cajicá - Cund. | F112: =+'LISTA TOTAL PROVEEDORES'!F110 -> Carrera 5 No. 11D 2-21 Sur Of 227 KM 7 Vía Cajicá - Chía | G112: =+'LISTA TOTAL PROVEEDORES'!G110 -> 3208035528 3152211427 (57) (1) 8662139 | H112: =+'LISTA TOTAL PROVEEDORES'!H110 -> ventas@novarcillas.com
B113: =+'LISTA TOTAL PROVEEDORES'!I111 -> 109 | C113: ='LISTA TOTAL PROVEEDORES'!C111 -> BORDILLOS Y LOSETAS | D113: =+'LISTA TOTAL PROVEEDORES'!D111 -> PLACA LISTA MODULOS PREFABRICADOS LTDA | E113: =+'LISTA TOTAL PROVEEDORES'!E111 -> Bogotá | F113: =+'LISTA TOTAL PROVEEDORES'!F111 -> Cl 65 No. 13-50 Of 503 | G113: =+'LISTA TOTAL PROVEEDORES'!G111 -> 2550490 3476569 310 8173990 | H113: =+'LISTA TOTAL PROVEEDORES'!H111 -> placalista01@yahoo.com
B114: =+'LISTA TOTAL PROVEEDORES'!I112 -> 110 | C114: ='LISTA TOTAL PROVEEDORES'!C112 -> BORDILLOS Y LOSETAS | D114: =+'LISTA TOTAL PROVEEDORES'!D112 -> POSTES MEDINA COLOMBIA | E114: =+'LISTA TOTAL PROVEEDORES'!E112 -> Bogotá | F114: =+'LISTA TOTAL PROVEEDORES'!F112 -> Av Cra 7 No. 156-78 Of 706 | G114: =+'LISTA TOTAL PROVEEDORES'!G112 -> 216 3030 | H114: =+'LISTA TOTAL PROVEEDORES'!H112 -> comercial1@postesmedina.com colpostesmedina@yahoo.com postesmedinacolombia@hotmail.com
B115: =+'LISTA TOTAL PROVEEDORES'!I113 -> 111 | C115: ='LISTA TOTAL PROVEEDORES'!C113 -> BORDILLOS Y LOSETAS | D115: =+'LISTA TOTAL PROVEEDORES'!D113 -> PREALCA SAS | E115: =+'LISTA TOTAL PROVEEDORES'!E113 -> Soacha - Cund. | F115: =+'LISTA TOTAL PROVEEDORES'!F113 -> Autopista sur Cra. 4 #21a-26 | G115: =+'LISTA TOTAL PROVEEDORES'!G113 -> 320 3470096 310 3167820 | H115: =+'LISTA TOTAL PROVEEDORES'!H113 -> https://prealcasas.negocio.site/
B116: =+'LISTA TOTAL PROVEEDORES'!I114 -> 112 | C116: ='LISTA TOTAL PROVEEDORES'!C114 -> BORDILLOS Y LOSETAS | D116: =+'LISTA TOTAL PROVEEDORES'!D114 -> PREFABRICADOS JOVITA CASTRO Y CIA LTDA | E116: =+'LISTA TOTAL PROVEEDORES'!E114 -> Bogotá | F116: =+'LISTA TOTAL PROVEEDORES'!F114 -> Cl 57 sur No. 19B 73 | G116: =+'LISTA TOTAL PROVEEDORES'!G114 -> 714 2887 311 5947000 | H116: =+'LISTA TOTAL PROVEEDORES'!H114 -> jovitacastrovega@hotmail.com www.prefabricadosjovitacastro.com
B117: =+'LISTA TOTAL PROVEEDORES'!I115 -> 113 | C117: ='LISTA TOTAL PROVEEDORES'!C115 -> BORDILLOS Y LOSETAS | D117: =+'LISTA TOTAL PROVEEDORES'!D115 -> PREFABRICADOS Y CONSTRUCCIONES PREFACON SAS (CONCRETARTE) | E117: =+'LISTA TOTAL PROVEEDORES'!E115 -> Bogotá | F117: =+'LISTA TOTAL PROVEEDORES'!F115 -> Cra 69Q #78-62 | G117: =+'LISTA TOTAL PROVEEDORES'!G115 -> 323 03 53 318 576 43 39 | H117: =+'LISTA TOTAL PROVEEDORES'!H115 -> prefabricados@concretarte.com.co www.concretarte.com.co
B118: =+'LISTA TOTAL PROVEEDORES'!I116 -> 114 | C118: ='LISTA TOTAL PROVEEDORES'!C116 -> CABLES Y ACCESORIOS ELECTRICOS | D118: =+'LISTA TOTAL PROVEEDORES'!D116 -> ACONSTRUCTORAS.COM | E118: =+'LISTA TOTAL PROVEEDORES'!E116 -> Yopal - Casanare | F118: =+'LISTA TOTAL PROVEEDORES'!F116 -> Cl 25 15 19 | G118: =+'LISTA TOTAL PROVEEDORES'!G116 -> 3005541747 3163971751 | H118: =+'LISTA TOTAL PROVEEDORES'!H116 -> www.aconstructoras.com
B119: =+'LISTA TOTAL PROVEEDORES'!I117 -> 115 | C119: ='LISTA TOTAL PROVEEDORES'!C117 -> CABLES Y ACCESORIOS ELECTRICOS | D119: =+'LISTA TOTAL PROVEEDORES'!D117 -> BIGTRONICA | E119: =+'LISTA TOTAL PROVEEDORES'!E117 -> Medellin - Antioquia | F119: =+'LISTA TOTAL PROVEEDORES'!F117 -> Cra. 53 # 50 - 51 Local 212H C.C. La Cascada | G119: =+'LISTA TOTAL PROVEEDORES'!G117 -> 5113403 3156435352 | H119: =+'LISTA TOTAL PROVEEDORES'!H117 -> ventas@bigtronica.com
B120: =+'LISTA TOTAL PROVEEDORES'!I118 -> 116 | C120: ='LISTA TOTAL PROVEEDORES'!C118 -> CABLES Y ACCESORIOS ELECTRICOS | D120: =+'LISTA TOTAL PROVEEDORES'!D118 -> BORNA | E120: =+'LISTA TOTAL PROVEEDORES'!E118 -> Bogotá | F120: =+'LISTA TOTAL PROVEEDORES'!F118 -> Cra. 24 8-51 | G120: =+'LISTA TOTAL PROVEEDORES'!G118 -> 383 7610 | H120: =+'LISTA TOTAL PROVEEDORES'!H118 -> www.borna-store.com servicioalcliente@bornas.info
B121: =+'LISTA TOTAL PROVEEDORES'!I119 -> 117 | C121: ='LISTA TOTAL PROVEEDORES'!C119 -> CABLES Y ACCESORIOS ELECTRICOS | D121: =+'LISTA TOTAL PROVEEDORES'!D119 -> CARULLA | E121: =+'LISTA TOTAL PROVEEDORES'!E119 -> Bogotá | F121: =+'LISTA TOTAL PROVEEDORES'!F119 -> Cl. 85 #No. 15 -29 | G121: =+'LISTA TOTAL PROVEEDORES'!G119 -> 7455777 | H121: =+'LISTA TOTAL PROVEEDORES'!H119 -> servicio-al-cliente-carulla@clientesexito.com
B122: =+'LISTA TOTAL PROVEEDORES'!I120 -> 118 | C122: ='LISTA TOTAL PROVEEDORES'!C120 -> CABLES Y ACCESORIOS ELECTRICOS | D122: =+'LISTA TOTAL PROVEEDORES'!D120 -> CENTELSA | E122: =+'LISTA TOTAL PROVEEDORES'!E120 -> Bogotá | F122: =+'LISTA TOTAL PROVEEDORES'!F120 -> Av Cl 26 No.68C-61 Edif. Torre Central Ofic. 310 | G122: =+'LISTA TOTAL PROVEEDORES'!G120 -> 427 2800 3166931865 3154334617 3154332361 | H122: =+'LISTA TOTAL PROVEEDORES'!H120 -> armando.penaranda@centelsa.com.co david.uribe@centelsa.com.co cristina.bustamante@centelsa.com.co
B123: =+'LISTA TOTAL PROVEEDORES'!I121 -> 119 | C123: ='LISTA TOTAL PROVEEDORES'!C121 -> CABLES Y ACCESORIOS ELECTRICOS | D123: =+'LISTA TOTAL PROVEEDORES'!D121 -> CINELECO.COM | E123: =+'LISTA TOTAL PROVEEDORES'!E121 -> Bogotá | F123: =+'LISTA TOTAL PROVEEDORES'!F121 -> Calle 14 No 12 - 65 Local 129 | G123: =+'LISTA TOTAL PROVEEDORES'!G121 -> 5082212 313 853 8792 | H123: =+'LISTA TOTAL PROVEEDORES'!H121 -> servicioalcliente@cineleco.com
B124: =+'LISTA TOTAL PROVEEDORES'!I122 -> 120 | C124: ='LISTA TOTAL PROVEEDORES'!C122 -> CABLES Y ACCESORIOS ELECTRICOS | D124: =+'LISTA TOTAL PROVEEDORES'!D122 -> COPCO INGENIERIA | E124: =+'LISTA TOTAL PROVEEDORES'!E122 -> Bucaramanga | F124: =+'LISTA TOTAL PROVEEDORES'!F122 -> Calle 21 # 21-20 - San Francisco | G124: =+'LISTA TOTAL PROVEEDORES'!G122 -> 6343555 3163803545 | H124: =+'LISTA TOTAL PROVEEDORES'!H122 -> contacto@copcoingenieria.com
B125: =+'LISTA TOTAL PROVEEDORES'!I123 -> 121 | C125: ='LISTA TOTAL PROVEEDORES'!C123 -> CABLES Y ACCESORIOS ELECTRICOS | D125: =+'LISTA TOTAL PROVEEDORES'!D123 -> CU CONECTORES | E125: =+'LISTA TOTAL PROVEEDORES'!E123 -> Funza -Cund. | F125: =+'LISTA TOTAL PROVEEDORES'!F123 -> Km 7 vía Bogotá - Medellín Complejo Industrial Celta Trade Park, Bodega 152-3 | G125: =+'LISTA TOTAL PROVEEDORES'!G123 -> 8966535 Ext. 400 | H125: =+'LISTA TOTAL PROVEEDORES'!H123 -> comercial@cuconectores.com.co
B126: =+'LISTA TOTAL PROVEEDORES'!I124 -> 122 | C126: ='LISTA TOTAL PROVEEDORES'!C124 -> CABLES Y ACCESORIOS ELECTRICOS | D126: =+'LISTA TOTAL PROVEEDORES'!D124 -> DISTRIBUIDORA EYCOS | E126: =+'LISTA TOTAL PROVEEDORES'!E124 -> Bogotá | F126: =+'LISTA TOTAL PROVEEDORES'!F124 -> Cra 12 No. 16-82 | G126: =+'LISTA TOTAL PROVEEDORES'!G124 -> 2 86 66 00 | H126: =+'LISTA TOTAL PROVEEDORES'!H124 -> ventas@eycos.com.co servicioalcliente@eycos.com.co
B127: =+'LISTA TOTAL PROVEEDORES'!I125 -> 123 | C127: ='LISTA TOTAL PROVEEDORES'!C125 -> CABLES Y ACCESORIOS ELECTRICOS | D127: =+'LISTA TOTAL PROVEEDORES'!D125 -> DYCON MATERIALES ELÉCTRICOS | E127: =+'LISTA TOTAL PROVEEDORES'!E125 -> Neiva - Huila | F127: =+'LISTA TOTAL PROVEEDORES'!F125 -> Calle 22 #1h-38, Rojas Trujillo | G127: =+'LISTA TOTAL PROVEEDORES'!G125 -> 8750577 | H127: =+'LISTA TOTAL PROVEEDORES'!H125 -> www.dycon.co
B128: =+'LISTA TOTAL PROVEEDORES'!I126 -> 124 | C128: ='LISTA TOTAL PROVEEDORES'!C126 -> CABLES Y ACCESORIOS ELECTRICOS | D128: =+'LISTA TOTAL PROVEEDORES'!D126 -> EASY | E128: =+'LISTA TOTAL PROVEEDORES'!E126 -> Bogotá | F128: =+'LISTA TOTAL PROVEEDORES'!F126 -> Av Americas No. 68 94 | G128: =+'LISTA TOTAL PROVEEDORES'!G126 -> 4191400 | H128: =+'LISTA TOTAL PROVEEDORES'!H126 -> www. Easy.com.co
B129: =+'LISTA TOTAL PROVEEDORES'!I127 -> 125 | C129: ='LISTA TOTAL PROVEEDORES'!C127 -> CABLES Y ACCESORIOS ELECTRICOS | D129: =+'LISTA TOTAL PROVEEDORES'!D127 -> EDELCO | E129: =+'LISTA TOTAL PROVEEDORES'!E127 -> Bogotá | F129: =+'LISTA TOTAL PROVEEDORES'!F127 -> Calle 68 # 14A 64 Chapinero | G129: =+'LISTA TOTAL PROVEEDORES'!G127 -> 606 77 77 Ext 18 318 383 51 33 316 390 95 01 | H129: =+'LISTA TOTAL PROVEEDORES'!H127 -> asistentecomercialbogota@edelco.co ccomercialbogota@edelco.co servicioalcliente@edelco.co
B130: =+'LISTA TOTAL PROVEEDORES'!I128 -> 126 | C130: ='LISTA TOTAL PROVEEDORES'!C128 -> CABLES Y ACCESORIOS ELECTRICOS | D130: =+'LISTA TOTAL PROVEEDORES'!D128 -> FERRETERÍA SAMIR | E130: =+'LISTA TOTAL PROVEEDORES'!E128 -> Barranquilla - Atlantico | F130: =+'LISTA TOTAL PROVEEDORES'!F128 -> Cl 35 No. 38 43 | G130: =+'LISTA TOTAL PROVEEDORES'!G128 -> 318 3364259 318 7758062 316 3413547 | H130: =+'LISTA TOTAL PROVEEDORES'!H128 -> cotizaciones@ferreteriasamir.com
B131: =+'LISTA TOTAL PROVEEDORES'!I129 -> 127 | C131: ='LISTA TOTAL PROVEEDORES'!C129 -> CABLES Y ACCESORIOS ELECTRICOS | D131: =+'LISTA TOTAL PROVEEDORES'!D129 -> FORMAS ELECTRICAS | E131: =+'LISTA TOTAL PROVEEDORES'!E129 -> Bogotá | F131: =+'LISTA TOTAL PROVEEDORES'!F129 -> Calle 16 Nro 12-42 | G131: =+'LISTA TOTAL PROVEEDORES'!G129 -> 342 9114 | H131: =+'LISTA TOTAL PROVEEDORES'!H129 -> www.formaselectricas.com almacen@formaselectricas.com
B132: =+'LISTA TOTAL PROVEEDORES'!I130 -> 128 | C132: ='LISTA TOTAL PROVEEDORES'!C130 -> CABLES Y ACCESORIOS ELECTRICOS | D132: =+'LISTA TOTAL PROVEEDORES'!D130 -> HOMECENTER | E132: =+'LISTA TOTAL PROVEEDORES'!E130 -> Bogotá | F132: =+'LISTA TOTAL PROVEEDORES'!F130 -> Av Cra 68 No. 37 - 37 sur | G132: =+'LISTA TOTAL PROVEEDORES'!G130 -> 3077115 | H132: =+'LISTA TOTAL PROVEEDORES'!H130 -> www.homecenter.com
B133: =+'LISTA TOTAL PROVEEDORES'!I131 -> 129 | C133: ='LISTA TOTAL PROVEEDORES'!C131 -> CABLES Y ACCESORIOS ELECTRICOS | D133: =+'LISTA TOTAL PROVEEDORES'!D131 -> IE INTERNACIONAL DE ELÉCTRICOS | E133: =+'LISTA TOTAL PROVEEDORES'!E131 -> Bogotá | F133: =+'LISTA TOTAL PROVEEDORES'!F131 -> Cll 24 #4a-26 | G133: =+'LISTA TOTAL PROVEEDORES'!G131 -> 7448130 | H133: =+'LISTA TOTAL PROVEEDORES'!H131 -> ieportalweb@iegrupo.co
B134: =+'LISTA TOTAL PROVEEDORES'!I132 -> 130 | C134: ='LISTA TOTAL PROVEEDORES'!C132 -> CABLES Y ACCESORIOS ELECTRICOS | D134: =+'LISTA TOTAL PROVEEDORES'!D132 -> ILUMINACIONES ELECTRICAS ILUX SAS | E134: =+'LISTA TOTAL PROVEEDORES'!E132 -> Bogotá | F134: =+'LISTA TOTAL PROVEEDORES'!F132 -> Calle 18 # 12-68, Centro | G134: =+'LISTA TOTAL PROVEEDORES'!G132 -> 3214769560 2432433 2865770 | H134: =+'LISTA TOTAL PROVEEDORES'!H132 -> ventas@iluminacioneselectricasilux.com
B135: =+'LISTA TOTAL PROVEEDORES'!I133 -> 131 | C135: ='LISTA TOTAL PROVEEDORES'!C133 -> CABLES Y ACCESORIOS ELECTRICOS | D135: =+'LISTA TOTAL PROVEEDORES'!D133 -> INTERELECTRICAS | E135: =+'LISTA TOTAL PROVEEDORES'!E133 -> Bogotá | F135: =+'LISTA TOTAL PROVEEDORES'!F133 -> Cra. 12 13 46 | G135: =+'LISTA TOTAL PROVEEDORES'!G133 -> 3360755 Ext. 1103 3106983687 | H135: =+'LISTA TOTAL PROVEEDORES'!H133 -> servicioalcliente@ie.com.co
B136: =+'LISTA TOTAL PROVEEDORES'!I134 -> 132 | C136: ='LISTA TOTAL PROVEEDORES'!C134 -> CABLES Y ACCESORIOS ELECTRICOS | D136: =+'LISTA TOTAL PROVEEDORES'!D134 -> JD ELECTRICOS E INDUSTRIA LTDA | E136: =+'LISTA TOTAL PROVEEDORES'!E134 -> Bogotá | F136: =+'LISTA TOTAL PROVEEDORES'!F134 -> Cra. 12 15 95 | G136: =+'LISTA TOTAL PROVEEDORES'!G134 -> 3411060 | H136: =+'LISTA TOTAL PROVEEDORES'!H134 -> elianasalazar@jdelectricos.com.co
B137: =+'LISTA TOTAL PROVEEDORES'!I135 -> 133 | C137: ='LISTA TOTAL PROVEEDORES'!C135 -> CABLES Y ACCESORIOS ELECTRICOS | D137: =+'LISTA TOTAL PROVEEDORES'!D135 -> LA TIENDA DEL ELECTRICO | E137: =+'LISTA TOTAL PROVEEDORES'!E135 -> Itagüí - Antioquia | F137: =+'LISTA TOTAL PROVEEDORES'!F135 -> Calle 46 N 50-33 | G137: =+'LISTA TOTAL PROVEEDORES'!G135 -> 317 4272570 578 65 34 | H137: =+'LISTA TOTAL PROVEEDORES'!H135 -> servicioalcliente@latiendadelelectrico.com
B138: =+'LISTA TOTAL PROVEEDORES'!I136 -> 134 | C138: ='LISTA TOTAL PROVEEDORES'!C136 -> CABLES Y ACCESORIOS ELECTRICOS | D138: =+'LISTA TOTAL PROVEEDORES'!D136 -> LINIO | E138: =+'LISTA TOTAL PROVEEDORES'!E136 -> Bogotá | F138: =+'LISTA TOTAL PROVEEDORES'!F136 -> Cl 99 No. 14 49 Piso 9 | G138: =+'LISTA TOTAL PROVEEDORES'!G136 -> 7457888 | H138: =+'LISTA TOTAL PROVEEDORES'!H136 -> www.linio.com.co
B139: =+'LISTA TOTAL PROVEEDORES'!I137 -> 135 | C139: ='LISTA TOTAL PROVEEDORES'!C137 -> CABLES Y ACCESORIOS ELECTRICOS | D139: =+'LISTA TOTAL PROVEEDORES'!D137 -> MAELECTRICOS | E139: =+'LISTA TOTAL PROVEEDORES'!E137 -> Bogotá | F139: =+'LISTA TOTAL PROVEEDORES'!F137 -> Calle 17 28 A 74 | G139: =+'LISTA TOTAL PROVEEDORES'!G137 -> 3647373 | H139: =+'LISTA TOTAL PROVEEDORES'!H137 -> julian.c@maelectricos.com julian.alvarado@maelectricos.com
B140: =+'LISTA TOTAL PROVEEDORES'!I138 -> 136 | C140: ='LISTA TOTAL PROVEEDORES'!C138 -> CABLES Y ACCESORIOS ELECTRICOS | D140: =+'LISTA TOTAL PROVEEDORES'!D138 -> MAGNETRON | E140: =+'LISTA TOTAL PROVEEDORES'!E138 -> Bogotá | F140: =+'LISTA TOTAL PROVEEDORES'!F138 -> Cra 7A # 123-24 Centro Empresarial Santa Barbara Oficina 301 | G140: =+'LISTA TOTAL PROVEEDORES'!G138 -> 629 7247 317 4773345 | H140: =+'LISTA TOTAL PROVEEDORES'!H138 -> falvarez@magnetron.com.co
B141: =+'LISTA TOTAL PROVEEDORES'!I139 -> 137 | C141: ='LISTA TOTAL PROVEEDORES'!C139 -> CABLES Y ACCESORIOS ELECTRICOS | D141: =+'LISTA TOTAL PROVEEDORES'!D139 -> MATERIALES DE OCCIDENTE SAS | E141: =+'LISTA TOTAL PROVEEDORES'!E139 -> Armenia - Quindio | F141: =+'LISTA TOTAL PROVEEDORES'!F139 -> Calle 18 No 20 - 31 | G141: =+'LISTA TOTAL PROVEEDORES'!G139 -> 311 358 1082 741 2226 744 3737 | H141: =+'LISTA TOTAL PROVEEDORES'!H139 -> info@materialesdeoccidente.com
B142: =+'LISTA TOTAL PROVEEDORES'!I140 -> 138 | C142: ='LISTA TOTAL PROVEEDORES'!C140 -> CABLES Y ACCESORIOS ELECTRICOS | D142: =+'LISTA TOTAL PROVEEDORES'!D140 -> MYM TRANFORMADORES | E142: =+'LISTA TOTAL PROVEEDORES'!E140 -> Bogotá | F142: =+'LISTA TOTAL PROVEEDORES'!F140 -> Cll 22 18a 76 | G142: =+'LISTA TOTAL PROVEEDORES'!G140 -> 3102281619 3132503176 | H142: =+'LISTA TOTAL PROVEEDORES'!H140 -> ventastransformadoresmym@hotmail.com
B143: =+'LISTA TOTAL PROVEEDORES'!I141 -> 139 | C143: ='LISTA TOTAL PROVEEDORES'!C141 -> CABLES Y ACCESORIOS ELECTRICOS | D143: =+'LISTA TOTAL PROVEEDORES'!D141 -> NACIONAL DE ELECTRICOS | E143: =+'LISTA TOTAL PROVEEDORES'!E141 -> Bogotá | F143: =+'LISTA TOTAL PROVEEDORES'!F141 -> Calle 15 12 81 | G143: =+'LISTA TOTAL PROVEEDORES'!G141 -> 3114758165 2543720 Ext. 1502 | H143: =+'LISTA TOTAL PROVEEDORES'!H141 -> centro1@nalelectricos.com.co www.nalelectricos.com.co
B144: =+'LISTA TOTAL PROVEEDORES'!I142 -> 140 | C144: ='LISTA TOTAL PROVEEDORES'!C142 -> CABLES Y ACCESORIOS ELECTRICOS | D144: =+'LISTA TOTAL PROVEEDORES'!D142 -> NEXANS | E144: =+'LISTA TOTAL PROVEEDORES'!E142 -> Bucaramanga | F144: =+'LISTA TOTAL PROVEEDORES'!F142 -> Parque Industrial de Bucaramanga Manzana B Km 3 Vía Café Madrid | G144: =+'LISTA TOTAL PROVEEDORES'!G142 -> 6762929 | H144: =+'LISTA TOTAL PROVEEDORES'!H142 -> ventas.colombia@nexans.com
B145: =+'LISTA TOTAL PROVEEDORES'!I143 -> 141 | C145: ='LISTA TOTAL PROVEEDORES'!C143 -> CABLES Y ACCESORIOS ELECTRICOS | D145: =+'LISTA TOTAL PROVEEDORES'!D143 -> PUNTO ELECTRICO SAS | E145: =+'LISTA TOTAL PROVEEDORES'!E143 -> Manizales - Caldas | F145: =+'LISTA TOTAL PROVEEDORES'!F143 -> Cra 22 # 15-09 | G145: =+'LISTA TOTAL PROVEEDORES'!G143 -> 311 312 2156 | H145: =+'LISTA TOTAL PROVEEDORES'!H143 -> logistica@puntoelectrico.com.co
B146: =+'LISTA TOTAL PROVEEDORES'!I144 -> 142 | C146: ='LISTA TOTAL PROVEEDORES'!C144 -> CABLES Y ACCESORIOS ELECTRICOS | D146: =+'LISTA TOTAL PROVEEDORES'!D144 -> REDES ELECTRICAS S.A. | E146: =+'LISTA TOTAL PROVEEDORES'!E144 -> Bogotá | F146: =+'LISTA TOTAL PROVEEDORES'!F144 -> Cra. 12 15 97 | G146: =+'LISTA TOTAL PROVEEDORES'!G144 -> 3340511 3647000 | H146: =+'LISTA TOTAL PROVEEDORES'!H144 -> ventas.palo@redeselectricas.com ingenieria@redeselectricas.com oscar.rodriguez@redes electricas.com
B147: =+'LISTA TOTAL PROVEEDORES'!I145 -> 143 | C147: ='LISTA TOTAL PROVEEDORES'!C145 -> CABLES Y ACCESORIOS ELECTRICOS | D147: =+'LISTA TOTAL PROVEEDORES'!D145 -> RENTAL STORE.CO (SERVICIO DE LAQUILER DE EQUIPO) | E147: =+'LISTA TOTAL PROVEEDORES'!E145 -> Bogotá | F147: =+'LISTA TOTAL PROVEEDORES'!F145 -> Cra 50 #134 - 66 | G147: =+'LISTA TOTAL PROVEEDORES'!G145 -> 3176432973 | H147: =+'LISTA TOTAL PROVEEDORES'!H145 -> sales.col@rentalstore.co
B148: =+'LISTA TOTAL PROVEEDORES'!I146 -> 144 | C148: ='LISTA TOTAL PROVEEDORES'!C146 -> CABLES Y ACCESORIOS ELECTRICOS | D148: =+'LISTA TOTAL PROVEEDORES'!D146 -> STEREN | E148: =+'LISTA TOTAL PROVEEDORES'!E146 -> Bogotá | F148: =+'LISTA TOTAL PROVEEDORES'!F146 -> Calle 140 n. 12B-25, Edificio Castellana Empresarial, oficina 103 | G148: =+'LISTA TOTAL PROVEEDORES'!G146 -> 7443200 | H148: =+'LISTA TOTAL PROVEEDORES'!H146 -> www.steren.com.co
B149: =+'LISTA TOTAL PROVEEDORES'!I147 -> 145 | C149: ='LISTA TOTAL PROVEEDORES'!C147 -> CABLES Y ACCESORIOS ELECTRICOS | D149: =+'LISTA TOTAL PROVEEDORES'!D147 -> VISTRONICA | E149: =+'LISTA TOTAL PROVEEDORES'!E147 -> Fusagasugá - Cundinamarca | F149: =+'LISTA TOTAL PROVEEDORES'!F147 -> Calle 17B #14-42 (Nueva Dirección) Barrio Piedra Grande | G149: =+'LISTA TOTAL PROVEEDORES'!G147 -> 3118679028 | H149: =+'LISTA TOTAL PROVEEDORES'!H147 -> ventas@vistronica.com
B150: =+'LISTA TOTAL PROVEEDORES'!I148 -> 146 | C150: ='LISTA TOTAL PROVEEDORES'!C148 -> CANAL DE DRENAJE | D150: =+'LISTA TOTAL PROVEEDORES'!D148 -> ACO SOLUCIONES DE DRENAJE SAS | E150: =+'LISTA TOTAL PROVEEDORES'!E148 -> Bogotá | F150: =+'LISTA TOTAL PROVEEDORES'!F148 -> Cl 98 No. 22 64. Oficina 607 | G150: =+'LISTA TOTAL PROVEEDORES'!G148 -> 7427783 | H150: =+'LISTA TOTAL PROVEEDORES'!H148 -> info@acodrenaje.com
B151: =+'LISTA TOTAL PROVEEDORES'!I149 -> 147 | C151: ='LISTA TOTAL PROVEEDORES'!C149 -> CANAL DE DRENAJE | D151: =+'LISTA TOTAL PROVEEDORES'!D149 -> MADERPLAST | E151: =+'LISTA TOTAL PROVEEDORES'!E149 -> Bogotá | F151: =+'LISTA TOTAL PROVEEDORES'!F149 -> Carrera 56 No. 9 - 36 | G151: =+'LISTA TOTAL PROVEEDORES'!G149 -> (57) (1) 4855555 Ext. 210 3112734269 | H151: =+'LISTA TOTAL PROVEEDORES'!H149 -> ventas10@maderplast.com www.maderplast.com
B152: =+'LISTA TOTAL PROVEEDORES'!I150 -> 148 | C152: ='LISTA TOTAL PROVEEDORES'!C150 -> CANAL DE DRENAJE | D152: =+'LISTA TOTAL PROVEEDORES'!D150 -> REFORPLAS | E152: =+'LISTA TOTAL PROVEEDORES'!E150 -> Bogotá | F152: =+'LISTA TOTAL PROVEEDORES'!F150 -> Cl 128 No. 15 A 73 | G152: =+'LISTA TOTAL PROVEEDORES'!G150 -> 300 4004013 | H152: =+'LISTA TOTAL PROVEEDORES'!H150 -> juan.preciado@reforplas.com
B153: =+'LISTA TOTAL PROVEEDORES'!I151 -> 149 | C153: ='LISTA TOTAL PROVEEDORES'!C151 -> CARPINTERÍA METÁLICA | D153: =+'LISTA TOTAL PROVEEDORES'!D151 -> CIELOS RASOS & DIVISIONES | E153: =+'LISTA TOTAL PROVEEDORES'!E151 -> Bogotá | F153: =+'LISTA TOTAL PROVEEDORES'!F151 -> Cr 14 75.58 | G153: =+'LISTA TOTAL PROVEEDORES'!G151 -> 2481860 310 5774471 | H153: =+'LISTA TOTAL PROVEEDORES'!H151 -> ventas@cielosrasos.com
B154: =+'LISTA TOTAL PROVEEDORES'!I152 -> 150 | C154: ='LISTA TOTAL PROVEEDORES'!C152 -> CARPINTERÍA METÁLICA | D154: =+'LISTA TOTAL PROVEEDORES'!D152 -> HB SADELEC Estructuras Metálicas | E154: =+'LISTA TOTAL PROVEEDORES'!E152 -> Bogotá | F154: =+'LISTA TOTAL PROVEEDORES'!F152 -> Avda. Cra. 129 17 F 97 | G154: =+'LISTA TOTAL PROVEEDORES'!G152 -> 4224700 Ext. 121 4155620 | H154: =+'LISTA TOTAL PROVEEDORES'!H152 -> david.castellanos@hbsadelec.com.co
B155: =+'LISTA TOTAL PROVEEDORES'!I153 -> 151 | C155: ='LISTA TOTAL PROVEEDORES'!C153 -> COMBUSTIBLES Y LUBRICANTES | D155: =+'LISTA TOTAL PROVEEDORES'!D153 -> MINISTERIO DE MINAS Y ENERGIA | E155: =+'LISTA TOTAL PROVEEDORES'!E153 -> Bogotá | F155: =+'LISTA TOTAL PROVEEDORES'!F153 -> Cl 43 No. 57-31 | G155: =+'LISTA TOTAL PROVEEDORES'!G153 -> 2200300 22200306 | H155: =+'LISTA TOTAL PROVEEDORES'!H153 -> www.minminas.gov.co
B156: =+'LISTA TOTAL PROVEEDORES'!I154 -> 152 | C156: ='LISTA TOTAL PROVEEDORES'!C154 -> CONCRETOS Y MORTEROS PREMEZCLADOS | D156: =+'LISTA TOTAL PROVEEDORES'!D154 -> CEMEX DE COLOMBIA S.A. | E156: =+'LISTA TOTAL PROVEEDORES'!E154 -> Bogotá | F156: =+'LISTA TOTAL PROVEEDORES'!F154 -> Cl 99 9A 54 Piso 8 | G156: =+'LISTA TOTAL PROVEEDORES'!G154 -> 6469000 603 9100 | H156: =+'LISTA TOTAL PROVEEDORES'!H154 -> ginnamarcela.gomez@cemex.com alvaro.coral@cemex.com adrianamaritza.ramosrt@cemex.com
B157: =+'LISTA TOTAL PROVEEDORES'!I155 -> 153 | C157: ='LISTA TOTAL PROVEEDORES'!C155 -> CONCRETOS Y MORTEROS PREMEZCLADOS | D157: =+'LISTA TOTAL PROVEEDORES'!D155 -> CONCRETERA TREMIX SAS | E157: =+'LISTA TOTAL PROVEEDORES'!E155 -> Bogotá | F157: =+'LISTA TOTAL PROVEEDORES'!F155 -> Cl 147 No.17-78 Ed. Soko 147 Piso 5 | G157: =+'LISTA TOTAL PROVEEDORES'!G155 -> (57) (1) 6260860 / 61 | H157: =+'LISTA TOTAL PROVEEDORES'!H155 -> gestion.ambiental@tremix.com.co
B158: =+'LISTA TOTAL PROVEEDORES'!I156 -> 154 | C158: ='LISTA TOTAL PROVEEDORES'!C156 -> CONCRETOS Y MORTEROS PREMEZCLADOS | D158: =+'LISTA TOTAL PROVEEDORES'!D156 -> CONCRETOS ARGOS S.A. | E158: =+'LISTA TOTAL PROVEEDORES'!E156 -> Bogotá | F158: =+'LISTA TOTAL PROVEEDORES'!F156 -> Av. Cl 24 A No. 59-42 Torre 3 Piso 9 | G158: =+'LISTA TOTAL PROVEEDORES'!G156 -> (57) (1) 6069400 | H158: =+'LISTA TOTAL PROVEEDORES'!H156 -> serviciocliente@argos.com.co ana.escalante@argos.com.co
B159: =+'LISTA TOTAL PROVEEDORES'!I157 -> 155 | C159: ='LISTA TOTAL PROVEEDORES'!C157 -> CONCRETOS Y MORTEROS PREMEZCLADOS | D159: =+'LISTA TOTAL PROVEEDORES'!D157 -> HIDROPROTECCIÓN DE COLOMBIA | E159: =+'LISTA TOTAL PROVEEDORES'!E157 -> Bogotá | F159: =+'LISTA TOTAL PROVEEDORES'!F157 -> Cl 74 No. 20 A 14 | G159: =+'LISTA TOTAL PROVEEDORES'!G157 -> 7020385 3173315950 | H159: =+'LISTA TOTAL PROVEEDORES'!H157 -> www.hidroproteccion.com
B160: =+'LISTA TOTAL PROVEEDORES'!I158 -> 156 | C160: ='LISTA TOTAL PROVEEDORES'!C158 -> CONCRETOS Y MORTEROS PREMEZCLADOS | D160: =+'LISTA TOTAL PROVEEDORES'!D158 -> HORMIGON ANDINO SA | E160: =+'LISTA TOTAL PROVEEDORES'!E158 -> Bogotá | F160: =+'LISTA TOTAL PROVEEDORES'!F158 -> Calle 125 # 21 A - 18 Piso 4 | G160: =+'LISTA TOTAL PROVEEDORES'!G158 -> 6371837 6371748 | H160: =+'LISTA TOTAL PROVEEDORES'!H158 -> g.comercial@hormigonandino.com
B161: =+'LISTA TOTAL PROVEEDORES'!I159 -> 157 | C161: ='LISTA TOTAL PROVEEDORES'!C159 -> CONCRETOS Y MORTEROS PREMEZCLADOS | D161: =+'LISTA TOTAL PROVEEDORES'!D159 -> MEGA CONCRETOS | E161: =+'LISTA TOTAL PROVEEDORES'!E159 -> Bogotá | F161: =+'LISTA TOTAL PROVEEDORES'!F159 -> Cra. 80A No. 17 - 21 | G161: =+'LISTA TOTAL PROVEEDORES'!G159 -> 390 6012 310 349 4946 | H161: =+'LISTA TOTAL PROVEEDORES'!H159 -> gerencia@megaconcretos.com.co
B162: =+'LISTA TOTAL PROVEEDORES'!I160 -> 158 | C162: ='LISTA TOTAL PROVEEDORES'!C160 -> CONCRETOS Y MORTEROS PREMEZCLADOS | D162: =+'LISTA TOTAL PROVEEDORES'!D160 -> POLIMIX COLOMBIA | E162: =+'LISTA TOTAL PROVEEDORES'!E160 -> Bogotá | F162: =+'LISTA TOTAL PROVEEDORES'!F160 -> Calle 147 # 17 - 78 Edificio Soko 147 Of 504 | G162: =+'LISTA TOTAL PROVEEDORES'!G160 -> 6260860 / 61 / 62 / 63 | H162: =+'LISTA TOTAL PROVEEDORES'!H160 -> comercial1@polimix.com.co
B163: =+'LISTA TOTAL PROVEEDORES'!I161 -> 159 | C163: ='LISTA TOTAL PROVEEDORES'!C161 -> CONCRETOS Y MORTEROS PREMEZCLADOS | D163: =+'LISTA TOTAL PROVEEDORES'!D161 -> SIKA COLOMBIA SAS | E163: =+'LISTA TOTAL PROVEEDORES'!E161 -> Tocancipá - Cund. | F163: =+'LISTA TOTAL PROVEEDORES'!F161 -> Vereda Canavita, Km 20.5 Autopista Norte | G163: =+'LISTA TOTAL PROVEEDORES'!G161 -> 8786666 8786681 | H163: =+'LISTA TOTAL PROVEEDORES'!H161 -> chacon.jose@co.sika.com ortiz.ricardo@co.sika.com
B164: =+'LISTA TOTAL PROVEEDORES'!I162 -> 160 | C164: ='LISTA TOTAL PROVEEDORES'!C162 -> CONCRETOS Y MORTEROS PREMEZCLADOS | D164: =+'LISTA TOTAL PROVEEDORES'!D162 -> SOELCO | E164: =+'LISTA TOTAL PROVEEDORES'!E162 -> Tunja - Boyaca | F164: =+'LISTA TOTAL PROVEEDORES'!F162 -> Av. Norte No. 37 - 45 | G164: =+'LISTA TOTAL PROVEEDORES'!G162 -> (57) (8) 7458687 | H164: =+'LISTA TOTAL PROVEEDORES'!H162 -> www.soelco.com.co
B165: =+'LISTA TOTAL PROVEEDORES'!I163 -> 161 | C165: ='LISTA TOTAL PROVEEDORES'!C163 -> CONCRETOS Y MORTEROS PREMEZCLADOS | D165: =+'LISTA TOTAL PROVEEDORES'!D163 -> TOXEMENT | E165: =+'LISTA TOTAL PROVEEDORES'!E163 -> Tocancipá - Cund. | F165: =+'LISTA TOTAL PROVEEDORES'!F163 -> Parque Industrial Gran Sabana | G165: =+'LISTA TOTAL PROVEEDORES'!G163 -> 869 87 87 | H165: =+'LISTA TOTAL PROVEEDORES'!H163 -> atencioncliente@euclidchemical.com.co
B166: =+'LISTA TOTAL PROVEEDORES'!I164 -> 162 | C166: ='LISTA TOTAL PROVEEDORES'!C164 -> CONSULTORIA | D166: =+'LISTA TOTAL PROVEEDORES'!D164 -> SECRETARIA DISTRITAL DE PLANEACIÓN | E166: =+'LISTA TOTAL PROVEEDORES'!E164 -> Bogotá | F166: =+'LISTA TOTAL PROVEEDORES'!F164 -> Kra 30 # 25 - 90 Pisos 5 - 8 -13 | G166: =+'LISTA TOTAL PROVEEDORES'!G164 -> 3358000 ext 9013 | H166: =+'LISTA TOTAL PROVEEDORES'!H164 -> servicioalciudadanoGEL@sdp.gov.co
B167: =+'LISTA TOTAL PROVEEDORES'!I165 -> 163 | C167: ='LISTA TOTAL PROVEEDORES'!C165 -> CONSULTORIA | D167: =+'LISTA TOTAL PROVEEDORES'!D165 -> SUPERINTENDENCIA DE NOTARIADO Y REGISTRO | E167: =+'LISTA TOTAL PROVEEDORES'!E165 -> Bogotá | F167: =+'LISTA TOTAL PROVEEDORES'!F165 -> Calle 26 No. 13-49 Interior 201 | G167: =+'LISTA TOTAL PROVEEDORES'!G165 -> 328 2121 | H167: =+'LISTA TOTAL PROVEEDORES'!H165 -> notificaciones.juridica@supernotariado.gov.co
B168: =+'LISTA TOTAL PROVEEDORES'!I166 -> 164 | C168: ='LISTA TOTAL PROVEEDORES'!C166 -> CUBIERTA - CIELO RASO - CORTASOL TIPO TRANSMILENIO | D168: =+'LISTA TOTAL PROVEEDORES'!D166 -> CIELOS RASOS & DIVISIONES | E168: =+'LISTA TOTAL PROVEEDORES'!E166 -> Bogotá | F168: =+'LISTA TOTAL PROVEEDORES'!F166 -> Cr 14 75.58 | G168: =+'LISTA TOTAL PROVEEDORES'!G166 -> 2481860 310 5774471 | H168: =+'LISTA TOTAL PROVEEDORES'!H166 -> ventas@cielosrasos.com
B169: =+'LISTA TOTAL PROVEEDORES'!I167 -> 165 | C169: ='LISTA TOTAL PROVEEDORES'!C167 -> CUBIERTA - CIELO RASO - CORTASOL TIPO TRANSMILENIO | D169: =+'LISTA TOTAL PROVEEDORES'!D167 -> DECOGOLD ESPACIOS, S.A.S. | E169: =+'LISTA TOTAL PROVEEDORES'!E167 -> Bogotá | F169: =+'LISTA TOTAL PROVEEDORES'!F167 -> Cra 46 #152-46 Local 266 Cra 55 152 B 68 OF 705 | G169: =+'LISTA TOTAL PROVEEDORES'!G167 -> 2166263 3108768739 | H169: =+'LISTA TOTAL PROVEEDORES'!H167 -> decogoldespacios@gmail.com
B170: =+'LISTA TOTAL PROVEEDORES'!I168 -> 166 | C170: ='LISTA TOTAL PROVEEDORES'!C168 -> CUBIERTA - CIELO RASO - CORTASOL TIPO TRANSMILENIO | D170: =+'LISTA TOTAL PROVEEDORES'!D168 -> DEPOSITO DE MADERAS VILLA BOYACA | E170: =+'LISTA TOTAL PROVEEDORES'!E168 -> Bogotá | F170: =+'LISTA TOTAL PROVEEDORES'!F168 -> Calle 71A # 74 A - 43 | G170: =+'LISTA TOTAL PROVEEDORES'!G168 -> 2763975 | H170: =+'LISTA TOTAL PROVEEDORES'!H168 -> maderasvillaboyaca@gmail.com
B171: =+'LISTA TOTAL PROVEEDORES'!I169 -> 167 | C171: ='LISTA TOTAL PROVEEDORES'!C169 -> CUBIERTA - CIELO RASO - CORTASOL TIPO TRANSMILENIO | D171: =+'LISTA TOTAL PROVEEDORES'!D169 -> EASY | E171: =+'LISTA TOTAL PROVEEDORES'!E169 -> Bogotá | F171: =+'LISTA TOTAL PROVEEDORES'!F169 -> Av Americas No. 68 94 | G171: =+'LISTA TOTAL PROVEEDORES'!G169 -> 4191400 | H171: =+'LISTA TOTAL PROVEEDORES'!H169 -> www. Easy.com.co
B172: =+'LISTA TOTAL PROVEEDORES'!I170 -> 168 | C172: ='LISTA TOTAL PROVEEDORES'!C170 -> CUBIERTA - CIELO RASO - CORTASOL TIPO TRANSMILENIO | D172: =+'LISTA TOTAL PROVEEDORES'!D170 -> HB SADELEC Estructuras Metálicas | E172: =+'LISTA TOTAL PROVEEDORES'!E170 -> Bogotá | F172: =+'LISTA TOTAL PROVEEDORES'!F170 -> Avda. Cra. 129 17 F 97 | G172: =+'LISTA TOTAL PROVEEDORES'!G170 -> 4224700 Ext. 121 4155620 | H172: =+'LISTA TOTAL PROVEEDORES'!H170 -> david.castellanos@hbsadelec.com.co
B173: =+'LISTA TOTAL PROVEEDORES'!I171 -> 169 | C173: ='LISTA TOTAL PROVEEDORES'!C171 -> CUBIERTA - CIELO RASO - CORTASOL TIPO TRANSMILENIO | D173: =+'LISTA TOTAL PROVEEDORES'!D171 -> HOMECENTER | E173: =+'LISTA TOTAL PROVEEDORES'!E171 -> Bogotá | F173: =+'LISTA TOTAL PROVEEDORES'!F171 -> Av Cra 68 No. 37 - 37 sur | G173: =+'LISTA TOTAL PROVEEDORES'!G171 -> 3077115 | H173: =+'LISTA TOTAL PROVEEDORES'!H171 -> www.homecenter.com
B174: =+'LISTA TOTAL PROVEEDORES'!I172 -> 170 | C174: ='LISTA TOTAL PROVEEDORES'!C172 -> CUBIERTA - CIELO RASO - CORTASOL TIPO TRANSMILENIO | D174: =+'LISTA TOTAL PROVEEDORES'!D172 -> MADERAS PUERTO COLOMBIA LTDA | E174: =+'LISTA TOTAL PROVEEDORES'!E172 -> Bogotá | F174: =+'LISTA TOTAL PROVEEDORES'!F172 -> Av. Cr 70 No. 70 45 | G174: =+'LISTA TOTAL PROVEEDORES'!G172 -> 2243982 2761648 | H174: =+'LISTA TOTAL PROVEEDORES'!H172 -> maderaspuertoco@hotmail.com
B175: =+'LISTA TOTAL PROVEEDORES'!I173 -> 171 | C175: ='LISTA TOTAL PROVEEDORES'!C173 -> CUBIERTA - CIELO RASO - CORTASOL TIPO TRANSMILENIO | D175: =+'LISTA TOTAL PROVEEDORES'!D173 -> MADERAS SAJO | E175: =+'LISTA TOTAL PROVEEDORES'!E173 -> Bogotá | F175: =+'LISTA TOTAL PROVEEDORES'!F173 -> CALLE 68 # 87 - 40 | G175: =+'LISTA TOTAL PROVEEDORES'!G173 -> 310 8811268 | H175: =+'LISTA TOTAL PROVEEDORES'!H173 -> maderassajo@gmail.com
B176: =+'LISTA TOTAL PROVEEDORES'!I174 -> 172 | C176: ='LISTA TOTAL PROVEEDORES'!C174 -> DESMONTE Y TRASLADOS DE ELEMENTOS METÁLICOS | D176: =+'LISTA TOTAL PROVEEDORES'!D174 -> INDUSTRIAS METALICAS GRAG S.A.S. | E176: =+'LISTA TOTAL PROVEEDORES'!E174 -> Bogotá | F176: =+'LISTA TOTAL PROVEEDORES'!F174 -> Carrera 27 # 10 - 35 | G176: =+'LISTA TOTAL PROVEEDORES'!G174 -> 805 9374 805 9374 277 3540 | H176: =+'LISTA TOTAL PROVEEDORES'!H174 -> metalicasgrag@yahoo.es
B177: =+'LISTA TOTAL PROVEEDORES'!I175 -> 173 | C177: ='LISTA TOTAL PROVEEDORES'!C175 -> DESMONTE Y TRASLADOS DE ELEMENTOS METÁLICOS | D177: =+'LISTA TOTAL PROVEEDORES'!D175 -> NAZCA DISEÑO - IMAGEN SAS | E177: =+'LISTA TOTAL PROVEEDORES'!E175 -> Bogotá | F177: =+'LISTA TOTAL PROVEEDORES'!F175 -> Cr 53 No. 44 A 18 | G177: =+'LISTA TOTAL PROVEEDORES'!G175 -> 6407351 3003228552 3003228286 | H177: =+'LISTA TOTAL PROVEEDORES'!H175 -> comercial@nazca.com.co
B178: =+'LISTA TOTAL PROVEEDORES'!I176 -> 174 | C178: ='LISTA TOTAL PROVEEDORES'!C176 -> DOTACIÓN (EPP) Y EQUIP. Y HERRAM. SEGUR. INDUSTR. | D178: =+'LISTA TOTAL PROVEEDORES'!D176 -> BELTEC | E178: =+'LISTA TOTAL PROVEEDORES'!E176 -> Bogotá | F178: =+'LISTA TOTAL PROVEEDORES'!F176 -> Cr 27 No. 17 10 | G178: =+'LISTA TOTAL PROVEEDORES'!G176 -> 3600950 | H178: =+'LISTA TOTAL PROVEEDORES'!H176 -> contacto@beltec.com.co
B179: =+'LISTA TOTAL PROVEEDORES'!I177 -> 175 | C179: ='LISTA TOTAL PROVEEDORES'!C177 -> DOTACIÓN (EPP) Y EQUIP. Y HERRAM. SEGUR. INDUSTR. | D179: =+'LISTA TOTAL PROVEEDORES'!D177 -> COMSECOL SAS | E179: =+'LISTA TOTAL PROVEEDORES'!E177 -> Bogotá | F179: =+'LISTA TOTAL PROVEEDORES'!F177 -> Cra. 28 No. 11 - 67, Of. 321 | G179: =+'LISTA TOTAL PROVEEDORES'!G177 -> 351 3819 3162664928 | H179: =+'LISTA TOTAL PROVEEDORES'!H177 -> comsecolsas@hotmail.com
B180: =+'LISTA TOTAL PROVEEDORES'!I178 -> 176 | C180: ='LISTA TOTAL PROVEEDORES'!C178 -> DOTACIÓN (EPP) Y EQUIP. Y HERRAM. SEGUR. INDUSTR. | D180: =+'LISTA TOTAL PROVEEDORES'!D178 -> DOTACIONES CALDERON SAS | E180: =+'LISTA TOTAL PROVEEDORES'!E178 -> Bogotá | F180: =+'LISTA TOTAL PROVEEDORES'!F178 -> Avda. Cra. 68 22 64 Sur | G180: =+'LISTA TOTAL PROVEEDORES'!G178 -> 4065664 4069690 3108886247 | H180: =+'LISTA TOTAL PROVEEDORES'!H178 -> comercial@dotacionesyseguguridadindustrial.com
B181: =+'LISTA TOTAL PROVEEDORES'!I179 -> 177 | C181: ='LISTA TOTAL PROVEEDORES'!C179 -> DOTACIÓN (EPP) Y EQUIP. Y HERRAM. SEGUR. INDUSTR. | D181: =+'LISTA TOTAL PROVEEDORES'!D179 -> DOTACIONES ONLINE | E181: =+'LISTA TOTAL PROVEEDORES'!E179 -> Bogotá | F181: =+'LISTA TOTAL PROVEEDORES'!F179 -> Calle 75 A No. 61-44 | G181: =+'LISTA TOTAL PROVEEDORES'!G179 -> 7921705 318 320 5423 350 349 6922. | H181: =+'LISTA TOTAL PROVEEDORES'!H179 -> servicioalcliente@dotacionesonline.com
B182: =+'LISTA TOTAL PROVEEDORES'!I180 -> 178 | C182: ='LISTA TOTAL PROVEEDORES'!C180 -> DOTACIÓN (EPP) Y EQUIP. Y HERRAM. SEGUR. INDUSTR. | D182: =+'LISTA TOTAL PROVEEDORES'!D180 -> EASY | E182: =+'LISTA TOTAL PROVEEDORES'!E180 -> Bogotá | F182: =+'LISTA TOTAL PROVEEDORES'!F180 -> Av Americas No. 68 94 | G182: =+'LISTA TOTAL PROVEEDORES'!G180 -> 4191400 | H182: =+'LISTA TOTAL PROVEEDORES'!H180 -> www. Easy.com.co
B183: =+'LISTA TOTAL PROVEEDORES'!I181 -> 179 | C183: ='LISTA TOTAL PROVEEDORES'!C181 -> DOTACIÓN (EPP) Y EQUIP. Y HERRAM. SEGUR. INDUSTR. | D183: =+'LISTA TOTAL PROVEEDORES'!D181 -> ECOLSEN | E183: =+'LISTA TOTAL PROVEEDORES'!E181 -> Bogotá | F183: =+'LISTA TOTAL PROVEEDORES'!F181 -> DIAG 77B # 116B - 42 | G183: =+'LISTA TOTAL PROVEEDORES'!G181 -> 3123226014 8063016 | H183: =+'LISTA TOTAL PROVEEDORES'!H181 -> info@ecolsen.com.co
B184: =+'LISTA TOTAL PROVEEDORES'!I182 -> 180 | C184: ='LISTA TOTAL PROVEEDORES'!C182 -> DOTACIÓN (EPP) Y EQUIP. Y HERRAM. SEGUR. INDUSTR. | D184: =+'LISTA TOTAL PROVEEDORES'!D182 -> FERRESTAR DE COLOMBIA | E184: =+'LISTA TOTAL PROVEEDORES'!E182 -> Bogotá | F184: =+'LISTA TOTAL PROVEEDORES'!F182 -> Cra 27B # 5-88 Santa Isabel | G184: =+'LISTA TOTAL PROVEEDORES'!G182 -> 313 4392699 321 4573931 | H184: =+'LISTA TOTAL PROVEEDORES'!H182 -> comercial1@ferrestardecolombia.co ventasferrestar1@gmail.com
B185: =+'LISTA TOTAL PROVEEDORES'!I183 -> 181 | C185: ='LISTA TOTAL PROVEEDORES'!C183 -> DOTACIÓN (EPP) Y EQUIP. Y HERRAM. SEGUR. INDUSTR. | D185: =+'LISTA TOTAL PROVEEDORES'!D183 -> FERRETERÍA SAMIR | E185: =+'LISTA TOTAL PROVEEDORES'!E183 -> Barranquilla - Atlantico | F185: =+'LISTA TOTAL PROVEEDORES'!F183 -> Cl 35 No. 38 43 | G185: =+'LISTA TOTAL PROVEEDORES'!G183 -> 318 3364259 318 7758062 316 3413547 | H185: =+'LISTA TOTAL PROVEEDORES'!H183 -> cotizaciones@ferreteriasamir.com
B186: =+'LISTA TOTAL PROVEEDORES'!I184 -> 182 | C186: ='LISTA TOTAL PROVEEDORES'!C184 -> DOTACIÓN (EPP) Y EQUIP. Y HERRAM. SEGUR. INDUSTR. | D186: =+'LISTA TOTAL PROVEEDORES'!D184 -> FERRICENTRO | E186: =+'LISTA TOTAL PROVEEDORES'!E184 -> Bogotá | F186: =+'LISTA TOTAL PROVEEDORES'!F184 -> Avda. Caracas 74 25 | G186: =+'LISTA TOTAL PROVEEDORES'!G184 -> 6511212 2862100 | H186: =+'LISTA TOTAL PROVEEDORES'!H184 -> jhon.bermudez@ferricentro.com callcenter02@ferricentro.com callcenter01@ferricentro.com
B187: =+'LISTA TOTAL PROVEEDORES'!I185 -> 183 | C187: ='LISTA TOTAL PROVEEDORES'!C185 -> DOTACIÓN (EPP) Y EQUIP. Y HERRAM. SEGUR. INDUSTR. | D187: =+'LISTA TOTAL PROVEEDORES'!D185 -> GAMA DOTACIONES | E187: =+'LISTA TOTAL PROVEEDORES'!E185 -> Bogotá | F187: =+'LISTA TOTAL PROVEEDORES'!F185 -> Carrera 5 No 49ª sur-93, barrio marruecos | G187: =+'LISTA TOTAL PROVEEDORES'!G185 -> 3503829335 | H187: =+'LISTA TOTAL PROVEEDORES'!H185 -> gamadotaciones@gmail.com
B188: =+'LISTA TOTAL PROVEEDORES'!I186 -> 184 | C188: ='LISTA TOTAL PROVEEDORES'!C186 -> DOTACIÓN (EPP) Y EQUIP. Y HERRAM. SEGUR. INDUSTR. | D188: =+'LISTA TOTAL PROVEEDORES'!D186 -> HERLOZ SUMINISTROS | E188: =+'LISTA TOTAL PROVEEDORES'!E186 -> Bogotá | F188: =+'LISTA TOTAL PROVEEDORES'!F186 -> www.herloz.com | G188: =+'LISTA TOTAL PROVEEDORES'!G186 -> 247 8827 315 305 1224 | H188: =+'LISTA TOTAL PROVEEDORES'!H186 -> ventasweb@herloz.com
B189: =+'LISTA TOTAL PROVEEDORES'!I187 -> 185 | C189: ='LISTA TOTAL PROVEEDORES'!C187 -> DOTACIÓN (EPP) Y EQUIP. Y HERRAM. SEGUR. INDUSTR. | D189: =+'LISTA TOTAL PROVEEDORES'!D187 -> HOMECENTER | E189: =+'LISTA TOTAL PROVEEDORES'!E187 -> Bogotá | F189: =+'LISTA TOTAL PROVEEDORES'!F187 -> Av Cra 68 No. 37 - 37 sur | G189: =+'LISTA TOTAL PROVEEDORES'!G187 -> 3077115 | H189: =+'LISTA TOTAL PROVEEDORES'!H187 -> www.homecenter.com
B190: =+'LISTA TOTAL PROVEEDORES'!I188 -> 186 | C190: ='LISTA TOTAL PROVEEDORES'!C188 -> DOTACIÓN (EPP) Y EQUIP. Y HERRAM. SEGUR. INDUSTR. | D190: =+'LISTA TOTAL PROVEEDORES'!D188 -> LASUS | E190: =+'LISTA TOTAL PROVEEDORES'!E188 -> Bogotá | F190: =+'LISTA TOTAL PROVEEDORES'!F188 -> Cr 16 No. 97 46 | G190: =+'LISTA TOTAL PROVEEDORES'!G188 -> 5086170 | H190: =+'LISTA TOTAL PROVEEDORES'!H188 -> info@lasus.com.co
B191: =+'LISTA TOTAL PROVEEDORES'!I189 -> 187 | C191: ='LISTA TOTAL PROVEEDORES'!C189 -> DOTACIÓN (EPP) Y EQUIP. Y HERRAM. SEGUR. INDUSTR. | D191: =+'LISTA TOTAL PROVEEDORES'!D189 -> LINIO | E191: =+'LISTA TOTAL PROVEEDORES'!E189 -> Bogotá | F191: =+'LISTA TOTAL PROVEEDORES'!F189 -> Cl 99 No. 14 49 Piso 9 | G191: =+'LISTA TOTAL PROVEEDORES'!G189 -> 7457888 | H191: =+'LISTA TOTAL PROVEEDORES'!H189 -> www.linio.com.co
B192: =+'LISTA TOTAL PROVEEDORES'!I190 -> 188 | C192: ='LISTA TOTAL PROVEEDORES'!C190 -> DOTACIÓN (EPP) Y EQUIP. Y HERRAM. SEGUR. INDUSTR. | D192: =+'LISTA TOTAL PROVEEDORES'!D190 -> MULTINACIONAL DE DOTACIONES | E192: =+'LISTA TOTAL PROVEEDORES'!E190 -> Bogotá | F192: =+'LISTA TOTAL PROVEEDORES'!F190 -> Av Cr 68 No. 10 12 sur | G192: =+'LISTA TOTAL PROVEEDORES'!G190 -> 4946229 314 3817430 315 3267865 | H192: =+'LISTA TOTAL PROVEEDORES'!H190 -> www.ventas@mukltinacionaldedotaciones.com
B193: =+'LISTA TOTAL PROVEEDORES'!I191 -> 189 | C193: ='LISTA TOTAL PROVEEDORES'!C191 -> DOTACIÓN (EPP) Y EQUIP. Y HERRAM. SEGUR. INDUSTR. | D193: =+'LISTA TOTAL PROVEEDORES'!D191 -> MUNDO NATURAL SAS | E193: =+'LISTA TOTAL PROVEEDORES'!E191 -> Bogotá | F193: =+'LISTA TOTAL PROVEEDORES'!F191 -> Cl. 163 #18 A - 93 | G193: =+'LISTA TOTAL PROVEEDORES'!G191 -> 350 539 6869 | H193: =+'LISTA TOTAL PROVEEDORES'!H191 -> ventasonline@mundonatural.com.co
B194: =+'LISTA TOTAL PROVEEDORES'!I192 -> 190 | C194: ='LISTA TOTAL PROVEEDORES'!C192 -> DOTACIÓN (EPP) Y EQUIP. Y HERRAM. SEGUR. INDUSTR. | D194: =+'LISTA TOTAL PROVEEDORES'!D192 -> SEGURIDAD Y DOTACIÓN.COM | E194: =+'LISTA TOTAL PROVEEDORES'!E192 -> Bogotá | F194: =+'LISTA TOTAL PROVEEDORES'!F192 -> Calle 97 # 64 – 39 | G194: =+'LISTA TOTAL PROVEEDORES'!G192 -> 3157515302 | H194: =+'LISTA TOTAL PROVEEDORES'!H192 -> comercial@siyvial.com
B195: =+'LISTA TOTAL PROVEEDORES'!I193 -> 191 | C195: ='LISTA TOTAL PROVEEDORES'!C193 -> DOTACIÓN (EPP) Y EQUIP. Y HERRAM. SEGUR. INDUSTR. | D195: =+'LISTA TOTAL PROVEEDORES'!D193 -> SIGMONSHOP | E195: =+'LISTA TOTAL PROVEEDORES'!E193 -> El Caney - Valle del Cauca | F195: =+'LISTA TOTAL PROVEEDORES'!F193 -> Cra 83A No. 45 - 59 Piso 2 | G195: =+'LISTA TOTAL PROVEEDORES'!G193 -> 2- 4015063 3212151598 | H195: =+'LISTA TOTAL PROVEEDORES'!H193 -> ventas@sigmonshop.com
B196: =+'LISTA TOTAL PROVEEDORES'!I194 -> 192 | C196: ='LISTA TOTAL PROVEEDORES'!C194 -> DOTACIÓN (EPP) Y EQUIP. Y HERRAM. SEGUR. INDUSTR. | D196: =+'LISTA TOTAL PROVEEDORES'!D194 -> TIENDAS EPP | E196: =+'LISTA TOTAL PROVEEDORES'!E194 -> Bogotá | F196: =+'LISTA TOTAL PROVEEDORES'!F194 -> Autopista Norte No.178 83 | G196: =+'LISTA TOTAL PROVEEDORES'!G194 -> 6732200 311 2321328 | H196: =+'LISTA TOTAL PROVEEDORES'!H194 -> comercial@tiendasepp.com
B197: =+'LISTA TOTAL PROVEEDORES'!I195 -> 193 | C197: ='LISTA TOTAL PROVEEDORES'!C195 -> DUCTOS PVC - ELECTRICOS/TELEFONICOS TIPO TDP-DB-EB | D197: =+'LISTA TOTAL PROVEEDORES'!D195 -> BIMBAU | E197: =+'LISTA TOTAL PROVEEDORES'!E195 -> Bogotá | F197: =+'LISTA TOTAL PROVEEDORES'!F195 -> Cra. 7 No. 83-29 | G197: =+'LISTA TOTAL PROVEEDORES'!G195 -> 316 570 14 78 | H197: =+'LISTA TOTAL PROVEEDORES'!H195 -> servicioalcliente@bimbau.co
B198: =+'LISTA TOTAL PROVEEDORES'!I196 -> 194 | C198: ='LISTA TOTAL PROVEEDORES'!C196 -> DUCTOS PVC - ELECTRICOS/TELEFONICOS TIPO TDP-DB-EB | D198: =+'LISTA TOTAL PROVEEDORES'!D196 -> DURMAN COLOMBIA S.A. | E198: =+'LISTA TOTAL PROVEEDORES'!E196 -> Madrid - Cund | F198: =+'LISTA TOTAL PROVEEDORES'!F196 -> Km 27 Via fontibon Facatativa Los Alpes | G198: =+'LISTA TOTAL PROVEEDORES'!G196 -> 8200200 | H198: =+'LISTA TOTAL PROVEEDORES'!H196 -> colombia@durmam.com
B199: =+'LISTA TOTAL PROVEEDORES'!I197 -> 195 | C199: ='LISTA TOTAL PROVEEDORES'!C197 -> DUCTOS PVC - ELECTRICOS/TELEFONICOS TIPO TDP-DB-EB | D199: =+'LISTA TOTAL PROVEEDORES'!D197 -> EASY | E199: =+'LISTA TOTAL PROVEEDORES'!E197 -> Bogotá | F199: =+'LISTA TOTAL PROVEEDORES'!F197 -> Av Americas No. 68 94 | G199: =+'LISTA TOTAL PROVEEDORES'!G197 -> 4191400 | H199: =+'LISTA TOTAL PROVEEDORES'!H197 -> www. Easy.com.co
B200: =+'LISTA TOTAL PROVEEDORES'!I198 -> 196 | C200: ='LISTA TOTAL PROVEEDORES'!C198 -> DUCTOS PVC - ELECTRICOS/TELEFONICOS TIPO TDP-DB-EB | D200: =+'LISTA TOTAL PROVEEDORES'!D198 -> GERFOR | E200: =+'LISTA TOTAL PROVEEDORES'!E198 -> Bogotá | F200: =+'LISTA TOTAL PROVEEDORES'!F198 -> Autopista Medellin Km 2.6 Entrda via Parcelas de Cota | G200: =+'LISTA TOTAL PROVEEDORES'!G198 -> 2776800 | H200: =+'LISTA TOTAL PROVEEDORES'!H198 -> contactenos@gerfor.com www.gerfor.com.co
B201: =+'LISTA TOTAL PROVEEDORES'!I199 -> 197 | C201: ='LISTA TOTAL PROVEEDORES'!C199 -> DUCTOS PVC - ELECTRICOS/TELEFONICOS TIPO TDP-DB-EB | D201: =+'LISTA TOTAL PROVEEDORES'!D199 -> HOMECENTER | E201: =+'LISTA TOTAL PROVEEDORES'!E199 -> Bogotá | F201: =+'LISTA TOTAL PROVEEDORES'!F199 -> Av Cra 68 No. 37 - 37 sur | G201: =+'LISTA TOTAL PROVEEDORES'!G199 -> 3077115 | H201: =+'LISTA TOTAL PROVEEDORES'!H199 -> www.homecenter.com
B202: =+'LISTA TOTAL PROVEEDORES'!I200 -> 198 | C202: ='LISTA TOTAL PROVEEDORES'!C200 -> DUCTOS PVC - ELECTRICOS/TELEFONICOS TIPO TDP-DB-EB | D202: =+'LISTA TOTAL PROVEEDORES'!D200 -> INETEL | E202: =+'LISTA TOTAL PROVEEDORES'!E200 -> Bogotá | F202: =+'LISTA TOTAL PROVEEDORES'!F200 -> Calle 37b Sur N°.68i-80 | G202: =+'LISTA TOTAL PROVEEDORES'!G200 -> 741 5856 741 5865 | H202: =+'LISTA TOTAL PROVEEDORES'!H200 -> comercial@inetelltda.com
B203: =+'LISTA TOTAL PROVEEDORES'!I201 -> 199 | C203: ='LISTA TOTAL PROVEEDORES'!C201 -> DUCTOS PVC - ELECTRICOS/TELEFONICOS TIPO TDP-DB-EB | D203: =+'LISTA TOTAL PROVEEDORES'!D201 -> PAVCO S.A. | E203: =+'LISTA TOTAL PROVEEDORES'!E201 -> Bogotá | F203: =+'LISTA TOTAL PROVEEDORES'!F201 -> Autopista sur No. 71 75 | G203: =+'LISTA TOTAL PROVEEDORES'!G201 -> 7825000 | H203: =+'LISTA TOTAL PROVEEDORES'!H201 -> servicio@pavco.com.co orlando.polo@pavco.com.co www.pavco.com.co
... 4296 more rows

Sheet Tabla de Contenido
D84: 26 | H84: 27 | N84: 26

Sheet check tabla (hidden)
A1: GRUPOS CONTENIDOS EN LA TABLA DE CONTENIDO 2019-II
B4: GRUPOS EN LA BASE 2019-II | E4: TABLA DE CONTENIDO | I4: GRUPOS DE RECOLECCION | N4: 182 | O4: 182
B5: 177 | C5: SUELDOS Y JORNALES | D5: 177 | E5: 1114 | F5: ACCESORIOS HD PARA ACUEDUCTO | I5: =VLOOKUP(K5,$E$5:$F$82,1,FALSE) -> 1114 | J5: ACCESORIOS HD PARA REDES DE ACUEDUCTO | K5: =VLOOKUP(J5,$C$5:$D$111,2,FALSE) -> 1114 | N5: 1102 | O5: 1102
B6: 182 | C6: TRANSPORTES DE MATERIALES Y ACARREOS | D6: 182 | E6: 1161 | F6: ACTIVIDADES A TODO COSTO | I6: =VLOOKUP(K6,$E$5:$F$82,1,FALSE) -> 1161 | J6: ACTIVIDADES A TODO COSTO | K6: =VLOOKUP(J6,$C$5:$D$111,2,FALSE) -> 1161 | N6: 1103 | O6: 1103
B7: 1102 | C7: AGREGADOS PÉTREOS, BASES Y SUBBASES GRANULARES | D7: 1102 | E7: 1147 | F7: ARBOLES, GRAMAS, VEGETACION Y PLANTACION PAISAJIST | I7: 1102 | J7: AGREGADOS PÉTREOS, BASES Y SUBBASES GRANULARES | K7: 1102 | N7: 1104 | O7: 1104
B8: 1103 | C8: CONCRETOS Y MORTEROS PREMEZCLADOS | D8: 1103 | E8: 1127 | F8: BORDILLOS Y LOSETAS | I8: 1147 | J8: ARBOLES-GRAMAS-VEGETACIÓN Y PLANTACIÓN PAISAJÍSTIC | K8: 1147 | N8: 1105 | O8: 1105
B9: 1104 | C9: EMULSIONES Y MEZCLAS ASFÁLTICAS | D9: 1104 | E9: 1121 | F9: CABLES Y ACCESORIOS ELECTRICOS | I9: 1127 | J9: BORDILLOS Y LOSETAS | K9: 1127 | N9: 1107 | O9: 1107
B10: 1105 | C10: TUBERÍA Y ACCESORIOS DE CONCRETO | D10: 1105 | E10: 1102 | F10: AGREGADOS PETREOS, BASES Y SUBBASES GRANULARES | I10: 1121 | J10: CABLES Y ACCESORIOS ELECTRICOS | K10: 1121 | N10: 1109 | O10: 1109
B11: 1107 | C11: TUBERIAS DE PVC - ACUEDUCTO | D11: 1107 | E11: 1195 | F11: CARPINTERIA METALICA | I11: 1195 | J11: CARPINTERÍA METÁLICA | K11: 1195 | N11: 1111 | O11: 1111
B12: 1109 | C12: TUBERÍA Y ACCESORIOS DE PVC PARA ALCANTARILLADO | D12: 1109 | E12: 182 | F12: TRANSPORTE DE MATERIALES Y ACARREOS | I12: 1130 | J12: COMBUSTIBLES Y LUBRICANTES | K12: 1130 | N12: 1113 | O12: 1113
B13: 1111 | C13: DUCTOS PVC - ELECTRICOS/TELEFONICOS TIPO TDP-DB-EB | D13: 1111 | E13: 1130 | F13: COMBUSTIBLES Y LUBRICANTES | I13: 1103 | J13: CONCRETOS Y MORTEROS PREMEZCLADOS | K13: 1103 | N13: 1114 | O13: 1114
B14: 1113 | C14: TUBERÍA Y ACCESORIOS CONDUIT GALVANIZADAS | D14: 1113 | E14: 1103 | F14: CONCRETOS Y MORTEROS PREMEZCLADOS | I14: =VLOOKUP(K14,$E$5:$F$82,1,FALSE) ->  | J14: CONSULTORIA | K14: 1168 | L14: SUBIR | N14: 1115 | O14: 1115
B15: 1114 | C15: ACCESORIOS HD PARA REDES DE ACUEDUCTO | D15: 1114 | E15: 1200 | F15: CUBIERTA, CIELO RASO, CORTASOL TIPO TRANSMILENIO | I15: 1200 | J15: CUBIERTA - CIELO RASO - CORTASOL TIPO TRANSMILENIO | K15: 1200 | N15: 1116 | O15: 1116
B16: 1115 | C16: EQUIPO PESADO | D16: 1115 | E16: 1194 | F16: DESMONTE Y TRASLADO DE ELEMENTOS METALICOS | I16: 1194 | J16: DESMONTE Y TRASLADOS DE ELEMENTOS METÁLICOS | K16: 1194 | N16: 1117 | O16: 1117
B17: 1116 | C17: EQUIPO LIVIANO Y HERRAMIENTAS | D17: 1116 | E17: 1148 | F17: DOTACION (EPP) Y EQUIPO Y HERRAMIENTA DE SEGURIDAD | I17: 1148 | J17: DOTACIÓN (EPP) Y EQUIP. Y HERRAM. SEGUR. INDUSTR. | K17: 1148 | N17: 1118 | O17: 1118
B18: 1117 | C18: POZOS Y COMPONENTES - ALCANTARILLADO | D18: 1117 | E18: 1111 | F18: DUCTOS DE PVC ELECTRICOS / TELEFONICOS TIPO TDP DB | I18: 1111 | J18: DUCTOS PVC - ELECTRICOS/TELEFONICOS TIPO TDP-DB-EB | K18: 1111 | N18: 1120 | O18: 1120
B19: 1118 | C19: SUMIDEROS Y COMPONENTES | D19: 1118 | E19: 1104 | F19: EMULSIONES Y MEZCLAS ASFALTICAS | I19: 1104 | J19: EMULSIONES Y MEZCLAS ASFÁLTICAS | K19: 1104 | N19: 1121 | O19: 1121
B20: 1120 | C20: POSTES Y ALUMBRADO PUBLICO | D20: 1120 | E20: 1116 | F20: EQUIPO LIVIANO Y HERRAMIENTAS | I20: 1172 | J20: ENSAYO CAMPO - ELEMENTOS ESTRUCTURALES CONCRETO | K20: 1172 | N20: 1122 | O20: 1122
B21: 1121 | C21: CABLES Y ACCESORIOS ELECTRICOS | D21: 1121 | E21: 1115 | F21: EQUIPO PESADO | J21: ENSAYO CAMPO - SOLDADURAS | K21: 1210 | L21: SE MANTIENE 1210 | N21: 1123 | O21: 1123
B22: 1122 | C22: MALLAS Y ACEROS PARA REFUERZO | D22: 1122 | E22: 1146 | F22: ESTRUCTURAS EN ACERO (CONVENCIONALES TIPO | I22: 1224 | J22: ENSAYO CAMPO -RECUBRIMIENTO ESTRUCTURA METÁLICA | K22: 1224 | N22: 1124 | O22: 1124
B23: 1123 | C23: GEOSINTETICOS | D23: 1123 | E23: 1158 | F23: EXAMENES MEDICOS | J23: ENSAYO CAMPO - DIAGNOSTICO DE PAVIMENTOS | K23: 1223 | L23: SUBIR | N23: 1125 | O23: 1125
B24: 1124 | C24: SELLANTES-IMPERMEABILIZANTES Y ADITIVOS CONCRETOS | D24: 1124 | E24: 1134 | F24: FORMALETAS, ANDAMIOS Y ACCESORIOS | I24: 1211 | J24: ENSAYO LABORATORIO - ABRASIVO | K24: 1211 | N24: 1126 | O24: 1126
B25: 1125 | C25: LADRILLOS, BLOQUES Y ADOQUINES | D25: 1125 | E25: 1123 | F25: GEOSINTETICOS | I25: 1213 | J25: ENSAYO LABORATORIO - ACERO ESTRUCTURAL | K25: 1213 | N25: 1127 | O25: 1127
B26: 1126 | C26: MOBILIARIO URBANO Y DE PARQUES | D26: 1126 | E26: 1167 | F26: GESTIÓN SOCIAL ELEMENTOS DE PUBLICIDAD | I26: 1212 | J26: ENSAYO LABORATORIO - ACERO REFUERZO Y PRETENSADO | K26: 1212 | N26: 1128 | O26: 1128
B27: 1127 | C27: BORDILLOS Y LOSETAS | D27: 1127 | E27: 1125 | F27: LADRILLOS, BLOQUES Y ADOQUINES | I27: 1171 | J27: ENSAYO LABORATORIO - AGREGADOS PETREOS | K27: 1171 | N27: 1129 | O27: 1129
B28: 1128 | C28: SEÑALES, BARRERAS Y DEMARCACIÓN VIAL | D28: 1128 | E28: 1133 | F28: MADERAS | J28: ENSAYO LABORATORIO - AGREGADOS PROVENIENTES DE RCD | K28: 1228 | L28: SUBIR | N28: 1130 | O28: 1130
B29: 1129 | C29: PINTURAS | D29: 1129 | E29: 1122 | F29: MALLAS Y ACEROS PARA REFUERZO | I29: 1183 | J29: ENSAYO LABORATORIO - AIRE | K29: 1183 | N29: 1133 | O29: 1133
B30: 1130 | C30: COMBUSTIBLES Y LUBRICANTES | D30: 1130 | E30: 1139 | F30: MARCOS, TAPAS, REJILLAS, HERRAJES Y CAJILLAS | I30: 1214 | J30: ENSAYO LABORATORIO - ALUMINIO | K30: 1214 | N30: 1134 | O30: 1134
B31: 1133 | C31: MADERAS | D31: 1133 | E31: 1137 | F31: MATERIALES DE FERRETERIA Y OTROS | I31: 1177 | J31: ENSAYO LABORATORIO - ANÁLISIS DE AGUAS | K31: 1177 | N31: 1137 | O31: 1137
B32: 1134 | C32: FORMALETAS, ANDAMIOS Y ACCESORIOS | D32: 1134 | E32: 1126 | F32: MOBILIARIO URBANO Y DE PARQUES | I32: 1169 | J32: ENSAYO LABORATORIO - CEMENTOS HIDRÁULICOS | K32: 1169 | N32: 1139 | O32: 1139
B33: 1137 | C33: MATERIALES DE FERRETERÍA Y OTROS | D33: 1137 | E33: 1156 | F33: MUEBLES, EQUIPOS Y ELEMENTOS DE OFICINA | I33: 1181 | J33: ENSAYO LABORATORIO - COMPONENTE DE ESPACIO PÚBLICO | K33: 1181 | N33: 1140 | O33: 1140
B34: 1139 | C34: MARCOS, TAPAS, REJILLAS, HERRAJES Y CAJILLAS | D34: 1139 | E34: 1129 | F34: PINTURAS | I34: 1215 | J34: ENSAYO LABORATORIO - CONCRETO PRETENSADO | K34: 1215 | N34: 1146 | O34: 1146
B35: 1140 | C35: SOLDADURA Y PEGANTES | D35: 1140 | E35: 1120 | F35: POSTES Y ALUMBRADO PUBLICO | J35: ENSAYO LABORATORIO - CONCRETOS HIDRÁULICOS | K35: 1174 | L35: SUBIR | N35: 1147 | O35: 1147
B36: 1146 | C36: ESTRUCTURAS EN ACERO | D36: 1146 | E36: 1117 | F36: POZOS Y COMPONENTES ALCANTARILLADO | I36: 1182 | J36: ENSAYO LABORATORIO - GEOTEXTILES | K36: 1182 | N36: 1148 | O36: 1148
B37: 1147 | C37: ARBOLES-GRAMAS-VEGETACIÓN Y PLANTACIÓN PAISAJÍSTIC | D37: 1147 | E37: 1124 | F37: SELLANTES, IMPERMEABILIZANTES Y ADITIVOS CONCRETO | I37: 1175 | J37: ENSAYO LABORATORIO - MATERIALES BITUMINOSOS | K37: 1175 | N37: 1153 | O37: 1153
B38: 1148 | C38: DOTACIÓN (EPP) Y EQUIP. Y HERRAM. SEGUR. INDUSTR. | D38: 1148 | E38: 1166 | F38: SEMAFORIZACION | I38: 1176 | J38: ENSAYO LABORATORIO - MEZCLAS ASFALTICAS | K38: 1176 | N38: 1154 | O38: 1156
B39: 1153 | C39: TUBERÍA Y ACCESORIOS EN GRP | D39: 1153 | E39: 1128 | F39: SEÑALES, BARRERAS Y DEMARCACION VIAL | I39: 1218 | J39: ENSAYO LABORATORIO - NEOPRENO | K39: 1218 | N39: 1156 | O39: 1158
B40: 1154 | C40: TUBERÍA Y ACCESORIOS ACERO AL CARBÓN | D40: 1154 | E40: 1140 | F40: SOLDADURAS Y PEGANTES | J40: ENSAYO LABORATORIO - PERFORACIONES | K40: 1207 | L40: SUBIR | N40: 1158 | O40: 1159
B41: 1156 | C41: MUEBLES - EQUIPOS Y ELEMENTOS OFICINA | D41: 1156 | E41: 1118 | F41: SUMIDEROS Y COMPONENTES | I41: 1219 | J41: ENSAYO LABORATORIO - PERNOS | K41: 1219 | N41: 1159 | O41: 1161
B42: 1157 | C42: ALQUILER | D42: 1157 | E42: 1225 | F42: ENSAYO DE CAMPO SOLDADURAS | G42: cambiar por 1210 | I42: 1220 | J42: ENSAYO LABORATORIO - PINTURA | K42: 1220 | N42: 1161 | O42: 1162
B43: 1158 | C43: EXÁMENES MÉDICOS | D43: 1158 | E43: 1224 | F43: ENSAYO DE CAMPO RECUBRIMIENTO ESTRUCTURA METÁLICA | I43: 1221 | J43: ENSAYO LABORATORIO - PLÁSTICO RÍGIDO | K43: 1221 | N43: 1162 | O43: 1166
B44: 1159 | C44: TUBERIA Y ACCESORIOS EN ACERO GALVANIZADO | D44: 1159 | E44: 1211 | F44: ENSAYO LABORATORIO ABRASIVO | I44: 1178 | J44: ENSAYO LABORATORIO - ROCA | K44: 1178 | N44: 1166 | O44: 1167
B45: 1161 | C45: ACTIVIDADES A TODO COSTO | D45: 1161 | E45: 1213 | F45: ENSAYO LABORATORIO ACERO ESTRUCTURAL | I45: 1203 | J45: ENSAYO LABORATORIO - RUIDO | K45: 1203 | N45: 1167 | O45: 1169
B46: 1162 | C46: TUBERÍA Y ACCESORIOS EN ACERO | D46: 1162 | E46: 1212 | F46: ENSAYO LABORATORIO ACERO REFUERZO Y PRETENSADO | I46: 1170 | J46: ENSAYO LABORATORIO - SUELOS | K46: 1170 | N46: 1168 | O46: 1170
B47: 1167 | C47: GESTIÓN SOCIAL ELEMENTOS DE PUBLICIDAD | D47: 1167 | E47: 1171 | F47: ENSAYO LABORATORIO AGREGADOS PETREOS | I47: 1116 | J47: EQUIPO LIVIANO Y HERRAMIENTAS | K47: 1116 | N47: 1169 | O47: 1171
B48: 1179 | C48: ENSAYO LABORATORIO - DETERMI PROPIEDADES MECÁNICAS | D48: 1179 | E48: 1183 | F48: ENSAYO LABORATORIO AIRE | I48: 1115 | J48: EQUIPO PESADO | K48: 1115 | N48: 1170 | O48: 1172
B49: 1188 | C49: PISOS (CONVENCIONALES Y TIPO TRANSMILENIO) | D49: 1188 | E49: 1214 | F49: ENSAYO LABORATORIO ALUMINIO | I49: 1146 | J49: ESTRUCTURAS EN ACERO | K49: 1146 | N49: 1171 | O49: 1173
B50: 1189 | C50: PRUEBAS DE CARGA PARA PUENTES | D50: 1189 | E50: 1177 | F50: ENSAYO LABORATORIO ANÁLISIS DE AGUAS | I50: 1158 | J50: EXÁMENES MÉDICOS | K50: 1158 | N50: 1172 | O50: 1175
B51: 1193 | C51: TUBERÍA Y ACCESORIOS EN POLIETILENO | D51: 1193 | E51: 1169 | F51: ENSAYO LABORATORIO CEMENTOS HIDRÁULICOS | I51: 1134 | J51: FORMALETAS, ANDAMIOS Y ACCESORIOS | K51: 1134 | N51: 1174 | O51: 1176
B52: 1194 | C52: DESMONTE Y TRASLADOS DE ELEMENTOS METÁLICOS | D52: 1194 | E52: 1181 | F52: ENSAYO LABORATORIO COMPONENTE DE ESPACIO PÚBLICO | I52: 1123 | J52: GEOSINTETICOS | K52: 1123 | N52: 1175 | O52: 1177
B53: 1196 | C53: MOBILIARIO METÁLICO TIPO TRANSMILENIO | D53: 1196 | E53: 1215 | F53: ENSAYO LABORATORIO CONCRETO PRETENSADO | J53: GESTIÓN SOCIAL ELEMENTOS DE IDENTIFICACIÓN EN OBRA | K53: 1198 | L53: SUBIR | N53: 1176 | O53: 1178
B54: 1166 | C54: SEMAFORIZACION | D54: 1166 | E54: 1182 | F54: ENSAYO LABORATORIO GEOTEXTILES | I54: 1167 | J54: GESTIÓN SOCIAL ELEMENTOS DE PUBLICIDAD | K54: 1167 | N54: 1177 | O54: 1181
B55: 1168 | C55: CONSULTORIA | D55: 1168 | E55: 1173 | F55: ENSAYO LABORATORIO DIAGNOSTICO DE PAVIMENTOS | I55: 1125 | J55: LADRILLOS, BLOQUES Y ADOQUINES | K55: 1125 | N55: 1178 | O55: 1182
B56: 1169 | C56: ENSAYO LABORATORIO - CEMENTOS HIDRÁULICOS | D56: 1169 | E56: 1218 | F56: ENSAYO LABORATORIO NEOPRENO | J56: LEVANTAMIENTO TOPOGRÁFICO | K56: 1208 | L56: SUBIR | N56: 1181 | O56: 1183
B57: 1170 | C57: ENSAYO LABORATORIO - SUELOS | D57: 1170 | E57: 1219 | F57: ENSAYO DE LABORATORIO PERNOS | I57: 1133 | J57: MADERAS | K57: 1133 | N57: 1182 | O57: 1194
B58: 1171 | C58: ENSAYO LABORATORIO - AGREGADOS PETREOS | D58: 1171 | E58: 1220 | F58: ENSAYO DE LABORATORIO PINTURA | I58: 1122 | J58: MALLAS Y ACEROS PARA REFUERZO | K58: 1122 | N58: 1183 | O58: 1195
B59: 1172 | C59: ENSAYO CAMPO - ELEMENTOS ESTRUCTURALES CONCRETO | D59: 1172 | E59: 1221 | F59: ENSAYO DE LABORATORIO PLASTICO RÍGIDO | I59: 1139 | J59: MARCOS, TAPAS, REJILLAS, HERRAJES Y CAJILLAS | K59: 1139 | N59: 1188 | O59: 1196
B60: 1173 | C60: ENSAYO LABORATORIO - DIAGNOSTICO DE PAVIMENTOS | D60: 1173 | E60: 1227 | F60: CANAL DE DRENAJE | I60: 1206 | J60: MATERIALES BÁSICOS | K60: 1206 | N60: 1192 | O60: 1197
B61: 1174 | C61: ENSAYO LABORATORIO - CONCRETOS HIDRÁULICOS | D61: 1174 | E61: 1172 | F61: ENSAYO DIAGNOSTICO ELEMENTO ESTRUCTURALES CONCRETO | I61: 1137 | J61: MATERIALES DE FERRETERÍA Y OTROS | K61: 1137 | N61: 1193 | O61: 1200
B62: 1175 | C62: ENSAYO LABORATORIO - MATERIALES BITUMINOSOS | D62: 1175 | E62: 1206 | F62: MATERIALES BASICOS | I62: 1196 | J62: MOBILIARIO METÁLICO TIPO TRANSMILENIO | K62: 1196 | N62: 1194 | O62: 1201
B63: 1176 | C63: ENSAYO LABORATORIO - MEZCLAS ASFALTICAS | D63: 1176 | E63: 1175 | F63: ENSAYO LABORATORIO MATERIALES BITUMINOSOS | I63: 1126 | J63: MOBILIARIO URBANO Y DE PARQUES | K63: 1126 | N63: 1195 | O63: 1203
B64: 1177 | C64: ENSAYO LABORATORIO - ANÁLISIS DE AGUAS | D64: 1177 | E64: 1216 | F64: ENSAYO LABORATORIO LUBRICANTE ADHESIVO | I64: 1156 | J64: MUEBLES - EQUIPOS Y ELEMENTOS OFICINA | K64: 1156 | N64: 1196 | O64: 1204
B65: 1178 | C65: ENSAYO LABORATORIO - ROCA | D65: 1178 | E65: 1217 | F65: ENSAYO LABORATORIO MORTERO | I65: 1205 | J65: NEOPRENOS | K65: 1205 | N65: 1197 | O65: 1205
B66: 1180 | C66: ENSAYO LABORATORIO - ESTABILIZACIÓN DE SUELOS | D66: 1180 | E66: 1176 | F66: ENSAYO LABORATORIO MEZCLAS ASFALTICAS | I66: 1129 | J66: PINTURAS | K66: 1129 | N66: 1198 | O66: 1206
B67: 1181 | C67: ENSAYO LABORATORIO - COMPONENTE DE ESPACIO PÚBLICO | D67: 1181 | E67: 1222 | F67: ENSAYO LABORATORIO RESINA | J67: PISOS (CONVENCIONALES Y TIPO TRANSMILENIO) | K67: 1188 | L67: SUBIR | N67: 1200 | O67: 1211
B68: 1182 | C68: ENSAYO LABORATORIO - GEOTEXTILES | D68: 1182 | E68: 1178 | F68: ENSAYO LABORATORIO ROCA | I68: 1120 | J68: POSTES Y ALUMBRADO PUBLICO | K68: 1120 | N68: 1201 | O68: 1212
B69: 1183 | C69: ENSAYO LABORATORIO - AIRE | D69: 1183 | E69: 1203 | F69: ENSAYO LABORATORIO RUIDO | I69: 1117 | J69: POZOS Y COMPONENTES - ALCANTARILLADO | K69: 1117 | N69: 1203 | O69: 1213
B70: 1184 | C70: ENSAYO LABORATORIO - ANÁLISIS DE AGUAS SUBTERRÁNEA | D70: 1184 | E70: 1170 | F70: ENSAYO LABORATORIO SUELOS | I70: =VLOOKUP(K70,$E$5:$F$82,1,FALSE) -> 1201 | J70: PRODUCTOS QUÍMICOS - PESTICIDAS - FITOSANITARIOS | K70: =VLOOKUP(J70,$C$5:$D$111,2,FALSE) -> 1201 | N70: 1204 | O70: 1214
B71: 1185 | C71: ENSAYO LABORATORIO - ANÁLISIS QUÍMICOS DE SUELOS | D71: 1185 | E71: 1196 | F71: MOBILIARIO METÁLICO TIPO TRANSMILENIO | J71: PROYECTO ESPECÍFICO | K71: 1192 | L71: SUBIR | N71: 1205 | O71: 1215
B72: 1186 | C72: ENSAYO LABORATORIO - ANÁLISIS FÍSICO DE SUELOS | D72: 1186 | E72: 1205 | F72: NEOPRENOS | I72: 1124 | J72: SELLANTES-IMPERMEABILIZANTES Y ADITIVOS CONCRETOS | K72: 1124 | N72: 1206 | O72: 1216
B73: 1187 | C73: ENSAYO LABORATORIO - ANÁLISIS BIOLÓGICOS DE SUELOS | D73: 1187 | E73: 1201 | F73: PRODUCTOS QUÍMICOS PESTICIDAS FITOSANITARIOS | I73: 1166 | J73: SEMAFORIZACION | K73: 1166 | N73: 1207 | O73: 1217
B74: 1190 | C74: PRUEBAS DE HERMETICIDAD | D74: 1190 | E74: 1197 | F74: SERV. DIAGNÓSTICO INSPECCIÓN REDES HIDROSANITARIAS | I74: 1128 | J74: SEÑALES, BARRERAS Y DEMARCACIÓN VIAL | K74: 1128 | N74: 1208 | O74: 1218
B75: 1191 | C75: INVENTARIO GEORREFERENCIADO | D75: 1191 | E75: 1204 | F75: SISTEMAS CONTRA INCENDIO | I75: 1197 | J75: SERV. DIAGNÓSTICO-INSPECCIÓN REDES HIDROSANITARIAS | K75: 1197 | N75: 1210 | O75: 1219
B76: 1192 | C76: PROYECTO ESPECÍFICO | D76: 1192 | E76: 1113 | F76: TUBERÍA Y ACCESORIOS CONDUIT GALVANIZADAS | I76: 1204 | J76: SISTEMAS CONTRA INCENDIO | K76: 1204 | N76: 1211 | O76: 1220
B77: 1195 | C77: CARPINTERÍA METÁLICA | D77: 1195 | E77: 1105 | F77: TUBERÍA Y ACCESORIOS DE CONCRETO | I77: 1140 | J77: SOLDADURA Y PEGANTES | K77: 1140 | N77: 1212 | O77: 1221
B78: 1197 | C78: SERV. DIAGNÓSTICO-INSPECCIÓN REDES HIDROSANITARIAS | D78: 1197 | E78: 1109 | F78: TUBERÍA Y ACCESORIOS DE PVC PARA ALCANTARILLADO | I78: 1118 | J78: SUMIDEROS Y COMPONENTES | K78: 1118 | N78: 1213 | O78: 1222
B79: 1198 | C79: GESTIÓN SOCIAL ELEMENTOS DE IDENTIFICACIÓN EN OBRA | D79: 1198 | E79: 1153 | F79: TUBERÍA Y ACCESORIOS EN GRP | I79: 182 | J79: TRANSPORTES DE MATERIALES Y ACARREOS | K79: 182 | N79: 1214 | O79: 1224
B80: 1199 | C80: REHABILITACIÓN REDES ALCANTARILLADO MÉTODO SIN ZAN | D80: 1199 | E80: 1107 | F80: TUBERIAS DE PVC ACUEDUCTO | J80: TUBERÍA Y ACCESORIOS ACERO AL CARBÓN | K80: 1154 | L80: SUBIR | N80: 1215 | O80: 1225
B81: 1200 | C81: CUBIERTA - CIELO RASO - CORTASOL TIPO TRANSMILENIO | D81: 1200 | E81: 1159 | F81: TUBERIA Y ACCESORIOS EN ACERO GALVANIZADO | I81: 1113 | J81: TUBERÍA Y ACCESORIOS CONDUIT GALVANIZADAS | K81: 1113 | N81: 1218 | O81: 1227
B82: 1201 | C82: PRODUCTOS QUÍMICOS - PESTICIDAS - FITOSANITARIOS | D82: 1201 | E82: 1162 | F82: TUBERÍA Y ACCESORIOS EN ACERO | I82: 1105 | J82: TUBERÍA Y ACCESORIOS DE CONCRETO | K82: 1105 | N82: 1219
B83: 1202 | C83: ENSAYO MEDICIÓN DE CAMPOS | D83: 1202 | I83: 1109 | J83: TUBERÍA Y ACCESORIOS DE PVC PARA ALCANTARILLADO | K83: 1109 | N83: 1220
B84: 1203 | C84: ENSAYO LABORATORIO - RUIDO | D84: 1203 | I84: 1162 | J84: TUBERÍA Y ACCESORIOS EN ACERO | K84: 1162 | N84: 1221
B85: 1204 | C85: SISTEMAS CONTRA INCENDIO | D85: 1204 | I85: 1159 | J85: TUBERIA Y ACCESORIOS EN ACERO GALVANIZADO | K85: 1159 | N85: 1223
B86: 1205 | C86: NEOPRENOS | D86: 1205 | I86: 1153 | J86: TUBERÍA Y ACCESORIOS EN GRP | K86: 1153 | N86: 1224
B87: 1206 | C87: MATERIALES BÁSICOS | D87: 1206 | J87: TUBERÍA Y ACCESORIOS EN POLIETILENO | K87: 1193 | L87: SUBIR | N87: 1228
B88: 1207 | C88: ENSAYO LABORATORIO - PERFORACIONES | D88: 1207 | I88: 1107 | J88: TUBERIAS DE PVC - ACUEDUCTO | K88: 1107
B89: 1208 | C89: LEVANTAMIENTO TOPOGRÁFICO | D89: 1208
B90: 1209 | C90: ENSAYO CAMPO - RECUBRIMIENTO ESTRUCTURA METÁLICA | D90: 1209
B91: 1210 | C91: ENSAYO CAMPO - SOLDADURAS | D91: 1210
B92: 1211 | C92: ENSAYO LABORATORIO - ABRASIVO | D92: 1211
B93: 1212 | C93: ENSAYO LABORATORIO - ACERO REFUERZO Y PRETENSADO | D93: 1212
B94: 1213 | C94: ENSAYO LABORATORIO - ACERO ESTRUCTURAL | D94: 1213
B95: 1214 | C95: ENSAYO LABORATORIO - ALUMINIO | D95: 1214
B96: 1215 | C96: ENSAYO LABORATORIO - CONCRETO PRETENSADO | D96: 1215
B97: 1216 | C97: ENSAYO LABORATORIO - LUBRICANTE ADHESIVO | D97: 1216
B98: 1217 | C98: ENSAYO LABORATORIO - MORTERO | D98: 1217
B99: 1218 | C99: ENSAYO LABORATORIO - NEOPRENO | D99: 1218
B100: 1219 | C100: ENSAYO LABORATORIO - PERNOS | D100: 1219
B101: 1220 | C101: ENSAYO LABORATORIO - PINTURA | D101: 1220
B102: 1221 | C102: ENSAYO LABORATORIO - PLÁSTICO RÍGIDO | D102: 1221
B103: 1222 | C103: ENSAYO LABORATORIO - RESINA | D103: 1222
B104: 1223 | C104: ENSAYO CAMPO - DIAGNOSTICO DE PAVIMENTOS | D104: 1223
B105: 1224 | C105: ENSAYO CAMPO -RECUBRIMIENTO ESTRUCTURA METÁLICA | D105: 1224
B106: 1225 | C106: ENSAYO DE CAMPO - SOLDADURAS | D106: 1225
B107: 1226 | C107: AFORO DE TRANSITO | D107: 1226
B108: 1227 | C108: CANAL DE DRENAJE | D108: 1227
B109: 1228 | C109: ENSAYO LABORATORIO - AGREGADOS PROVENIENTES DE RCD | D109: 1228
B110: 1229 | C110: ARQUEOLOGÍA | D110: 1229
B111: 1230 | C111: AMBIENTAL | D111: 1230

Sheet Accesorios HD para Acueducto
A9: 1114 | B9: 1114 | C9: =VLOOKUP(B9,'LISTA TOTAL PROVEEDORES'!B3:C9954,2,FALSE) -> ACCESORIOS HD PARA REDES DE ACUEDUCTO | H9: =+COUNTIF('LISTA TOTAL PROVEEDORES'!B3:B9954,B9) -> 19
B12: No. | C12: NOMBRE COMPLETO | D12: UBICACIÓN | E12: DIRECCION | F12: TELEFONO | G12: CORREO ELECTRONICO
B13: =VLOOKUP($B$9&H13,'LISTA TOTAL PROVEEDORES'!$A$3:$I$9954,9,FALSE) -> 1 | C13: =VLOOKUP($B$9&H13,'LISTA TOTAL PROVEEDORES'!$A$3:$I$9954,4,FALSE) -> ACUATUBOS | D13: =VLOOKUP($B$9&H13,'LISTA TOTAL PROVEEDORES'!$A$3:$I$9954,5,FALSE) -> Medellin - Antioquia | E13: =VLOOKUP($B$9&H13,'LISTA TOTAL PROVEEDORES'!$A$3:$I$9954,6,FALSE) -> Cr 49 a 48 Sur 100 Bodega 102 UNIVEGAS | F13: =VLOOKUP($B$9&H13,'LISTA TOTAL PROVEEDORES'!$A$3:$I$9954,7,FALSE) -> (4) 6043838 (1)3904005 Ext. 132 310 462 4960 310 459 6721 310 459 6723 314 888 0244 | G13: =VLOOKUP($B$9&H13,'LISTA TOTAL PROVEEDORES'!$A$3:$I$9954,8,FALSE) -> atc.vip@acuatubos.com.co auxiliar.comercial2@acuatubos.com.co | H13: 1
B14: =VLOOKUP($B$9&H14,'LISTA TOTAL PROVEEDORES'!$A$3:$I$9954,9,FALSE) -> 2 | C14: =VLOOKUP($B$9&H14,'LISTA TOTAL PROVEEDORES'!$A$3:$I$9954,4,FALSE) -> APOLO AVA | D14: =VLOOKUP($B$9&H14,'LISTA TOTAL PROVEEDORES'!$A$3:$I$9954,5,FALSE) -> Bogotá | E14: =VLOOKUP($B$9&H14,'LISTA TOTAL PROVEEDORES'!$A$3:$I$9954,6,FALSE) -> Cr 27 No. 17 -74 | F14: =VLOOKUP($B$9&H14,'LISTA TOTAL PROVEEDORES'!$A$3:$I$9954,7,FALSE) -> 360 70 53 360 70 23 | G14: =VLOOKUP($B$9&H14,'LISTA TOTAL PROVEEDORES'!$A$3:$I$9954,8,FALSE) -> apolo.bogota@apolo.net.co | H14: =+IF(H13<$H$9,H13+1,"ERROR") -> 2
B15: =VLOOKUP($B$9&H15,'LISTA TOTAL PROVEEDORES'!$A$3:$I$9954,9,FALSE) -> 3 | C15: =VLOOKUP($B$9&H15,'LISTA TOTAL PROVEEDORES'!$A$3:$I$9954,4,FALSE) -> AQUA & GAS COLOMBIA SAS | D15: =VLOOKUP($B$9&H15,'LISTA TOTAL PROVEEDORES'!$A$3:$I$9954,5,FALSE) -> Medellin - Antioquia | E15: =VLOOKUP($B$9&H15,'LISTA TOTAL PROVEEDORES'!$A$3:$I$9954,6,FALSE) -> Cra 50C No 10sur - 120 Bodega 105 | F15: =VLOOKUP($B$9&H15,'LISTA TOTAL PROVEEDORES'!$A$3:$I$9954,7,FALSE) -> 312 728 4320 | G15: =VLOOKUP($B$9&H15,'LISTA TOTAL PROVEEDORES'!$A$3:$I$9954,8,FALSE) -> aquaygas@gmail.com | H15: =+IF(H14<$H$9,H14+1,"ERROR") -> 3
B16: =VLOOKUP($B$9&H16,'LISTA TOTAL PROVEEDORES'!$A$3:$I$9954,9,FALSE) -> 4 | C16: =VLOOKUP($B$9&H16,'LISTA TOTAL PROVEEDORES'!$A$3:$I$9954,4,FALSE) -> BARNES DE COLOMBIA S.A. | D16: =VLOOKUP($B$9&H16,'LISTA TOTAL PROVEEDORES'!$A$3:$I$9954,5,FALSE) -> Funza -Cund. | E16: =VLOOKUP($B$9&H16,'LISTA TOTAL PROVEEDORES'!$A$3:$I$9954,6,FALSE) -> Autopista Bogota Medellin Km 7 Costado Occidental Antes de Peaje de Siberia. Celta Trade Park - Bodegas 86 y 93 | F16: =VLOOKUP($B$9&H16,'LISTA TOTAL PROVEEDORES'!$A$3:$I$9954,7,FALSE) -> 743 9090 ext 8311-8312-8403-8402-8502 | G16: =VLOOKUP($B$9&H16,'LISTA TOTAL PROVEEDORES'!$A$3:$I$9954,8,FALSE) -> distribucion@barnes.com.co industria@barnes.com.co construccion@barnes.com.co exportaciones@barnes.com.co | H16: 4
B17: =VLOOKUP($B$9&H17,'LISTA TOTAL PROVEEDORES'!$A$3:$I$9954,9,FALSE) -> 5 | C17: =VLOOKUP($B$9&H17,'LISTA TOTAL PROVEEDORES'!$A$3:$I$9954,4,FALSE) -> COVAL | D17: =VLOOKUP($B$9&H17,'LISTA TOTAL PROVEEDORES'!$A$3:$I$9954,5,FALSE) -> Cota - Cund. | E17: =VLOOKUP($B$9&H17,'LISTA TOTAL PROVEEDORES'!$A$3:$I$9954,6,FALSE) -> Autopista Medellín Km 2.5 Parque Industrial Guadalajara, Bodega 3 | F17: =VLOOKUP($B$9&H17,'LISTA TOTAL PROVEEDORES'!$A$3:$I$9954,7,FALSE) -> 8759100 Ext 141 3133858402 | G17: =VLOOKUP($B$9&H17,'LISTA TOTAL PROVEEDORES'!$A$3:$I$9954,8,FALSE) -> patricia.santafe@coval.com info@coval.com.co norte@coval.com.co | H17: 5
B18: =VLOOKUP($B$9&H18,'LISTA TOTAL PROVEEDORES'!$A$3:$I$9954,9,FALSE) -> 6 | C18: =VLOOKUP($B$9&H18,'LISTA TOTAL PROVEEDORES'!$A$3:$I$9954,4,FALSE) -> DURMAN COLOMBIA S.A. | D18: =VLOOKUP($B$9&H18,'LISTA TOTAL PROVEEDORES'!$A$3:$I$9954,5,FALSE) -> Madrid - Cund | E18: =VLOOKUP($B$9&H18,'LISTA TOTAL PROVEEDORES'!$A$3:$I$9954,6,FALSE) -> Km 27 Via fontibon Facatativa Los Alpes | F18: =VLOOKUP($B$9&H18,'LISTA TOTAL PROVEEDORES'!$A$3:$I$9954,7,FALSE) -> 8200200 | G18: =VLOOKUP($B$9&H18,'LISTA TOTAL PROVEEDORES'!$A$3:$I$9954,8,FALSE) -> colombia@durmam.com | H18: 6
B19: =VLOOKUP($B$9&H19,'LISTA TOTAL PROVEEDORES'!$A$3:$I$9954,9,FALSE) -> 7 | C19: =VLOOKUP($B$9&H19,'LISTA TOTAL PROVEEDORES'!$A$3:$I$9954,4,FALSE) -> EASY | D19: =VLOOKUP($B$9&H19,'LISTA TOTAL PROVEEDORES'!$A$3:$I$9954,5,FALSE) -> Bogotá | E19: =VLOOKUP($B$9&H19,'LISTA TOTAL PROVEEDORES'!$A$3:$I$9954,6,FALSE) -> Av Americas No. 68 94 | F19: =VLOOKUP($B$9&H19,'LISTA TOTAL PROVEEDORES'!$A$3:$I$9954,7,FALSE) -> 4191400 | G19: =VLOOKUP($B$9&H19,'LISTA TOTAL PROVEEDORES'!$A$3:$I$9954,8,FALSE) -> www. Easy.com.co | H19: 7
B20: =VLOOKUP($B$9&H20,'LISTA TOTAL PROVEEDORES'!$A$3:$I$9954,9,FALSE) -> 8 | C20: =VLOOKUP($B$9&H20,'LISTA TOTAL PROVEEDORES'!$A$3:$I$9954,4,FALSE) -> FERREACUEDUCTOS | D20: =VLOOKUP($B$9&H20,'LISTA TOTAL PROVEEDORES'!$A$3:$I$9954,5,FALSE) -> Bogotá | E20: =VLOOKUP($B$9&H20,'LISTA TOTAL PROVEEDORES'!$A$3:$I$9954,6,FALSE) -> Cll 26 # 69- 75 Torre 3 Ofc 1501 | F20: =VLOOKUP($B$9&H20,'LISTA TOTAL PROVEEDORES'!$A$3:$I$9954,7,FALSE) -> 3103337311 3185662120 | G20: =VLOOKUP($B$9&H20,'LISTA TOTAL PROVEEDORES'!$A$3:$I$9954,8,FALSE) -> servicioalcliente@ferreacueductos.com www.hidroconsulting.com.co | H20: 8
B21: =VLOOKUP($B$9&H21,'LISTA TOTAL PROVEEDORES'!$A$3:$I$9954,9,FALSE) -> 9 | C21: =VLOOKUP($B$9&H21,'LISTA TOTAL PROVEEDORES'!$A$3:$I$9954,4,FALSE) -> FERRINCO - Ferreteria Rincon & Cia. S.A | D21: =VLOOKUP($B$9&H21,'LISTA TOTAL PROVEEDORES'!$A$3:$I$9954,5,FALSE) -> Bogotá | E21: =VLOOKUP($B$9&H21,'LISTA TOTAL PROVEEDORES'!$A$3:$I$9954,6,FALSE) -> Cl 15 No. 22 - 34 PALOQUEMAO | F21: =VLOOKUP($B$9&H21,'LISTA TOTAL PROVEEDORES'!$A$3:$I$9954,7,FALSE) -> 3162272614 2084884 3706981 | G21: =VLOOKUP($B$9&H21,'LISTA TOTAL PROVEEDORES'!$A$3:$I$9954,8,FALSE) -> ferrinco@ferrinco.com ventas@ferrinco.com | H21: 9
B22: =VLOOKUP($B$9&H22,'LISTA TOTAL PROVEEDORES'!$A$3:$I$9954,9,FALSE) -> 10 | C22: =VLOOKUP($B$9&H22,'LISTA TOTAL PROVEEDORES'!$A$3:$I$9954,4,FALSE) -> FIMACA | D22: =VLOOKUP($B$9&H22,'LISTA TOTAL PROVEEDORES'!$A$3:$I$9954,5,FALSE) -> Bogotá | E22: =VLOOKUP($B$9&H22,'LISTA TOTAL PROVEEDORES'!$A$3:$I$9954,6,FALSE) -> Cr 22 Nº 86A-41 | F22: =VLOOKUP($B$9&H22,'LISTA TOTAL PROVEEDORES'!$A$3:$I$9954,7,FALSE) -> 3185358895 | G22: =VLOOKUP($B$9&H22,'LISTA TOTAL PROVEEDORES'!$A$3:$I$9954,8,FALSE) -> info@fimaca.com.co | H22: 10
B23: =VLOOKUP($B$9&H23,'LISTA TOTAL PROVEEDORES'!$A$3:$I$9954,9,FALSE) -> 11 | C23: =VLOOKUP($B$9&H23,'LISTA TOTAL PROVEEDORES'!$A$3:$I$9954,4,FALSE) -> FUNDICIONES DE LIMA S.A. | D23: =VLOOKUP($B$9&H23,'LISTA TOTAL PROVEEDORES'!$A$3:$I$9954,5,FALSE) -> Bogotá | E23: =VLOOKUP($B$9&H23,'LISTA TOTAL PROVEEDORES'!$A$3:$I$9954,6,FALSE) -> Cl 85 A No. 20 - 48 Oficina 1 Polo Club | F23: =VLOOKUP($B$9&H23,'LISTA TOTAL PROVEEDORES'!$A$3:$I$9954,7,FALSE) -> 7868211 3135741376 | G23: =VLOOKUP($B$9&H23,'LISTA TOTAL PROVEEDORES'!$A$3:$I$9954,8,FALSE) -> karen.urquijo@fundelima.com | H23: 11
B24: =VLOOKUP($B$9&H24,'LISTA TOTAL PROVEEDORES'!$A$3:$I$9954,9,FALSE) -> 12 | C24: =VLOOKUP($B$9&H24,'LISTA TOTAL PROVEEDORES'!$A$3:$I$9954,4,FALSE) -> HELBERT Y CIA | D24: =VLOOKUP($B$9&H24,'LISTA TOTAL PROVEEDORES'!$A$3:$I$9954,5,FALSE) -> Bogotá | E24: =VLOOKUP($B$9&H24,'LISTA TOTAL PROVEEDORES'!$A$3:$I$9954,6,FALSE) -> Av.Cra 40 No. 20-73 | F24: =VLOOKUP($B$9&H24,'LISTA TOTAL PROVEEDORES'!$A$3:$I$9954,7,FALSE) -> 3681077 | G24: =VLOOKUP($B$9&H24,'LISTA TOTAL PROVEEDORES'!$A$3:$I$9954,8,FALSE) -> ventas@helbertycia.com | H24: 12
B25: =VLOOKUP($B$9&H25,'LISTA TOTAL PROVEEDORES'!$A$3:$I$9954,9,FALSE) -> 13 | C25: =VLOOKUP($B$9&H25,'LISTA TOTAL PROVEEDORES'!$A$3:$I$9954,4,FALSE) -> HIDROEQUIPO | D25: =VLOOKUP($B$9&H25,'LISTA TOTAL PROVEEDORES'!$A$3:$I$9954,5,FALSE) -> Cali - Valle del Cauca | E25: =VLOOKUP($B$9&H25,'LISTA TOTAL PROVEEDORES'!$A$3:$I$9954,6,FALSE) -> Av. 3 Bis Norte No. 23 CN-35 | F25: =VLOOKUP($B$9&H25,'LISTA TOTAL PROVEEDORES'!$A$3:$I$9954,7,FALSE) -> 653 0033 315 471 8248 | G25: =VLOOKUP($B$9&H25,'LISTA TOTAL PROVEEDORES'!$A$3:$I$9954,8,FALSE) -> info@hidroequipos.com.co | H25: 13
B26: =VLOOKUP($B$9&H26,'LISTA TOTAL PROVEEDORES'!$A$3:$I$9954,9,FALSE) -> 14 | C26: =VLOOKUP($B$9&H26,'LISTA TOTAL PROVEEDORES'!$A$3:$I$9954,4,FALSE) -> HOMECENTER | D26: =VLOOKUP($B$9&H26,'LISTA TOTAL PROVEEDORES'!$A$3:$I$9954,5,FALSE) -> Bogotá | E26: =VLOOKUP($B$9&H26,'LISTA TOTAL PROVEEDORES'!$A$3:$I$9954,6,FALSE) -> Av Cra 68 No. 37 - 37 sur | F26: =VLOOKUP($B$9&H26,'LISTA TOTAL PROVEEDORES'!$A$3:$I$9954,7,FALSE) -> 3077115 | G26: =VLOOKUP($B$9&H26,'LISTA TOTAL PROVEEDORES'!$A$3:$I$9954,8,FALSE) -> www.homecenter.com | H26: 14
B27: =VLOOKUP($B$9&H27,'LISTA TOTAL PROVEEDORES'!$A$3:$I$9954,9,FALSE) -> 15 | C27: =VLOOKUP($B$9&H27,'LISTA TOTAL PROVEEDORES'!$A$3:$I$9954,4,FALSE) -> KAIZEN GROUP INGENIERÍA | D27: =VLOOKUP($B$9&H27,'LISTA TOTAL PROVEEDORES'!$A$3:$I$9954,5,FALSE) -> Bogotá | E27: =VLOOKUP($B$9&H27,'LISTA TOTAL PROVEEDORES'!$A$3:$I$9954,6,FALSE) -> Cr 7D No 183 -34, Bogotá D.C - Colombia | F27: =VLOOKUP($B$9&H27,'LISTA TOTAL PROVEEDORES'!$A$3:$I$9954,7,FALSE) -> 6724658 / 3212456420 | G27: =VLOOKUP($B$9&H27,'LISTA TOTAL PROVEEDORES'!$A$3:$I$9954,8,FALSE) -> comercial@kaizengroup.com.co | H27: 15
B28: =VLOOKUP($B$9&H28,'LISTA TOTAL PROVEEDORES'!$A$3:$I$9954,9,FALSE) -> 16 | C28: =VLOOKUP($B$9&H28,'LISTA TOTAL PROVEEDORES'!$A$3:$I$9954,4,FALSE) -> METACOL S.A | D28: =VLOOKUP($B$9&H28,'LISTA TOTAL PROVEEDORES'!$A$3:$I$9954,5,FALSE) -> Bogotá | E28: =VLOOKUP($B$9&H28,'LISTA TOTAL PROVEEDORES'!$A$3:$I$9954,6,FALSE) -> Dg 34 Bis 17 - 58 | F28: =VLOOKUP($B$9&H28,'LISTA TOTAL PROVEEDORES'!$A$3:$I$9954,7,FALSE) -> 5116262 Ext 211 | G28: =VLOOKUP($B$9&H28,'LISTA TOTAL PROVEEDORES'!$A$3:$I$9954,8,FALSE) -> mercadeo@metacol.com | H28: 16
B29: =VLOOKUP($B$9&H29,'LISTA TOTAL PROVEEDORES'!$A$3:$I$9954,9,FALSE) -> 17 | C29: =VLOOKUP($B$9&H29,'LISTA TOTAL PROVEEDORES'!$A$3:$I$9954,4,FALSE) -> TECHNOLOGIES TRADE | D29: =VLOOKUP($B$9&H29,'LISTA TOTAL PROVEEDORES'!$A$3:$I$9954,5,FALSE) -> Bogotá | E29: =VLOOKUP($B$9&H29,'LISTA TOTAL PROVEEDORES'!$A$3:$I$9954,6,FALSE) -> Cr 38 No. 10 - 90 Local 1071 | F29: =VLOOKUP($B$9&H29,'LISTA TOTAL PROVEEDORES'!$A$3:$I$9954,7,FALSE) -> 313 2221067 3164969160 | G29: =VLOOKUP($B$9&H29,'LISTA TOTAL PROVEEDORES'!$A$3:$I$9954,8,FALSE) -> ventas@tdt.com.co | H29: 17
B30: =VLOOKUP($B$9&H30,'LISTA TOTAL PROVEEDORES'!$A$3:$I$9954,9,FALSE) -> 18 | C30: =VLOOKUP($B$9&H30,'LISTA TOTAL PROVEEDORES'!$A$3:$I$9954,4,FALSE) -> TUFERRETERIA.COM | D30: =VLOOKUP($B$9&H30,'LISTA TOTAL PROVEEDORES'!$A$3:$I$9954,5,FALSE) -> Bogotá | E30: =VLOOKUP($B$9&H30,'LISTA TOTAL PROVEEDORES'!$A$3:$I$9954,6,FALSE) -> www.tuferreteria.com.co | F30: =VLOOKUP($B$9&H30,'LISTA TOTAL PROVEEDORES'!$A$3:$I$9954,7,FALSE) -> 3144440415 | G30: =VLOOKUP($B$9&H30,'LISTA TOTAL PROVEEDORES'!$A$3:$I$9954,8,FALSE) -> Comercial@tuferreteria.com.co | H30: 18
B31: =VLOOKUP($B$9&H31,'LISTA TOTAL PROVEEDORES'!$A$3:$I$9954,9,FALSE) -> 19 | C31: =VLOOKUP($B$9&H31,'LISTA TOTAL PROVEEDORES'!$A$3:$I$9954,4,FALSE) -> TUVALREP SAS | D31: =VLOOKUP($B$9&H31,'LISTA TOTAL PROVEEDORES'!$A$3:$I$9954,5,FALSE) -> Bogotá | E31: =VLOOKUP($B$9&H31,'LISTA TOTAL PROVEEDORES'!$A$3:$I$9954,6,FALSE) -> Av Cl 13 No. 22- 72 | F31: =VLOOKUP($B$9&H31,'LISTA TOTAL PROVEEDORES'!$A$3:$I$9954,7,FALSE) -> 2015415 3713386 | G31: =VLOOKUP($B$9&H31,'LISTA TOTAL PROVEEDORES'!$A$3:$I$9954,8,FALSE) -> tuvalrep@tuvalrep.com.co | H31: 19
B32: =VLOOKUP($B$9&H32,'LISTA TOTAL PROVEEDORES'!$A$3:$I$9954,9,FALSE) ->  | C32: =VLOOKUP($B$9&H32,'LISTA TOTAL PROVEEDORES'!$A$3:$I$9954,4,FALSE) ->  | D32: =VLOOKUP($B$9&H32,'LISTA TOTAL PROVEEDORES'!$A$3:$I$9954,5,FALSE) ->  | E32: =VLOOKUP($B$9&H32,'LISTA TOTAL PROVEEDORES'!$A$3:$I$9954,6,FALSE) ->  | F32: =VLOOKUP($B$9&H32,'LISTA TOTAL PROVEEDORES'!$A$3:$I$9954,7,FALSE) ->  | G32: =VLOOKUP($B$9&H32,'LISTA TOTAL PROVEEDORES'!$A$3:$I$9954,8,FALSE) ->  | H32: ERROR
B33: =VLOOKUP($B$9&H33,'LISTA TOTAL PROVEEDORES'!$A$3:$I$9954,9,FALSE) ->  | C33: =VLOOKUP($B$9&H33,'LISTA TOTAL PROVEEDORES'!$A$3:$I$9954,4,FALSE) ->  | D33: =VLOOKUP($B$9&H33,'LISTA TOTAL PROVEEDORES'!$A$3:$I$9954,5,FALSE) ->  | E33: =VLOOKUP($B$9&H33,'LISTA TOTAL PROVEEDORES'!$A$3:$I$9954,6,FALSE) ->  | F33: =VLOOKUP($B$9&H33,'LISTA TOTAL PROVEEDORES'!$A$3:$I$9954,7,FALSE) ->  | G33: =VLOOKUP($B$9&H33,'LISTA TOTAL PROVEEDORES'!$A$3:$I$9954,8,FALSE) ->  | H33: ERROR
B34: =VLOOKUP($B$9&H34,'LISTA TOTAL PROVEEDORES'!$A$3:$I$9954,9,FALSE) ->  | C34: =VLOOKUP($B$9&H34,'LISTA TOTAL PROVEEDORES'!$A$3:$I$9954,4,FALSE) ->  | D34: =VLOOKUP($B$9&H34,'LISTA TOTAL PROVEEDORES'!$A$3:$I$9954,5,FALSE) ->  | E34: =VLOOKUP($B$9&H34,'LISTA TOTAL PROVEEDORES'!$A$3:$I$9954,6,FALSE) ->  | F34: =VLOOKUP($B$9&H34,'LISTA TOTAL PROVEEDORES'!$A$3:$I$9954,7,FALSE) ->  | G34: =VLOOKUP($B$9&H34,'LISTA TOTAL PROVEEDORES'!$A$3:$I$9954,8,FALSE) ->  | H34: ERROR
B35: =VLOOKUP($B$9&H35,'LISTA TOTAL PROVEEDORES'!$A$3:$I$9954,9,FALSE) ->  | C35: =VLOOKUP($B$9&H35,'LISTA TOTAL PROVEEDORES'!$A$3:$I$9954,4,FALSE) ->  | D35: =VLOOKUP($B$9&H35,'LISTA TOTAL PROVEEDORES'!$A$3:$I$9954,5,FALSE) ->  | E35: =VLOOKUP($B$9&H35,'LISTA TOTAL PROVEEDORES'!$A$3:$I$9954,6,FALSE) ->  | F35: =VLOOKUP($B$9&H35,'LISTA TOTAL PROVEEDORES'!$A$3:$I$9954,7,FALSE) ->  | G35: =VLOOKUP($B$9&H35,'LISTA TOTAL PROVEEDORES'!$A$3:$I$9954,8,FALSE) ->  | H35: ERROR
B36: =VLOOKUP($B$9&H36,'LISTA TOTAL PROVEEDORES'!$A$3:$I$9954,9,FALSE) ->  | C36: =VLOOKUP($B$9&H36,'LISTA TOTAL PROVEEDORES'!$A$3:$I$9954,4,FALSE) ->  | D36: =VLOOKUP($B$9&H36,'LISTA TOTAL PROVEEDORES'!$A$3:$I$9954,5,FALSE) ->  | E36: =VLOOKUP($B$9&H36,'LISTA TOTAL PROVEEDORES'!$A$3:$I$9954,6,FALSE) ->  | F36: =VLOOKUP($B$9&H36,'LISTA TOTAL PROVEEDORES'!$A$3:$I$9954,7,FALSE) ->  | G36: =VLOOKUP($B$9&H36,'LISTA TOTAL PROVEEDORES'!$A$3:$I$9954,8,FALSE) ->  | H36: ERROR
B37: =VLOOKUP($B$9&H37,'LISTA TOTAL PROVEEDORES'!$A$3:$I$9954,9,FALSE) ->  | C37: =VLOOKUP($B$9&H37,'LISTA TOTAL PROVEEDORES'!$A$3:$I$9954,4,FALSE) ->  | D37: =VLOOKUP($B$9&H37,'LISTA TOTAL PROVEEDORES'!$A$3:$I$9954,5,FALSE) ->  | E37: =VLOOKUP($B$9&H37,'LISTA TOTAL PROVEEDORES'!$A$3:$I$9954,6,FALSE) ->  | F37: =VLOOKUP($B$9&H37,'LISTA TOTAL PROVEEDORES'!$A$3:$I$9954,7,FALSE) ->  | G37: =VLOOKUP($B$9&H37,'LISTA TOTAL PROVEEDORES'!$A$3:$I$9954,8,FALSE) ->  | H37: ERROR
B38: =VLOOKUP($B$9&H38,'LISTA TOTAL PROVEEDORES'!$A$3:$I$9954,9,FALSE) ->  | C38: =VLOOKUP($B$9&H38,'LISTA TOTAL PROVEEDORES'!$A$3:$I$9954,4,FALSE) ->  | D38: =VLOOKUP($B$9&H38,'LISTA TOTAL PROVEEDORES'!$A$3:$I$9954,5,FALSE) ->  | E38: =VLOOKUP($B$9&H38,'LISTA TOTAL PROVEEDORES'!$A$3:$I$9954,6,FALSE) ->  | F38: =VLOOKUP($B$9&H38,'LISTA TOTAL PROVEEDORES'!$A$3:$I$9954,7,FALSE) ->  | G38: =VLOOKUP($B$9&H38,'LISTA TOTAL PROVEEDORES'!$A$3:$I$9954,8,FALSE) ->  | H38: ERROR
B39: =VLOOKUP($B$9&H39,'LISTA TOTAL PROVEEDORES'!$A$3:$I$9954,9,FALSE) ->  | C39: =VLOOKUP($B$9&H39,'LISTA TOTAL PROVEEDORES'!$A$3:$I$9954,4,FALSE) ->  | D39: =VLOOKUP($B$9&H39,'LISTA TOTAL PROVEEDORES'!$A$3:$I$9954,5,FALSE) ->  | E39: =VLOOKUP($B$9&H39,'LISTA TOTAL PROVEEDORES'!$A$3:$I$9954,6,FALSE) ->  | F39: =VLOOKUP($B$9&H39,'LISTA TOTAL PROVEEDORES'!$A$3:$I$9954,7,FALSE) ->  | G39: =VLOOKUP($B$9&H39,'LISTA TOTAL PROVEEDORES'!$A$3:$I$9954,8,FALSE) ->  | H39: ERROR
B40: =VLOOKUP($B$9&H40,'LISTA TOTAL PROVEEDORES'!$A$3:$I$9954,9,FALSE) ->  | C40: =VLOOKUP($B$9&H40,'LISTA TOTAL PROVEEDORES'!$A$3:$I$9954,4,FALSE) ->  | D40: =VLOOKUP($B$9&H40,'LISTA TOTAL PROVEEDORES'!$A$3:$I$9954,5,FALSE) ->  | E40: =VLOOKUP($B$9&H40,'LISTA TOTAL PROVEEDORES'!$A$3:$I$9954,6,FALSE) ->  | F40: =VLOOKUP($B$9&H40,'LISTA TOTAL PROVEEDORES'!$A$3:$I$9954,7,FALSE) ->  | G40: =VLOOKUP($B$9&H40,'LISTA TOTAL PROVEEDORES'!$A$3:$I$9954,8,FALSE) ->  | H40: ERROR
B41: =VLOOKUP($B$9&H41,'LISTA TOTAL PROVEEDORES'!$A$3:$I$9954,9,FALSE) ->  | C41: =VLOOKUP($B$9&H41,'LISTA TOTAL PROVEEDORES'!$A$3:$I$9954,4,FALSE) ->  | D41: =VLOOKUP($B$9&H41,'LISTA TOTAL PROVEEDORES'!$A$3:$I$9954,5,FALSE) ->  | E41: =VLOOKUP($B$9&H41,'LISTA TOTAL PROVEEDORES'!$A$3:$I$9954,6,FALSE) ->  | F41: =VLOOKUP($B$9&H41,'LISTA TOTAL PROVEEDORES'!$A$3:$I$9954,7,FALSE) ->  | G41: =VLOOKUP($B$9&H41,'LISTA TOTAL PROVEEDORES'!$A$3:$I$9954,8,FALSE) ->  | H41: ERROR
B42: =VLOOKUP($B$9&H42,'LISTA TOTAL PROVEEDORES'!$A$3:$I$9954,9,FALSE) ->  | C42: =VLOOKUP($B$9&H42,'LISTA TOTAL PROVEEDORES'!$A$3:$I$9954,4,FALSE) ->  | D42: =VLOOKUP($B$9&H42,'LISTA TOTAL PROVEEDORES'!$A$3:$I$9954,5,FALSE) ->  | E42: =VLOOKUP($B$9&H42,'LISTA TOTAL PROVEEDORES'!$A$3:$I$9954,6,FALSE) ->  | F42: =VLOOKUP($B$9&H42,'LISTA TOTAL PROVEEDORES'!$A$3:$I$9954,7,FALSE) ->  | G42: =VLOOKUP($B$9&H42,'LISTA TOTAL PROVEEDORES'!$A$3:$I$9954,8,FALSE) ->  | H42: ERROR
B43: =VLOOKUP($B$9&H43,'LISTA TOTAL PROVEEDORES'!$A$3:$I$9954,9,FALSE) ->  | C43: =VLOOKUP($B$9&H43,'LISTA TOTAL PROVEEDORES'!$A$3:$I$9954,4,FALSE) ->  | D43: =VLOOKUP($B$9&H43,'LISTA TOTAL PROVEEDORES'!$A$3:$I$9954,5,FALSE) ->  | E43: =VLOOKUP($B$9&H43,'LISTA TOTAL PROVEEDORES'!$A$3:$I$9954,6,FALSE) ->  | F43: =VLOOKUP($B$9&H43,'LISTA TOTAL PROVEEDORES'!$A$3:$I$9954,7,FALSE) ->  | G43: =VLOOKUP($B$9&H43,'LISTA TOTAL PROVEEDORES'!$A$3:$I$9954,8,FALSE) ->  | H43: ERROR
B44: =VLOOKUP($B$9&H44,'LISTA TOTAL PROVEEDORES'!$A$3:$I$9954,9,FALSE) ->  | C44: =VLOOKUP($B$9&H44,'LISTA TOTAL PROVEEDORES'!$A$3:$I$9954,4,FALSE) ->  | D44: =VLOOKUP($B$9&H44,'LISTA TOTAL PROVEEDORES'!$A$3:$I$9954,5,FALSE) ->  | E44: =VLOOKUP($B$9&H44,'LISTA TOTAL PROVEEDORES'!$A$3:$I$9954,6,FALSE) ->  | F44: =VLOOKUP($B$9&H44,'LISTA TOTAL PROVEEDORES'!$A$3:$I$9954,7,FALSE) ->  | G44: =VLOOKUP($B$9&H44,'LISTA TOTAL PROVEEDORES'!$A$3:$I$9954,8,FALSE) ->  | H44: ERROR
B45: =VLOOKUP($B$9&H45,'LISTA TOTAL PROVEEDORES'!$A$3:$I$9954,9,FALSE) ->  | C45: =VLOOKUP($B$9&H45,'LISTA TOTAL PROVEEDORES'!$A$3:$I$9954,4,FALSE) ->  | D45: =VLOOKUP($B$9&H45,'LISTA TOTAL PROVEEDORES'!$A$3:$I$9954,5,FALSE) ->  | E45: =VLOOKUP($B$9&H45,'LISTA TOTAL PROVEEDORES'!$A$3:$I$9954,6,FALSE) ->  | F45: =VLOOKUP($B$9&H45,'LISTA TOTAL PROVEEDORES'!$A$3:$I$9954,7,FALSE) ->  | G45: =VLOOKUP($B$9&H45,'LISTA TOTAL PROVEEDORES'!$A$3:$I$9954,8,FALSE) ->  | H45: ERROR
B46: =VLOOKUP($B$9&H46,'LISTA TOTAL PROVEEDORES'!$A$3:$I$9954,9,FALSE) ->  | C46: =VLOOKUP($B$9&H46,'LISTA TOTAL PROVEEDORES'!$A$3:$I$9954,4,FALSE) ->  | D46: =VLOOKUP($B$9&H46,'LISTA TOTAL PROVEEDORES'!$A$3:$I$9954,5,FALSE) ->  | E46: =VLOOKUP($B$9&H46,'LISTA TOTAL PROVEEDORES'!$A$3:$I$9954,6,FALSE) ->  | F46: =VLOOKUP($B$9&H46,'LISTA TOTAL PROVEEDORES'!$A$3:$I$9954,7,FALSE) ->  | G46: =VLOOKUP($B$9&H46,'LISTA TOTAL PROVEEDORES'!$A$3:$I$9954,8,FALSE) ->  | H46: ERROR
B47: =VLOOKUP($B$9&H47,'LISTA TOTAL PROVEEDORES'!$A$3:$I$9954,9,FALSE) ->  | C47: =VLOOKUP($B$9&H47,'LISTA TOTAL PROVEEDORES'!$A$3:$I$9954,4,FALSE) ->  | D47: =VLOOKUP($B$9&H47,'LISTA TOTAL PROVEEDORES'!$A$3:$I$9954,5,FALSE) ->  | E47: =VLOOKUP($B$9&H47,'LISTA TOTAL PROVEEDORES'!$A$3:$I$9954,6,FALSE) ->  | F47: =VLOOKUP($B$9&H47,'LISTA TOTAL PROVEEDORES'!$A$3:$I$9954,7,FALSE) ->  | G47: =VLOOKUP($B$9&H47,'LISTA TOTAL PROVEEDORES'!$A$3:$I$9954,8,FALSE) ->  | H47: ERROR
B48: =VLOOKUP($B$9&H48,'LISTA TOTAL PROVEEDORES'!$A$3:$I$9954,9,FALSE) ->  | C48: =VLOOKUP($B$9&H48,'LISTA TOTAL PROVEEDORES'!$A$3:$I$9954,4,FALSE) ->  | D48: =VLOOKUP($B$9&H48,'LISTA TOTAL PROVEEDORES'!$A$3:$I$9954,5,FALSE) ->  | E48: =VLOOKUP($B$9&H48,'LISTA TOTAL PROVEEDORES'!$A$3:$I$9954,6,FALSE) ->  | F48: =VLOOKUP($B$9&H48,'LISTA TOTAL PROVEEDORES'!$A$3:$I$9954,7,FALSE) ->  | G48: =VLOOKUP($B$9&H48,'LISTA TOTAL PROVEEDORES'!$A$3:$I$9954,8,FALSE) ->  | H48: ERROR
B49: =VLOOKUP($B$9&H49,'LISTA TOTAL PROVEEDORES'!$A$3:$I$9954,9,FALSE) ->  | C49: =VLOOKUP($B$9&H49,'LISTA TOTAL PROVEEDORES'!$A$3:$I$9954,4,FALSE) ->  | D49: =VLOOKUP($B$9&H49,'LISTA TOTAL PROVEEDORES'!$A$3:$I$9954,5,FALSE) ->  | E49: =VLOOKUP($B$9&H49,'LISTA TOTAL PROVEEDORES'!$A$3:$I$9954,6,FALSE) ->  | F49: =VLOOKUP($B$9&H49,'LISTA TOTAL PROVEEDORES'!$A$3:$I$9954,7,FALSE) ->  | G49: =VLOOKUP($B$9&H49,'LISTA TOTAL PROVEEDORES'!$A$3:$I$9954,8,FALSE) ->  | H49: ERROR
B50: =VLOOKUP($B$9&H50,'LISTA TOTAL PROVEEDORES'!$A$3:$I$9954,9,FALSE) ->  | C50: =VLOOKUP($B$9&H50,'LISTA TOTAL PROVEEDORES'!$A$3:$I$9954,4,FALSE) ->  | D50: =VLOOKUP($B$9&H50,'LISTA TOTAL PROVEEDORES'!$A$3:$I$9954,5,FALSE) ->  | E50: =VLOOKUP($B$9&H50,'LISTA TOTAL PROVEEDORES'!$A$3:$I$9954,6,FALSE) ->  | F50: =VLOOKUP($B$9&H50,'LISTA TOTAL PROVEEDORES'!$A$3:$I$9954,7,FALSE) ->  | G50: =VLOOKUP($B$9&H50,'LISTA TOTAL PROVEEDORES'!$A$3:$I$9954,8,FALSE) ->  | H50: ERROR
B51: =VLOOKUP($B$9&H51,'LISTA TOTAL PROVEEDORES'!$A$3:$I$9954,9,FALSE) ->  | C51: =VLOOKUP($B$9&H51,'LISTA TOTAL PROVEEDORES'!$A$3:$I$9954,4,FALSE) ->  | D51: =VLOOKUP($B$9&H51,'LISTA TOTAL PROVEEDORES'!$A$3:$I$9954,5,FALSE) ->  | E51: =VLOOKUP($B$9&H51,'LISTA TOTAL PROVEEDORES'!$A$3:$I$9954,6,FALSE) ->  | F51: =VLOOKUP($B$9&H51,'LISTA TOTAL PROVEEDORES'!$A$3:$I$9954,7,FALSE) ->  | G51: =VLOOKUP($B$9&H51,'LISTA TOTAL PROVEEDORES'!$A$3:$I$9954,8,FALSE) ->  | H51: ERROR
B52: =VLOOKUP($B$9&H52,'LISTA TOTAL PROVEEDORES'!$A$3:$I$9954,9,FALSE) ->  | C52: =VLOOKUP($B$9&H52,'LISTA TOTAL PROVEEDORES'!$A$3:$I$9954,4,FALSE) ->  | D52: =VLOOKUP($B$9&H52,'LISTA TOTAL PROVEEDORES'!$A$3:$I$9954,5,FALSE) ->  | E52: =VLOOKUP($B$9&H52,'LISTA TOTAL PROVEEDORES'!$A$3:$I$9954,6,FALSE) ->  | F52: =VLOOKUP($B$9&H52,'LISTA TOTAL PROVEEDORES'!$A$3:$I$9954,7,FALSE) ->  | G52: =VLOOKUP($B$9&H52,'LISTA TOTAL PROVEEDORES'!$A$3:$I$9954,8,FALSE) ->  | H52: ERROR
B53: =VLOOKUP($B$9&H53,'LISTA TOTAL PROVEEDORES'!$A$3:$I$9954,9,FALSE) ->  | C53: =VLOOKUP($B$9&H53,'LISTA TOTAL PROVEEDORES'!$A$3:$I$9954,4,FALSE) ->  | D53: =VLOOKUP($B$9&H53,'LISTA TOTAL PROVEEDORES'!$A$3:$I$9954,5,FALSE) ->  | E53: =VLOOKUP($B$9&H53,'LISTA TOTAL PROVEEDORES'!$A$3:$I$9954,6,FALSE) ->  | F53: =VLOOKUP($B$9&H53,'LISTA TOTAL PROVEEDORES'!$A$3:$I$9954,7,FALSE) ->  | G53: =VLOOKUP($B$9&H53,'LISTA TOTAL PROVEEDORES'!$A$3:$I$9954,8,FALSE) ->  | H53: ERROR
B54: =VLOOKUP($B$9&H54,'LISTA TOTAL PROVEEDORES'!$A$3:$I$9954,9,FALSE) ->  | C54: =VLOOKUP($B$9&H54,'LISTA TOTAL PROVEEDORES'!$A$3:$I$9954,4,FALSE) ->  | D54: =VLOOKUP($B$9&H54,'LISTA TOTAL PROVEEDORES'!$A$3:$I$9954,5,FALSE) ->  | E54: =VLOOKUP($B$9&H54,'LISTA TOTAL PROVEEDORES'!$A$3:$I$9954,6,FALSE) ->  | F54: =VLOOKUP($B$9&H54,'LISTA TOTAL PROVEEDORES'!$A$3:$I$9954,7,FALSE) ->  | G54: =VLOOKUP($B$9&H54,'LISTA TOTAL PROVEEDORES'!$A$3:$I$9954,8,FALSE) ->  | H54: ERROR
B55: =VLOOKUP($B$9&H55,'LISTA TOTAL PROVEEDORES'!$A$3:$I$9954,9,FALSE) ->  | C55: =VLOOKUP($B$9&H55,'LISTA TOTAL PROVEEDORES'!$A$3:$I$9954,4,FALSE) ->  | D55: =VLOOKUP($B$9&H55,'LISTA TOTAL PROVEEDORES'!$A$3:$I$9954,5,FALSE) ->  | E55: =VLOOKUP($B$9&H55,'LISTA TOTAL PROVEEDORES'!$A$3:$I$9954,6,FALSE) ->  | F55: =VLOOKUP($B$9&H55,'LISTA TOTAL PROVEEDORES'!$A$3:$I$9954,7,FALSE) ->  | G55: =VLOOKUP($B$9&H55,'LISTA TOTAL PROVEEDORES'!$A$3:$I$9954,8,FALSE) ->  | H55: ERROR
B56: =VLOOKUP($B$9&H56,'LISTA TOTAL PROVEEDORES'!$A$3:$I$9954,9,FALSE) ->  | C56: =VLOOKUP($B$9&H56,'LISTA TOTAL PROVEEDORES'!$A$3:$I$9954,4,FALSE) ->  | D56: =VLOOKUP($B$9&H56,'LISTA TOTAL PROVEEDORES'!$A$3:$I$9954,5,FALSE) ->  | E56: =VLOOKUP($B$9&H56,'LISTA TOTAL PROVEEDORES'!$A$3:$I$9954,6,FALSE) ->  | F56: =VLOOKUP($B$9&H56,'LISTA TOTAL PROVEEDORES'!$A$3:$I$9954,7,FALSE) ->  | G56: =VLOOKUP($B$9&H56,'LISTA TOTAL PROVEEDORES'!$A$3:$I$9954,8,FALSE) ->  | H56: ERROR
B57: =VLOOKUP($B$9&H57,'LISTA TOTAL PROVEEDORES'!$A$3:$I$9954,9,FALSE) ->  | C57: =VLOOKUP($B$9&H57,'LISTA TOTAL PROVEEDORES'!$A$3:$I$9954,4,FALSE) ->  | D57: =VLOOKUP($B$9&H57,'LISTA TOTAL PROVEEDORES'!$A$3:$I$9954,5,FALSE) ->  | E57: =VLOOKUP($B$9&H57,'LISTA TOTAL PROVEEDORES'!$A$3:$I$9954,6,FALSE) ->  | F57: =VLOOKUP($B$9&H57,'LISTA TOTAL PROVEEDORES'!$A$3:$I$9954,7,FALSE) ->  | G57: =VLOOKUP($B$9&H57,'LISTA TOTAL PROVEEDORES'!$A$3:$I$9954,8,FALSE) ->  | H57: ERROR
B58: =VLOOKUP($B$9&H58,'LISTA TOTAL PROVEEDORES'!$A$3:$I$9954,9,FALSE) ->  | C58: =VLOOKUP($B$9&H58,'LISTA TOTAL PROVEEDORES'!$A$3:$I$9954,4,FALSE) ->  | D58: =VLOOKUP($B$9&H58,'LISTA TOTAL PROVEEDORES'!$A$3:$I$9954,5,FALSE) ->  | E58: =VLOOKUP($B$9&H58,'LISTA TOTAL PROVEEDORES'!$A$3:$I$9954,6,FALSE) ->  | F58: =VLOOKUP($B$9&H58,'LISTA TOTAL PROVEEDORES'!$A$3:$I$9954,7,FALSE) ->  | G58: =VLOOKUP($B$9&H58,'LISTA TOTAL PROVEEDORES'!$A$3:$I$9954,8,FALSE) ->  | H58: ERROR
B59: =VLOOKUP($B$9&H59,'LISTA TOTAL PROVEEDORES'!$A$3:$I$9954,9,FALSE) ->  | C59: =VLOOKUP($B$9&H59,'LISTA TOTAL PROVEEDORES'!$A$3:$I$9954,4,FALSE) ->  | D59: =VLOOKUP($B$9&H59,'LISTA TOTAL PROVEEDORES'!$A$3:$I$9954,5,FALSE) ->  | E59: =VLOOKUP($B$9&H59,'LISTA TOTAL PROVEEDORES'!$A$3:$I$9954,6,FALSE) ->  | F59: =VLOOKUP($B$9&H59,'LISTA TOTAL PROVEEDORES'!$A$3:$I$9954,7,FALSE) ->  | G59: =VLOOKUP($B$9&H59,'LISTA TOTAL PROVEEDORES'!$A$3:$I$9954,8,FALSE) ->  | H59: ERROR
B60: =VLOOKUP($B$9&H60,'LISTA TOTAL PROVEEDORES'!$A$3:$I$9954,9,FALSE) ->  | C60: =VLOOKUP($B$9&H60,'LISTA TOTAL PROVEEDORES'!$A$3:$I$9954,4,FALSE) ->  | D60: =VLOOKUP($B$9&H60,'LISTA TOTAL PROVEEDORES'!$A$3:$I$9954,5,FALSE) ->  | E60: =VLOOKUP($B$9&H60,'LISTA TOTAL PROVEEDORES'!$A$3:$I$9954,6,FALSE) ->  | F60: =VLOOKUP($B$9&H60,'LISTA TOTAL PROVEEDORES'!$A$3:$I$9954,7,FALSE) ->  | G60: =VLOOKUP($B$9&H60,'LISTA TOTAL PROVEEDORES'!$A$3:$I$9954,8,FALSE) ->  | H60: ERROR
B61: =VLOOKUP($B$9&H61,'LISTA TOTAL PROVEEDORES'!$A$3:$I$9954,9,FALSE) ->  | C61: =VLOOKUP($B$9&H61,'LISTA TOTAL PROVEEDORES'!$A$3:$I$9954,4,FALSE) ->  | D61: =VLOOKUP($B$9&H61,'LISTA TOTAL PROVEEDORES'!$A$3:$I$9954,5,FALSE) ->  | E61: =VLOOKUP($B$9&H61,'LISTA TOTAL PROVEEDORES'!$A$3:$I$9954,6,FALSE) ->  | F61: =VLOOKUP($B$9&H61,'LISTA TOTAL PROVEEDORES'!$A$3:$I$9954,7,FALSE) ->  | G61: =VLOOKUP($B$9&H61,'LISTA TOTAL PROVEEDORES'!$A$3:$I$9954,8,FALSE) ->  | H61: ERROR
B62: =VLOOKUP($B$9&H62,'LISTA TOTAL PROVEEDORES'!$A$3:$I$9954,9,FALSE) ->  | C62: =VLOOKUP($B$9&H62,'LISTA TOTAL PROVEEDORES'!$A$3:$I$9954,4,FALSE) ->  | D62: =VLOOKUP($B$9&H62,'LISTA TOTAL PROVEEDORES'!$A$3:$I$9954,5,FALSE) ->  | E62: =VLOOKUP($B$9&H62,'LISTA TOTAL PROVEEDORES'!$A$3:$I$9954,6,FALSE) ->  | F62: =VLOOKUP($B$9&H62,'LISTA TOTAL PROVEEDORES'!$A$3:$I$9954,7,FALSE) ->  | G62: =VLOOKUP($B$9&H62,'LISTA TOTAL PROVEEDORES'!$A$3:$I$9954,8,FALSE) ->  | H62: ERROR
B63: =VLOOKUP($B$9&H63,'LISTA TOTAL PROVEEDORES'!$A$3:$I$9954,9,FALSE) ->  | C63: =VLOOKUP($B$9&H63,'LISTA TOTAL PROVEEDORES'!$A$3:$I$9954,4,FALSE) ->  | D63: =VLOOKUP($B$9&H63,'LISTA TOTAL PROVEEDORES'!$A$3:$I$9954,5,FALSE) ->  | E63: =VLOOKUP($B$9&H63,'LISTA TOTAL PROVEEDORES'!$A$3:$I$9954,6,FALSE) ->  | F63: =VLOOKUP($B$9&H63,'LISTA TOTAL PROVEEDORES'!$A$3:$I$9954,7,FALSE) ->  | G63: =VLOOKUP($B$9&H63,'LISTA TOTAL PROVEEDORES'!$A$3:$I$9954,8,FALSE) ->  | H63: ERROR
B64: =VLOOKUP($B$9&H64,'LISTA TOTAL PROVEEDORES'!$A$3:$I$9954,9,FALSE) ->  | C64: =VLOOKUP($B$9&H64,'LISTA TOTAL PROVEEDORES'!$A$3:$I$9954,4,FALSE) ->  | D64: =VLOOKUP($B$9&H64,'LISTA TOTAL PROVEEDORES'!$A$3:$I$9954,5,FALSE) ->  | E64: =VLOOKUP($B$9&H64,'LISTA TOTAL PROVEEDORES'!$A$3:$I$9954,6,FALSE) ->  | F64: =VLOOKUP($B$9&H64,'LISTA TOTAL PROVEEDORES'!$A$3:$I$9954,7,FALSE) ->  | G64: =VLOOKUP($B$9&H64,'LISTA TOTAL PROVEEDORES'!$A$3:$I$9954,8,FALSE) ->  | H64: ERROR
B65: =VLOOKUP($B$9&H65,'LISTA TOTAL PROVEEDORES'!$A$3:$I$9954,9,FALSE) ->  | C65: =VLOOKUP($B$9&H65,'LISTA TOTAL PROVEEDORES'!$A$3:$I$9954,4,FALSE) ->  | D65: =VLOOKUP($B$9&H65,'LISTA TOTAL PROVEEDORES'!$A$3:$I$9954,5,FALSE) ->  | E65: =VLOOKUP($B$9&H65,'LISTA TOTAL PROVEEDORES'!$A$3:$I$9954,6,FALSE) ->  | F65: =VLOOKUP($B$9&H65,'LISTA TOTAL PROVEEDORES'!$A$3:$I$9954,7,FALSE) ->  | G65: =VLOOKUP($B$9&H65,'LISTA TOTAL PROVEEDORES'!$A$3:$I$9954,8,FALSE) ->  | H65: ERROR
B66: =VLOOKUP($B$9&H66,'LISTA TOTAL PROVEEDORES'!$A$3:$I$9954,9,FALSE) ->  | C66: =VLOOKUP($B$9&H66,'LISTA TOTAL PROVEEDORES'!$A$3:$I$9954,4,FALSE) ->  | D66: =VLOOKUP($B$9&H66,'LISTA TOTAL PROVEEDORES'!$A$3:$I$9954,5,FALSE) ->  | E66: =VLOOKUP($B$9&H66,'LISTA TOTAL PROVEEDORES'!$A$3:$I$9954,6,FALSE) ->  | F66: =VLOOKUP($B$9&H66,'LISTA TOTAL PROVEEDORES'!$A$3:$I$9954,7,FALSE) ->  | G66: =VLOOKUP($B$9&H66,'LISTA TOTAL PROVEEDORES'!$A$3:$I$9954,8,FALSE) ->  | H66: ERROR
B67: =VLOOKUP($B$9&H67,'LISTA TOTAL PROVEEDORES'!$A$3:$I$9954,9,FALSE) ->  | C67: =VLOOKUP($B$9&H67,'LISTA TOTAL PROVEEDORES'!$A$3:$I$9954,4,FALSE) ->  | D67: =VLOOKUP($B$9&H67,'LISTA TOTAL PROVEEDORES'!$A$3:$I$9954,5,FALSE) ->  | E67: =VLOOKUP($B$9&H67,'LISTA TOTAL PROVEEDORES'!$A$3:$I$9954,6,FALSE) ->  | F67: =VLOOKUP($B$9&H67,'LISTA TOTAL PROVEEDORES'!$A$3:$I$9954,7,FALSE) ->  | G67: =VLOOKUP($B$9&H67,'LISTA TOTAL PROVEEDORES'!$A$3:$I$9954,8,FALSE) ->  | H67: ERROR
B68: =VLOOKUP($B$9&H68,'LISTA TOTAL PROVEEDORES'!$A$3:$I$9954,9,FALSE) ->  | C68: =VLOOKUP($B$9&H68,'LISTA TOTAL PROVEEDORES'!$A$3:$I$9954,4,FALSE) ->  | D68: =VLOOKUP($B$9&H68,'LISTA TOTAL PROVEEDORES'!$A$3:$I$9954,5,FALSE) ->  | E68: =VLOOKUP($B$9&H68,'LISTA TOTAL PROVEEDORES'!$A$3:$I$9954,6,FALSE) ->  | F68: =VLOOKUP($B$9&H68,'LISTA TOTAL PROVEEDORES'!$A$3:$I$9954,7,FALSE) ->  | G68: =VLOOKUP($B$9&H68,'LISTA TOTAL PROVEEDORES'!$A$3:$I$9954,8,FALSE) ->  | H68: ERROR
B69: =VLOOKUP($B$9&H69,'LISTA TOTAL PROVEEDORES'!$A$3:$I$9954,9,FALSE) ->  | C69: =VLOOKUP($B$9&H69,'LISTA TOTAL PROVEEDORES'!$A$3:$I$9954,4,FALSE) ->  | D69: =VLOOKUP($B$9&H69,'LISTA TOTAL PROVEEDORES'!$A$3:$I$9954,5,FALSE) ->  | E69: =VLOOKUP($B$9&H69,'LISTA TOTAL PROVEEDORES'!$A$3:$I$9954,6,FALSE) ->  | F69: =VLOOKUP($B$9&H69,'LISTA TOTAL PROVEEDORES'!$A$3:$I$9954,7,FALSE) ->  | G69: =VLOOKUP($B$9&H69,'LISTA TOTAL PROVEEDORES'!$A$3:$I$9954,8,FALSE) ->  | H69: ERROR
B70: =VLOOKUP($B$9&H70,'LISTA TOTAL PROVEEDORES'!$A$3:$I$9954,9,FALSE) ->  | C70: =VLOOKUP($B$9&H70,'LISTA TOTAL PROVEEDORES'!$A$3:$I$9954,4,FALSE) ->  | D70: =VLOOKUP($B$9&H70,'LISTA TOTAL PROVEEDORES'!$A$3:$I$9954,5,FALSE) ->  | E70: =VLOOKUP($B$9&H70,'LISTA TOTAL PROVEEDORES'!$A$3:$I$9954,6,FALSE) ->  | F70: =VLOOKUP($B$9&H70,'LISTA TOTAL PROVEEDORES'!$A$3:$I$9954,7,FALSE) ->  | G70: =VLOOKUP($B$9&H70,'LISTA TOTAL PROVEEDORES'!$A$3:$I$9954,8,FALSE) ->  | H70: ERROR
B71: =VLOOKUP($B$9&H71,'LISTA TOTAL PROVEEDORES'!$A$3:$I$9954,9,FALSE) ->  | C71: =VLOOKUP($B$9&H71,'LISTA TOTAL PROVEEDORES'!$A$3:$I$9954,4,FALSE) ->  | D71: =VLOOKUP($B$9&H71,'LISTA TOTAL PROVEEDORES'!$A$3:$I$9954,5,FALSE) ->  | E71: =VLOOKUP($B$9&H71,'LISTA TOTAL PROVEEDORES'!$A$3:$I$9954,6,FALSE) ->  | F71: =VLOOKUP($B$9&H71,'LISTA TOTAL PROVEEDORES'!$A$3:$I$9954,7,FALSE) ->  | G71: =VLOOKUP($B$9&H71,'LISTA TOTAL PROVEEDORES'!$A$3:$I$9954,8,FALSE) ->  | H71: ERROR
B72: =VLOOKUP($B$9&H72,'LISTA TOTAL PROVEEDORES'!$A$3:$I$9954,9,FALSE) ->  | C72: =VLOOKUP($B$9&H72,'LISTA TOTAL PROVEEDORES'!$A$3:$I$9954,4,FALSE) ->  | D72: =VLOOKUP($B$9&H72,'LISTA TOTAL PROVEEDORES'!$A$3:$I$9954,5,FALSE) ->  | E72: =VLOOKUP($B$9&H72,'LISTA TOTAL PROVEEDORES'!$A$3:$I$9954,6,FALSE) ->  | F72: =VLOOKUP($B$9&H72,'LISTA TOTAL PROVEEDORES'!$A$3:$I$9954,7,FALSE) ->  | G72: =VLOOKUP($B$9&H72,'LISTA TOTAL PROVEEDORES'!$A$3:$I$9954,8,FALSE) ->  | H72: ERROR
B73: =VLOOKUP($B$9&H73,'LISTA TOTAL PROVEEDORES'!$A$3:$I$9954,9,FALSE) ->  | C73: =VLOOKUP($B$9&H73,'LISTA TOTAL PROVEEDORES'!$A$3:$I$9954,4,FALSE) ->  | D73: =VLOOKUP($B$9&H73,'LISTA TOTAL PROVEEDORES'!$A$3:$I$9954,5,FALSE) ->  | E73: =VLOOKUP($B$9&H73,'LISTA TOTAL PROVEEDORES'!$A$3:$I$9954,6,FALSE) ->  | F73: =VLOOKUP($B$9&H73,'LISTA TOTAL PROVEEDORES'!$A$3:$I$9954,7,FALSE) ->  | G73: =VLOOKUP($B$9&H73,'LISTA TOTAL PROVEEDORES'!$A$3:$I$9954,8,FALSE) ->  | H73: ERROR
B74: =VLOOKUP($B$9&H74,'LISTA TOTAL PROVEEDORES'!$A$3:$I$9954,9,FALSE) ->  | C74: =VLOOKUP($B$9&H74,'LISTA TOTAL PROVEEDORES'!$A$3:$I$9954,4,FALSE) ->  | D74: =VLOOKUP($B$9&H74,'LISTA TOTAL PROVEEDORES'!$A$3:$I$9954,5,FALSE) ->  | E74: =VLOOKUP($B$9&H74,'LISTA TOTAL PROVEEDORES'!$A$3:$I$9954,6,FALSE) ->  | F74: =VLOOKUP($B$9&H74,'LISTA TOTAL PROVEEDORES'!$A$3:$I$9954,7,FALSE) ->  | G74: =VLOOKUP($B$9&H74,'LISTA TOTAL PROVEEDORES'!$A$3:$I$9954,8,FALSE) ->  | H74: ERROR
